Workbook

Sheet Quick Start Guide
B7: ="Version "&ChangeLog!B23 -> Version 3.7.5
A11: The Spreadsheet Tabs | B11: Description
A12: Project Info | B12: Inputs required for a range of indicators
A13: Building Inputs | B13: Inputs for the building prototypes that form the building blocks for the Dev Types
A14: Dev Type Streets | B14: Inputs for the street and block characteristics of each Dev Type
A15: Dev Type Inputs | B15: Combine building types to create Dev Types
A16: Dev Type Attributes | B16: Detailed characteristics about each Dev Type
A17: Summary New | B17: New Growth Summary outputs for all 5 Scenarios
A18: Summary Total | B18: Total Development Summary outputs for all 5 Scenarios
A19: SCENARIO1 | B19: Detailed Development Type outputs of Scenario 1
A20: SCENARIO2 | B20: Detailed Development Type outputs of Scenario 2
A21: SCENARIO3 | B21: Detailed Development Type outputs of Scenario 3
A22: SCENARIO4 | B22: Detailed Development Type outputs of Scenario 4
A23: SCENARIO5 | B23: Detailed Development Type outputs of Scenario 5
A24: BUILDING1 | B24: Detailed Building-level outputs of Scenario 1
A25: BUILDING2 | B25: Detailed Building-level outputs of Scenario 2
A26: BUILDING3 | B26: Detailed Building-level outputs of Scenario 3
A27: BUILDING4 | B27: Detailed Building-level outputs of Scenario 4
A28: BUILDING5 | B28: Detailed Building-level outputs of Scenario 5
A30: Tab Color Definition
A31: Input Tab
A32: Output Tab
A33: Reference Tab
A35: Cell Color Definition
A36: Input Cell
A37: Header Cell
A38: Subheader Cell
A39: Output Cell | B39: [white]
A41: Available Indicators | B41: Location
A42: Developed Acres | B42: Summary New Tab, Summary Total Tab
A43: Infill Development | B43: Summary New Tab, Summary Total Tab
A44: Building Square Footage Mix | B44: Summary New Tab
A45: Land Area Mix | B45: Summary New Tab, Summary Total Tab
A46: Population | B46: Summary New Tab, Summary Total Tab
A47: Net New Growth | B47: Summary Total Tab
A48: Displacement From Redevelopment | B48: Summary Total Tab
A49: Housing Mix | B49: Summary New Tab, Summary Total Tab
A50: Affordability | B50: Summary New Tab, Summary Total Tab
A51: Housing Distribution By Income | B51: Summary New Tab
A52: Housing By Building Type | B52: Summary New Tab
A53: Employment Mix | B53: Summary New Tab, Summary Total Tab
A54: Jobs/Housing Balance | B54: Summary New Tab, Summary Total Tab
A55: Affordability (H+T+E) | B55: Summary Total Tab, MXD Travel App, HH Travel App
A56: Density | B56: Summary New Tab, Summary Total Tab
A57: Income | B57: Summary New Tab
A58: Walk and Transit Friendliness | B58: Summary New Tab
A59: Parking | B59: Summary New Tab
A60: Financial | B60: Summary New Tab
A61: Subsidy | B61: Summary New Tab
A62: New Infrastructure | B62: Summary New Tab
A63: Tax Revenue | B63: Summary New Tab, Summary Total Tab
A64: Sustainability | B64: Summary New Tab, Summary Total Tab
A65: Bike Trips | B65: MXD Travel App, HH Travel App
A66: Walk Trips | B66: MXD Travel App, HH Travel App
A67: Transit Trips | B67: MXD Travel App, HH Travel App
A68: Vehicle Trips | B68: MXD Travel App, HH Travel App
A69: Internal Trips | B69: MXD Travel App
A70: External Trips | B70: MXD Travel App, HH Travel App
A71: Vehicle Miles Traveled (VMT) | B71: MXD Travel App, HH Travel App
A72: Traffic Accidents | B72: MXD Travel App, HH Travel App
A73: ULI Shared Parking Savings | B73: MXD Travel App
A74: Transportation Affordability | B74: MXD Travel App
A75: Daily Emissions | B75: MXD Travel App, HH Travel App
A76: Tax Revenue Per New Housing Unit | B76: Fiscal Impact Tool (FIT) App
A77: Operations and Maintenance Costs | B77: Fiscal Impact Tool (FIT) App
A78: Capital Outlays | B78: Fiscal Impact Tool (FIT) App
A79: Cost to Revenue Ratio | B79: Fiscal Impact Tool (FIT) App

Sheet Project Info
A2: Select Project Location (or nearest location)
A3: Micropolitan Statistical Area | B3: Austin-Round Rock-San Marcos TX Micropolitan Statistical Area
A6: Household / Population Assumptions | B6: Existing Households | D6: New Development Population Generation Rates | G6: Avg. Household Size (New Development)
B7: Avg. Unit Size | C7: Avg. HH Size | D7: Gross Sq Ft per Resident | E7: Max Household Size | F7: Vacancy Rate | G7: Scenario 1 | H7: Scenario 2 | I7: Scenario 2 | J7: Scenario 4 | K7: Scenario 5
A8: Multifamily | B8: 800 | C8: 2.5 | D8: 499 | E8: 2.25 | F8: 0.06 | G8: ='Summary New'!B166 -> 2.092927227 | H8: ='Summary New'!D166 -> 1.849393622 | I8: ='Summary New'!F166 -> 0 | J8: ='Summary New'!H166 -> 0 | K8: ='Summary New'!J166 -> 0
A9: Townhome | B9: 1200 | C9: 2.85 | D9: 599 | E9: 2.5 | F9: 0.06
A10: Single Family Small Lot | B10: 1800 | C10: 3.25
A11: Single Family Conventional Lot | B11: 2500 | C11: 3.5 | D11: 699 | E11: 3 | F11: 0.08
A12: Single Family Large Lot | B12: 3000 | C12: 3.6
A13: Mobile Home | B13: 500 | C13: 3.25 | D13: 699 | E13: 2.8 | F13: 0.1
A16: Existing Average Household Incomes | B16: $ / Year
A18: Multifamily | B18: 50000
A19: Townhome | B19: 55000
A20: Single Family Small Lot | B20: 60000
A21: Single Family Conventional Lot | B21: 65000
A22: Single Family Large Lot | B22: 70000
A23: Mobile Home | B23: 45000
A26: Average Workers per Household | B26: Study Area Totals
A27: Workers | B27: =SUMIF('Metro CDD HDD'!A2:A373,Metro_Select,'Metro CDD HDD'!H2:H373) -> 810017
A28: Population | B28: =SUMIF('Metro CDD HDD'!A2:A373,Metro_Select,'Metro CDD HDD'!G2:G373) -> 1589393
A29: Workers per Resident | B29: =B27/B28 -> 0.5096392145
A32: Wage Estimator | F32: Envision Wage Estimates
A33: Industry description | B33: Annual payroll ($1,000) | C33: Number of paid employees for pay period | D33: Average Wage | F33: Envision Employment Categories | G33: Adjusted Income ($/yr)
A34: Forestry, fishing, and related activities | D34: =IF(C34=0,0,B34*1000/C34) -> 0 | F34: Retail | G34: =IFERROR(((C40*D40)+(C52*D52))/SUM(C40,C52),0) -> 0
A35: Mining | D35: 0 | F35: Office/Public | G35: =IFERROR(((C36*D36)+(C42*D42)+(C43*D43)+(C45*D45)+(C46*D46)+(C49*D49))/SUM(C36,C42,C43,C45,C46,C49),0) -> 0
A36: Utilities | D36: 0 | F36: Industrial | G36: =IFERROR(((C35*D35)+(C38*D38)+(C41*D41))/SUM(C35,C38,C41),0) -> 0
A37: Construction | D37: 0 | F37: Education | G37: =IFERROR(((C48*D48))/SUM(C48),0) -> 0
A38: Manufacturing | D38: 0 | F38: Hotel | G38: =IFERROR(((C52*D52))/SUM(C52),0) -> 0
A39: Wholesale trade | D39: 0
A40: Retail trade | D40: 0
A41: Transportation and warehousing | D41: 0
A42: Information | D42: 0
A43: Finance and insurance | D43: 0
A44: Real estate and rental and leasing | D44: 0
A45: Professional, scientific, and technical services | D45: 0
A46: Management of companies and enterprises | D46: 0
A47: Administrative and waste services | D47: 0
A48: Educational services | D48: 0
A49: Health care and social assistance | D49: 0
A50: Arts, entertainment, and recreation | D50: 0
A51: Accommodation and food services | D51: 0
A52: Accommodation | D52: 0
A53: Food Services | D53: 0
A54: Other services, except public administration | D54: 0
A55: Government and government enterprises | D55: 0
A56: Total | D56: =IFERROR((SUM(D34:D55*C34:C55)/SUM(C34:C55)),0) -> 0
A59: Existing Average Monthly Housing Costs (Rent or Mortgage) | B59: $ / Month
A61: Multifamily | B61: 650
A62: Townhome | B62: 750
A63: Single Family Small Lot | B63: 1000
A64: Single Family Conventional Lot | B64: 1200
A65: Single Family Large Lot | B65: 1400
A66: Mobile Home | B66: 450
A67: Weighted Average | B67: =IFERROR(IF(B68=0,SUMPRODUCT(B61:B66,EX_Res_by_Type)/SUM(EX_Res_by_Type),B68),0) -> 888.8739735
A68: Manual Overide Average
A71: Affordability Standards | B71: Maxiumum Housing Expenditures
B72: Owner | C72: Renter
A73: % of Income for Housing | B73: 0.26 | C73: 0.3
A74: Maximum LTV | B74: 0.8
A75: Mortgage Years | B75: 30
A76: Mortgage Interest Rate | B76: 0.06
A79: Single Family Lot Size Assumptions | B79: Sq Ft
A80: Small Lot Single Family | B80: 5000 | C80: or below
A81: Conventional Lot Single Family | B81: =B80 & " - " & B82 -> 5000 - 8042
A82: Large Lot Single Family | B82: 8042 | C82: or above
A85: Student Generation Rates | B85: Units | C85: Public School | G85: Private School
A86: Residential Housing Type | C86: Public School Generation Rate | D86: K-5 | E86: ="6 - 8" -> 6 - 8 | F86: ="9 - 12" -> 9 - 12
A87: Fewer than 8 Units per Acre | B87: 8 | C87: 0.45 | D87: 0.157 | E87: 0.135 | F87: 0.1575 | G87: 0.0582
A88: 9-14 Units per Acre | B88: 14 | C88: 0.21 | D88: 0.0735 | E88: 0.063 | F88: 0.0735 | G88: 0.0482
A89: 15+ Unis per Acre | B89: 15 | C89: 0.15 | D89: 0.0525 | E89: 0.045 | F89: 0.0525 | G89: 0.0451
A90: Table 7-6. Planner's Estimating Guide. Projecting Land-Use and Facility Needs. Arthur C. Nelson. 2004.
A93: Sales Tax | B93: Annual Sales Tax Revenue per Retail Sq Ft
A94: Sales Tax Rate | B94: 0.065
A95: Sales per Sq Ft | B95: 318
A98: New Infrastructure Costs (Capital Costs only) | B98: Unit | C98: Cost
A99: New Roadway | B99: Lane Mile | C99: 2250000
A100: Streetscape | B100: Lane Mile
A101: Sewerage | B101: Lineal Foot | C101: 100
A102: Utilities - above-ground | B102: Mile | C102: 600000
A103: Water Lines | B103: Lineal Foot | C103: 227
A106: Electrical Energy Fuel Mix | B106: Fuel Mix (%) | C106: CO2 per Million BTU
C107: kg | D107: Pounds | E107: Tons
A108: Coal (anthracite) | C108: 103.69 | D108: =C108*2.20462 -> 228.5970478 | E108: =D108*0.00045359237 -> 0.1036898767
A109: Coal (bituminous) | B109: 1 | C109: 93.28 | D109: 205.6469536 | E109: 0.09327988907
A110: Coal (subbituminous) | C110: 97.17 | D110: 214.2229254 | E110: 0.09716988444
A111: Coal (lignite) | C111: 97.72 | D111: 215.4354664 | E111: 0.09771988379
A112: Diesel fuel & heating oil | C112: 73.15 | D112: 161.267953 | E112: 0.07314991301
A113: Propane | C113: 63.07 | D113: 139.0453834 | E113: 0.06306992499
A114: Natural gas | C114: 53.06 | D114: 116.9771372 | E114: 0.0530599369
A115: Nuclear life-cycle (Gen I - IV Mix)* | C115: 225.03 | D115: 496.1056386 | E115: 0.2250297324
A116: Hydroelectric life-cycle* | C116: 34 | D116: 74.95708 | E116: 0.03399995957
A117: Renewable (Avg emission of Wind and soar pv)* | C117: 69 | D117: 152.11878 | E117: 0.06899991794
A118: http://www.eia.doe.gov/oiaf/1605/coefficients.html
A119: *Benjamin K. Sovacool. Valuing the greenhouse gas emissions from nuclear power: A critical survey. Energy Policy, Vol. 36, 2008, p. 2950.
A120: **Fuel Mix from USEIA Statewide Report Nebraska | B120: http://www.eia.gov/state/data.cfm?sid=NE#ConsumptionExpenditures
A122: Energy Costs | B122: $ / 1000 BTU
A123: Residential | B123: 12
A124: Commercial | B124: 12
A127: Landscaping Water Consumption
A128: Water per Sq Foot of Lawn Area | B128: 0.05 | C128: Gallons/Sq Ft
A129: Maximum Watered Lawn Area | B129: 0.25 | C129: Acres
A132: Internal Water Consumption
A133: Building Type/Use | B133: Water Use (G/Day)
B134: Resident | C134: Employee
A135: Multifamily Residential | B135: 60
A136: Townhome | B136: 80
A137: Typical Single Family | B137: 100
A138: Large Single Family | B138: 120
A139: Retail | C139: 68
A140: Office | C140: 106
A141: Industrial | C141: 133
A142: Vickers, Amy. Handbook of Water Use and Conservation. (2001)
A144: Waste Water Production
A145: Building Type/Use | B145: Water Waste (G/Day)
B146: Resident | C146: Employee
A147: Multifamily Residential | B147: 35
A148: Townhome | B148: 50
A149: Typical Single Family | B149: 70
A150: Large Single Family | B150: 90
A151: Retail | C151: 38
A152: Office | C152: 49
A153: Industrial | C153: 49
A154: Adapted from Metcalf and Eddy (1991) Wastewater Engineering. Treatment Disposal Reuse, G. Tchobanoglous and F.L. Burton (Eds.), 1820 pp. New York: McGraw-Hill.
A155: http://www.eolss.net/EolssSampleChapters/C06/E6-13-04-05/E6-13-04-05-T14.htm
A157: Solid Waste Production
A158: Building Type/Use | B158: Solid Waste (lbs/Day)
B159: Resident | C159: Employee
A160: Multifamily Residential | B160: 1.5
A161: Townhome | B161: 2
A162: Typical Single Family | B162: 3
A163: Large Single Family | B163: 4
A164: Retail | C164: 5
A165: Office | C165: 3.5
A166: Industrial | C166: 9
A167: http://www.calrecycle.ca.gov/wastechar/wastegenrates/default.htm
A170: Green Infrastructure Water Inputs
A171: Average annual rainfall (in) | B171: 33.65
A172: Green Infrastructure Energy Inputs
A173: Annual Cooling degree days | B173: 3016 | C173: http://www.ncdc.noaa.gov/oa/documentlibrary/hcs/hcs.html
A174: Annual Heating degree days | B174: 1688 | C174: http://www.ncdc.noaa.gov/oa/documentlibrary/hcs/hcs.html
A175: R conventional (SF F hrs/BTU) | B175: =11.34 -> 11.34 | C175: http://www.cnt.org/repository/gi-values-guide.pdf
A176: R green roof (SF F hrs/Btu) | B176: 23.4 | C176: http://www.cnt.org/repository/gi-values-guide.pdf
A177: Cost per kWh (electricity -- cooling) ($/kWh) | B177: 0.0959 | C177: 0.0959 | D177: US EIA 2010 national rate | E177: http://www.eia.gov/oiaf/aeo/pdf/0383(2010).pdf
A178: Cost per BUT (natural gas -- heating) ($/Btu) | B178: 1.23e-05 | C178: 0.0959 | D178: US EIA 2010 national rate | E178: http://www.eia.gov/oiaf/aeo/pdf/0383(2010).pdf
A179: Green Infrastructure Air Quality Inputs
A180: Avg Annual NO2 uptake/depositions (lbs/SF) | B180: 0.0003 | C180: Source: http://link.springer.com/article/10.1007%2Fs11252-008-0054-y?LI=true
A181: Avg Annual O3 uptake/depositions (lbs/SF) | B181: 0.000588 | C181: Source: http://link.springer.com/article/10.1007%2Fs11252-008-0054-y?LI=true
A182: Avg Annual SO2 uptake/depositions (lbs/SF) | B182: 0.000229 | C182: Source: http://link.springer.com/article/10.1007%2Fs11252-008-0054-y?LI=true
A183: Avg Annual PM-10 uptake/depositions (lbs/SF) | B183: 0.000114 | C183: Source: http://link.springer.com/article/10.1007%2Fs11252-008-0054-y?LI=true
A184: Electricity Emmission rates NO2 (lbs/KWh) | B184: =6.6835/1000 -> 0.0066835 | C184: 0.001937 | D184: USEPA national rate (for more localized rates, see eGRID) | E184: http://cfpub.epa.gov/egridweb/
A185: Electricity Emmission rates SO2 (lbs/KWh) | B185: =34.7566/1000 -> 0.0347566 | C185: 0.00525 | D185: USEPA national rate (for more localized rates, see eGRID) | E185: http://cfpub.epa.gov/egridweb/
A186: Natural Gas Emmission rates NO2 (lbs/BTU) | B186: =0.4565/1000000 -> 4.565e-07 | C186: 7.21e-07 | D186: USEPA national rate (for more localized rates, see eGRID) | E186: http://cfpub.epa.gov/egridweb/
A187: Natural Gas Emmission rates SO2 (lbs/BTU) | B187: =2.3739/1000000 -> 2.3739e-06 | C187: 2.66e-07 | D187: USEPA national rate (for more localized rates, see eGRID) | E187: http://cfpub.epa.gov/egridweb/
A188: US Forest Service NO2 ($/lb) Recommendations | B188: 3.34 | C188: http://www.cnt.org/repository/gi-values-guide.pdf
A189: US Forest Service O3 ($/lb) Recommendations | B189: 3.34 | C189: http://www.cnt.org/repository/gi-values-guide.pdf
A190: US Forest Service SO2 ($/lb) Recommendations | B190: 2.06 | C190: http://www.cnt.org/repository/gi-values-guide.pdf
A191: US Forest Service PM-10 ($/lb) Recommendations | B191: 2.84 | C191: http://www.cnt.org/repository/gi-values-guide.pdf
A192: Green Infrastructure Climate Change Inputs
A193: Avg amount of carbon sequestered by plants (lbs/SF) | B193: 0.0332 | C193: http://www.cnt.org/repository/gi-values-guide.pdf | D193: General study for species in midwest
A194: Electricity Emmission rate CO2 (lbs/Co2/kWh) | B194: =2962.84/1000 -> 2.96284 | C194: =1329.35/1000 -> 1.32935 | D194: USEPA national rate (for more localized rates, see eGRID) | E194: http://cfpub.epa.gov/egridweb/
A195: Natural Gas Emmission rate CO2 (lbs/Co2/BTU) | B195: =202.36/1000000 -> 0.00020236 | C195: =182.29/1000000 -> 0.00018229 | D195: USEPA national rate (for more localized rates, see eGRID) | E195: http://cfpub.epa.gov/egridweb/
A196: EU Emissions Trading System Price of CO2 ($/lb) lower bound | B196: 0.00756 | C196: http://www.cnt.org/repository/gi-values-guide.pdf
A197: based on Center for Neighborhood Technology Value of Green Infrastructure
A198: http://www.cnt.org/repository/gi-values-guide.pdf

Sheet Building Inputs
B1: 1. Load your Prototype buildings | FC1: Green Roofs | FZ1: Biofiltration | GM1: Water Harvesting | GO1: TOTAL GREEN INFRASTRUCTURE
C2: Building and Site Characteristics | J2: Building Square Footage Mix (%) | AA2: Residential | AF2: Housing Type | AJ2: Residential Rent | AL2: Residential Sales Price | AO2: Household Characteristics | AV2: Employment | AY2: Retail | BC2: Office | BG2: Industrial | BK2: Public / Civic | BO2: Educational | BS2: Hotel / Hospitality | CA2: Commercial Parking | CE2: Parking | CJ2: Residential Energy Use (Million BTU / Yr) | CN2: Commercial Energy Use (Million BTU / Yr) | CT2: Total Building Energy Use | CU2: Energy Cost | CV2: Carbon Emissions (Tons / Yr) | CY2: Landscaping Water Consumption | DA2: Internal Water Consumption | DE2: Waste Water | DI2: Solid Waste | DM2: Land Cost | DP2: Improvement Cost | DS2: Total Project Value | DU2: Rent Curve | DX2: Subsidy | EA2: Impact Fees / SDCs | EC2: Return on Investment | EE2: Property Tax Revenue | EG2: Sales Tax Revenue | EI2: Redevelopment Rate | EJ2: Stormwater/ Green Infrastructure Water Quality | EU2: Stormwater/ Green Infrastructure Water Quality per Acre | FC2: Water | FE2: Energy | FI2: Air Quality | FV2: Climate Change | FZ2: Water | GB2: Air Quality | GK2: Climate Change | GM2: Water | GO2: Water | GQ2: Energy | GR2: Air Quality | HB2: Climate Change | HD2: Water Quality Volume | HI2: Stormwater Pollution Capture | HQ2: Stormwater Pollution Capture per Acre | HY2: Trip Generation
A3: # | B3: Building Name | C3: Lot Size (Sq Ft) | D3: Building Lot Coverage | E3: Landscaping Lot Coverage | F3: Parking Lot Coverage | G3: Height (Stories) | H3: Floor Area Ratio (FAR) | I3: Bldg Sq Ft | J3: Residential | K3: Multifamily | L3: Townhome | M3: Single Family | N3: Small Lot Single Family | O3: Medium Lot Single Family | P3: Large Lot Single Family | Q3: Mobile Home | R3: Employment | S3: Retail | T3: Office | U3: Industrial | V3: Public / Civic | W3: Educational | X3: Hotel / Hospitality | Y3: Commercial Parking | Z3: Internal / Structured Parking | AA3: Residential Sq Ft | AB3: Net Sq Ft per Unit | AC3: Gross Sq Ft per Unit | AD3: Dwelling Units / Building | AE3: Dwelling Units / Acre | AF3: Type of Housing | AG3: Percent Renter | AH3: Percent Owner | AI3: Percent Affordable | AJ3: Rent ($/SqFt) | AK3: Avg Rent ($/Mo.) | AL3: Sales Price ($/SqFt) | AM3: Avg Sales Price ($) | AN3: Avg Monthly Mortgage Payment ($) | AO3: Vacancy Rate | AP3: Households per Acre | AQ3: Average Household Size | AR3: Average Number of Workers in HH | AS3: Average School Age Children per Household | AT3: Estimated Household Income Based on Housing Costs | AU3: Estimated Average Employee Wage Based on Employment | AV3: Total Employment Sq Ft | AW3: Total Jobs / Building | AX3: Total Jobs / Acre | AY3: Retail Gross Sq Ft | AZ3: Retail Lease Rate ($/SqFt) | BA3: Space per Employee | BB3: Retail Employees / Acre | BC3: Office Gross Sq Ft | BD3: Office Lease Rate ($/SqFt) | BE3: Space per Employee | BF3: Office Employees / Acre | BG3: Industrial Gross Sq Ft | BH3: Industrial Lease Rate ($/SqFt) | BI3: Space per Employee | BJ3: Industrial Employees / Acre | BK3: Public / Civic Gross Sq Ft | BL3: Pubic / Civic Lease Rate ($/SqFt) | BM3: Space per Employee | BN3: Public / Civic Employees / Acre | BO3: Educational Gross Sq Ft | BP3: Educational Lease Rate ($/SqFt) | BQ3: Space per Employee | BR3: Educational Employees / Acre | BS3: Hospitality Gross Sq Ft | BT3: Hospitality Nighly Rate ($/rm) | BU3: Space per Employee | BV3: Hospitality Employees / Acre | BW3: Net Space per Hotel Room | BX3: Gross Space per Hotel Room | BY3: Hotel Rooms per Building | BZ3: Hotel Rooms / Acre | CA3: Commercial Parking Gross Sq Ft | CB3: Parking Hourly Rate ($/space) | CC3: Space per Employee | CD3: Commercial Parking Employees / Acre | CE3: Parking Spaces | CF3: Total Parking SqFt | CG3: Internal / Structured Parking SqFt | CH3: Parking Cost ($) | CI3: % Parking Costs | CJ3: Space Heating (per unit) | CK3: Space Cooling (per unit) | CL3: Other Energy (per unit) | CM3: Total per Unit | CN3: Space Heating (per building) | CO3: Space Cooling (per building) | CP3: Other Energy (per building) | CQ3: Total per Commercial Area | CR3: per Employee | CS3: per Sq Ft | CT3: Total Energy Use | CU3: Residential Energy Cost ($ / Mo) | CV3: Per Unit | CW3: Per Employee | CX3: Total CO2 Emissions per Building | CY3: Landscaping Water Use (G/Unit/Day) | CZ3: Landscaping Water Use (G/Building/Day) | DA3: Per Resident (G/Resident/Day) | DB3: Per Unit (G/Day) | DC3: Per Employee (G/Employee/Day) | DD3: Total Per Building (G/Day/Building) | DE3: Waste Water (G/Resident/Day) | DF3: Per Unit (G/Day) | DG3: Waste Water (G/Employee/Day) | DH3: Waste Water (G/Day/Building) | DI3: Solid Waste (lbs/Resident/Day) | DJ3: Per Unit (lbs/Day) | DK3: Solid Waste (lbs/Employee/Day) | DL3: Solid Waste (lbs/Day/Building) | DM3: Land Cost ($/SqFt) | DN3: Total Site Cost ($) | DO3: Site Cost ($/Acre) | DP3: Land Cost ($/SqFt) | DQ3: Total Site Cost ($) | DR3: Site Cost ($/Acre) | DS3: Total Project Value ($) | DT3: Total Project Value per Acre ($/Acre) | DU3: Y-Intercept | DV3: Slope | DW3: Product Type | DX3: Project Subsidy ($) | DY3: Subsidy per Unit | DZ3: Project Subsidy per Acre ($/Acre) | EA3: Total Impact Fees ($) | EB3: Total Impact Fees per Acre ($/Acre) | EC3: Internal Rate of Return (Rental) | ED3: Project Return (Owner) | EE3: Property Tax Revenue ($/yr) | EF3: Property Tax Revenue ($/yr/Acre) | EG3: Sales Tax Revenue ($/yr) | EH3: Sales Tax Revenue ($/yr/Acre) | EI3: Relative Value (0-1 scale) | EJ3: Green Roof (Sq Ft) | EK3: Green Roof Efficiency | EL3: Green Roof Water Volume (gal) | EM3: Biofiltration (Sq Ft) | EN3: Biofiltration Efficiency | EO3: Biofiltration Water Volume (gal) | EP3: Green Roof Water Harvesting (Sq Ft) | EQ3: Green Roof Water Harvesting Efficiency | ER3: Rainwater Harvesting (Sq Ft) | ES3: Rainwater Harvesting Efficiency | ET3: Rainwater Harvesting Volume (gal) | EU3: Green Roof (Sq Ft/ Acre) | EV3: Biofiltration (Sq Ft/Acre) | EW3: Biofiltration % | EX3: Green Roof Water Harvesting (Sq Ft/Acre) | EY3: Rainwater Harvesting (Sq Ft/Acre) | EZ3: Green Roof Volume (Gal/ Acre) | FA3: Biofiltration Volume (Gal/Acre) | FB3: Rainwater Harvesting Volume (Gal/Acre) | FC3: Annual Reduction in Runoff (gal/ acre) | FD3: Avoided stormwater costs | FE3: Annual cooling (kWh/ acre) | FF3: Annual cooling savings ($/ acre) | FG3: Annual heating Savings (BTU/ acre) | FH3: Annual heating savings ($/ acre) | FI3: Annual NO2 uptake/ deposition (lbs/ acre) | FJ3: Annual O3 uptake/ deposition (lbs/ acre) | FK3: Annual SO2 uptake/ deposition (lbs/ acre) | FL3: Annual PM-10 uptake/ deposition (lbs/ acre) | FM3: NO2 Reduction from Lower Energy Production (lbs/ acre) | FN3: SO2 Reduction from Lower Energy Production (lbs/ acre) | FO3: Total NO2 Reduction (lbs/ acre) | FP3: Total SO2 Reduction (lbs/ acre) | FQ3: Value of NO2 Reduction per acre | FR3: Value of O3 Reduction per acre | FS3: Value of SO2 Reduction per acre | FT3: Value of PM-10 Reduction per acre | FU3: Total Value of Pollutant Reduction per acre | FV3: Annual Amount of CO2 Sequestered (lbs/ acre) | FW3: Avoided CO2 Emissions from Energy Savings (lbs/ acre) | FX3: Total CO2 Sequestered/ avoided per acre | FY3: Annual Climage Benefit ($/ acre) | FZ3: Annual Reduction in Runoff (gal/ acre) | GA3: Avoided stormwater costs | GB3: Annual NO2 uptake/ deposition (lbs/ acre) | GC3: Annual O3 uptake/ deposition (lbs/ acre) | GD3: Annual SO2 uptake/ deposition (lbs/ acre) | GE3: Annual PM-10 uptake/ deposition (lbs/ acre) | GF3: Value of NO2 Reduction per acre | GG3: Value of O3 Reduction per acre | GH3: Value of SO2 Reduction per acre | GI3: Value of PM-10 Reduction per acre | GJ3: Total Value of Pollutant Reduction per acre | GK3: Annual Amount of Carbon Sequestered (lbs/ acre) | GL3: Annual Climage Benefit ($/ acre) | GM3: Annual Reduction in Runoff (gal/ acre) | GN3: Avoided stormwater costs | GO3: Annual Reduction in Runoff (gal/ acre) | GP3: Avoided stormwater costs | GQ3: Total Energy Savings ($/ acre) | GR3: Total NO2 Reduction (lbs/ acre) | GS3: Total O3 reduction (lbs/ acre) | GT3: Total SO2 Reduction (lbs/ acre) | GU3: Total PM-10 reduction (lbs/ acre) | GV3: Total Pollutant reduction (lbs/ acre) | GW3: Value of NO2 Reduction per acre | GX3: Value of O3 Reduction per acre | GY3: Value of SO2 Reductionper acre | GZ3: Value of PM-10 Reduction per acre | HA3: Total Value of Pollutant Reduction ($/ acre) | HB3: Total CO2 Sequestered/ avoided (lbs/ acre) | HC3: Annual Climate Benefit ($/ acre) | HD3: Required Water Quality Volume (gal) | HE3: Conventional Water Quality Volume (gal) | HF3: Required Water Quality Volume (gal/ acre) | HG3: Conventional Facility Runoff Capture (gal/ acre) | HH3: Green Infrastructure Runoff Capture (gal/ acre) | HI3: Total Suspended Solids load (lbs) | HJ3: Total Nitrogen load (lbs) | HK3: Total Lead load (lbs) | HL3: F Coli load (1,000 colonies) | HM3: Total Suspended Solids removed (lbs) | HN3: Total Nitrogen removed (lbs) | HO3: Total Lead removed (lbs) | HP3: F Coli removed (1,000 colonies) | HQ3: Total Suspended Solids load (lbs/ acre) | HR3: Total Nitrogen load (lbs/ acre) | HS3: Total Lead load (lbs/ acre) | HT3: F Coli load (1,000 colonies/ acre) | HU3: Total Suspended Solids removed (lbs/ acre) | HV3: Total Nitrogen removed (lbs/ acre) | HW3: Total Lead removed (lbs/ acre) | HX3: F Coli removed (1,000 colonies/ acre) | HY3: EPA MXD Daily Residential Trips | HZ3: EPA MXD Daily Retail Trips | IA3: EPA MXD Daily Office/Public Trips | IB3: EPA MXD Daily Education Trips | IC3: EPA MXD Daily Other Trips | ID3: EPA MXD Daily Residential VMT | IE3: EPA MXD Daily Retail VMT | IF3: EPA MXD Daily Office/Public VMT | IG3: EPA MXD Daily Education VMT | IH3: EPA MXD Daily Other VMT
A4: 1 | B4: =[1]!name -> T3NEWLWideHouse | C4: =[1]!lot_size -> 9000 | D4: =[1]!Building_Lot_Coverage -> 0.3027777778 | E4: =[1]!Landscaping_Coverage -> 0.6527777778 | F4: =[1]!Parking_Coverage -> 0.04444444444 | G4: =[1]!Height -> 2 | H4: =[1]!FAR -> 0.6055555556 | I4: =B_Lot_Size*B_FAR -> 5450 | J4: =[1]!ResPct -> 1 | K4: =IF(B_Housing_Type="MF",B_Res_per,0) -> 0 | L4: =IF(B_Housing_Type="TH",B_Res_per,0) -> 0 | M4: =IF(B_Housing_Type="SF",B_Res_per,0) -> 1 | N4: =IF(B_SF_per>0,IF((B_Lot_Size/B_HU_Building)<=SF_Small_Lot_Size,B_SF_per,0),0) -> 0 | O4: =IF(B_SF_per>0,IF(AND((B_Lot_Size/B_HU_Building)>SF_Small_Lot_Size,(B_Lot_Size/B_HU_Building)<SF_Large_Lot_Size),B_SF_per,0),0) -> 0 | P4: =IF(B_SF_per>0,IF((B_Lot_Size/B_HU_Building)>=SF_Large_Lot_Size,B_SF_per,0),0) -> 1 | Q4: =IF(B_Housing_Type="MH",B_Res_per,0) -> 0 | R4: =SUM(S4:Y4) -> 0 | S4: =[1]!RetPct -> 0 | T4: =[1]!OffPct -> 0 | U4: =[1]!IndPct -> 0 | V4: =[1]!PubPct -> 0 | W4: =[1]!EduPct -> 0 | X4: =[1]!HotelPct -> 0 | Y4: =[1]!ComParkingPct -> 0 | Z4: =[1]!ParkingPct -> 0 | AA4: =B_Gross_Bldg_Sq_Ft*B_Res_per -> 5450 | AB4: =[1]!NetUnitSize -> 5450 | AC4: =[1]!UnitSize -> 5450 | AD4: =IF(B_Gross_Sq_Ft_per_Unit=0,0,(B_Residential_Sq_Ft/B_Gross_Sq_Ft_per_Unit)) -> 1 | AE4: =IF(B_Gross_Sq_Ft_per_Unit=0,0,(B_Residential_Sq_Ft/B_Gross_Sq_Ft_per_Unit)*(43560/B_Lot_Size)) -> 4.84 | AF4: =[1]!HousingType -> SF | AG4: =[1]!RentalPct -> 0 | AH4: =IF(B_Pct_Renter="",0,IF(B_HU_Acre=0,0,IF(B_Pct_Renter=1,0,IF(B_Pct_Renter=0,1,1-B_Pct_Renter)))) -> 1 | AI4: =[1]!AffordablePct -> 0 | AJ4: =[1]!Rent -> 0 | AK4: =IF(B_Pct_Renter=0,0,B_Net_Sq_Ft_per_Unit*B_Rent_SqFt) -> 0 | AL4: =[1]!Sales_Price -> 379 | AM4: =IF(B_Pct_Owner=0,0,B_Sales_Price_SqFt*B_Net_Sq_Ft_per_Unit) -> 2065550 | AN4: =IF(B_Avg_Sales_Price>0,(B_HH_Income*HCost_Max_per_Income_Owner)/12,0) -> 12384.01587 | AO4: =IF(B_Housing_Type="",0,IF(B_Housing_Type="MF",Info_Vac_Rate_MF,IF(B_Housing_Type="TH",Info_Vac_Rate_TH,IF(B_Housing_Type="SF",Info_Vac_Rate_SF,IF(B_Housing_Type="MH",Info_Vac_Rate_MH,0))))) -> 0.08 | AP4: =B_HU_Acre*(1-B_Vacancy_Rate) -> 4.4528 | AQ4: =IF(B_Housing_Type="MF",IF((B_Net_Sq_Ft_per_Unit/Info_Sq_Ft_Res_MF)>Info_Max_HH_Size_MF,Info_Max_HH_Size_MF,B_Net_Sq_Ft_per_Unit/Info_Sq_Ft_Res_MF),IF(B_Housing_Type="TH",IF((B_Net_Sq_Ft_per_Unit/Info_Sq_Ft_Res_TH)>Info_Max_HH_Size_TH,Info_Max_HH_Size_TH,B_Net_Sq_Ft_per_Unit/Info_Sq_Ft_Res_TH),IF(B_Housing_Type="SF",IF((B_Net_Sq_Ft_per_Unit/Info_Sq_Ft_Res_SF)>Info_Max_HH_Size_SF,Info_Max_HH_Size_SF,B_Net_Sq_Ft_per_Unit/Info_Sq_Ft_Res_SF),IF(B_Housing_Type="MH",IF((B_Net_Sq_Ft_per_Unit/Info_Sq_Ft_Res_MH)>Info_Max_HH_Size_MH,Info_Max_HH_Size_MH,B_Net_Sq_Ft_per_Unit/Info_Sq_Ft_Res_MH),0)))) -> 3 | AR4: =B_HH_Size*WorkersHH -> 1.528917643 | AS4: =IF(B_HU_Acre=0,0,IF(B_HU_Acre<School_Children_SF_Den,SUM(School_Children_Pub_SF,School_Children_Priv_SF),IF(B_HU_Acre<School_Children_TH_Den,SUM(School_Children_Pub_TH,School_Children_Priv_TH),IF(B_HU_Acre>=School_Children_TH_Den,SUM(School_Children_Pub_MF,School_Children_Priv_MF),0)))) -> 0.5082 | AT4: =IF(B_Pct_Renter=1,B_Avg_Rent*12/HCost_Max_per_Income_Renter,IF(B_Pct_Renter=0,(12/HCost_Max_per_Income_Owner)*(B_Avg_Sales_Price*((HCost_Interest_Rate/12*POWER(1+HCost_Interest_Rate/12,12*HCost_Mortgage_Yrs))/(POWER(1+HCost_Interest_Rate/12,12*HCost_Mortgage_Yrs)-1))),IF(OR(B_Pct_Renter>0,B_Pct_Renter<1),(B_Pct_Renter*B_Avg_Rent*(12/HCost_Max_per_Income_Renter))+(B_Pct_Owner*(12/HCost_Max_per_Income_Owner)*(B_Avg_Sales_Price*((HCost_Interest_Rate/12*POWER(1+HCost_Interest_Rate/12,12*HCost_Mortgage_Yrs))/(POWER(1+HCost_Interest_Rate/12,12*HCost_Mortgage_Yrs)-1))))))) -> 571569.9633 | AU4: =IF(B_EMP_Acre=0,0,((B_Ret_Emp_Acre/B_EMP_Acre*Wage_RET)+(B_OFF_Emp_Acre/B_EMP_Acre*Wage_OFF)+(B_IND_Emp_Acre/B_EMP_Acre*Wage_IND)+(B_Pub_Emp_Acre/B_EMP_Acre*Wage_OFF)+(B_Edu_Emp_Acre/B_EMP_Acre*Wage_EDU)+(B_Hotel_Emp_Acre/B_EMP_Acre*Wage_HOTEL))) -> 0 | AV4: =B_RET_Gross_Sq_Ft+B_OFF_Gross_Sq_Ft+B_IND_Gross_Sq_Ft+B_PUB_Gross_Sq_Ft+B_EDU_Gross_Sq_Ft+B_Hotel_Gross_Sq_Ft+B_COMPRKG_Gross_Sq_Ft -> 0 | AW4: =B_EMP_Acre*(B_Lot_Size/43560) -> 0 | AX4: =B_Ret_Emp_Acre+B_OFF_Emp_Acre+B_IND_Emp_Acre+B_Pub_Emp_Acre+B_Edu_Emp_Acre+B_Hotel_Emp_Acre+B_COMPRKG_Emp_Acre -> 0 | AY4: =B_Ret_per*B_Gross_Bldg_Sq_Ft -> 0 | AZ4: =[1]!RetRent -> 31.38 | BA4: =[1]!RetSpace -> 945 | BB4: =IF(B_Ret_SqFt_per_EMP=0,0,(B_RET_Gross_Sq_Ft/B_Ret_SqFt_per_EMP)*(43560/B_Lot_Size)) -> 0 | BC4: =B_OFF_per*B_Gross_Bldg_Sq_Ft -> 0 | BD4: =[1]!OffRent -> 36.78 | BE4: =[1]!OffSpace -> 387 | BF4: =IF(B_Off_SqFt_per_EMP=0,0,(B_OFF_Gross_Sq_Ft/B_Off_SqFt_per_EMP)*(43560/B_Lot_Size)) -> 0 | BG4: =B_IND_per*B_Gross_Bldg_Sq_Ft -> 0 | BH4: =[1]!IndRent -> 12 | BI4: =[1]!IndSpace -> 1730 | BJ4: =IF(B_IND_SqFt_per_EMP=0,0,(B_IND_Gross_Sq_Ft/B_IND_SqFt_per_EMP)*(43560/B_Lot_Size)) -> 0 | BK4: =B_Pub_Per*B_Gross_Bldg_Sq_Ft -> 0 | BL4: =[1]!PubRent -> 14 | BM4: =[1]!PubSpace -> 746 | BN4: =IF(B_Pub_SqFt_per_EMP=0,0,(B_PUB_Gross_Sq_Ft/B_Pub_SqFt_per_EMP)*(43560/B_Lot_Size)) -> 0 | BO4: =B_Edu_Per*B_Gross_Bldg_Sq_Ft -> 0 | BP4: =[1]!EduRent -> 14 | BQ4: =[1]!EduSpace -> 767 | BR4: =IF(B_Edu_SqFt_per_EMP=0,0,(B_EDU_Gross_Sq_Ft/B_Edu_SqFt_per_EMP)*(43560/B_Lot_Size)) -> 0 | BS4: =B_Hotel_Per*B_Gross_Bldg_Sq_Ft -> 0 | BT4: =[1]!HotelRent -> 150 | BU4: =[1]!HotelSpaceEmp -> 1317 | BV4: =IF(B_Hotel_SqFt_per_EMP=0,0,(B_Hotel_Gross_Sq_Ft/B_Hotel_SqFt_per_EMP)*(43560/B_Lot_Size)) -> 0 | BW4: =[1]!HotelRoomNet -> 0 | BX4: =[1]!HotelRoomGross -> 0 | BY4: =IF(B_Hotel_Room_Gross=0,0,(B_Hotel_Gross_Sq_Ft/B_Hotel_Room_Gross)) -> 0 | BZ4: =IF(B_Hotel_Room_Gross=0,0,(B_Hotel_Gross_Sq_Ft/B_Hotel_Room_Gross)*(43560/B_Lot_Size)) -> 0 | CA4: =B_COMPRKG_per*B_Gross_Bldg_Sq_Ft -> 0 | CB4: =[1]!ParkingRent -> 4 | CC4: =[1]!ParkingSpace -> 20000 | CD4: =IF(B_COMPRKG_SqFt_per_EMP=0,0,(B_COMPRKG_Gross_Sq_Ft/B_COMPRKG_SqFt_per_EMP)*(43560/B_Lot_Size)) -> 0 | CE4: =[1]!ParkingSpaces -> 1 | CF4: =[1]!ParkingArea -> 400 | CG4: =[1]!IntStructParkingArea -> 0 | CH4: =[1]!ParkingCost -> 5000 | CI4: =IF(B_Project_Value=0,0,B_Parking_Cost/B_Project_Value) -> 0.00290489144 | CJ4: =IFERROR(IF(B_Housing_Type="SF",EXP('Residential Energy Coefficients'!$B$3+'Residential Energy Coefficients'!$B$4*LN(B_Net_Sq_Ft_per_Unit)+'Residential Energy Coefficients'!$B$9+'Residential Energy Coefficients'!$B$10*LN(B_HH_Income)+'Residential Energy Coefficients'!$B$16*LN(Residential_Energy_Cost)+'Residential Energy Coefficients'!$B$20+'Residential Energy Coefficients'!$B$24*IFERROR(LOOKUP(Metro_Select,Energy_Metro_Lookup,HDD),0)),IF(B_Housing_Type="TH",EXP('Residential Energy Coefficients'!$E$3+'Residential Energy Coefficients'!$E$4*LN(B_Net_Sq_Ft_per_Unit)+'Residential Energy Coefficients'!$E$9+'Residential Energy Coefficients'!$E$16*LN(Residential_Energy_Cost)+'Residential Energy Coefficients'!$E$19+'Residential Energy Coefficients'!$E$20+'Residential Energy Coefficients'!$E$24*IFERROR(LOOKUP(Metro_Select,Energy_Metro_Lookup,HDD),0)),IF(B_Housing_Type="MF",EXP('Residential Energy Coefficients'!$H$3+'Residential Energy Coefficients'!$H$4*LN(B_Net_Sq_Ft_per_Unit)+'Residential Energy Coefficients'!$H$9+IF(B_Pct_Owner=1,'Residential Energy Coefficients'!$H$12,0)+'Residential Energy Coefficients'!$H$16*LN(Residential_Energy_Cost)+'Residential Energy Coefficients'!$H$20+'Residential Energy Coefficients'!$H$24*IFERROR(LOOKUP(Metro_Select,Energy_Metro_Lookup,HDD),0)),IF(B_Hotel_Room_Acre>0,EXP('Residential Energy Coefficients'!$H$3+'Residential Energy Coefficients'!$H$4*LN(B_Hotel_Room_Net)+'Residential Energy Coefficients'!$H$9+'Residential Energy Coefficients'!$H$16*LN(Residential_Energy_Cost)+'Residential Energy Coefficients'!$H$20+'Residential Energy Coefficients'!$H$24*IFERROR(LOOKUP(Metro_Select,Energy_Metro_Lookup,HDD),0)),IF(B_Housing_Type="MH",EXP('Residential Energy Coefficients'!$K$3+'Residential Energy Coefficients'!$K$16*LN(Residential_Energy_Cost)+'Residential Energy Coefficients'!$K$24*IFERROR(LOOKUP(Metro_Select,Energy_Metro_Lookup,HDD),0)),0)))))/1000,0) -> 29.44544061 | CK4: =IFERROR(IF(B_Housing_Type="SF",EXP('Residential Energy Coefficients'!$C$3+'Residential Energy Coefficients'!$C$4*LN(B_Net_Sq_Ft_per_Unit)+'Residential Energy Coefficients'!$C$10*LN(B_HH_Income)+'Residential Energy Coefficients'!$C$11*B_HH_Size+'Residential Energy Coefficients'!$C$16*LN(Residential_Energy_Cost)+'Residential Energy Coefficients'!$C$19+'Residential Energy Coefficients'!$C$22+'Residential Energy Coefficients'!$C$25*IFERROR(LOOKUP(Metro_Select,Energy_Metro_Lookup,CDD),0)),IF(B_Housing_Type="TH",EXP('Residential Energy Coefficients'!$F$3+'Residential Energy Coefficients'!$F$4*LN(B_Net_Sq_Ft_per_Unit)+'Residential Energy Coefficients'!$F$10*LN(B_HH_Income)+'Residential Energy Coefficients'!$F$11*B_HH_Size+IF(B_Pct_Owner=1,'Residential Energy Coefficients'!$F$12,0)+'Residential Energy Coefficients'!$F$16*LN(Residential_Energy_Cost)+'Residential Energy Coefficients'!$F$22+'Residential Energy Coefficients'!$F$25*IFERROR(LOOKUP(Metro_Select,Energy_Metro_Lookup,CDD),0)),IF(B_Housing_Type="MF",EXP('Residential Energy Coefficients'!$I$3+'Residential Energy Coefficients'!$I$4*LN(B_Net_Sq_Ft_per_Unit)+'Residential Energy Coefficients'!$I$9+'Residential Energy Coefficients'!$I$11*B_HH_Size+'Residential Energy Coefficients'!$I$16*LN(Residential_Energy_Cost)+'Residential Energy Coefficients'!$I$22+'Residential Energy Coefficients'!$I$25*IFERROR(LOOKUP(Metro_Select,Energy_Metro_Lookup,CDD),0)),IF(B_Hotel_Room_Acre>0,EXP('Residential Energy Coefficients'!$I$3+'Residential Energy Coefficients'!$I$4*LN(B_Hotel_Room_Net)+'Residential Energy Coefficients'!$I$9+'Residential Energy Coefficients'!$I$11*1.25+'Residential Energy Coefficients'!$I$16*LN(Residential_Energy_Cost)+'Residential Energy Coefficients'!$I$22+'Residential Energy Coefficients'!$I$25*IFERROR(LOOKUP(Metro_Select,Energy_Metro_Lookup,CDD),0)),IF(B_Housing_Type="MH",EXP('Residential Energy Coefficients'!$L$3+'Residential Energy Coefficients'!$L$11*B_HH_Size+'Residential Energy Coefficients'!$L$16*LN(Residential_Energy_Cost)+'Residential Energy Coefficients'!$L$22+'Residential Energy Coefficients'!$L$25*IFERROR(LOOKUP(Metro_Select,Energy_Metro_Lookup,CDD),0)),0)))))/1000,0) -> 195.4595608 | CL4: =IFERROR(IF(B_Housing_Type="SF",EXP('Residential Energy Coefficients'!$D$3+'Residential Energy Coefficients'!$D$4*LN(B_Net_Sq_Ft_per_Unit)+'Residential Energy Coefficients'!$D$9+'Residential Energy Coefficients'!$D$10*LN(B_HH_Income)+'Residential Energy Coefficients'!$D$11*B_HH_Size+IF(B_Pct_Owner=1,'Residential Energy Coefficients'!$D$12,0)+'Residential Energy Coefficients'!$D$16*LN(Residential_Energy_Cost)),IF(B_Housing_Type="TH",EXP('Residential Energy Coefficients'!$G$3+'Residential Energy Coefficients'!$G$4*LN(B_Net_Sq_Ft_per_Unit)+'Residential Energy Coefficients'!$G$10*LN(B_HH_Income)+'Residential Energy Coefficients'!$G$11*B_HH_Size+'Residential Energy Coefficients'!$G$16*LN(Residential_Energy_Cost)),IF(B_Housing_Type="MF",EXP('Residential Energy Coefficients'!$J$3+'Residential Energy Coefficients'!$J$4*LN(B_Net_Sq_Ft_per_Unit)+'Residential Energy Coefficients'!$J$10*LN(B_HH_Income)+'Residential Energy Coefficients'!$J$11*B_HH_Size+IF(B_Pct_Owner=1,'Residential Energy Coefficients'!$J$12,0)+'Residential Energy Coefficients'!$J$16*LN(Residential_Energy_Cost)+'Residential Energy Coefficients'!$J$19),IF(B_Hotel_Room_Acre>0,EXP('Residential Energy Coefficients'!$J$3+'Residential Energy Coefficients'!$J$4*LN(B_Hotel_Room_Net)+'Residential Energy Coefficients'!$J$16*LN(Residential_Energy_Cost)+'Residential Energy Coefficients'!$J$19),IF(B_Housing_Type="MH",EXP('Residential Energy Coefficients'!$M$3+'Residential Energy Coefficients'!$M$4*LN(B_Net_Sq_Ft_per_Unit)+'Residential Energy Coefficients'!$M$11*B_HH_Size+'Residential Energy Coefficients'!$M$16*LN(Residential_Energy_Cost)+'Residential Energy Coefficients'!$M$19),0)))))/1000,0) -> 99.48142031 | CM4: =SUM(CJ4:CL4) -> 324.3864217 | CN4: =(IFERROR(EXP('Commercial Energy Coefficients'!$B$3+LN(B_RET_Gross_Sq_Ft)*'Commercial Energy Coefficients'!$B$4+'Commercial Energy Coefficients'!$B$11+'Commercial Energy Coefficients'!$B$14+'Commercial Energy Coefficients'!$B$18*LN((B_Ret_Emp_Acre)*(B_Lot_Size/43560))+'Commercial Energy Coefficients'!$B$19*LN(40)+'Commercial Energy Coefficients'!$B$21+'Commercial Energy Coefficients'!$B$22*LN(Commercial_Energy_Cost)+'Commercial Energy Coefficients'!$B$23*IFERROR(LOOKUP(Metro_Select,Energy_Metro_Lookup,HDD),0)),0)+IFERROR(EXP('Commercial Energy Coefficients'!$E$3+LN(B_OFF_Gross_Sq_Ft)*'Commercial Energy Coefficients'!$E$4+'Commercial Energy Coefficients'!$E$11+'Commercial Energy Coefficients'!$E$14+'Commercial Energy Coefficients'!$E$18*LN((B_OFF_Emp_Acre)*(B_Lot_Size/43560))+'Commercial Energy Coefficients'!$E$19*LN(40)+'Commercial Energy Coefficients'!$E$21+'Commercial Energy Coefficients'!$E$22*LN(Commercial_Energy_Cost)+'Commercial Energy Coefficients'!$E$23*IFERROR(LOOKUP(Metro_Select,Energy_Metro_Lookup,HDD),0)),0)+IFERROR(EXP('Commercial Energy Coefficients'!$H$3+LN(B_PUB_Gross_Sq_Ft)*'Commercial Energy Coefficients'!$H$4+'Commercial Energy Coefficients'!$H$11+'Commercial Energy Coefficients'!$H$14+'Commercial Energy Coefficients'!$H$18*LN((B_Pub_Emp_Acre)*(B_Lot_Size/43560))+'Commercial Energy Coefficients'!$H$19*LN(40)+'Commercial Energy Coefficients'!$H$21+'Commercial Energy Coefficients'!$H$22*LN(Commercial_Energy_Cost)+'Commercial Energy Coefficients'!$H$23*IFERROR(LOOKUP(Metro_Select,Energy_Metro_Lookup,HDD),0)),0))/1000 -> 0 | CO4: =(IFERROR(EXP('Commercial Energy Coefficients'!$C$3+LN((B_RET_Gross_Sq_Ft))*'Commercial Energy Coefficients'!$C$4+'Commercial Energy Coefficients'!$C$11+'Commercial Energy Coefficients'!$C$14+'Commercial Energy Coefficients'!$C$18*LN((B_Ret_Emp_Acre)*(B_Lot_Size/43560))+'Commercial Energy Coefficients'!$C$19*LN(40)+'Commercial Energy Coefficients'!$C$21+'Commercial Energy Coefficients'!$C$22*LN(Commercial_Energy_Cost)+'Commercial Energy Coefficients'!$C$24*IFERROR(LOOKUP(Metro_Select,Energy_Metro_Lookup,CDD),0)),0)+IFERROR(EXP('Commercial Energy Coefficients'!$F$3+LN((B_OFF_Gross_Sq_Ft))*'Commercial Energy Coefficients'!$F$4+'Commercial Energy Coefficients'!$F$11+'Commercial Energy Coefficients'!$F$14+'Commercial Energy Coefficients'!$F$18*LN((B_OFF_Emp_Acre)*(B_Lot_Size/43560))+'Commercial Energy Coefficients'!$F$19*LN(40)+'Commercial Energy Coefficients'!$F$21+'Commercial Energy Coefficients'!$F$22*LN(Commercial_Energy_Cost)+'Commercial Energy Coefficients'!$F$24*IFERROR(LOOKUP(Metro_Select,Energy_Metro_Lookup,CDD),0)),0)+IFERROR(EXP('Commercial Energy Coefficients'!$I$3+LN((B_PUB_Gross_Sq_Ft))*'Commercial Energy Coefficients'!$I$4+'Commercial Energy Coefficients'!$I$11+'Commercial Energy Coefficients'!$I$14+'Commercial Energy Coefficients'!$I$18*LN((B_Pub_Emp_Acre)*(B_Lot_Size/43560))+'Commercial Energy Coefficients'!$I$19*LN(40)+'Commercial Energy Coefficients'!$I$21+'Commercial Energy Coefficients'!$I$22*LN(Commercial_Energy_Cost)+'Commercial Energy Coefficients'!$I$24*IFERROR(LOOKUP(Metro_Select,Energy_Metro_Lookup,CDD),0)),0))/1000 -> 0 | CP4: =(IFERROR(EXP('Commercial Energy Coefficients'!$D$3+LN((B_RET_Gross_Sq_Ft))*'Commercial Energy Coefficients'!$D$4+'Commercial Energy Coefficients'!$D$14+'Commercial Energy Coefficients'!$D$18*LN((B_Ret_Emp_Acre)*(B_Lot_Size/43560))+'Commercial Energy Coefficients'!$D$19*LN(40)+'Commercial Energy Coefficients'!$D$21+'Commercial Energy Coefficients'!$D$22*LN(Commercial_Energy_Cost)),0)+IFERROR(EXP('Commercial Energy Coefficients'!$G$3+LN((B_OFF_Gross_Sq_Ft))*'Commercial Energy Coefficients'!$G$4+'Commercial Energy Coefficients'!$G$14+'Commercial Energy Coefficients'!$G$18*LN((B_OFF_Emp_Acre)*(B_Lot_Size/43560))+'Commercial Energy Coefficients'!$G$19*LN(40)+'Commercial Energy Coefficients'!$G$21+'Commercial Energy Coefficients'!$G$22*LN(Commercial_Energy_Cost)),0)+IFERROR(EXP('Commercial Energy Coefficients'!$J$3+LN((B_PUB_Gross_Sq_Ft))*'Commercial Energy Coefficients'!$J$4+'Commercial Energy Coefficients'!$J$14+'Commercial Energy Coefficients'!$J$18*LN((B_Pub_Emp_Acre)*(B_Lot_Size/43560))+'Commercial Energy Coefficients'!$J$19*LN(40)+'Commercial Energy Coefficients'!$J$21+'Commercial Energy Coefficients'!$J$22*LN(Commercial_Energy_Cost)),0))/1000 -> 0 | CQ4: =SUM(CN4:CP4) -> 0 | CR4: =IFERROR(B_Com_Energy_Use/B_EMP_Building,0) -> 0 | CS4: =IFERROR(B_Com_Energy_Use/B_Tot_EMP_SqFt,0) -> 0 | CT4: =(B_res_energy_use*(B_Hotel_Rooms_per_Building+B_HU_Building))+B_Com_Energy_Use -> 324.3864217 | CU4: =(B_res_energy_use*Residential_Energy_Cost)/12 -> 324.3864217 | CV4: =IFERROR((B_res_energy_use*SUMPRODUCT(Energy_Carbon_perMMBTU,Energy_Fuel_Mix)),0) -> 30.25872943 | CW4: =IFERROR((B_Com_Energy_Use_per_Emp*SUMPRODUCT(Energy_Carbon_perMMBTU,Energy_Fuel_Mix)),0) -> 0 | CX4: =B_Total_Bldg_Energy_Use*SUMPRODUCT(Energy_Carbon_perMMBTU,Energy_Fuel_Mix) -> 30.25872943 | CY4: =IFERROR(B_LW_Bldg/B_HU_Building,0) -> 293.75 | CZ4: =IF((B_Lot_Size*B_Landscaping_Lot_Coverage)>Maximum_Watered_Lawn_Area*43560,Maximum_Watered_Lawn_Area*43560*Water_per_Sq_Foot_of_Lawn_Area,B_Lot_Size*B_Landscaping_Lot_Coverage*Water_per_Sq_Foot_of_Lawn_Area) -> 293.75 | DA4: =IF(OR(B_Housing_Type="MF",B_Hotel_Room_Acre>0),Info_IW_MF,IF(B_Housing_Type="TH",Info_IW_TH,IF(AND(OR(B_Housing_Type="SF",B_Housing_Type="MH"),B_Net_Sq_Ft_per_Unit>0,B_Net_Sq_Ft_per_Unit<3000),Info_IW_MD_SF,IF(AND(OR(B_Housing_Type="SF",B_Housing_Type="MH"),B_Net_Sq_Ft_per_Unit>=3000),Info_IW_LRG_SF,0)))) -> 120 | DB4: =(B_IW_Res*B_HH_Size) -> 360 | DC4: =IF(B_EMP_Acre=0,0,(B_Ret_Emp_Acre/B_EMP_Acre*Info_IW_RET)+(B_OFF_Emp_Acre/B_EMP_Acre*Info_IW_OFF)+(B_IND_Emp_Acre/B_EMP_Acre*Info_IW_IND)) -> 0 | DD4: =(B_HU_Building*B_IW_Res)+(B_EMP_Building*B_IW_Emp) -> 120 | DE4: =IF(B_Housing_Type="",0,IF(B_Housing_Type="MF",Info_WW_MF,IF(B_Housing_Type="TH",Info_WW_TH,IF(AND(B_Housing_Type="SF",B_Net_Sq_Ft_per_Unit>0,B_Net_Sq_Ft_per_Unit<3000),Info_WW_MD_SF,IF(AND(B_Housing_Type="SF",B_Net_Sq_Ft_per_Unit>=3000),Info_WW_LRG_SF))))) -> 90 | DF4: =(B_WW_Res*B_HH_Size) -> 270 | DG4: =IF(B_EMP_Acre=0,0,(B_Ret_Emp_Acre/B_EMP_Acre*Info_WW_RET)+(B_OFF_Emp_Acre/B_EMP_Acre*Info_WW_OFF)+(B_IND_Emp_Acre/B_EMP_Acre*Info_WW_IND)) -> 0 | DH4: =(B_HU_Building*B_WW_Res)+(B_EMP_Building*B_WW_Emp) -> 90 | DI4: =IF(B_Housing_Type="",0,IF(B_Housing_Type="MF",'Project Info'!$B$160,IF(B_Housing_Type="TH",'Project Info'!$B$161,IF(AND(B_Housing_Type="SF",B_Net_Sq_Ft_per_Unit>0,B_Net_Sq_Ft_per_Unit<3000),'Project Info'!$B$162,IF(AND(B_Housing_Type="SF",B_Net_Sq_Ft_per_Unit>=3000),'Project Info'!$B$163))))) -> 4 | DJ4: =(B_SW_Res*B_HH_Size) -> 12 | DK4: =IF(B_EMP_Acre=0,0,(B_Ret_Emp_Acre/B_EMP_Acre*Info_SW_RET)+(B_OFF_Emp_Acre/B_EMP_Acre*Info_SW_OFF)+(B_IND_Emp_Acre/B_EMP_Acre*Info_SW_IND)) -> 0 | DL4: =(B_HU_Building*B_SW_Res)+(B_EMP_Building*B_SW_Emp) -> 4 | DM4: =[1]!LandCost -> 110.13 | DN4: =B_Land_Cost_SqFt*B_Lot_Size -> 991170 | DO4: =IF(B_Lot_Size=0,0,B_Land_Cost_Lot*(43560/B_Lot_Size)) -> 4797262.8 | DQ4: =B_Land_Cost_SqFt*B_Lot_Size -> 991170 | DR4: =IF(B_Lot_Size=0,0,B_Land_Cost_Lot*(43560/B_Lot_Size)) -> 4797262.8 | DS4: =[1]!ProjectValue -> 1721234.719 | DT4: =IF(B_Lot_Size=0,0,B_Project_Value*(43560/B_Lot_Size)) -> 8330776.038 | DU4: =[1]!YInt -> 0.8013 | DV4: =[1]!Slope -> 0.2514298 | DW4: =[1]!ProdType -> Residential Owner | DX4: =[1]!Subsidy -> 0 | DY4: =IF(B_HU_Building=0,0,(B_Res_per*B_Subsidy)/B_HU_Building) -> 0 | DZ4: =IF(B_Lot_Size=0,0,B_Project_Subsidy*(43560/B_Lot_Size)) -> 0 | EA4: =[1]!ImpactFees -> 0 | EB4: =IF(B_Lot_Size=0,0,B_Impact_Fees*(43560/B_Lot_Size)) -> 0 | EC4: =[1]!ROI_Rental -> 0 | ED4: =[1]!ROI_Owner -> 0.2000397027 | EE4: =[1]!PropTax -> 49057.68643 | EF4: =IFERROR(B_Property_Tax_Revenue*(43560/B_Lot_Size),0) -> 237439.2023 | EG4: =Sales_Tax_Rate*Sales_per_SqFt*B_RET_Gross_Sq_Ft -> 0 | EH4: =IFERROR(B_Sales_Tax_Revenue*(43560/B_Lot_Size),0) -> 0 | EI4: =IFERROR(B_FAR/MAX(B_FAR),0) -> 0.03648539968 | EJ4: =[1]!GreenRoof -> 0 | EK4: =[1]!GreenRoofEff -> 0 | EL4: =[1]!GreenRoofVolume -> 0 | EM4: =[1]!Biofiltration -> 1846.533943 | EN4: =[1]!BiofiltrationEff -> 0 | EO4: =[1]!BiofiltrationVolume -> 6215.433253 | EP4: =[1]!GreenRoofHarvesting -> 0 | EQ4: =[1]!GreenRoofHarvestingEff -> 0 | ER4: =[1]!WaterHarvesting -> 0 | ES4: =[1]!WaterHarvestingEff -> 0 | ET4: =[1]!WaterHarvestingVolume -> 0 | EU4: =EJ4*C4/43560 -> 0 | EV4: =EM4*$C4/43560 -> 381.5152775 | EX4: =EP4*$C4/43560 -> 0 | EY4: =ER4*$C4/43560 -> 0 | EZ4: =EL4*G4/43560 -> 0 | FA4: =EO4*$C4/43560 -> 1284.180424 | FB4: =ET4*$C4/43560 -> 0 | FC4: =Average_annual_rainfall_in*$EU4*$EK4*144*0.00433 -> 0 | FE4: =Annual_Cooling_degree_days*24*(1/R_conventional_SF_F_hrs_BTU-1/R_green_roof_SF_F_hrs_Btu)/3412*'Building Inputs'!$EU4 -> 0 | FF4: =FE4*Cost_per_kWh -> 0 | FG4: =Annual_Heating_degree_days*24*(1/R_conventional_SF_F_hrs_BTU-1/R_green_roof_SF_F_hrs_Btu)*'Building Inputs'!$EU4 -> 0 | FH4: =FG4*Cost_per_BUT -> 0 | FI4: =Avg_Annual_NO2_uptake*'Building Inputs'!$EU4 -> 0 | FJ4: =Avg_Annual_O3_uptake*'Building Inputs'!$EU4 -> 0 | FK4: =Avg_Annual_SO2_uptake*'Building Inputs'!$EU4 -> 0 | FL4: =Avg_Annual_PM_10_uptake*'Building Inputs'!$EU4 -> 0 | FM4: =FE4*Electricity_Emmission_rates_NO2+FG4*Natural_Gas_Emmission_rates_NO2 -> 0 | FN4: =FE4*Electricity_Emmission_rates_SO2+FG4*Natural_Gas_Emmission_rates_SO2 -> 0 | FO4: =FI4+FM4 -> 0 | FP4: =FK4+FN4 -> 0 | FQ4: =FO4*NO2_price_lb -> 0 | FR4: =FJ4*O3_price_lb -> 0 | FS4: =FP4*SO2_price_lb -> 0 | FT4: =FL4*PM_10_price_lb -> 0 | FU4: =SUM(FQ4:FT4) -> 0 | FV4: =Avg_amount_of_carbon_sequestered_lbs_SF*'Building Inputs'!$EU4*3.67 -> 0 | FW4: =FE4*Electricity_Emmission_rate_CO2+FG4*Natural_gas_Emmission_rate_CO2 -> 0 | FX4: =FV4+FW4 -> 0 | FY4: =FX4*CO2_price_lb -> 0 | FZ4: =Average_annual_rainfall_in*($C4*(1-$E4)+$EM4-$EJ4-$ER4)*$C4/43560*'Building Inputs'!$EN4*144*0.00433 -> 0 | GB4: =Avg_Annual_NO2_uptake*'Building Inputs'!$EV4 -> 0.1144545833 | GC4: =Avg_Annual_O3_uptake*'Building Inputs'!$EV4 -> 0.2243309832 | GD4: =Avg_Annual_SO2_uptake*'Building Inputs'!$EV4 -> 0.08736699855 | GE4: =Avg_Annual_PM_10_uptake*'Building Inputs'!$EV4 -> 0.04349274164 | GF4: =GB4*NO2_price_lb -> 0.3822783081 | GG4: =GC4*O3_price_lb -> 0.7492654838 | GH4: =GD4*SO2_price_lb -> 0.179976017 | GI4: =GE4*PM_10_price_lb -> 0.1235193862 | GJ4: =SUM(GF4:GI4) -> 1.435039195 | GK4: =Avg_amount_of_carbon_sequestered_lbs_SF*'Building Inputs'!$EV4*3.67 -> 46.48534747 | GL4: =GK4*CO2_price_lb -> 0.3514292269 | GM4: =Average_annual_rainfall_in*('Building Inputs'!$EX4*'Building Inputs'!$EQ4+'Building Inputs'!$EY4*'Building Inputs'!$ES4)*144*0.00433 -> 0 | GN4: ? | GO4: =FC4+FZ4+GM4 -> 0 | GQ4: =FF4+FH4 -> 0 | GR4: =FO4+GB4 -> 0.1144545833 | GS4: =FJ4+GC4 -> 0.2243309832 | GT4: =FP4+GD4 -> 0.08736699855 | GU4: =FL4+GE4 -> 0.04349274164 | GV4: =SUM(GR4:GU4) -> 0.4696453066 | GW4: =GR4*NO2_price_lb -> 0.3822783081 | GX4: =GS4*O3_price_lb -> 0.7492654838 | GY4: =GT4*SO2_price_lb -> 0.179976017 | GZ4: =GU4*PM_10_price_lb -> 0.1235193862 | HA4: =SUM(GW4:GZ4) -> 1.435039195 | HB4: =FX4+GK4 -> 46.48534747 | HC4: =HB4*CO2_price_lb -> 0.3514292269 | HD4: =[1]!RequiredWQV -> 1260.734954 | HE4: =[1]!ConventionalWQV -> 0 | HF4: =HD4*C4/43560 -> 260.4824285 | HG4: =HE4*C4/43560 -> 0 | HH4: =(EL4+EO4+ET4)*C4/43560 -> 1284.180424 | HI4: =[1]!TSSload -> 34.94761085 | HJ4: =[1]!TNload -> 0.6354111064 | HK4: =[1]!TLload -> 0.006354111064 | HL4: =[1]!fColiLoad -> 3517.714296 | HM4: =[1]!TSSreduction -> 28.86517334 | HN4: =[1]!TNreduction -> 0.2961862971 | HO4: =[1]!TLreduction -> 0.004962419539 | HP4: =[1]!fColiReduction -> 2599.102584 | HQ4: =HI4*$C4/43560 -> 7.220580755 | HR4: 0.1312832865 | HS4: 0.001312832865 | HT4: 726.8004745 | HU4: =HM4*$C4/43560 -> 5.963878789 | HV4: =HN4*$C4/43560 -> 0.06119551593 | HW4: =HO4*$C4/43560 -> 0.001025293293 | HX4: =HP4*$C4/43560 -> 537.0046661 | HY4: =[1]!EPA_MXD_ResTrips -> 9.370121968 | HZ4: =[1]!EPA_MXD_RetTrips -> 0 | IA4: =[1]!EPA_MXD_OffTrips -> 0 | IB4: =[1]!EPA_MXD_EduTrips -> 0 | IC4: =[1]!EPA_MXD_OtherTrips -> 0 | ID4: =[1]!EPA_MXD_ResVMT -> 26.59513099 | IE4: =[1]!EPA_MXD_RetVMT -> 0 | IF4: =[1]!EPA_MXD_OffVMT -> 0 | IG4: =[1]!EPA_MXD_EduVMT -> 0 | IH4: =[1]!EPA_MXD_OtherVMT -> 0
A5: 2 | B5: =[2]!name -> T3NEDuplexSideBySide | C5: =[2]!lot_size -> 9000 | D5: =[2]!Building_Lot_Coverage -> 0.2195555556 | E5: =[2]!Landscaping_Coverage -> 0.6915555556 | F5: =[2]!Parking_Coverage -> 0.08888888889 | G5: =[2]!Height -> 2 | H5: =[2]!FAR -> 0.4391111111 | I5: 3952 | J5: =[2]!ResPct -> 1 | K5: 0 | L5: 1 | M5: 0 | N5: 0 | O5: 0 | P5: 0 | Q5: 0 | R5: 0 | S5: =[2]!RetPct -> 0 | T5: =[2]!OffPct -> 0 | U5: =[2]!IndPct -> 0 | V5: =[2]!PubPct -> 0 | W5: =[2]!EduPct -> 0 | X5: =[2]!HotelPct -> 0 | Y5: =[2]!ComParkingPct -> 0 | Z5: =[2]!ParkingPct -> 0 | AA5: 3952 | AB5: =[2]!NetUnitSize -> 1976 | AC5: =[2]!UnitSize -> 1976 | AD5: 2 | AE5: 9.68 | AF5: =[2]!HousingType -> TH | AG5: =[2]!RentalPct -> 0 | AH5: 1 | AI5: =[2]!AffordablePct -> 0 | AJ5: =[2]!Rent -> 0 | AK5: 0 | AL5: =[2]!Sales_Price -> 312 | AM5: 616512 | AN5: 3696.300934 | AO5: 0.06 | AP5: 9.0992 | AQ5: 2.5 | AR5: 1.274098036 | AS5: 0.2582 | AT5: 170598.5046 | AU5: 0 | AV5: 0 | AW5: 0 | AX5: 0 | AY5: 0 | AZ5: =[2]!RetRent -> 31.38 | BA5: =[2]!RetSpace -> 945 | BB5: 0 | BC5: 0 | BD5: =[2]!OffRent -> 36.78 | BE5: =[2]!OffSpace -> 387 | BF5: 0 | BG5: 0 | BH5: =[2]!IndRent -> 12 | BI5: =[2]!IndSpace -> 1730 | BJ5: 0 | BK5: 0 | BL5: =[2]!PubRent -> 14 | BM5: =[2]!PubSpace -> 746 | BN5: 0 | BO5: 0 | BP5: =[2]!EduRent -> 14 | BQ5: =[2]!EduSpace -> 767 | BR5: 0 | BS5: 0 | BT5: =[2]!HotelRent -> 150 | BU5: =[2]!HotelSpaceEmp -> 1317 | BV5: 0 | BW5: =[2]!HotelRoomNet -> 0 | BX5: =[2]!HotelRoomGross -> 0 | BY5: 0 | BZ5: 0 | CA5: 0 | CB5: =[2]!ParkingRent -> 4 | CC5: =[2]!ParkingSpace -> 20000 | CD5: 0 | CE5: =[2]!ParkingSpaces -> 2 | CF5: =[2]!ParkingArea -> 800 | CG5: =[2]!IntStructParkingArea -> 0 | CH5: =[2]!ParkingCost -> 10000 | CI5: 0.009731943479 | CJ5: =IFERROR(IF(B_Housing_Type="SF",EXP('Residential Energy Coefficients'!$B$3+'Residential Energy Coefficients'!$B$4*LN(B_Net_Sq_Ft_per_Unit)+'Residential Energy Coefficients'!$B$9+'Residential Energy Coefficients'!$B$10*LN(B_HH_Income)+'Residential Energy Coefficients'!$B$16*LN(Residential_Energy_Cost)+'Residential Energy Coefficients'!$B$20+'Residential Energy Coefficients'!$B$24*IFERROR(LOOKUP(Metro_Select,Energy_Metro_Lookup,HDD),0)),IF(B_Housing_Type="TH",EXP('Residential Energy Coefficients'!$E$3+'Residential Energy Coefficients'!$E$4*LN(B_Net_Sq_Ft_per_Unit)+'Residential Energy Coefficients'!$E$9+'Residential Energy Coefficients'!$E$16*LN(Residential_Energy_Cost)+'Residential Energy Coefficients'!$E$19+'Residential Energy Coefficients'!$E$20+'Residential Energy Coefficients'!$E$24*IFERROR(LOOKUP(Metro_Select,Energy_Metro_Lookup,HDD),0)),IF(B_Housing_Type="MF",EXP('Residential Energy Coefficients'!$H$3+'Residential Energy Coefficients'!$H$4*LN(B_Net_Sq_Ft_per_Unit)+'Residential Energy Coefficients'!$H$9+IF(B_Pct_Owner=1,'Residential Energy Coefficients'!$H$12,0)+'Residential Energy Coefficients'!$H$16*LN(Residential_Energy_Cost)+'Residential Energy Coefficients'!$H$20+'Residential Energy Coefficients'!$H$24*IFERROR(LOOKUP(Metro_Select,Energy_Metro_Lookup,HDD),0)),IF(B_Hotel_Room_Acre>0,EXP('Residential Energy Coefficients'!$H$3+'Residential Energy Coefficients'!$H$4*LN(B_Hotel_Room_Net)+'Residential Energy Coefficients'!$H$9+'Residential Energy Coefficients'!$H$16*LN(Residential_Energy_Cost)+'Residential Energy Coefficients'!$H$20+'Residential Energy Coefficients'!$H$24*IFERROR(LOOKUP(Metro_Select,Energy_Metro_Lookup,HDD),0)),IF(B_Housing_Type="MH",EXP('Residential Energy Coefficients'!$K$3+'Residential Energy Coefficients'!$K$16*LN(Residential_Energy_Cost)+'Residential Energy Coefficients'!$K$24*IFERROR(LOOKUP(Metro_Select,Energy_Metro_Lookup,HDD),0)),0)))))/1000,0) -> 14.69318832 | CK5: =IFERROR(IF(B_Housing_Type="SF",EXP('Residential Energy Coefficients'!$C$3+'Residential Energy Coefficients'!$C$4*LN(B_Net_Sq_Ft_per_Unit)+'Residential Energy Coefficients'!$C$10*LN(B_HH_Income)+'Residential Energy Coefficients'!$C$11*B_HH_Size+'Residential Energy Coefficients'!$C$16*LN(Residential_Energy_Cost)+'Residential Energy Coefficients'!$C$19+'Residential Energy Coefficients'!$C$22+'Residential Energy Coefficients'!$C$25*IFERROR(LOOKUP(Metro_Select,Energy_Metro_Lookup,CDD),0)),IF(B_Housing_Type="TH",EXP('Residential Energy Coefficients'!$F$3+'Residential Energy Coefficients'!$F$4*LN(B_Net_Sq_Ft_per_Unit)+'Residential Energy Coefficients'!$F$10*LN(B_HH_Income)+'Residential Energy Coefficients'!$F$11*B_HH_Size+IF(B_Pct_Owner=1,'Residential Energy Coefficients'!$F$12,0)+'Residential Energy Coefficients'!$F$16*LN(Residential_Energy_Cost)+'Residential Energy Coefficients'!$F$22+'Residential Energy Coefficients'!$F$25*IFERROR(LOOKUP(Metro_Select,Energy_Metro_Lookup,CDD),0)),IF(B_Housing_Type="MF",EXP('Residential Energy Coefficients'!$I$3+'Residential Energy Coefficients'!$I$4*LN(B_Net_Sq_Ft_per_Unit)+'Residential Energy Coefficients'!$I$9+'Residential Energy Coefficients'!$I$11*B_HH_Size+'Residential Energy Coefficients'!$I$16*LN(Residential_Energy_Cost)+'Residential Energy Coefficients'!$I$22+'Residential Energy Coefficients'!$I$25*IFERROR(LOOKUP(Metro_Select,Energy_Metro_Lookup,CDD),0)),IF(B_Hotel_Room_Acre>0,EXP('Residential Energy Coefficients'!$I$3+'Residential Energy Coefficients'!$I$4*LN(B_Hotel_Room_Net)+'Residential Energy Coefficients'!$I$9+'Residential Energy Coefficients'!$I$11*1.25+'Residential Energy Coefficients'!$I$16*LN(Residential_Energy_Cost)+'Residential Energy Coefficients'!$I$22+'Residential Energy Coefficients'!$I$25*IFERROR(LOOKUP(Metro_Select,Energy_Metro_Lookup,CDD),0)),IF(B_Housing_Type="MH",EXP('Residential Energy Coefficients'!$L$3+'Residential Energy Coefficients'!$L$11*B_HH_Size+'Residential Energy Coefficients'!$L$16*LN(Residential_Energy_Cost)+'Residential Energy Coefficients'!$L$22+'Residential Energy Coefficients'!$L$25*IFERROR(LOOKUP(Metro_Select,Energy_Metro_Lookup,CDD),0)),0)))))/1000,0) -> 72.67210179 | CL5: =IFERROR(IF(B_Housing_Type="SF",EXP('Residential Energy Coefficients'!$D$3+'Residential Energy Coefficients'!$D$4*LN(B_Net_Sq_Ft_per_Unit)+'Residential Energy Coefficients'!$D$9+'Residential Energy Coefficients'!$D$10*LN(B_HH_Income)+'Residential Energy Coefficients'!$D$11*B_HH_Size+IF(B_Pct_Owner=1,'Residential Energy Coefficients'!$D$12,0)+'Residential Energy Coefficients'!$D$16*LN(Residential_Energy_Cost)),IF(B_Housing_Type="TH",EXP('Residential Energy Coefficients'!$G$3+'Residential Energy Coefficients'!$G$4*LN(B_Net_Sq_Ft_per_Unit)+'Residential Energy Coefficients'!$G$10*LN(B_HH_Income)+'Residential Energy Coefficients'!$G$11*B_HH_Size+'Residential Energy Coefficients'!$G$16*LN(Residential_Energy_Cost)),IF(B_Housing_Type="MF",EXP('Residential Energy Coefficients'!$J$3+'Residential Energy Coefficients'!$J$4*LN(B_Net_Sq_Ft_per_Unit)+'Residential Energy Coefficients'!$J$10*LN(B_HH_Income)+'Residential Energy Coefficients'!$J$11*B_HH_Size+IF(B_Pct_Owner=1,'Residential Energy Coefficients'!$J$12,0)+'Residential Energy Coefficients'!$J$16*LN(Residential_Energy_Cost)+'Residential Energy Coefficients'!$J$19),IF(B_Hotel_Room_Acre>0,EXP('Residential Energy Coefficients'!$J$3+'Residential Energy Coefficients'!$J$4*LN(B_Hotel_Room_Net)+'Residential Energy Coefficients'!$J$16*LN(Residential_Energy_Cost)+'Residential Energy Coefficients'!$J$19),IF(B_Housing_Type="MH",EXP('Residential Energy Coefficients'!$M$3+'Residential Energy Coefficients'!$M$4*LN(B_Net_Sq_Ft_per_Unit)+'Residential Energy Coefficients'!$M$11*B_HH_Size+'Residential Energy Coefficients'!$M$16*LN(Residential_Energy_Cost)+'Residential Energy Coefficients'!$M$19),0)))))/1000,0) -> 53.90008774 | CM5: =SUM(CJ5:CL5) -> 141.2653779 | CN5: =(IFERROR(EXP('Commercial Energy Coefficients'!$B$3+LN(B_RET_Gross_Sq_Ft)*'Commercial Energy Coefficients'!$B$4+'Commercial Energy Coefficients'!$B$11+'Commercial Energy Coefficients'!$B$14+'Commercial Energy Coefficients'!$B$18*LN((B_Ret_Emp_Acre)*(B_Lot_Size/43560))+'Commercial Energy Coefficients'!$B$19*LN(40)+'Commercial Energy Coefficients'!$B$21+'Commercial Energy Coefficients'!$B$22*LN(Commercial_Energy_Cost)+'Commercial Energy Coefficients'!$B$23*IFERROR(LOOKUP(Metro_Select,Energy_Metro_Lookup,HDD),0)),0)+IFERROR(EXP('Commercial Energy Coefficients'!$E$3+LN(B_OFF_Gross_Sq_Ft)*'Commercial Energy Coefficients'!$E$4+'Commercial Energy Coefficients'!$E$11+'Commercial Energy Coefficients'!$E$14+'Commercial Energy Coefficients'!$E$18*LN((B_OFF_Emp_Acre)*(B_Lot_Size/43560))+'Commercial Energy Coefficients'!$E$19*LN(40)+'Commercial Energy Coefficients'!$E$21+'Commercial Energy Coefficients'!$E$22*LN(Commercial_Energy_Cost)+'Commercial Energy Coefficients'!$E$23*IFERROR(LOOKUP(Metro_Select,Energy_Metro_Lookup,HDD),0)),0)+IFERROR(EXP('Commercial Energy Coefficients'!$H$3+LN(B_PUB_Gross_Sq_Ft)*'Commercial Energy Coefficients'!$H$4+'Commercial Energy Coefficients'!$H$11+'Commercial Energy Coefficients'!$H$14+'Commercial Energy Coefficients'!$H$18*LN((B_Pub_Emp_Acre)*(B_Lot_Size/43560))+'Commercial Energy Coefficients'!$H$19*LN(40)+'Commercial Energy Coefficients'!$H$21+'Commercial Energy Coefficients'!$H$22*LN(Commercial_Energy_Cost)+'Commercial Energy Coefficients'!$H$23*IFERROR(LOOKUP(Metro_Select,Energy_Metro_Lookup,HDD),0)),0))/1000 -> 0 | CO5: =(IFERROR(EXP('Commercial Energy Coefficients'!$C$3+LN((B_RET_Gross_Sq_Ft))*'Commercial Energy Coefficients'!$C$4+'Commercial Energy Coefficients'!$C$11+'Commercial Energy Coefficients'!$C$14+'Commercial Energy Coefficients'!$C$18*LN((B_Ret_Emp_Acre)*(B_Lot_Size/43560))+'Commercial Energy Coefficients'!$C$19*LN(40)+'Commercial Energy Coefficients'!$C$21+'Commercial Energy Coefficients'!$C$22*LN(Commercial_Energy_Cost)+'Commercial Energy Coefficients'!$C$24*IFERROR(LOOKUP(Metro_Select,Energy_Metro_Lookup,CDD),0)),0)+IFERROR(EXP('Commercial Energy Coefficients'!$F$3+LN((B_OFF_Gross_Sq_Ft))*'Commercial Energy Coefficients'!$F$4+'Commercial Energy Coefficients'!$F$11+'Commercial Energy Coefficients'!$F$14+'Commercial Energy Coefficients'!$F$18*LN((B_OFF_Emp_Acre)*(B_Lot_Size/43560))+'Commercial Energy Coefficients'!$F$19*LN(40)+'Commercial Energy Coefficients'!$F$21+'Commercial Energy Coefficients'!$F$22*LN(Commercial_Energy_Cost)+'Commercial Energy Coefficients'!$F$24*IFERROR(LOOKUP(Metro_Select,Energy_Metro_Lookup,CDD),0)),0)+IFERROR(EXP('Commercial Energy Coefficients'!$I$3+LN((B_PUB_Gross_Sq_Ft))*'Commercial Energy Coefficients'!$I$4+'Commercial Energy Coefficients'!$I$11+'Commercial Energy Coefficients'!$I$14+'Commercial Energy Coefficients'!$I$18*LN((B_Pub_Emp_Acre)*(B_Lot_Size/43560))+'Commercial Energy Coefficients'!$I$19*LN(40)+'Commercial Energy Coefficients'!$I$21+'Commercial Energy Coefficients'!$I$22*LN(Commercial_Energy_Cost)+'Commercial Energy Coefficients'!$I$24*IFERROR(LOOKUP(Metro_Select,Energy_Metro_Lookup,CDD),0)),0))/1000 -> 0 | CP5: =(IFERROR(EXP('Commercial Energy Coefficients'!$D$3+LN((B_RET_Gross_Sq_Ft))*'Commercial Energy Coefficients'!$D$4+'Commercial Energy Coefficients'!$D$14+'Commercial Energy Coefficients'!$D$18*LN((B_Ret_Emp_Acre)*(B_Lot_Size/43560))+'Commercial Energy Coefficients'!$D$19*LN(40)+'Commercial Energy Coefficients'!$D$21+'Commercial Energy Coefficients'!$D$22*LN(Commercial_Energy_Cost)),0)+IFERROR(EXP('Commercial Energy Coefficients'!$G$3+LN((B_OFF_Gross_Sq_Ft))*'Commercial Energy Coefficients'!$G$4+'Commercial Energy Coefficients'!$G$14+'Commercial Energy Coefficients'!$G$18*LN((B_OFF_Emp_Acre)*(B_Lot_Size/43560))+'Commercial Energy Coefficients'!$G$19*LN(40)+'Commercial Energy Coefficients'!$G$21+'Commercial Energy Coefficients'!$G$22*LN(Commercial_Energy_Cost)),0)+IFERROR(EXP('Commercial Energy Coefficients'!$J$3+LN((B_PUB_Gross_Sq_Ft))*'Commercial Energy Coefficients'!$J$4+'Commercial Energy Coefficients'!$J$14+'Commercial Energy Coefficients'!$J$18*LN((B_Pub_Emp_Acre)*(B_Lot_Size/43560))+'Commercial Energy Coefficients'!$J$19*LN(40)+'Commercial Energy Coefficients'!$J$21+'Commercial Energy Coefficients'!$J$22*LN(Commercial_Energy_Cost)),0))/1000 -> 0 | CQ5: =SUM(CN5:CP5) -> 0 | CR5: 0 | CS5: 0 | CT5: 282.5307557 | CU5: 141.2653779 | CV5: 13.17721878 | CW5: 0 | CX5: 26.35443755 | CY5: 155.6 | CZ5: 311.2 | DA5: 80 | DB5: 200 | DC5: 0 | DD5: 160 | DE5: 50 | DF5: 125 | DG5: 0 | DH5: 100 | DI5: =IF(B_Housing_Type="",0,IF(B_Housing_Type="MF",'Project Info'!$B$160,IF(B_Housing_Type="TH",'Project Info'!$B$161,IF(AND(B_Housing_Type="SF",B_Net_Sq_Ft_per_Unit>0,B_Net_Sq_Ft_per_Unit<3000),'Project Info'!$B$162,IF(AND(B_Housing_Type="SF",B_Net_Sq_Ft_per_Unit>=3000),'Project Info'!$B$163))))) -> 2 | DJ5: 5 | DK5: 0 | DL5: 4 | DM5: =[2]!LandCost -> 51.85985546 | DN5: 466738.6991 | DO5: 2259015.304 | DQ5: 466738.6991 | DR5: 2259015.304 | DS5: =[2]!ProjectValue -> 1027543.987 | DT5: 4973312.895 | DU5: =[2]!YInt -> 0.8013 | DV5: =[2]!Slope -> 0.2514298 | DW5: =[2]!ProdType -> Residential Owner | DX5: =[2]!Subsidy -> 0 | DY5: 0 | DZ5: 0 | EA5: =[2]!ImpactFees -> 0 | EB5: 0 | EC5: =[2]!ROI_Rental -> 0 | ED5: =[2]!ROI_Owner -> 0.1999719877 | EE5: =[2]!PropTax -> 29363.49194 | EF5: 142119.301 | EG5: 0 | EH5: 0 | EI5: =IFERROR(B_FAR/MAX(B_FAR),0) -> 0.02645693569 | EJ5: =[2]!GreenRoof -> 0 | EK5: =[2]!GreenRoofEff -> 0 | EL5: =[2]!GreenRoofVolume -> 0 | EM5: =[2]!Biofiltration -> 1956.225917 | EN5: =[2]!BiofiltrationEff -> 0 | EO5: =[2]!BiofiltrationVolume -> 6584.656436 | EP5: =[2]!GreenRoofHarvesting -> 0 | EQ5: =[2]!GreenRoofHarvestingEff -> 0 | ER5: =[2]!WaterHarvesting -> 0 | ES5: =[2]!WaterHarvestingEff -> 0 | ET5: =[2]!WaterHarvestingVolume -> 0 | EU5: 0 | EV5: 404.1789085 | EX5: 0 | EY5: =ER5*$C5/43560 -> 0 | EZ5: 0 | FA5: =EO5*$C5/43560 -> 1360.466206 | FB5: =ET5*$C5/43560 -> 0 | FC5: 0 | FE5: =Annual_Cooling_degree_days*24*(1/R_conventional_SF_F_hrs_BTU-1/R_green_roof_SF_F_hrs_Btu)/3412*'Building Inputs'!$EU5 -> 0 | FF5: 0 | FG5: =Annual_Heating_degree_days*24*(1/R_conventional_SF_F_hrs_BTU-1/R_green_roof_SF_F_hrs_Btu)*'Building Inputs'!$EU5 -> 0 | FH5: 0 | FI5: =Avg_Annual_NO2_uptake*'Building Inputs'!$EU5 -> 0 | FJ5: =Avg_Annual_O3_uptake*'Building Inputs'!$EU5 -> 0 | FK5: =Avg_Annual_SO2_uptake*'Building Inputs'!$EU5 -> 0 | FL5: =Avg_Annual_PM_10_uptake*'Building Inputs'!$EU5 -> 0 | FM5: 0 | FN5: 0 | FO5: =FI5+FM5 -> 0 | FP5: =FK5+FN5 -> 0 | FQ5: 0 | FR5: 0 | FS5: 0 | FT5: 0 | FU5: =SUM(FQ5:FT5) -> 0 | FV5: =Avg_amount_of_carbon_sequestered_lbs_SF*'Building Inputs'!$EU5*3.67 -> 0 | FW5: 0 | FX5: =FV5+FW5 -> 0 | FY5: 0 | FZ5: =Average_annual_rainfall_in*($C5*(1-$E5)+$EM5-$EJ5-$ER5)*$C5/43560*'Building Inputs'!$EN5*144*0.00433 -> 0 | GB5: =Avg_Annual_NO2_uptake*'Building Inputs'!$EV5 -> 0.1212536725 | GC5: =Avg_Annual_O3_uptake*'Building Inputs'!$EV5 -> 0.2376571982 | GD5: =Avg_Annual_SO2_uptake*'Building Inputs'!$EV5 -> 0.09255697004 | GE5: =Avg_Annual_PM_10_uptake*'Building Inputs'!$EV5 -> 0.04607639556 | GF5: 0.4049872663 | GG5: 0.7937750419 | GH5: 0.1906673583 | GI5: 0.1308569634 | GJ5: =SUM(GF5:GI5) -> 1.52028663 | GK5: =Avg_amount_of_carbon_sequestered_lbs_SF*'Building Inputs'!$EV5*3.67 -> 49.24677492 | GL5: 0.3723056184 | GM5: =Average_annual_rainfall_in*('Building Inputs'!$EX5*'Building Inputs'!$EQ5+'Building Inputs'!$EY5*'Building Inputs'!$ES5)*144*0.00433 -> 0 | GO5: =FC5+FZ5+GM5 -> 0 | GQ5: =FF5+FH5 -> 0 | GR5: 0.1212536725 | GS5: =FJ5+GG5 -> 0.7937750419 | GT5: 0.09255697004 | GU5: 0.04607639556 | GV5: =SUM(GR5:GU5) -> 1.05366208 | GW5: 0.4049872663 | GX5: 2.65120864 | GY5: 0.1906673583 | GZ5: 0.1308569634 | HA5: =SUM(GW5:GZ5) -> 3.377720228 | HB5: 49.24677492 | HC5: 0.3723056184 | HD5: =[2]!RequiredWQV -> 1052.836041 | HE5: =[2]!ConventionalWQV -> 0 | HF5: 217.5281077 | HG5: 0 | HH5: 1360.466206 | HI5: =[2]!TSSload -> 30.50573037 | HJ5: =[2]!TNload -> 0.5546496431 | HK5: =[2]!TLload -> 0.005546496431 | HL5: =[2]!fColiLoad -> 3010.249954 | HM5: =[2]!TSSreduction -> 25.13401021 | HN5: =[2]!TNreduction -> 0.2619425381 | HO5: =[2]!TLreduction -> 0.004326020705 | HP5: =[2]!fColiReduction -> 2233.115179 | HQ5: 6.302836854 | HR5: 0.1145970337 | HS5: 0.001145970337 | HT5: 621.9524697 | HU5: 5.192977315 | HV5: 0.05412035912 | HW5: 0.0008938059309 | HX5: 461.3874337 | HY5: =[2]!EPA_MXD_ResTrips -> 13.01663999 | HZ5: =[2]!EPA_MXD_RetTrips -> 0 | IA5: =[2]!EPA_MXD_OffTrips -> 0 | IB5: =[2]!EPA_MXD_EduTrips -> 0 | IC5: =[2]!EPA_MXD_OtherTrips -> 0 | ID5: =[2]!EPA_MXD_ResVMT -> 36.94718326 | IE5: =[2]!EPA_MXD_RetVMT -> 0 | IF5: =[2]!EPA_MXD_OffVMT -> 0 | IG5: =[2]!EPA_MXD_EduVMT -> 0 | IH5: =[2]!EPA_MXD_OtherVMT -> 0
A6: 3 | B6: =[3]!name -> T3NEWideHouse | C6: =[3]!lot_size -> 9000 | D6: =[3]!Building_Lot_Coverage -> 0.2195555556 | E6: =[3]!Landscaping_Coverage -> 0.736 | F6: =[3]!Parking_Coverage -> 0.04444444444 | G6: =[3]!Height -> 2 | H6: =[3]!FAR -> 0.4391111111 | I6: 3952 | J6: =[3]!ResPct -> 1 | K6: 0 | L6: 0 | M6: 1 | N6: 0 | O6: 0 | P6: 1 | Q6: 0 | R6: 0 | S6: =[3]!RetPct -> 0 | T6: =[3]!OffPct -> 0 | U6: =[3]!IndPct -> 0 | V6: =[3]!PubPct -> 0 | W6: =[3]!EduPct -> 0 | X6: =[3]!HotelPct -> 0 | Y6: =[3]!ComParkingPct -> 0 | Z6: =[3]!ParkingPct -> 0 | AA6: 3952 | AB6: =[3]!NetUnitSize -> 3952 | AC6: =[3]!UnitSize -> 3952 | AD6: 1 | AE6: 4.84 | AF6: =[3]!HousingType -> SF | AG6: =[3]!RentalPct -> 0 | AH6: 1 | AI6: =[3]!AffordablePct -> 0 | AJ6: =[3]!Rent -> 0 | AK6: 0 | AL6: =[3]!Sales_Price -> 379 | AM6: 1497808 | AN6: 8980.11573 | AO6: 0.08 | AP6: 4.4528 | AQ6: 3 | AR6: 1.528917643 | AS6: 0.5082 | AT6: 414466.8798 | AU6: 0 | AV6: 0 | AW6: 0 | AX6: 0 | AY6: 0 | AZ6: =[3]!RetRent -> 31.38 | BA6: =[3]!RetSpace -> 945 | BB6: 0 | BC6: 0 | BD6: =[3]!OffRent -> 36.78 | BE6: =[3]!OffSpace -> 387 | BF6: 0 | BG6: 0 | BH6: =[3]!IndRent -> 12 | BI6: =[3]!IndSpace -> 1730 | BJ6: 0 | BK6: 0 | BL6: =[3]!PubRent -> 14 | BM6: =[3]!PubSpace -> 746 | BN6: 0 | BO6: 0 | BP6: =[3]!EduRent -> 14 | BQ6: =[3]!EduSpace -> 767 | BR6: 0 | BS6: 0 | BT6: =[3]!HotelRent -> 150 | BU6: =[3]!HotelSpaceEmp -> 1317 | BV6: 0 | BW6: =[3]!HotelRoomNet -> 0 | BX6: =[3]!HotelRoomGross -> 0 | BY6: 0 | BZ6: 0 | CA6: 0 | CB6: =[3]!ParkingRent -> 4 | CC6: =[3]!ParkingSpace -> 20000 | CD6: 0 | CE6: =[3]!ParkingSpaces -> 1 | CF6: =[3]!ParkingArea -> 400 | CG6: =[3]!IntStructParkingArea -> 0 | CH6: =[3]!ParkingCost -> 5000 | CI6: 0.004006972117 | CJ6: =IFERROR(IF(B_Housing_Type="SF",EXP('Residential Energy Coefficients'!$B$3+'Residential Energy Coefficients'!$B$4*LN(B_Net_Sq_Ft_per_Unit)+'Residential Energy Coefficients'!$B$9+'Residential Energy Coefficients'!$B$10*LN(B_HH_Income)+'Residential Energy Coefficients'!$B$16*LN(Residential_Energy_Cost)+'Residential Energy Coefficients'!$B$20+'Residential Energy Coefficients'!$B$24*IFERROR(LOOKUP(Metro_Select,Energy_Metro_Lookup,HDD),0)),IF(B_Housing_Type="TH",EXP('Residential Energy Coefficients'!$E$3+'Residential Energy Coefficients'!$E$4*LN(B_Net_Sq_Ft_per_Unit)+'Residential Energy Coefficients'!$E$9+'Residential Energy Coefficients'!$E$16*LN(Residential_Energy_Cost)+'Residential Energy Coefficients'!$E$19+'Residential Energy Coefficients'!$E$20+'Residential Energy Coefficients'!$E$24*IFERROR(LOOKUP(Metro_Select,Energy_Metro_Lookup,HDD),0)),IF(B_Housing_Type="MF",EXP('Residential Energy Coefficients'!$H$3+'Residential Energy Coefficients'!$H$4*LN(B_Net_Sq_Ft_per_Unit)+'Residential Energy Coefficients'!$H$9+IF(B_Pct_Owner=1,'Residential Energy Coefficients'!$H$12,0)+'Residential Energy Coefficients'!$H$16*LN(Residential_Energy_Cost)+'Residential Energy Coefficients'!$H$20+'Residential Energy Coefficients'!$H$24*IFERROR(LOOKUP(Metro_Select,Energy_Metro_Lookup,HDD),0)),IF(B_Hotel_Room_Acre>0,EXP('Residential Energy Coefficients'!$H$3+'Residential Energy Coefficients'!$H$4*LN(B_Hotel_Room_Net)+'Residential Energy Coefficients'!$H$9+'Residential Energy Coefficients'!$H$16*LN(Residential_Energy_Cost)+'Residential Energy Coefficients'!$H$20+'Residential Energy Coefficients'!$H$24*IFERROR(LOOKUP(Metro_Select,Energy_Metro_Lookup,HDD),0)),IF(B_Housing_Type="MH",EXP('Residential Energy Coefficients'!$K$3+'Residential Energy Coefficients'!$K$16*LN(Residential_Energy_Cost)+'Residential Energy Coefficients'!$K$24*IFERROR(LOOKUP(Metro_Select,Energy_Metro_Lookup,HDD),0)),0)))))/1000,0) -> 26.25355697 | CK6: =IFERROR(IF(B_Housing_Type="SF",EXP('Residential Energy Coefficients'!$C$3+'Residential Energy Coefficients'!$C$4*LN(B_Net_Sq_Ft_per_Unit)+'Residential Energy Coefficients'!$C$10*LN(B_HH_Income)+'Residential Energy Coefficients'!$C$11*B_HH_Size+'Residential Energy Coefficients'!$C$16*LN(Residential_Energy_Cost)+'Residential Energy Coefficients'!$C$19+'Residential Energy Coefficients'!$C$22+'Residential Energy Coefficients'!$C$25*IFERROR(LOOKUP(Metro_Select,Energy_Metro_Lookup,CDD),0)),IF(B_Housing_Type="TH",EXP('Residential Energy Coefficients'!$F$3+'Residential Energy Coefficients'!$F$4*LN(B_Net_Sq_Ft_per_Unit)+'Residential Energy Coefficients'!$F$10*LN(B_HH_Income)+'Residential Energy Coefficients'!$F$11*B_HH_Size+IF(B_Pct_Owner=1,'Residential Energy Coefficients'!$F$12,0)+'Residential Energy Coefficients'!$F$16*LN(Residential_Energy_Cost)+'Residential Energy Coefficients'!$F$22+'Residential Energy Coefficients'!$F$25*IFERROR(LOOKUP(Metro_Select,Energy_Metro_Lookup,CDD),0)),IF(B_Housing_Type="MF",EXP('Residential Energy Coefficients'!$I$3+'Residential Energy Coefficients'!$I$4*LN(B_Net_Sq_Ft_per_Unit)+'Residential Energy Coefficients'!$I$9+'Residential Energy Coefficients'!$I$11*B_HH_Size+'Residential Energy Coefficients'!$I$16*LN(Residential_Energy_Cost)+'Residential Energy Coefficients'!$I$22+'Residential Energy Coefficients'!$I$25*IFERROR(LOOKUP(Metro_Select,Energy_Metro_Lookup,CDD),0)),IF(B_Hotel_Room_Acre>0,EXP('Residential Energy Coefficients'!$I$3+'Residential Energy Coefficients'!$I$4*LN(B_Hotel_Room_Net)+'Residential Energy Coefficients'!$I$9+'Residential Energy Coefficients'!$I$11*1.25+'Residential Energy Coefficients'!$I$16*LN(Residential_Energy_Cost)+'Residential Energy Coefficients'!$I$22+'Residential Energy Coefficients'!$I$25*IFERROR(LOOKUP(Metro_Select,Energy_Metro_Lookup,CDD),0)),IF(B_Housing_Type="MH",EXP('Residential Energy Coefficients'!$L$3+'Residential Energy Coefficients'!$L$11*B_HH_Size+'Residential Energy Coefficients'!$L$16*LN(Residential_Energy_Cost)+'Residential Energy Coefficients'!$L$22+'Residential Energy Coefficients'!$L$25*IFERROR(LOOKUP(Metro_Select,Energy_Metro_Lookup,CDD),0)),0)))))/1000,0) -> 178.2368848 | CL6: =IFERROR(IF(B_Housing_Type="SF",EXP('Residential Energy Coefficients'!$D$3+'Residential Energy Coefficients'!$D$4*LN(B_Net_Sq_Ft_per_Unit)+'Residential Energy Coefficients'!$D$9+'Residential Energy Coefficients'!$D$10*LN(B_HH_Income)+'Residential Energy Coefficients'!$D$11*B_HH_Size+IF(B_Pct_Owner=1,'Residential Energy Coefficients'!$D$12,0)+'Residential Energy Coefficients'!$D$16*LN(Residential_Energy_Cost)),IF(B_Housing_Type="TH",EXP('Residential Energy Coefficients'!$G$3+'Residential Energy Coefficients'!$G$4*LN(B_Net_Sq_Ft_per_Unit)+'Residential Energy Coefficients'!$G$10*LN(B_HH_Income)+'Residential Energy Coefficients'!$G$11*B_HH_Size+'Residential Energy Coefficients'!$G$16*LN(Residential_Energy_Cost)),IF(B_Housing_Type="MF",EXP('Residential Energy Coefficients'!$J$3+'Residential Energy Coefficients'!$J$4*LN(B_Net_Sq_Ft_per_Unit)+'Residential Energy Coefficients'!$J$10*LN(B_HH_Income)+'Residential Energy Coefficients'!$J$11*B_HH_Size+IF(B_Pct_Owner=1,'Residential Energy Coefficients'!$J$12,0)+'Residential Energy Coefficients'!$J$16*LN(Residential_Energy_Cost)+'Residential Energy Coefficients'!$J$19),IF(B_Hotel_Room_Acre>0,EXP('Residential Energy Coefficients'!$J$3+'Residential Energy Coefficients'!$J$4*LN(B_Hotel_Room_Net)+'Residential Energy Coefficients'!$J$16*LN(Residential_Energy_Cost)+'Residential Energy Coefficients'!$J$19),IF(B_Housing_Type="MH",EXP('Residential Energy Coefficients'!$M$3+'Residential Energy Coefficients'!$M$4*LN(B_Net_Sq_Ft_per_Unit)+'Residential Energy Coefficients'!$M$11*B_HH_Size+'Residential Energy Coefficients'!$M$16*LN(Residential_Energy_Cost)+'Residential Energy Coefficients'!$M$19),0)))))/1000,0) -> 89.26961531 | CM6: 293.760057 | CN6: =(IFERROR(EXP('Commercial Energy Coefficients'!$B$3+LN(B_RET_Gross_Sq_Ft)*'Commercial Energy Coefficients'!$B$4+'Commercial Energy Coefficients'!$B$11+'Commercial Energy Coefficients'!$B$14+'Commercial Energy Coefficients'!$B$18*LN((B_Ret_Emp_Acre)*(B_Lot_Size/43560))+'Commercial Energy Coefficients'!$B$19*LN(40)+'Commercial Energy Coefficients'!$B$21+'Commercial Energy Coefficients'!$B$22*LN(Commercial_Energy_Cost)+'Commercial Energy Coefficients'!$B$23*IFERROR(LOOKUP(Metro_Select,Energy_Metro_Lookup,HDD),0)),0)+IFERROR(EXP('Commercial Energy Coefficients'!$E$3+LN(B_OFF_Gross_Sq_Ft)*'Commercial Energy Coefficients'!$E$4+'Commercial Energy Coefficients'!$E$11+'Commercial Energy Coefficients'!$E$14+'Commercial Energy Coefficients'!$E$18*LN((B_OFF_Emp_Acre)*(B_Lot_Size/43560))+'Commercial Energy Coefficients'!$E$19*LN(40)+'Commercial Energy Coefficients'!$E$21+'Commercial Energy Coefficients'!$E$22*LN(Commercial_Energy_Cost)+'Commercial Energy Coefficients'!$E$23*IFERROR(LOOKUP(Metro_Select,Energy_Metro_Lookup,HDD),0)),0)+IFERROR(EXP('Commercial Energy Coefficients'!$H$3+LN(B_PUB_Gross_Sq_Ft)*'Commercial Energy Coefficients'!$H$4+'Commercial Energy Coefficients'!$H$11+'Commercial Energy Coefficients'!$H$14+'Commercial Energy Coefficients'!$H$18*LN((B_Pub_Emp_Acre)*(B_Lot_Size/43560))+'Commercial Energy Coefficients'!$H$19*LN(40)+'Commercial Energy Coefficients'!$H$21+'Commercial Energy Coefficients'!$H$22*LN(Commercial_Energy_Cost)+'Commercial Energy Coefficients'!$H$23*IFERROR(LOOKUP(Metro_Select,Energy_Metro_Lookup,HDD),0)),0))/1000 -> 0 | CO6: =(IFERROR(EXP('Commercial Energy Coefficients'!$C$3+LN((B_RET_Gross_Sq_Ft))*'Commercial Energy Coefficients'!$C$4+'Commercial Energy Coefficients'!$C$11+'Commercial Energy Coefficients'!$C$14+'Commercial Energy Coefficients'!$C$18*LN((B_Ret_Emp_Acre)*(B_Lot_Size/43560))+'Commercial Energy Coefficients'!$C$19*LN(40)+'Commercial Energy Coefficients'!$C$21+'Commercial Energy Coefficients'!$C$22*LN(Commercial_Energy_Cost)+'Commercial Energy Coefficients'!$C$24*IFERROR(LOOKUP(Metro_Select,Energy_Metro_Lookup,CDD),0)),0)+IFERROR(EXP('Commercial Energy Coefficients'!$F$3+LN((B_OFF_Gross_Sq_Ft))*'Commercial Energy Coefficients'!$F$4+'Commercial Energy Coefficients'!$F$11+'Commercial Energy Coefficients'!$F$14+'Commercial Energy Coefficients'!$F$18*LN((B_OFF_Emp_Acre)*(B_Lot_Size/43560))+'Commercial Energy Coefficients'!$F$19*LN(40)+'Commercial Energy Coefficients'!$F$21+'Commercial Energy Coefficients'!$F$22*LN(Commercial_Energy_Cost)+'Commercial Energy Coefficients'!$F$24*IFERROR(LOOKUP(Metro_Select,Energy_Metro_Lookup,CDD),0)),0)+IFERROR(EXP('Commercial Energy Coefficients'!$I$3+LN((B_PUB_Gross_Sq_Ft))*'Commercial Energy Coefficients'!$I$4+'Commercial Energy Coefficients'!$I$11+'Commercial Energy Coefficients'!$I$14+'Commercial Energy Coefficients'!$I$18*LN((B_Pub_Emp_Acre)*(B_Lot_Size/43560))+'Commercial Energy Coefficients'!$I$19*LN(40)+'Commercial Energy Coefficients'!$I$21+'Commercial Energy Coefficients'!$I$22*LN(Commercial_Energy_Cost)+'Commercial Energy Coefficients'!$I$24*IFERROR(LOOKUP(Metro_Select,Energy_Metro_Lookup,CDD),0)),0))/1000 -> 0 | CP6: =(IFERROR(EXP('Commercial Energy Coefficients'!$D$3+LN((B_RET_Gross_Sq_Ft))*'Commercial Energy Coefficients'!$D$4+'Commercial Energy Coefficients'!$D$14+'Commercial Energy Coefficients'!$D$18*LN((B_Ret_Emp_Acre)*(B_Lot_Size/43560))+'Commercial Energy Coefficients'!$D$19*LN(40)+'Commercial Energy Coefficients'!$D$21+'Commercial Energy Coefficients'!$D$22*LN(Commercial_Energy_Cost)),0)+IFERROR(EXP('Commercial Energy Coefficients'!$G$3+LN((B_OFF_Gross_Sq_Ft))*'Commercial Energy Coefficients'!$G$4+'Commercial Energy Coefficients'!$G$14+'Commercial Energy Coefficients'!$G$18*LN((B_OFF_Emp_Acre)*(B_Lot_Size/43560))+'Commercial Energy Coefficients'!$G$19*LN(40)+'Commercial Energy Coefficients'!$G$21+'Commercial Energy Coefficients'!$G$22*LN(Commercial_Energy_Cost)),0)+IFERROR(EXP('Commercial Energy Coefficients'!$J$3+LN((B_PUB_Gross_Sq_Ft))*'Commercial Energy Coefficients'!$J$4+'Commercial Energy Coefficients'!$J$14+'Commercial Energy Coefficients'!$J$18*LN((B_Pub_Emp_Acre)*(B_Lot_Size/43560))+'Commercial Energy Coefficients'!$J$19*LN(40)+'Commercial Energy Coefficients'!$J$21+'Commercial Energy Coefficients'!$J$22*LN(Commercial_Energy_Cost)),0))/1000 -> 0 | CQ6: 0 | CR6: 0 | CS6: 0 | CT6: 293.760057 | CU6: 293.760057 | CV6: 27.40190553 | CW6: 0 | CX6: 27.40190553 | CY6: 331.2 | CZ6: 331.2 | DA6: 120 | DB6: 360 | DC6: 0 | DD6: 120 | DE6: 90 | DF6: 270 | DG6: 0 | DH6: 90 | DI6: =IF(B_Housing_Type="",0,IF(B_Housing_Type="MF",'Project Info'!$B$160,IF(B_Housing_Type="TH",'Project Info'!$B$161,IF(AND(B_Housing_Type="SF",B_Net_Sq_Ft_per_Unit>0,B_Net_Sq_Ft_per_Unit<3000),'Project Info'!$B$162,IF(AND(B_Housing_Type="SF",B_Net_Sq_Ft_per_Unit>=3000),'Project Info'!$B$163))))) -> 4 | DJ6: 12 | DK6: 0 | DL6: 4 | DM6: =[3]!LandCost -> 78.14091839 | DN6: 703268.2655 | DO6: 3403818.405 | DQ6: 703268.2655 | DR6: 3403818.405 | DS6: =[3]!ProjectValue -> 1247825.004 | DT6: 6039473.021 | DU6: =[3]!YInt -> 0.8013 | DV6: =[3]!Slope -> 0.2514298 | DW6: =[3]!ProdType -> Residential Owner | DX6: =[3]!Subsidy -> 0 | DY6: 0 | DZ6: 0 | EA6: =[3]!ImpactFees -> 0 | EB6: 0 | EC6: =[3]!ROI_Rental -> 0 | ED6: =[3]!ROI_Owner -> 0.2003349786 | EE6: =[3]!PropTax -> 35586.14711 | EF6: 172236.952 | EG6: 0 | EH6: 0 | EI6: 0.02645693569 | EJ6: =[3]!GreenRoof -> 0 | EK6: =[3]!GreenRoofEff -> 0 | EL6: =[3]!GreenRoofVolume -> 0 | EM6: =[3]!Biofiltration -> 2081.947377 | EN6: =[3]!BiofiltrationEff -> 0 | EO6: =[3]!BiofiltrationVolume -> 7007.834871 | EP6: =[3]!GreenRoofHarvesting -> 0 | EQ6: =[3]!GreenRoofHarvestingEff -> 0 | ER6: =[3]!WaterHarvesting -> 0 | ES6: =[3]!WaterHarvestingEff -> 0 | ET6: =[3]!WaterHarvestingVolume -> 0 | EU6: 0 | EV6: 430.1544167 | EX6: 0 | EY6: 0 | EZ6: 0 | FA6: 1447.899767 | FB6: 0 | FC6: 0 | FE6: =Annual_Cooling_degree_days*24*(1/R_conventional_SF_F_hrs_BTU-1/R_green_roof_SF_F_hrs_Btu)/3412*'Building Inputs'!$EU6 -> 0 | FF6: 0 | FG6: =Annual_Heating_degree_days*24*(1/R_conventional_SF_F_hrs_BTU-1/R_green_roof_SF_F_hrs_Btu)*'Building Inputs'!$EU6 -> 0 | FH6: 0 | FI6: =Avg_Annual_NO2_uptake*'Building Inputs'!$EU6 -> 0 | FJ6: =Avg_Annual_O3_uptake*'Building Inputs'!$EU6 -> 0 | FK6: =Avg_Annual_SO2_uptake*'Building Inputs'!$EU6 -> 0 | FL6: =Avg_Annual_PM_10_uptake*'Building Inputs'!$EU6 -> 0 | FM6: 0 | FN6: 0 | FO6: 0 | FP6: 0 | FQ6: 0 | FR6: 0 | FS6: 0 | FT6: 0 | FU6: 0 | FV6: =Avg_amount_of_carbon_sequestered_lbs_SF*'Building Inputs'!$EU6*3.67 -> 0 | FW6: 0 | FX6: 0 | FY6: 0 | FZ6: =Average_annual_rainfall_in*($C6*(1-$E6)+$EM6-$EJ6-$ER6)*$C6/43560*'Building Inputs'!$EN6*144*0.00433 -> 0 | GB6: =Avg_Annual_NO2_uptake*'Building Inputs'!$EV6 -> 0.129046325 | GC6: =Avg_Annual_O3_uptake*'Building Inputs'!$EV6 -> 0.252930797 | GD6: =Avg_Annual_SO2_uptake*'Building Inputs'!$EV6 -> 0.09850536143 | GE6: =Avg_Annual_PM_10_uptake*'Building Inputs'!$EV6 -> 0.04903760351 | GF6: 0.4310147256 | GG6: 0.8447888621 | GH6: 0.2029210445 | GI6: 0.139266794 | GJ6: 1.617991426 | GK6: =Avg_amount_of_carbon_sequestered_lbs_SF*'Building Inputs'!$EV6*3.67 -> 52.41173475 | GL6: 0.3962327147 | GM6: =Average_annual_rainfall_in*('Building Inputs'!$EX6*'Building Inputs'!$EQ6+'Building Inputs'!$EY6*'Building Inputs'!$ES6)*144*0.00433 -> 0 | GO6: 0 | GQ6: 0 | GR6: 0.129046325 | GS6: 0.8447888621 | GT6: 0.09850536143 | GU6: 0.04903760351 | GV6: 1.121378152 | GW6: 0.4310147256 | GX6: 2.821594799 | GY6: 0.2029210445 | GZ6: 0.139266794 | HA6: 3.594797363 | HB6: 52.41173475 | HC6: 0.3962327147 | HD6: =[3]!RequiredWQV -> 835.30656 | HE6: =[3]!ConventionalWQV -> 0 | HF6: 172.584 | HG6: 0 | HH6: 1447.899767 | HI6: =[3]!TSSload -> 25.75205824 | HJ6: =[3]!TNload -> 0.4682192408 | HK6: =[3]!TLload -> 0.004682192408 | HL6: =[3]!fColiLoad -> 2574.360543 | HM6: =[3]!TSSreduction -> 21.27005557 | HN6: =[3]!TNreduction -> 0.2182525954 | HO6: =[3]!TLreduction -> 0.003656688222 | HP6: =[3]!fColiReduction -> 1902.145916 | HQ6: 5.320673191 | HR6: 0.09673951256 | HS6: 0.0009673951256 | HT6: 531.8926743 | HU6: 4.394639581 | HV6: 0.04509351145 | HW6: 0.0007555140954 | HX6: 393.0053545 | HY6: =[3]!EPA_MXD_ResTrips -> 9.370121968 | HZ6: =[3]!EPA_MXD_RetTrips -> 0 | IA6: =[3]!EPA_MXD_OffTrips -> 0 | IB6: =[3]!EPA_MXD_EduTrips -> 0 | IC6: =[3]!EPA_MXD_OtherTrips -> 0 | ID6: =[3]!EPA_MXD_ResVMT -> 26.59513099 | IE6: =[3]!EPA_MXD_RetVMT -> 0 | IF6: =[3]!EPA_MXD_OffVMT -> 0 | IG6: =[3]!EPA_MXD_EduVMT -> 0 | IH6: =[3]!EPA_MXD_OtherVMT -> 0
A7: 4 | B7: =[4]!name -> T3NDSSmallHouse | C7: =[4]!lot_size -> 7500 | D7: =[4]!Building_Lot_Coverage -> 0.2250666667 | E7: =[4]!Landscaping_Coverage -> 0.7216 | F7: =[4]!Parking_Coverage -> 0.05333333333 | G7: =[4]!Height -> 2 | H7: =[4]!FAR -> 0.4501333333 | I7: 3376 | J7: =[4]!ResPct -> 1 | K7: 0 | L7: 0 | M7: 1 | N7: 0 | O7: 1 | P7: 0 | Q7: 0 | R7: 0 | S7: =[4]!RetPct -> 0 | T7: =[4]!OffPct -> 0 | U7: =[4]!IndPct -> 0 | V7: =[4]!PubPct -> 0 | W7: =[4]!EduPct -> 0 | X7: =[4]!HotelPct -> 0 | Y7: =[4]!ComParkingPct -> 0 | Z7: =[4]!ParkingPct -> 0 | AA7: 3376 | AB7: =[4]!NetUnitSize -> 3376 | AC7: =[4]!UnitSize -> 3376 | AD7: 1 | AE7: 5.808 | AF7: =[4]!HousingType -> SF | AG7: =[4]!RentalPct -> 0 | AH7: 1 | AI7: =[4]!AffordablePct -> 0 | AJ7: =[4]!Rent -> 0 | AK7: 0 | AL7: =[4]!Sales_Price -> 379 | AM7: 1279504 | AN7: 7671.272951 | AO7: 0.08 | AP7: 5.34336 | AQ7: 3 | AR7: 1.528917643 | AS7: 0.5082 | AT7: 354058.7516 | AU7: 0 | AV7: 0 | AW7: 0 | AX7: 0 | AY7: 0 | AZ7: =[4]!RetRent -> 31.38 | BA7: =[4]!RetSpace -> 945 | BB7: 0 | BC7: 0 | BD7: =[4]!OffRent -> 36.78 | BE7: =[4]!OffSpace -> 387 | BF7: 0 | BG7: 0 | BH7: =[4]!IndRent -> 12 | BI7: =[4]!IndSpace -> 1730 | BJ7: 0 | BK7: 0 | BL7: =[4]!PubRent -> 14 | BM7: =[4]!PubSpace -> 746 | BN7: 0 | BO7: 0 | BP7: =[4]!EduRent -> 14 | BQ7: =[4]!EduSpace -> 767 | BR7: 0 | BS7: 0 | BT7: =[4]!HotelRent -> 150 | BU7: =[4]!HotelSpaceEmp -> 1317 | BV7: 0 | BW7: =[4]!HotelRoomNet -> 0 | BX7: =[4]!HotelRoomGross -> 0 | BY7: 0 | BZ7: 0 | CA7: 0 | CB7: =[4]!ParkingRent -> 4 | CC7: =[4]!ParkingSpace -> 20000 | CD7: 0 | CE7: =[4]!ParkingSpaces -> 1 | CF7: =[4]!ParkingArea -> 400 | CG7: =[4]!IntStructParkingArea -> 0 | CH7: =[4]!ParkingCost -> 5000 | CI7: 0.004691735822 | CJ7: =IFERROR(IF(B_Housing_Type="SF",EXP('Residential Energy Coefficients'!$B$3+'Residential Energy Coefficients'!$B$4*LN(B_Net_Sq_Ft_per_Unit)+'Residential Energy Coefficients'!$B$9+'Residential Energy Coefficients'!$B$10*LN(B_HH_Income)+'Residential Energy Coefficients'!$B$16*LN(Residential_Energy_Cost)+'Residential Energy Coefficients'!$B$20+'Residential Energy Coefficients'!$B$24*IFERROR(LOOKUP(Metro_Select,Energy_Metro_Lookup,HDD),0)),IF(B_Housing_Type="TH",EXP('Residential Energy Coefficients'!$E$3+'Residential Energy Coefficients'!$E$4*LN(B_Net_Sq_Ft_per_Unit)+'Residential Energy Coefficients'!$E$9+'Residential Energy Coefficients'!$E$16*LN(Residential_Energy_Cost)+'Residential Energy Coefficients'!$E$19+'Residential Energy Coefficients'!$E$20+'Residential Energy Coefficients'!$E$24*IFERROR(LOOKUP(Metro_Select,Energy_Metro_Lookup,HDD),0)),IF(B_Housing_Type="MF",EXP('Residential Energy Coefficients'!$H$3+'Residential Energy Coefficients'!$H$4*LN(B_Net_Sq_Ft_per_Unit)+'Residential Energy Coefficients'!$H$9+IF(B_Pct_Owner=1,'Residential Energy Coefficients'!$H$12,0)+'Residential Energy Coefficients'!$H$16*LN(Residential_Energy_Cost)+'Residential Energy Coefficients'!$H$20+'Residential Energy Coefficients'!$H$24*IFERROR(LOOKUP(Metro_Select,Energy_Metro_Lookup,HDD),0)),IF(B_Hotel_Room_Acre>0,EXP('Residential Energy Coefficients'!$H$3+'Residential Energy Coefficients'!$H$4*LN(B_Hotel_Room_Net)+'Residential Energy Coefficients'!$H$9+'Residential Energy Coefficients'!$H$16*LN(Residential_Energy_Cost)+'Residential Energy Coefficients'!$H$20+'Residential Energy Coefficients'!$H$24*IFERROR(LOOKUP(Metro_Select,Energy_Metro_Lookup,HDD),0)),IF(B_Housing_Type="MH",EXP('Residential Energy Coefficients'!$K$3+'Residential Energy Coefficients'!$K$16*LN(Residential_Energy_Cost)+'Residential Energy Coefficients'!$K$24*IFERROR(LOOKUP(Metro_Select,Energy_Metro_Lookup,HDD),0)),0)))))/1000,0) -> 24.8178512 | CK7: =IFERROR(IF(B_Housing_Type="SF",EXP('Residential Energy Coefficients'!$C$3+'Residential Energy Coefficients'!$C$4*LN(B_Net_Sq_Ft_per_Unit)+'Residential Energy Coefficients'!$C$10*LN(B_HH_Income)+'Residential Energy Coefficients'!$C$11*B_HH_Size+'Residential Energy Coefficients'!$C$16*LN(Residential_Energy_Cost)+'Residential Energy Coefficients'!$C$19+'Residential Energy Coefficients'!$C$22+'Residential Energy Coefficients'!$C$25*IFERROR(LOOKUP(Metro_Select,Energy_Metro_Lookup,CDD),0)),IF(B_Housing_Type="TH",EXP('Residential Energy Coefficients'!$F$3+'Residential Energy Coefficients'!$F$4*LN(B_Net_Sq_Ft_per_Unit)+'Residential Energy Coefficients'!$F$10*LN(B_HH_Income)+'Residential Energy Coefficients'!$F$11*B_HH_Size+IF(B_Pct_Owner=1,'Residential Energy Coefficients'!$F$12,0)+'Residential Energy Coefficients'!$F$16*LN(Residential_Energy_Cost)+'Residential Energy Coefficients'!$F$22+'Residential Energy Coefficients'!$F$25*IFERROR(LOOKUP(Metro_Select,Energy_Metro_Lookup,CDD),0)),IF(B_Housing_Type="MF",EXP('Residential Energy Coefficients'!$I$3+'Residential Energy Coefficients'!$I$4*LN(B_Net_Sq_Ft_per_Unit)+'Residential Energy Coefficients'!$I$9+'Residential Energy Coefficients'!$I$11*B_HH_Size+'Residential Energy Coefficients'!$I$16*LN(Residential_Energy_Cost)+'Residential Energy Coefficients'!$I$22+'Residential Energy Coefficients'!$I$25*IFERROR(LOOKUP(Metro_Select,Energy_Metro_Lookup,CDD),0)),IF(B_Hotel_Room_Acre>0,EXP('Residential Energy Coefficients'!$I$3+'Residential Energy Coefficients'!$I$4*LN(B_Hotel_Room_Net)+'Residential Energy Coefficients'!$I$9+'Residential Energy Coefficients'!$I$11*1.25+'Residential Energy Coefficients'!$I$16*LN(Residential_Energy_Cost)+'Residential Energy Coefficients'!$I$22+'Residential Energy Coefficients'!$I$25*IFERROR(LOOKUP(Metro_Select,Energy_Metro_Lookup,CDD),0)),IF(B_Housing_Type="MH",EXP('Residential Energy Coefficients'!$L$3+'Residential Energy Coefficients'!$L$11*B_HH_Size+'Residential Energy Coefficients'!$L$16*LN(Residential_Energy_Cost)+'Residential Energy Coefficients'!$L$22+'Residential Energy Coefficients'!$L$25*IFERROR(LOOKUP(Metro_Select,Energy_Metro_Lookup,CDD),0)),0)))))/1000,0) -> 170.358035 | CL7: =IFERROR(IF(B_Housing_Type="SF",EXP('Residential Energy Coefficients'!$D$3+'Residential Energy Coefficients'!$D$4*LN(B_Net_Sq_Ft_per_Unit)+'Residential Energy Coefficients'!$D$9+'Residential Energy Coefficients'!$D$10*LN(B_HH_Income)+'Residential Energy Coefficients'!$D$11*B_HH_Size+IF(B_Pct_Owner=1,'Residential Energy Coefficients'!$D$12,0)+'Residential Energy Coefficients'!$D$16*LN(Residential_Energy_Cost)),IF(B_Housing_Type="TH",EXP('Residential Energy Coefficients'!$G$3+'Residential Energy Coefficients'!$G$4*LN(B_Net_Sq_Ft_per_Unit)+'Residential Energy Coefficients'!$G$10*LN(B_HH_Income)+'Residential Energy Coefficients'!$G$11*B_HH_Size+'Residential Energy Coefficients'!$G$16*LN(Residential_Energy_Cost)),IF(B_Housing_Type="MF",EXP('Residential Energy Coefficients'!$J$3+'Residential Energy Coefficients'!$J$4*LN(B_Net_Sq_Ft_per_Unit)+'Residential Energy Coefficients'!$J$10*LN(B_HH_Income)+'Residential Energy Coefficients'!$J$11*B_HH_Size+IF(B_Pct_Owner=1,'Residential Energy Coefficients'!$J$12,0)+'Residential Energy Coefficients'!$J$16*LN(Residential_Energy_Cost)+'Residential Energy Coefficients'!$J$19),IF(B_Hotel_Room_Acre>0,EXP('Residential Energy Coefficients'!$J$3+'Residential Energy Coefficients'!$J$4*LN(B_Hotel_Room_Net)+'Residential Energy Coefficients'!$J$16*LN(Residential_Energy_Cost)+'Residential Energy Coefficients'!$J$19),IF(B_Housing_Type="MH",EXP('Residential Energy Coefficients'!$M$3+'Residential Energy Coefficients'!$M$4*LN(B_Net_Sq_Ft_per_Unit)+'Residential Energy Coefficients'!$M$11*B_HH_Size+'Residential Energy Coefficients'!$M$16*LN(Residential_Energy_Cost)+'Residential Energy Coefficients'!$M$19),0)))))/1000,0) -> 84.65409621 | CM7: 279.8299824 | CN7: =(IFERROR(EXP('Commercial Energy Coefficients'!$B$3+LN(B_RET_Gross_Sq_Ft)*'Commercial Energy Coefficients'!$B$4+'Commercial Energy Coefficients'!$B$11+'Commercial Energy Coefficients'!$B$14+'Commercial Energy Coefficients'!$B$18*LN((B_Ret_Emp_Acre)*(B_Lot_Size/43560))+'Commercial Energy Coefficients'!$B$19*LN(40)+'Commercial Energy Coefficients'!$B$21+'Commercial Energy Coefficients'!$B$22*LN(Commercial_Energy_Cost)+'Commercial Energy Coefficients'!$B$23*IFERROR(LOOKUP(Metro_Select,Energy_Metro_Lookup,HDD),0)),0)+IFERROR(EXP('Commercial Energy Coefficients'!$E$3+LN(B_OFF_Gross_Sq_Ft)*'Commercial Energy Coefficients'!$E$4+'Commercial Energy Coefficients'!$E$11+'Commercial Energy Coefficients'!$E$14+'Commercial Energy Coefficients'!$E$18*LN((B_OFF_Emp_Acre)*(B_Lot_Size/43560))+'Commercial Energy Coefficients'!$E$19*LN(40)+'Commercial Energy Coefficients'!$E$21+'Commercial Energy Coefficients'!$E$22*LN(Commercial_Energy_Cost)+'Commercial Energy Coefficients'!$E$23*IFERROR(LOOKUP(Metro_Select,Energy_Metro_Lookup,HDD),0)),0)+IFERROR(EXP('Commercial Energy Coefficients'!$H$3+LN(B_PUB_Gross_Sq_Ft)*'Commercial Energy Coefficients'!$H$4+'Commercial Energy Coefficients'!$H$11+'Commercial Energy Coefficients'!$H$14+'Commercial Energy Coefficients'!$H$18*LN((B_Pub_Emp_Acre)*(B_Lot_Size/43560))+'Commercial Energy Coefficients'!$H$19*LN(40)+'Commercial Energy Coefficients'!$H$21+'Commercial Energy Coefficients'!$H$22*LN(Commercial_Energy_Cost)+'Commercial Energy Coefficients'!$H$23*IFERROR(LOOKUP(Metro_Select,Energy_Metro_Lookup,HDD),0)),0))/1000 -> 0 | CO7: =(IFERROR(EXP('Commercial Energy Coefficients'!$C$3+LN((B_RET_Gross_Sq_Ft))*'Commercial Energy Coefficients'!$C$4+'Commercial Energy Coefficients'!$C$11+'Commercial Energy Coefficients'!$C$14+'Commercial Energy Coefficients'!$C$18*LN((B_Ret_Emp_Acre)*(B_Lot_Size/43560))+'Commercial Energy Coefficients'!$C$19*LN(40)+'Commercial Energy Coefficients'!$C$21+'Commercial Energy Coefficients'!$C$22*LN(Commercial_Energy_Cost)+'Commercial Energy Coefficients'!$C$24*IFERROR(LOOKUP(Metro_Select,Energy_Metro_Lookup,CDD),0)),0)+IFERROR(EXP('Commercial Energy Coefficients'!$F$3+LN((B_OFF_Gross_Sq_Ft))*'Commercial Energy Coefficients'!$F$4+'Commercial Energy Coefficients'!$F$11+'Commercial Energy Coefficients'!$F$14+'Commercial Energy Coefficients'!$F$18*LN((B_OFF_Emp_Acre)*(B_Lot_Size/43560))+'Commercial Energy Coefficients'!$F$19*LN(40)+'Commercial Energy Coefficients'!$F$21+'Commercial Energy Coefficients'!$F$22*LN(Commercial_Energy_Cost)+'Commercial Energy Coefficients'!$F$24*IFERROR(LOOKUP(Metro_Select,Energy_Metro_Lookup,CDD),0)),0)+IFERROR(EXP('Commercial Energy Coefficients'!$I$3+LN((B_PUB_Gross_Sq_Ft))*'Commercial Energy Coefficients'!$I$4+'Commercial Energy Coefficients'!$I$11+'Commercial Energy Coefficients'!$I$14+'Commercial Energy Coefficients'!$I$18*LN((B_Pub_Emp_Acre)*(B_Lot_Size/43560))+'Commercial Energy Coefficients'!$I$19*LN(40)+'Commercial Energy Coefficients'!$I$21+'Commercial Energy Coefficients'!$I$22*LN(Commercial_Energy_Cost)+'Commercial Energy Coefficients'!$I$24*IFERROR(LOOKUP(Metro_Select,Energy_Metro_Lookup,CDD),0)),0))/1000 -> 0 | CP7: =(IFERROR(EXP('Commercial Energy Coefficients'!$D$3+LN((B_RET_Gross_Sq_Ft))*'Commercial Energy Coefficients'!$D$4+'Commercial Energy Coefficients'!$D$14+'Commercial Energy Coefficients'!$D$18*LN((B_Ret_Emp_Acre)*(B_Lot_Size/43560))+'Commercial Energy Coefficients'!$D$19*LN(40)+'Commercial Energy Coefficients'!$D$21+'Commercial Energy Coefficients'!$D$22*LN(Commercial_Energy_Cost)),0)+IFERROR(EXP('Commercial Energy Coefficients'!$G$3+LN((B_OFF_Gross_Sq_Ft))*'Commercial Energy Coefficients'!$G$4+'Commercial Energy Coefficients'!$G$14+'Commercial Energy Coefficients'!$G$18*LN((B_OFF_Emp_Acre)*(B_Lot_Size/43560))+'Commercial Energy Coefficients'!$G$19*LN(40)+'Commercial Energy Coefficients'!$G$21+'Commercial Energy Coefficients'!$G$22*LN(Commercial_Energy_Cost)),0)+IFERROR(EXP('Commercial Energy Coefficients'!$J$3+LN((B_PUB_Gross_Sq_Ft))*'Commercial Energy Coefficients'!$J$4+'Commercial Energy Coefficients'!$J$14+'Commercial Energy Coefficients'!$J$18*LN((B_Pub_Emp_Acre)*(B_Lot_Size/43560))+'Commercial Energy Coefficients'!$J$19*LN(40)+'Commercial Energy Coefficients'!$J$21+'Commercial Energy Coefficients'!$J$22*LN(Commercial_Energy_Cost)),0))/1000 -> 0 | CQ7: 0 | CR7: 0 | CS7: 0 | CT7: 279.8299824 | CU7: 279.8299824 | CV7: 26.10250972 | CW7: 0 | CX7: 26.10250972 | CY7: 270.6 | CZ7: 270.6 | DA7: 120 | DB7: 360 | DC7: 0 | DD7: 120 | DE7: 90 | DF7: 270 | DG7: 0 | DH7: 90 | DI7: =IF(B_Housing_Type="",0,IF(B_Housing_Type="MF",'Project Info'!$B$160,IF(B_Housing_Type="TH",'Project Info'!$B$161,IF(AND(B_Housing_Type="SF",B_Net_Sq_Ft_per_Unit>0,B_Net_Sq_Ft_per_Unit<3000),'Project Info'!$B$162,IF(AND(B_Housing_Type="SF",B_Net_Sq_Ft_per_Unit>=3000),'Project Info'!$B$163))))) -> 4 | DJ7: 12 | DK7: 0 | DL7: 4 | DM7: =[4]!LandCost -> 80.06476669 | DN7: 600485.7502 | DO7: 3487621.237 | DQ7: 600485.7502 | DR7: 3487621.237 | DS7: =[4]!ProjectValue -> 1065703.652 | DT7: 6189606.811 | DU7: =[4]!YInt -> 0.8013 | DV7: =[4]!Slope -> 0.2514298 | DW7: =[4]!ProdType -> Residential Owner | DX7: =[4]!Subsidy -> 0 | DY7: 0 | DZ7: 0 | EA7: =[4]!ImpactFees -> 0 | EB7: 0 | EC7: =[4]!ROI_Rental -> 0 | ED7: =[4]!ROI_Owner -> 0.2006189502 | EE7: =[4]!PropTax -> 30406.16937 | EF7: 176599.0317 | EG7: 0 | EH7: 0 | EI7: 0.02712103691 | EJ7: =[4]!GreenRoof -> 0 | EK7: =[4]!GreenRoofEff -> 0 | EL7: =[4]!GreenRoofVolume -> 0 | EM7: =[4]!Biofiltration -> 1701.011353 | EN7: =[4]!BiofiltrationEff -> 0 | EO7: =[4]!BiofiltrationVolume -> 5725.604215 | EP7: =[4]!GreenRoofHarvesting -> 0 | EQ7: =[4]!GreenRoofHarvestingEff -> 0 | ER7: =[4]!WaterHarvesting -> 0 | ES7: =[4]!WaterHarvestingEff -> 0 | ET7: =[4]!WaterHarvestingVolume -> 0 | EU7: 0 | EV7: 292.8738556 | EX7: 0 | EY7: 0 | EZ7: 0 | FA7: 985.8133979 | FB7: 0 | FC7: 0 | FE7: =Annual_Cooling_degree_days*24*(1/R_conventional_SF_F_hrs_BTU-1/R_green_roof_SF_F_hrs_Btu)/3412*'Building Inputs'!$EU7 -> 0 | FF7: 0 | FG7: =Annual_Heating_degree_days*24*(1/R_conventional_SF_F_hrs_BTU-1/R_green_roof_SF_F_hrs_Btu)*'Building Inputs'!$EU7 -> 0 | FH7: 0 | FI7: =Avg_Annual_NO2_uptake*'Building Inputs'!$EU7 -> 0 | FJ7: =Avg_Annual_O3_uptake*'Building Inputs'!$EU7 -> 0 | FK7: =Avg_Annual_SO2_uptake*'Building Inputs'!$EU7 -> 0 | FL7: =Avg_Annual_PM_10_uptake*'Building Inputs'!$EU7 -> 0 | FM7: 0 | FN7: 0 | FO7: =FI7+FM7 -> 0 | FP7: =FK7+FN7 -> 0 | FQ7: 0 | FR7: 0 | FS7: 0 | FT7: 0 | FU7: =SUM(FQ7:FT7) -> 0 | FV7: =Avg_amount_of_carbon_sequestered_lbs_SF*'Building Inputs'!$EU7*3.67 -> 0 | FW7: 0 | FX7: =FV7+FW7 -> 0 | FY7: 0 | FZ7: =Average_annual_rainfall_in*($C7*(1-$E7)+$EM7-$EJ7-$ER7)*$C7/43560*'Building Inputs'!$EN7*144*0.00433 -> 0 | GB7: =Avg_Annual_NO2_uptake*'Building Inputs'!$EV7 -> 0.08786215668 | GC7: =Avg_Annual_O3_uptake*'Building Inputs'!$EV7 -> 0.1722098271 | GD7: =Avg_Annual_SO2_uptake*'Building Inputs'!$EV7 -> 0.06706811293 | GE7: =Avg_Annual_PM_10_uptake*'Building Inputs'!$EV7 -> 0.03338761954 | GF7: 0.2934596033 | GG7: 0.5751808225 | GH7: 0.1381603126 | GI7: 0.09482083948 | GJ7: 1.101621578 | GK7: =Avg_amount_of_carbon_sequestered_lbs_SF*'Building Inputs'!$EV7*3.67 -> 35.68492206 | GL7: 0.2697780108 | GM7: =Average_annual_rainfall_in*('Building Inputs'!$EX7*'Building Inputs'!$EQ7+'Building Inputs'!$EY7*'Building Inputs'!$ES7)*144*0.00433 -> 0 | GO7: 0 | GQ7: 0 | GR7: 0.08786215668 | GS7: 0.5751808225 | GT7: 0.06706811293 | GU7: 0.03338761954 | GV7: 0.7634987116 | GW7: 0.2934596033 | GX7: 1.921103947 | GY7: 0.1381603126 | GZ7: 0.09482083948 | HA7: 2.447544702 | HB7: 35.68492206 | HC7: 0.2697780108 | HD7: =[4]!RequiredWQV -> 752.799168 | HE7: =[4]!ConventionalWQV -> 0 | HF7: 129.6141818 | HG7: 0 | HH7: 985.8133979 | HI7: =[4]!TSSload -> 22.71066123 | HJ7: =[4]!TNload -> 0.4129211132 | HK7: =[4]!TLload -> 0.004129211132 | HL7: =[4]!fColiLoad -> 2265.503015 | HM7: =[4]!TSSreduction -> 18.74871067 | HN7: =[4]!TNreduction -> 0.1929828115 | HO7: =[4]!TLreduction -> 0.00322397794 | HP7: =[4]!fColiReduction -> 1675.258985 | HQ7: 3.910237814 | HR7: 0.07109523299 | HS7: 0.0007109523299 | HT7: 390.0659462 | HU7: 3.228083794 | HV7: 0.03322706809 | HW7: 0.0005550926204 | HX7: 288.4399079 | HY7: =[4]!EPA_MXD_ResTrips -> 9.371222706 | HZ7: =[4]!EPA_MXD_RetTrips -> 0 | IA7: =[4]!EPA_MXD_OffTrips -> 0 | IB7: =[4]!EPA_MXD_EduTrips -> 0 | IC7: =[4]!EPA_MXD_OtherTrips -> 0 | ID7: =[4]!EPA_MXD_ResVMT -> 26.59764328 | IE7: =[4]!EPA_MXD_RetVMT -> 0 | IF7: =[4]!EPA_MXD_OffVMT -> 0 | IG7: =[4]!EPA_MXD_EduVMT -> 0 | IH7: =[4]!EPA_MXD_OtherVMT -> 0
A8: 5 | B8: =[5]!name -> T3NDSCottageCourt | C8: =[5]!lot_size -> 12500 | D8: =[5]!Building_Lot_Coverage -> 0.2580005347 | E8: =[5]!Landscaping_Coverage -> 0.55 | F8: =[5]!Parking_Coverage -> 0.1919994653 | G8: =[5]!Height -> 2 | H8: =[5]!FAR -> 0.5160010693 | I8: 6450.013367 | J8: =[5]!ResPct -> 1 | K8: 0 | L8: 0 | M8: 1 | N8: 1 | O8: 0 | P8: 0 | Q8: 0 | R8: 0 | S8: =[5]!RetPct -> 0 | T8: =[5]!OffPct -> 0 | U8: =[5]!IndPct -> 0 | V8: =[5]!PubPct -> 0 | W8: =[5]!EduPct -> 0 | X8: =[5]!HotelPct -> 0 | Y8: =[5]!ComParkingPct -> 0 | Z8: =[5]!ParkingPct -> 0 | AA8: 6450.013367 | AB8: =[5]!NetUnitSize -> 1075.005221 | AC8: =[5]!UnitSize -> 1075.005221 | AD8: 5.999983292 | AE8: 20.90874178 | AF8: =[5]!HousingType -> SF | AG8: =[5]!RentalPct -> 0 | AH8: 1 | AI8: =[5]!AffordablePct -> 0 | AJ8: =[5]!Rent -> 0 | AK8: 0 | AL8: =[5]!Sales_Price -> 379 | AM8: 407426.9789 | AN8: 2442.730592 | AO8: 0.08 | AP8: 19.23604243 | AQ8: 1.537918772 | AR8: 0.7837837147 | AS8: 0.1951 | AT8: 112741.4119 | AU8: 0 | AV8: 0 | AW8: 0 | AX8: 0 | AY8: 0 | AZ8: =[5]!RetRent -> 31.38 | BA8: =[5]!RetSpace -> 945 | BB8: 0 | BC8: 0 | BD8: =[5]!OffRent -> 36.78 | BE8: =[5]!OffSpace -> 387 | BF8: 0 | BG8: 0 | BH8: =[5]!IndRent -> 12 | BI8: =[5]!IndSpace -> 1730 | BJ8: 0 | BK8: 0 | BL8: =[5]!PubRent -> 14 | BM8: =[5]!PubSpace -> 746 | BN8: 0 | BO8: 0 | BP8: =[5]!EduRent -> 14 | BQ8: =[5]!EduSpace -> 767 | BR8: 0 | BS8: 0 | BT8: =[5]!HotelRent -> 150 | BU8: =[5]!HotelSpaceEmp -> 1317 | BV8: 0 | BW8: =[5]!HotelRoomNet -> 0 | BX8: =[5]!HotelRoomGross -> 0 | BY8: 0 | BZ8: 0 | CA8: 0 | CB8: =[5]!ParkingRent -> 4 | CC8: =[5]!ParkingSpace -> 20000 | CD8: 0 | CE8: =[5]!ParkingSpaces -> 5.999983292 | CF8: =[5]!ParkingArea -> 2399.993317 | CG8: =[5]!IntStructParkingArea -> 0 | CH8: =[5]!ParkingCost -> 29999.91646 | CI8: 0.01473619484 | CJ8: =IFERROR(IF(B_Housing_Type="SF",EXP('Residential Energy Coefficients'!$B$3+'Residential Energy Coefficients'!$B$4*LN(B_Net_Sq_Ft_per_Unit)+'Residential Energy Coefficients'!$B$9+'Residential Energy Coefficients'!$B$10*LN(B_HH_Income)+'Residential Energy Coefficients'!$B$16*LN(Residential_Energy_Cost)+'Residential Energy Coefficients'!$B$20+'Residential Energy Coefficients'!$B$24*IFERROR(LOOKUP(Metro_Select,Energy_Metro_Lookup,HDD),0)),IF(B_Housing_Type="TH",EXP('Residential Energy Coefficients'!$E$3+'Residential Energy Coefficients'!$E$4*LN(B_Net_Sq_Ft_per_Unit)+'Residential Energy Coefficients'!$E$9+'Residential Energy Coefficients'!$E$16*LN(Residential_Energy_Cost)+'Residential Energy Coefficients'!$E$19+'Residential Energy Coefficients'!$E$20+'Residential Energy Coefficients'!$E$24*IFERROR(LOOKUP(Metro_Select,Energy_Metro_Lookup,HDD),0)),IF(B_Housing_Type="MF",EXP('Residential Energy Coefficients'!$H$3+'Residential Energy Coefficients'!$H$4*LN(B_Net_Sq_Ft_per_Unit)+'Residential Energy Coefficients'!$H$9+IF(B_Pct_Owner=1,'Residential Energy Coefficients'!$H$12,0)+'Residential Energy Coefficients'!$H$16*LN(Residential_Energy_Cost)+'Residential Energy Coefficients'!$H$20+'Residential Energy Coefficients'!$H$24*IFERROR(LOOKUP(Metro_Select,Energy_Metro_Lookup,HDD),0)),IF(B_Hotel_Room_Acre>0,EXP('Residential Energy Coefficients'!$H$3+'Residential Energy Coefficients'!$H$4*LN(B_Hotel_Room_Net)+'Residential Energy Coefficients'!$H$9+'Residential Energy Coefficients'!$H$16*LN(Residential_Energy_Cost)+'Residential Energy Coefficients'!$H$20+'Residential Energy Coefficients'!$H$24*IFERROR(LOOKUP(Metro_Select,Energy_Metro_Lookup,HDD),0)),IF(B_Housing_Type="MH",EXP('Residential Energy Coefficients'!$K$3+'Residential Energy Coefficients'!$K$16*LN(Residential_Energy_Cost)+'Residential Energy Coefficients'!$K$24*IFERROR(LOOKUP(Metro_Select,Energy_Metro_Lookup,HDD),0)),0)))))/1000,0) -> 16.49445919 | CK8: =IFERROR(IF(B_Housing_Type="SF",EXP('Residential Energy Coefficients'!$C$3+'Residential Energy Coefficients'!$C$4*LN(B_Net_Sq_Ft_per_Unit)+'Residential Energy Coefficients'!$C$10*LN(B_HH_Income)+'Residential Energy Coefficients'!$C$11*B_HH_Size+'Residential Energy Coefficients'!$C$16*LN(Residential_Energy_Cost)+'Residential Energy Coefficients'!$C$19+'Residential Energy Coefficients'!$C$22+'Residential Energy Coefficients'!$C$25*IFERROR(LOOKUP(Metro_Select,Energy_Metro_Lookup,CDD),0)),IF(B_Housing_Type="TH",EXP('Residential Energy Coefficients'!$F$3+'Residential Energy Coefficients'!$F$4*LN(B_Net_Sq_Ft_per_Unit)+'Residential Energy Coefficients'!$F$10*LN(B_HH_Income)+'Residential Energy Coefficients'!$F$11*B_HH_Size+IF(B_Pct_Owner=1,'Residential Energy Coefficients'!$F$12,0)+'Residential Energy Coefficients'!$F$16*LN(Residential_Energy_Cost)+'Residential Energy Coefficients'!$F$22+'Residential Energy Coefficients'!$F$25*IFERROR(LOOKUP(Metro_Select,Energy_Metro_Lookup,CDD),0)),IF(B_Housing_Type="MF",EXP('Residential Energy Coefficients'!$I$3+'Residential Energy Coefficients'!$I$4*LN(B_Net_Sq_Ft_per_Unit)+'Residential Energy Coefficients'!$I$9+'Residential Energy Coefficients'!$I$11*B_HH_Size+'Residential Energy Coefficients'!$I$16*LN(Residential_Energy_Cost)+'Residential Energy Coefficients'!$I$22+'Residential Energy Coefficients'!$I$25*IFERROR(LOOKUP(Metro_Select,Energy_Metro_Lookup,CDD),0)),IF(B_Hotel_Room_Acre>0,EXP('Residential Energy Coefficients'!$I$3+'Residential Energy Coefficients'!$I$4*LN(B_Hotel_Room_Net)+'Residential Energy Coefficients'!$I$9+'Residential Energy Coefficients'!$I$11*1.25+'Residential Energy Coefficients'!$I$16*LN(Residential_Energy_Cost)+'Residential Energy Coefficients'!$I$22+'Residential Energy Coefficients'!$I$25*IFERROR(LOOKUP(Metro_Select,Energy_Metro_Lookup,CDD),0)),IF(B_Housing_Type="MH",EXP('Residential Energy Coefficients'!$L$3+'Residential Energy Coefficients'!$L$11*B_HH_Size+'Residential Energy Coefficients'!$L$16*LN(Residential_Energy_Cost)+'Residential Energy Coefficients'!$L$22+'Residential Energy Coefficients'!$L$25*IFERROR(LOOKUP(Metro_Select,Energy_Metro_Lookup,CDD),0)),0)))))/1000,0) -> 108.8073178 | CL8: =IFERROR(IF(B_Housing_Type="SF",EXP('Residential Energy Coefficients'!$D$3+'Residential Energy Coefficients'!$D$4*LN(B_Net_Sq_Ft_per_Unit)+'Residential Energy Coefficients'!$D$9+'Residential Energy Coefficients'!$D$10*LN(B_HH_Income)+'Residential Energy Coefficients'!$D$11*B_HH_Size+IF(B_Pct_Owner=1,'Residential Energy Coefficients'!$D$12,0)+'Residential Energy Coefficients'!$D$16*LN(Residential_Energy_Cost)),IF(B_Housing_Type="TH",EXP('Residential Energy Coefficients'!$G$3+'Residential Energy Coefficients'!$G$4*LN(B_Net_Sq_Ft_per_Unit)+'Residential Energy Coefficients'!$G$10*LN(B_HH_Income)+'Residential Energy Coefficients'!$G$11*B_HH_Size+'Residential Energy Coefficients'!$G$16*LN(Residential_Energy_Cost)),IF(B_Housing_Type="MF",EXP('Residential Energy Coefficients'!$J$3+'Residential Energy Coefficients'!$J$4*LN(B_Net_Sq_Ft_per_Unit)+'Residential Energy Coefficients'!$J$10*LN(B_HH_Income)+'Residential Energy Coefficients'!$J$11*B_HH_Size+IF(B_Pct_Owner=1,'Residential Energy Coefficients'!$J$12,0)+'Residential Energy Coefficients'!$J$16*LN(Residential_Energy_Cost)+'Residential Energy Coefficients'!$J$19),IF(B_Hotel_Room_Acre>0,EXP('Residential Energy Coefficients'!$J$3+'Residential Energy Coefficients'!$J$4*LN(B_Hotel_Room_Net)+'Residential Energy Coefficients'!$J$16*LN(Residential_Energy_Cost)+'Residential Energy Coefficients'!$J$19),IF(B_Housing_Type="MH",EXP('Residential Energy Coefficients'!$M$3+'Residential Energy Coefficients'!$M$4*LN(B_Net_Sq_Ft_per_Unit)+'Residential Energy Coefficients'!$M$11*B_HH_Size+'Residential Energy Coefficients'!$M$16*LN(Residential_Energy_Cost)+'Residential Energy Coefficients'!$M$19),0)))))/1000,0) -> 47.32332255 | CM8: 172.6250995 | CN8: =(IFERROR(EXP('Commercial Energy Coefficients'!$B$3+LN(B_RET_Gross_Sq_Ft)*'Commercial Energy Coefficients'!$B$4+'Commercial Energy Coefficients'!$B$11+'Commercial Energy Coefficients'!$B$14+'Commercial Energy Coefficients'!$B$18*LN((B_Ret_Emp_Acre)*(B_Lot_Size/43560))+'Commercial Energy Coefficients'!$B$19*LN(40)+'Commercial Energy Coefficients'!$B$21+'Commercial Energy Coefficients'!$B$22*LN(Commercial_Energy_Cost)+'Commercial Energy Coefficients'!$B$23*IFERROR(LOOKUP(Metro_Select,Energy_Metro_Lookup,HDD),0)),0)+IFERROR(EXP('Commercial Energy Coefficients'!$E$3+LN(B_OFF_Gross_Sq_Ft)*'Commercial Energy Coefficients'!$E$4+'Commercial Energy Coefficients'!$E$11+'Commercial Energy Coefficients'!$E$14+'Commercial Energy Coefficients'!$E$18*LN((B_OFF_Emp_Acre)*(B_Lot_Size/43560))+'Commercial Energy Coefficients'!$E$19*LN(40)+'Commercial Energy Coefficients'!$E$21+'Commercial Energy Coefficients'!$E$22*LN(Commercial_Energy_Cost)+'Commercial Energy Coefficients'!$E$23*IFERROR(LOOKUP(Metro_Select,Energy_Metro_Lookup,HDD),0)),0)+IFERROR(EXP('Commercial Energy Coefficients'!$H$3+LN(B_PUB_Gross_Sq_Ft)*'Commercial Energy Coefficients'!$H$4+'Commercial Energy Coefficients'!$H$11+'Commercial Energy Coefficients'!$H$14+'Commercial Energy Coefficients'!$H$18*LN((B_Pub_Emp_Acre)*(B_Lot_Size/43560))+'Commercial Energy Coefficients'!$H$19*LN(40)+'Commercial Energy Coefficients'!$H$21+'Commercial Energy Coefficients'!$H$22*LN(Commercial_Energy_Cost)+'Commercial Energy Coefficients'!$H$23*IFERROR(LOOKUP(Metro_Select,Energy_Metro_Lookup,HDD),0)),0))/1000 -> 0 | CO8: =(IFERROR(EXP('Commercial Energy Coefficients'!$C$3+LN((B_RET_Gross_Sq_Ft))*'Commercial Energy Coefficients'!$C$4+'Commercial Energy Coefficients'!$C$11+'Commercial Energy Coefficients'!$C$14+'Commercial Energy Coefficients'!$C$18*LN((B_Ret_Emp_Acre)*(B_Lot_Size/43560))+'Commercial Energy Coefficients'!$C$19*LN(40)+'Commercial Energy Coefficients'!$C$21+'Commercial Energy Coefficients'!$C$22*LN(Commercial_Energy_Cost)+'Commercial Energy Coefficients'!$C$24*IFERROR(LOOKUP(Metro_Select,Energy_Metro_Lookup,CDD),0)),0)+IFERROR(EXP('Commercial Energy Coefficients'!$F$3+LN((B_OFF_Gross_Sq_Ft))*'Commercial Energy Coefficients'!$F$4+'Commercial Energy Coefficients'!$F$11+'Commercial Energy Coefficients'!$F$14+'Commercial Energy Coefficients'!$F$18*LN((B_OFF_Emp_Acre)*(B_Lot_Size/43560))+'Commercial Energy Coefficients'!$F$19*LN(40)+'Commercial Energy Coefficients'!$F$21+'Commercial Energy Coefficients'!$F$22*LN(Commercial_Energy_Cost)+'Commercial Energy Coefficients'!$F$24*IFERROR(LOOKUP(Metro_Select,Energy_Metro_Lookup,CDD),0)),0)+IFERROR(EXP('Commercial Energy Coefficients'!$I$3+LN((B_PUB_Gross_Sq_Ft))*'Commercial Energy Coefficients'!$I$4+'Commercial Energy Coefficients'!$I$11+'Commercial Energy Coefficients'!$I$14+'Commercial Energy Coefficients'!$I$18*LN((B_Pub_Emp_Acre)*(B_Lot_Size/43560))+'Commercial Energy Coefficients'!$I$19*LN(40)+'Commercial Energy Coefficients'!$I$21+'Commercial Energy Coefficients'!$I$22*LN(Commercial_Energy_Cost)+'Commercial Energy Coefficients'!$I$24*IFERROR(LOOKUP(Metro_Select,Energy_Metro_Lookup,CDD),0)),0))/1000 -> 0 | CP8: =(IFERROR(EXP('Commercial Energy Coefficients'!$D$3+LN((B_RET_Gross_Sq_Ft))*'Commercial Energy Coefficients'!$D$4+'Commercial Energy Coefficients'!$D$14+'Commercial Energy Coefficients'!$D$18*LN((B_Ret_Emp_Acre)*(B_Lot_Size/43560))+'Commercial Energy Coefficients'!$D$19*LN(40)+'Commercial Energy Coefficients'!$D$21+'Commercial Energy Coefficients'!$D$22*LN(Commercial_Energy_Cost)),0)+IFERROR(EXP('Commercial Energy Coefficients'!$G$3+LN((B_OFF_Gross_Sq_Ft))*'Commercial Energy Coefficients'!$G$4+'Commercial Energy Coefficients'!$G$14+'Commercial Energy Coefficients'!$G$18*LN((B_OFF_Emp_Acre)*(B_Lot_Size/43560))+'Commercial Energy Coefficients'!$G$19*LN(40)+'Commercial Energy Coefficients'!$G$21+'Commercial Energy Coefficients'!$G$22*LN(Commercial_Energy_Cost)),0)+IFERROR(EXP('Commercial Energy Coefficients'!$J$3+LN((B_PUB_Gross_Sq_Ft))*'Commercial Energy Coefficients'!$J$4+'Commercial Energy Coefficients'!$J$14+'Commercial Energy Coefficients'!$J$18*LN((B_Pub_Emp_Acre)*(B_Lot_Size/43560))+'Commercial Energy Coefficients'!$J$19*LN(40)+'Commercial Energy Coefficients'!$J$21+'Commercial Energy Coefficients'!$J$22*LN(Commercial_Energy_Cost)),0))/1000 -> 0 | CQ8: 0 | CR8: 0 | CS8: 0 | CT8: 1035.747713 | CU8: 172.6250995 | CV8: 16.10245013 | CW8: 0 | CX8: 96.61443176 | CY8: 57.29182621 | CZ8: 343.75 | DA8: 100 | DB8: 153.7918772 | DC8: 0 | DD8: 599.9983292 | DE8: 70 | DF8: 107.654314 | DG8: 0 | DH8: 419.9988304 | DI8: =IF(B_Housing_Type="",0,IF(B_Housing_Type="MF",'Project Info'!$B$160,IF(B_Housing_Type="TH",'Project Info'!$B$161,IF(AND(B_Housing_Type="SF",B_Net_Sq_Ft_per_Unit>0,B_Net_Sq_Ft_per_Unit<3000),'Project Info'!$B$162,IF(AND(B_Housing_Type="SF",B_Net_Sq_Ft_per_Unit>=3000),'Project Info'!$B$163))))) -> 3 | DJ8: 4.613756315 | DK8: 0 | DL8: 17.99994988 | DM8: =[5]!LandCost -> 82.39117473 | DN8: 1029889.684 | DO8: 3588959.571 | DQ8: 1029889.684 | DR8: 3588959.571 | DS8: =[5]!ProjectValue -> 2035798.033 | DT8: 7094348.984 | DU8: =[5]!YInt -> 0.8013 | DV8: =[5]!Slope -> 0.2514298 | DW8: =[5]!ProdType -> Residential Owner | DX8: =[5]!Subsidy -> 0 | DY8: 0 | DZ8: 0 | EA8: =[5]!ImpactFees -> 0 | EB8: 0 | EC8: =[5]!ROI_Rental -> 0 | ED8: =[5]!ROI_Owner -> 0.2007846686 | EE8: =[5]!PropTax -> 58305.03208 | EF8: 203181.3758 | EG8: 0 | EH8: 0 | EI8: 0.03108964169 | EJ8: =[5]!GreenRoof -> 0 | EK8: =[5]!GreenRoofEff -> 0 | EL8: =[5]!GreenRoofVolume -> 0 | EM8: =[5]!Biofiltration -> 2160.837593 | EN8: =[5]!BiofiltrationEff -> 0 | EO8: =[5]!BiofiltrationVolume -> 7273.379338 | EP8: =[5]!GreenRoofHarvesting -> 0 | EQ8: =[5]!GreenRoofHarvestingEff -> 0 | ER8: =[5]!WaterHarvesting -> 0 | ES8: =[5]!WaterHarvestingEff -> 0 | ET8: =[5]!WaterHarvestingVolume -> 0 | EU8: 0 | EV8: 620.0750669 | EX8: 0 | EY8: 0 | EZ8: 0 | FA8: 2087.172675 | FB8: 0 | FC8: 0 | FE8: =Annual_Cooling_degree_days*24*(1/R_conventional_SF_F_hrs_BTU-1/R_green_roof_SF_F_hrs_Btu)/3412*'Building Inputs'!$EU8 -> 0 | FF8: 0 | FG8: =Annual_Heating_degree_days*24*(1/R_conventional_SF_F_hrs_BTU-1/R_green_roof_SF_F_hrs_Btu)*'Building Inputs'!$EU8 -> 0 | FH8: 0 | FI8: =Avg_Annual_NO2_uptake*'Building Inputs'!$EU8 -> 0 | FJ8: =Avg_Annual_O3_uptake*'Building Inputs'!$EU8 -> 0 | FK8: =Avg_Annual_SO2_uptake*'Building Inputs'!$EU8 -> 0 | FL8: =Avg_Annual_PM_10_uptake*'Building Inputs'!$EU8 -> 0 | FM8: 0 | FN8: 0 | FO8: =FI8+FM8 -> 0 | FP8: =FK8+FN8 -> 0 | FQ8: 0 | FR8: 0 | FS8: 0 | FT8: 0 | FU8: =SUM(FQ8:FT8) -> 0 | FV8: =Avg_amount_of_carbon_sequestered_lbs_SF*'Building Inputs'!$EU8*3.67 -> 0 | FW8: 0 | FX8: =FV8+FW8 -> 0 | FY8: 0 | FZ8: =Average_annual_rainfall_in*($C8*(1-$E8)+$EM8-$EJ8-$ER8)*$C8/43560*'Building Inputs'!$EN8*144*0.00433 -> 0 | GB8: =Avg_Annual_NO2_uptake*'Building Inputs'!$EV8 -> 0.1860225201 | GC8: =Avg_Annual_O3_uptake*'Building Inputs'!$EV8 -> 0.3646041393 | GD8: =Avg_Annual_SO2_uptake*'Building Inputs'!$EV8 -> 0.1419971903 | GE8: =Avg_Annual_PM_10_uptake*'Building Inputs'!$EV8 -> 0.07068855762 | GF8: 0.621315217 | GG8: 1.217777825 | GH8: 0.292514212 | GI8: 0.2007555037 | GJ8: 2.332362758 | GK8: =Avg_amount_of_carbon_sequestered_lbs_SF*'Building Inputs'!$EV8*3.67 -> 75.55242645 | GL8: 0.5711763439 | GM8: =Average_annual_rainfall_in*('Building Inputs'!$EX8*'Building Inputs'!$EQ8+'Building Inputs'!$EY8*'Building Inputs'!$ES8)*144*0.00433 -> 0 | GO8: 0 | GQ8: 0 | GR8: 0.1860225201 | GS8: 1.217777825 | GT8: 0.1419971903 | GU8: 0.07068855762 | GV8: 1.616486093 | GW8: 0.621315217 | GX8: 4.067377937 | GY8: 0.292514212 | GZ8: 0.2007555037 | HA8: 5.181962869 | HB8: 75.55242645 | HC8: 0.5711763439 | HD8: =[5]!RequiredWQV -> 2629.6875 | HE8: =[5]!ConventionalWQV -> 0 | HF8: 754.6164773 | HG8: 0 | HH8: 2087.172675 | HI8: =[5]!TSSload -> 66.73232745 | HJ8: =[5]!TNload -> 1.213315045 | HK8: =[5]!TLload -> 0.01213315045 | HL8: =[5]!fColiLoad -> 6406.723521 | HM8: =[5]!TSSreduction -> 54.66498886 | HN8: =[5]!TNreduction -> 0.5902728264 | HO8: =[5]!TLreduction -> 0.009434543806 | HP8: =[5]!fColiReduction -> 4798.37356 | HQ8: 19.149543 | HR8: 0.3481735091 | HS8: 0.003481735091 | HT8: 1838.476676 | HU8: 15.68669331 | HV8: 0.1693849938 | HW8: 0.002707341542 | HX8: 1376.943744 | HY8: =[5]!EPA_MXD_ResTrips -> 56.20644205 | HZ8: =[5]!EPA_MXD_RetTrips -> 0 | IA8: =[5]!EPA_MXD_OffTrips -> 0 | IB8: =[5]!EPA_MXD_EduTrips -> 0 | IC8: =[5]!EPA_MXD_OtherTrips -> 0 | ID8: =[5]!EPA_MXD_ResVMT -> 159.5380035 | IE8: =[5]!EPA_MXD_RetVMT -> 0 | IF8: =[5]!EPA_MXD_OffVMT -> 0 | IG8: =[5]!EPA_MXD_EduVMT -> 0 | IH8: =[5]!EPA_MXD_OtherVMT -> 0
A9: 6 | B9: =[6]!name -> T3NISCottageCourt | C9: =[6]!lot_size -> 12500 | D9: =[6]!Building_Lot_Coverage -> 0.2580005347 | E9: =[6]!Landscaping_Coverage -> 0.55 | F9: =[6]!Parking_Coverage -> 0.1919994653 | G9: =[6]!Height -> 2 | H9: =[6]!FAR -> 0.5160010693 | I9: 6450.013367 | J9: =[6]!ResPct -> 1 | K9: 0 | L9: 0 | M9: 1 | N9: 1 | O9: 0 | P9: 0 | Q9: 0 | R9: 0 | S9: =[6]!RetPct -> 0 | T9: =[6]!OffPct -> 0 | U9: =[6]!IndPct -> 0 | V9: =[6]!PubPct -> 0 | W9: =[6]!EduPct -> 0 | X9: =[6]!HotelPct -> 0 | Y9: =[6]!ComParkingPct -> 0 | Z9: =[6]!ParkingPct -> 0 | AA9: 6450.013367 | AB9: =[6]!NetUnitSize -> 1075.005221 | AC9: =[6]!UnitSize -> 1075.005221 | AD9: 5.999983292 | AE9: 20.90874178 | AF9: =[6]!HousingType -> SF | AG9: =[6]!RentalPct -> 0 | AH9: 1 | AI9: =[6]!AffordablePct -> 0 | AJ9: =[6]!Rent -> 0 | AK9: 0 | AL9: =[6]!Sales_Price -> 379 | AM9: 407426.9789 | AN9: 2442.730592 | AO9: 0.08 | AP9: 19.23604243 | AQ9: 1.537918772 | AR9: 0.7837837147 | AS9: 0.1951 | AT9: 112741.4119 | AU9: 0 | AV9: 0 | AW9: 0 | AX9: 0 | AY9: 0 | AZ9: =[6]!RetRent -> 31.38 | BA9: =[6]!RetSpace -> 945 | BB9: 0 | BC9: 0 | BD9: =[6]!OffRent -> 36.78 | BE9: =[6]!OffSpace -> 387 | BF9: 0 | BG9: 0 | BH9: =[6]!IndRent -> 12 | BI9: =[6]!IndSpace -> 1730 | BJ9: 0 | BK9: 0 | BL9: =[6]!PubRent -> 14 | BM9: =[6]!PubSpace -> 746 | BN9: 0 | BO9: 0 | BP9: =[6]!EduRent -> 14 | BQ9: =[6]!EduSpace -> 767 | BR9: 0 | BS9: 0 | BT9: =[6]!HotelRent -> 150 | BU9: =[6]!HotelSpaceEmp -> 1317 | BV9: 0 | BW9: =[6]!HotelRoomNet -> 0 | BX9: =[6]!HotelRoomGross -> 0 | BY9: 0 | BZ9: 0 | CA9: 0 | CB9: =[6]!ParkingRent -> 4 | CC9: =[6]!ParkingSpace -> 20000 | CD9: 0 | CE9: =[6]!ParkingSpaces -> 5.999983292 | CF9: =[6]!ParkingArea -> 2399.993317 | CG9: =[6]!IntStructParkingArea -> 0 | CH9: =[6]!ParkingCost -> 29999.91646 | CI9: 0.01473619484 | CJ9: =IFERROR(IF(B_Housing_Type="SF",EXP('Residential Energy Coefficients'!$B$3+'Residential Energy Coefficients'!$B$4*LN(B_Net_Sq_Ft_per_Unit)+'Residential Energy Coefficients'!$B$9+'Residential Energy Coefficients'!$B$10*LN(B_HH_Income)+'Residential Energy Coefficients'!$B$16*LN(Residential_Energy_Cost)+'Residential Energy Coefficients'!$B$20+'Residential Energy Coefficients'!$B$24*IFERROR(LOOKUP(Metro_Select,Energy_Metro_Lookup,HDD),0)),IF(B_Housing_Type="TH",EXP('Residential Energy Coefficients'!$E$3+'Residential Energy Coefficients'!$E$4*LN(B_Net_Sq_Ft_per_Unit)+'Residential Energy Coefficients'!$E$9+'Residential Energy Coefficients'!$E$16*LN(Residential_Energy_Cost)+'Residential Energy Coefficients'!$E$19+'Residential Energy Coefficients'!$E$20+'Residential Energy Coefficients'!$E$24*IFERROR(LOOKUP(Metro_Select,Energy_Metro_Lookup,HDD),0)),IF(B_Housing_Type="MF",EXP('Residential Energy Coefficients'!$H$3+'Residential Energy Coefficients'!$H$4*LN(B_Net_Sq_Ft_per_Unit)+'Residential Energy Coefficients'!$H$9+IF(B_Pct_Owner=1,'Residential Energy Coefficients'!$H$12,0)+'Residential Energy Coefficients'!$H$16*LN(Residential_Energy_Cost)+'Residential Energy Coefficients'!$H$20+'Residential Energy Coefficients'!$H$24*IFERROR(LOOKUP(Metro_Select,Energy_Metro_Lookup,HDD),0)),IF(B_Hotel_Room_Acre>0,EXP('Residential Energy Coefficients'!$H$3+'Residential Energy Coefficients'!$H$4*LN(B_Hotel_Room_Net)+'Residential Energy Coefficients'!$H$9+'Residential Energy Coefficients'!$H$16*LN(Residential_Energy_Cost)+'Residential Energy Coefficients'!$H$20+'Residential Energy Coefficients'!$H$24*IFERROR(LOOKUP(Metro_Select,Energy_Metro_Lookup,HDD),0)),IF(B_Housing_Type="MH",EXP('Residential Energy Coefficients'!$K$3+'Residential Energy Coefficients'!$K$16*LN(Residential_Energy_Cost)+'Residential Energy Coefficients'!$K$24*IFERROR(LOOKUP(Metro_Select,Energy_Metro_Lookup,HDD),0)),0)))))/1000,0) -> 16.49445919 | CK9: =IFERROR(IF(B_Housing_Type="SF",EXP('Residential Energy Coefficients'!$C$3+'Residential Energy Coefficients'!$C$4*LN(B_Net_Sq_Ft_per_Unit)+'Residential Energy Coefficients'!$C$10*LN(B_HH_Income)+'Residential Energy Coefficients'!$C$11*B_HH_Size+'Residential Energy Coefficients'!$C$16*LN(Residential_Energy_Cost)+'Residential Energy Coefficients'!$C$19+'Residential Energy Coefficients'!$C$22+'Residential Energy Coefficients'!$C$25*IFERROR(LOOKUP(Metro_Select,Energy_Metro_Lookup,CDD),0)),IF(B_Housing_Type="TH",EXP('Residential Energy Coefficients'!$F$3+'Residential Energy Coefficients'!$F$4*LN(B_Net_Sq_Ft_per_Unit)+'Residential Energy Coefficients'!$F$10*LN(B_HH_Income)+'Residential Energy Coefficients'!$F$11*B_HH_Size+IF(B_Pct_Owner=1,'Residential Energy Coefficients'!$F$12,0)+'Residential Energy Coefficients'!$F$16*LN(Residential_Energy_Cost)+'Residential Energy Coefficients'!$F$22+'Residential Energy Coefficients'!$F$25*IFERROR(LOOKUP(Metro_Select,Energy_Metro_Lookup,CDD),0)),IF(B_Housing_Type="MF",EXP('Residential Energy Coefficients'!$I$3+'Residential Energy Coefficients'!$I$4*LN(B_Net_Sq_Ft_per_Unit)+'Residential Energy Coefficients'!$I$9+'Residential Energy Coefficients'!$I$11*B_HH_Size+'Residential Energy Coefficients'!$I$16*LN(Residential_Energy_Cost)+'Residential Energy Coefficients'!$I$22+'Residential Energy Coefficients'!$I$25*IFERROR(LOOKUP(Metro_Select,Energy_Metro_Lookup,CDD),0)),IF(B_Hotel_Room_Acre>0,EXP('Residential Energy Coefficients'!$I$3+'Residential Energy Coefficients'!$I$4*LN(B_Hotel_Room_Net)+'Residential Energy Coefficients'!$I$9+'Residential Energy Coefficients'!$I$11*1.25+'Residential Energy Coefficients'!$I$16*LN(Residential_Energy_Cost)+'Residential Energy Coefficients'!$I$22+'Residential Energy Coefficients'!$I$25*IFERROR(LOOKUP(Metro_Select,Energy_Metro_Lookup,CDD),0)),IF(B_Housing_Type="MH",EXP('Residential Energy Coefficients'!$L$3+'Residential Energy Coefficients'!$L$11*B_HH_Size+'Residential Energy Coefficients'!$L$16*LN(Residential_Energy_Cost)+'Residential Energy Coefficients'!$L$22+'Residential Energy Coefficients'!$L$25*IFERROR(LOOKUP(Metro_Select,Energy_Metro_Lookup,CDD),0)),0)))))/1000,0) -> 108.8073178 | CL9: =IFERROR(IF(B_Housing_Type="SF",EXP('Residential Energy Coefficients'!$D$3+'Residential Energy Coefficients'!$D$4*LN(B_Net_Sq_Ft_per_Unit)+'Residential Energy Coefficients'!$D$9+'Residential Energy Coefficients'!$D$10*LN(B_HH_Income)+'Residential Energy Coefficients'!$D$11*B_HH_Size+IF(B_Pct_Owner=1,'Residential Energy Coefficients'!$D$12,0)+'Residential Energy Coefficients'!$D$16*LN(Residential_Energy_Cost)),IF(B_Housing_Type="TH",EXP('Residential Energy Coefficients'!$G$3+'Residential Energy Coefficients'!$G$4*LN(B_Net_Sq_Ft_per_Unit)+'Residential Energy Coefficients'!$G$10*LN(B_HH_Income)+'Residential Energy Coefficients'!$G$11*B_HH_Size+'Residential Energy Coefficients'!$G$16*LN(Residential_Energy_Cost)),IF(B_Housing_Type="MF",EXP('Residential Energy Coefficients'!$J$3+'Residential Energy Coefficients'!$J$4*LN(B_Net_Sq_Ft_per_Unit)+'Residential Energy Coefficients'!$J$10*LN(B_HH_Income)+'Residential Energy Coefficients'!$J$11*B_HH_Size+IF(B_Pct_Owner=1,'Residential Energy Coefficients'!$J$12,0)+'Residential Energy Coefficients'!$J$16*LN(Residential_Energy_Cost)+'Residential Energy Coefficients'!$J$19),IF(B_Hotel_Room_Acre>0,EXP('Residential Energy Coefficients'!$J$3+'Residential Energy Coefficients'!$J$4*LN(B_Hotel_Room_Net)+'Residential Energy Coefficients'!$J$16*LN(Residential_Energy_Cost)+'Residential Energy Coefficients'!$J$19),IF(B_Housing_Type="MH",EXP('Residential Energy Coefficients'!$M$3+'Residential Energy Coefficients'!$M$4*LN(B_Net_Sq_Ft_per_Unit)+'Residential Energy Coefficients'!$M$11*B_HH_Size+'Residential Energy Coefficients'!$M$16*LN(Residential_Energy_Cost)+'Residential Energy Coefficients'!$M$19),0)))))/1000,0) -> 47.32332255 | CM9: 172.6250995 | CN9: =(IFERROR(EXP('Commercial Energy Coefficients'!$B$3+LN(B_RET_Gross_Sq_Ft)*'Commercial Energy Coefficients'!$B$4+'Commercial Energy Coefficients'!$B$11+'Commercial Energy Coefficients'!$B$14+'Commercial Energy Coefficients'!$B$18*LN((B_Ret_Emp_Acre)*(B_Lot_Size/43560))+'Commercial Energy Coefficients'!$B$19*LN(40)+'Commercial Energy Coefficients'!$B$21+'Commercial Energy Coefficients'!$B$22*LN(Commercial_Energy_Cost)+'Commercial Energy Coefficients'!$B$23*IFERROR(LOOKUP(Metro_Select,Energy_Metro_Lookup,HDD),0)),0)+IFERROR(EXP('Commercial Energy Coefficients'!$E$3+LN(B_OFF_Gross_Sq_Ft)*'Commercial Energy Coefficients'!$E$4+'Commercial Energy Coefficients'!$E$11+'Commercial Energy Coefficients'!$E$14+'Commercial Energy Coefficients'!$E$18*LN((B_OFF_Emp_Acre)*(B_Lot_Size/43560))+'Commercial Energy Coefficients'!$E$19*LN(40)+'Commercial Energy Coefficients'!$E$21+'Commercial Energy Coefficients'!$E$22*LN(Commercial_Energy_Cost)+'Commercial Energy Coefficients'!$E$23*IFERROR(LOOKUP(Metro_Select,Energy_Metro_Lookup,HDD),0)),0)+IFERROR(EXP('Commercial Energy Coefficients'!$H$3+LN(B_PUB_Gross_Sq_Ft)*'Commercial Energy Coefficients'!$H$4+'Commercial Energy Coefficients'!$H$11+'Commercial Energy Coefficients'!$H$14+'Commercial Energy Coefficients'!$H$18*LN((B_Pub_Emp_Acre)*(B_Lot_Size/43560))+'Commercial Energy Coefficients'!$H$19*LN(40)+'Commercial Energy Coefficients'!$H$21+'Commercial Energy Coefficients'!$H$22*LN(Commercial_Energy_Cost)+'Commercial Energy Coefficients'!$H$23*IFERROR(LOOKUP(Metro_Select,Energy_Metro_Lookup,HDD),0)),0))/1000 -> 0 | CO9: =(IFERROR(EXP('Commercial Energy Coefficients'!$C$3+LN((B_RET_Gross_Sq_Ft))*'Commercial Energy Coefficients'!$C$4+'Commercial Energy Coefficients'!$C$11+'Commercial Energy Coefficients'!$C$14+'Commercial Energy Coefficients'!$C$18*LN((B_Ret_Emp_Acre)*(B_Lot_Size/43560))+'Commercial Energy Coefficients'!$C$19*LN(40)+'Commercial Energy Coefficients'!$C$21+'Commercial Energy Coefficients'!$C$22*LN(Commercial_Energy_Cost)+'Commercial Energy Coefficients'!$C$24*IFERROR(LOOKUP(Metro_Select,Energy_Metro_Lookup,CDD),0)),0)+IFERROR(EXP('Commercial Energy Coefficients'!$F$3+LN((B_OFF_Gross_Sq_Ft))*'Commercial Energy Coefficients'!$F$4+'Commercial Energy Coefficients'!$F$11+'Commercial Energy Coefficients'!$F$14+'Commercial Energy Coefficients'!$F$18*LN((B_OFF_Emp_Acre)*(B_Lot_Size/43560))+'Commercial Energy Coefficients'!$F$19*LN(40)+'Commercial Energy Coefficients'!$F$21+'Commercial Energy Coefficients'!$F$22*LN(Commercial_Energy_Cost)+'Commercial Energy Coefficients'!$F$24*IFERROR(LOOKUP(Metro_Select,Energy_Metro_Lookup,CDD),0)),0)+IFERROR(EXP('Commercial Energy Coefficients'!$I$3+LN((B_PUB_Gross_Sq_Ft))*'Commercial Energy Coefficients'!$I$4+'Commercial Energy Coefficients'!$I$11+'Commercial Energy Coefficients'!$I$14+'Commercial Energy Coefficients'!$I$18*LN((B_Pub_Emp_Acre)*(B_Lot_Size/43560))+'Commercial Energy Coefficients'!$I$19*LN(40)+'Commercial Energy Coefficients'!$I$21+'Commercial Energy Coefficients'!$I$22*LN(Commercial_Energy_Cost)+'Commercial Energy Coefficients'!$I$24*IFERROR(LOOKUP(Metro_Select,Energy_Metro_Lookup,CDD),0)),0))/1000 -> 0 | CP9: =(IFERROR(EXP('Commercial Energy Coefficients'!$D$3+LN((B_RET_Gross_Sq_Ft))*'Commercial Energy Coefficients'!$D$4+'Commercial Energy Coefficients'!$D$14+'Commercial Energy Coefficients'!$D$18*LN((B_Ret_Emp_Acre)*(B_Lot_Size/43560))+'Commercial Energy Coefficients'!$D$19*LN(40)+'Commercial Energy Coefficients'!$D$21+'Commercial Energy Coefficients'!$D$22*LN(Commercial_Energy_Cost)),0)+IFERROR(EXP('Commercial Energy Coefficients'!$G$3+LN((B_OFF_Gross_Sq_Ft))*'Commercial Energy Coefficients'!$G$4+'Commercial Energy Coefficients'!$G$14+'Commercial Energy Coefficients'!$G$18*LN((B_OFF_Emp_Acre)*(B_Lot_Size/43560))+'Commercial Energy Coefficients'!$G$19*LN(40)+'Commercial Energy Coefficients'!$G$21+'Commercial Energy Coefficients'!$G$22*LN(Commercial_Energy_Cost)),0)+IFERROR(EXP('Commercial Energy Coefficients'!$J$3+LN((B_PUB_Gross_Sq_Ft))*'Commercial Energy Coefficients'!$J$4+'Commercial Energy Coefficients'!$J$14+'Commercial Energy Coefficients'!$J$18*LN((B_Pub_Emp_Acre)*(B_Lot_Size/43560))+'Commercial Energy Coefficients'!$J$19*LN(40)+'Commercial Energy Coefficients'!$J$21+'Commercial Energy Coefficients'!$J$22*LN(Commercial_Energy_Cost)),0))/1000 -> 0 | CQ9: 0 | CR9: 0 | CS9: 0 | CT9: 1035.747713 | CU9: 172.6250995 | CV9: 16.10245013 | CW9: 0 | CX9: 96.61443176 | CY9: 57.29182621 | CZ9: 343.75 | DA9: 100 | DB9: 153.7918772 | DC9: 0 | DD9: 599.9983292 | DE9: 70 | DF9: 107.654314 | DG9: 0 | DH9: 419.9988304 | DI9: =IF(B_Housing_Type="",0,IF(B_Housing_Type="MF",'Project Info'!$B$160,IF(B_Housing_Type="TH",'Project Info'!$B$161,IF(AND(B_Housing_Type="SF",B_Net_Sq_Ft_per_Unit>0,B_Net_Sq_Ft_per_Unit<3000),'Project Info'!$B$162,IF(AND(B_Housing_Type="SF",B_Net_Sq_Ft_per_Unit>=3000),'Project Info'!$B$163))))) -> 3 | DJ9: 4.613756315 | DK9: 0 | DL9: 17.99994988 | DM9: =[6]!LandCost -> 82.39117473 | DN9: 1029889.684 | DO9: 3588959.571 | DQ9: 1029889.684 | DR9: 3588959.571 | DS9: =[6]!ProjectValue -> 2035798.033 | DT9: 7094348.984 | DU9: =[6]!YInt -> 0.8013 | DV9: =[6]!Slope -> 0.2514298 | DW9: =[6]!ProdType -> Residential Owner | DX9: =[6]!Subsidy -> 0 | DY9: 0 | DZ9: 0 | EA9: =[6]!ImpactFees -> 0 | EB9: 0 | EC9: =[6]!ROI_Rental -> 0 | ED9: =[6]!ROI_Owner -> 0.2007846686 | EE9: =[6]!PropTax -> 58305.03208 | EF9: 203181.3758 | EG9: 0 | EH9: 0 | EI9: 0.03108964169 | EJ9: =[6]!GreenRoof -> 0 | EK9: =[6]!GreenRoofEff -> 0 | EL9: =[6]!GreenRoofVolume -> 0 | EM9: =[6]!Biofiltration -> 2160.837593 | EN9: =[6]!BiofiltrationEff -> 0 | EO9: =[6]!BiofiltrationVolume -> 7273.379338 | EP9: =[6]!GreenRoofHarvesting -> 0 | EQ9: =[6]!GreenRoofHarvestingEff -> 0 | ER9: =[6]!WaterHarvesting -> 0 | ES9: =[6]!WaterHarvestingEff -> 0 | ET9: =[6]!WaterHarvestingVolume -> 0 | EU9: 0 | EV9: 620.0750669 | EX9: 0 | EY9: 0 | EZ9: 0 | FA9: 2087.172675 | FB9: 0 | FC9: 0 | FE9: =Annual_Cooling_degree_days*24*(1/R_conventional_SF_F_hrs_BTU-1/R_green_roof_SF_F_hrs_Btu)/3412*'Building Inputs'!$EU9 -> 0 | FF9: 0 | FG9: =Annual_Heating_degree_days*24*(1/R_conventional_SF_F_hrs_BTU-1/R_green_roof_SF_F_hrs_Btu)*'Building Inputs'!$EU9 -> 0 | FH9: 0 | FI9: =Avg_Annual_NO2_uptake*'Building Inputs'!$EU9 -> 0 | FJ9: =Avg_Annual_O3_uptake*'Building Inputs'!$EU9 -> 0 | FK9: =Avg_Annual_SO2_uptake*'Building Inputs'!$EU9 -> 0 | FL9: =Avg_Annual_PM_10_uptake*'Building Inputs'!$EU9 -> 0 | FM9: 0 | FN9: 0 | FO9: 0 | FP9: 0 | FQ9: 0 | FR9: 0 | FS9: 0 | FT9: 0 | FU9: 0 | FV9: =Avg_amount_of_carbon_sequestered_lbs_SF*'Building Inputs'!$EU9*3.67 -> 0 | FW9: 0 | FX9: 0 | FY9: 0 | FZ9: =Average_annual_rainfall_in*($C9*(1-$E9)+$EM9-$EJ9-$ER9)*$C9/43560*'Building Inputs'!$EN9*144*0.00433 -> 0 | GB9: =Avg_Annual_NO2_uptake*'Building Inputs'!$EV9 -> 0.1860225201 | GC9: =Avg_Annual_O3_uptake*'Building Inputs'!$EV9 -> 0.3646041393 | GD9: =Avg_Annual_SO2_uptake*'Building Inputs'!$EV9 -> 0.1419971903 | GE9: =Avg_Annual_PM_10_uptake*'Building Inputs'!$EV9 -> 0.07068855762 | GF9: 0.621315217 | GG9: 1.217777825 | GH9: 0.292514212 | GI9: 0.2007555037 | GJ9: 2.332362758 | GK9: =Avg_amount_of_carbon_sequestered_lbs_SF*'Building Inputs'!$EV9*3.67 -> 75.55242645 | GL9: 0.5711763439 | GM9: =Average_annual_rainfall_in*('Building Inputs'!$EX9*'Building Inputs'!$EQ9+'Building Inputs'!$EY9*'Building Inputs'!$ES9)*144*0.00433 -> 0 | GO9: 0 | GQ9: 0 | GR9: 0.1860225201 | GS9: 1.217777825 | GT9: 0.1419971903 | GU9: 0.07068855762 | GV9: 1.616486093 | GW9: 0.621315217 | GX9: 4.067377937 | GY9: 0.292514212 | GZ9: 0.2007555037 | HA9: 5.181962869 | HB9: 75.55242645 | HC9: 0.5711763439 | HD9: =[6]!RequiredWQV -> 2629.6875 | HE9: =[6]!ConventionalWQV -> 0 | HF9: 754.6164773 | HG9: 0 | HH9: 2087.172675 | HI9: =[6]!TSSload -> 66.73232745 | HJ9: =[6]!TNload -> 1.213315045 | HK9: =[6]!TLload -> 0.01213315045 | HL9: =[6]!fColiLoad -> 6406.723521 | HM9: =[6]!TSSreduction -> 54.66498886 | HN9: =[6]!TNreduction -> 0.5902728264 | HO9: =[6]!TLreduction -> 0.009434543806 | HP9: =[6]!fColiReduction -> 4798.37356 | HQ9: 19.149543 | HR9: 0.3481735091 | HS9: 0.003481735091 | HT9: 1838.476676 | HU9: 15.68669331 | HV9: 0.1693849938 | HW9: 0.002707341542 | HX9: 1376.943744 | HY9: =[6]!EPA_MXD_ResTrips -> 56.20644205 | HZ9: =[6]!EPA_MXD_RetTrips -> 0 | IA9: =[6]!EPA_MXD_OffTrips -> 0 | IB9: =[6]!EPA_MXD_EduTrips -> 0 | IC9: =[6]!EPA_MXD_OtherTrips -> 0 | ID9: =[6]!EPA_MXD_ResVMT -> 159.5380035 | IE9: =[6]!EPA_MXD_RetVMT -> 0 | IF9: =[6]!EPA_MXD_OffVMT -> 0 | IG9: =[6]!EPA_MXD_EduVMT -> 0 | IH9: =[6]!EPA_MXD_OtherVMT -> 0
A10: 7 | B10: =[7]!name -> T3NISDuplexSideBySide | C10: =[7]!lot_size -> 7500 | D10: =[7]!Building_Lot_Coverage -> 0.2634666667 | E10: =[7]!Landscaping_Coverage -> 0.6298666667 | F10: =[7]!Parking_Coverage -> 0.1066666667 | G10: =[7]!Height -> 2 | H10: =[7]!FAR -> 0.5269333333 | I10: 3952 | J10: =[7]!ResPct -> 1 | K10: 0 | L10: 1 | M10: 0 | N10: 0 | O10: 0 | P10: 0 | Q10: 0 | R10: 0 | S10: =[7]!RetPct -> 0 | T10: =[7]!OffPct -> 0 | U10: =[7]!IndPct -> 0 | V10: =[7]!PubPct -> 0 | W10: =[7]!EduPct -> 0 | X10: =[7]!HotelPct -> 0 | Y10: =[7]!ComParkingPct -> 0 | Z10: =[7]!ParkingPct -> 0 | AA10: 3952 | AB10: =[7]!NetUnitSize -> 1976 | AC10: =[7]!UnitSize -> 1976 | AD10: 2 | AE10: 11.616 | AF10: =[7]!HousingType -> TH | AG10: =[7]!RentalPct -> 0 | AH10: 1 | AI10: =[7]!AffordablePct -> 0 | AJ10: =[7]!Rent -> 0 | AK10: 0 | AL10: =[7]!Sales_Price -> 312 | AM10: 616512 | AN10: 3696.300934 | AO10: 0.06 | AP10: 10.91904 | AQ10: 2.5 | AR10: 1.274098036 | AS10: 0.2582 | AT10: 170598.5046 | AU10: 0 | AV10: 0 | AW10: 0 | AX10: 0 | AY10: 0 | AZ10: =[7]!RetRent -> 31.38 | BA10: =[7]!RetSpace -> 945 | BB10: 0 | BC10: 0 | BD10: =[7]!OffRent -> 36.78 | BE10: =[7]!OffSpace -> 387 | BF10: 0 | BG10: 0 | BH10: =[7]!IndRent -> 12 | BI10: =[7]!IndSpace -> 1730 | BJ10: 0 | BK10: 0 | BL10: =[7]!PubRent -> 14 | BM10: =[7]!PubSpace -> 746 | BN10: 0 | BO10: 0 | BP10: =[7]!EduRent -> 14 | BQ10: =[7]!EduSpace -> 767 | BR10: 0 | BS10: 0 | BT10: =[7]!HotelRent -> 150 | BU10: =[7]!HotelSpaceEmp -> 1317 | BV10: 0 | BW10: =[7]!HotelRoomNet -> 0 | BX10: =[7]!HotelRoomGross -> 0 | BY10: 0 | BZ10: 0 | CA10: 0 | CB10: =[7]!ParkingRent -> 4 | CC10: =[7]!ParkingSpace -> 20000 | CD10: 0 | CE10: =[7]!ParkingSpaces -> 2 | CF10: =[7]!ParkingArea -> 800 | CG10: =[7]!IntStructParkingArea -> 0 | CH10: =[7]!ParkingCost -> 10000 | CI10: 0.009732325111 | CJ10: =IFERROR(IF(B_Housing_Type="SF",EXP('Residential Energy Coefficients'!$B$3+'Residential Energy Coefficients'!$B$4*LN(B_Net_Sq_Ft_per_Unit)+'Residential Energy Coefficients'!$B$9+'Residential Energy Coefficients'!$B$10*LN(B_HH_Income)+'Residential Energy Coefficients'!$B$16*LN(Residential_Energy_Cost)+'Residential Energy Coefficients'!$B$20+'Residential Energy Coefficients'!$B$24*IFERROR(LOOKUP(Metro_Select,Energy_Metro_Lookup,HDD),0)),IF(B_Housing_Type="TH",EXP('Residential Energy Coefficients'!$E$3+'Residential Energy Coefficients'!$E$4*LN(B_Net_Sq_Ft_per_Unit)+'Residential Energy Coefficients'!$E$9+'Residential Energy Coefficients'!$E$16*LN(Residential_Energy_Cost)+'Residential Energy Coefficients'!$E$19+'Residential Energy Coefficients'!$E$20+'Residential Energy Coefficients'!$E$24*IFERROR(LOOKUP(Metro_Select,Energy_Metro_Lookup,HDD),0)),IF(B_Housing_Type="MF",EXP('Residential Energy Coefficients'!$H$3+'Residential Energy Coefficients'!$H$4*LN(B_Net_Sq_Ft_per_Unit)+'Residential Energy Coefficients'!$H$9+IF(B_Pct_Owner=1,'Residential Energy Coefficients'!$H$12,0)+'Residential Energy Coefficients'!$H$16*LN(Residential_Energy_Cost)+'Residential Energy Coefficients'!$H$20+'Residential Energy Coefficients'!$H$24*IFERROR(LOOKUP(Metro_Select,Energy_Metro_Lookup,HDD),0)),IF(B_Hotel_Room_Acre>0,EXP('Residential Energy Coefficients'!$H$3+'Residential Energy Coefficients'!$H$4*LN(B_Hotel_Room_Net)+'Residential Energy Coefficients'!$H$9+'Residential Energy Coefficients'!$H$16*LN(Residential_Energy_Cost)+'Residential Energy Coefficients'!$H$20+'Residential Energy Coefficients'!$H$24*IFERROR(LOOKUP(Metro_Select,Energy_Metro_Lookup,HDD),0)),IF(B_Housing_Type="MH",EXP('Residential Energy Coefficients'!$K$3+'Residential Energy Coefficients'!$K$16*LN(Residential_Energy_Cost)+'Residential Energy Coefficients'!$K$24*IFERROR(LOOKUP(Metro_Select,Energy_Metro_Lookup,HDD),0)),0)))))/1000,0) -> 14.69318832 | CK10: =IFERROR(IF(B_Housing_Type="SF",EXP('Residential Energy Coefficients'!$C$3+'Residential Energy Coefficients'!$C$4*LN(B_Net_Sq_Ft_per_Unit)+'Residential Energy Coefficients'!$C$10*LN(B_HH_Income)+'Residential Energy Coefficients'!$C$11*B_HH_Size+'Residential Energy Coefficients'!$C$16*LN(Residential_Energy_Cost)+'Residential Energy Coefficients'!$C$19+'Residential Energy Coefficients'!$C$22+'Residential Energy Coefficients'!$C$25*IFERROR(LOOKUP(Metro_Select,Energy_Metro_Lookup,CDD),0)),IF(B_Housing_Type="TH",EXP('Residential Energy Coefficients'!$F$3+'Residential Energy Coefficients'!$F$4*LN(B_Net_Sq_Ft_per_Unit)+'Residential Energy Coefficients'!$F$10*LN(B_HH_Income)+'Residential Energy Coefficients'!$F$11*B_HH_Size+IF(B_Pct_Owner=1,'Residential Energy Coefficients'!$F$12,0)+'Residential Energy Coefficients'!$F$16*LN(Residential_Energy_Cost)+'Residential Energy Coefficients'!$F$22+'Residential Energy Coefficients'!$F$25*IFERROR(LOOKUP(Metro_Select,Energy_Metro_Lookup,CDD),0)),IF(B_Housing_Type="MF",EXP('Residential Energy Coefficients'!$I$3+'Residential Energy Coefficients'!$I$4*LN(B_Net_Sq_Ft_per_Unit)+'Residential Energy Coefficients'!$I$9+'Residential Energy Coefficients'!$I$11*B_HH_Size+'Residential Energy Coefficients'!$I$16*LN(Residential_Energy_Cost)+'Residential Energy Coefficients'!$I$22+'Residential Energy Coefficients'!$I$25*IFERROR(LOOKUP(Metro_Select,Energy_Metro_Lookup,CDD),0)),IF(B_Hotel_Room_Acre>0,EXP('Residential Energy Coefficients'!$I$3+'Residential Energy Coefficients'!$I$4*LN(B_Hotel_Room_Net)+'Residential Energy Coefficients'!$I$9+'Residential Energy Coefficients'!$I$11*1.25+'Residential Energy Coefficients'!$I$16*LN(Residential_Energy_Cost)+'Residential Energy Coefficients'!$I$22+'Residential Energy Coefficients'!$I$25*IFERROR(LOOKUP(Metro_Select,Energy_Metro_Lookup,CDD),0)),IF(B_Housing_Type="MH",EXP('Residential Energy Coefficients'!$L$3+'Residential Energy Coefficients'!$L$11*B_HH_Size+'Residential Energy Coefficients'!$L$16*LN(Residential_Energy_Cost)+'Residential Energy Coefficients'!$L$22+'Residential Energy Coefficients'!$L$25*IFERROR(LOOKUP(Metro_Select,Energy_Metro_Lookup,CDD),0)),0)))))/1000,0) -> 72.67210179 | CL10: =IFERROR(IF(B_Housing_Type="SF",EXP('Residential Energy Coefficients'!$D$3+'Residential Energy Coefficients'!$D$4*LN(B_Net_Sq_Ft_per_Unit)+'Residential Energy Coefficients'!$D$9+'Residential Energy Coefficients'!$D$10*LN(B_HH_Income)+'Residential Energy Coefficients'!$D$11*B_HH_Size+IF(B_Pct_Owner=1,'Residential Energy Coefficients'!$D$12,0)+'Residential Energy Coefficients'!$D$16*LN(Residential_Energy_Cost)),IF(B_Housing_Type="TH",EXP('Residential Energy Coefficients'!$G$3+'Residential Energy Coefficients'!$G$4*LN(B_Net_Sq_Ft_per_Unit)+'Residential Energy Coefficients'!$G$10*LN(B_HH_Income)+'Residential Energy Coefficients'!$G$11*B_HH_Size+'Residential Energy Coefficients'!$G$16*LN(Residential_Energy_Cost)),IF(B_Housing_Type="MF",EXP('Residential Energy Coefficients'!$J$3+'Residential Energy Coefficients'!$J$4*LN(B_Net_Sq_Ft_per_Unit)+'Residential Energy Coefficients'!$J$10*LN(B_HH_Income)+'Residential Energy Coefficients'!$J$11*B_HH_Size+IF(B_Pct_Owner=1,'Residential Energy Coefficients'!$J$12,0)+'Residential Energy Coefficients'!$J$16*LN(Residential_Energy_Cost)+'Residential Energy Coefficients'!$J$19),IF(B_Hotel_Room_Acre>0,EXP('Residential Energy Coefficients'!$J$3+'Residential Energy Coefficients'!$J$4*LN(B_Hotel_Room_Net)+'Residential Energy Coefficients'!$J$16*LN(Residential_Energy_Cost)+'Residential Energy Coefficients'!$J$19),IF(B_Housing_Type="MH",EXP('Residential Energy Coefficients'!$M$3+'Residential Energy Coefficients'!$M$4*LN(B_Net_Sq_Ft_per_Unit)+'Residential Energy Coefficients'!$M$11*B_HH_Size+'Residential Energy Coefficients'!$M$16*LN(Residential_Energy_Cost)+'Residential Energy Coefficients'!$M$19),0)))))/1000,0) -> 53.90008774 | CM10: 141.2653779 | CN10: =(IFERROR(EXP('Commercial Energy Coefficients'!$B$3+LN(B_RET_Gross_Sq_Ft)*'Commercial Energy Coefficients'!$B$4+'Commercial Energy Coefficients'!$B$11+'Commercial Energy Coefficients'!$B$14+'Commercial Energy Coefficients'!$B$18*LN((B_Ret_Emp_Acre)*(B_Lot_Size/43560))+'Commercial Energy Coefficients'!$B$19*LN(40)+'Commercial Energy Coefficients'!$B$21+'Commercial Energy Coefficients'!$B$22*LN(Commercial_Energy_Cost)+'Commercial Energy Coefficients'!$B$23*IFERROR(LOOKUP(Metro_Select,Energy_Metro_Lookup,HDD),0)),0)+IFERROR(EXP('Commercial Energy Coefficients'!$E$3+LN(B_OFF_Gross_Sq_Ft)*'Commercial Energy Coefficients'!$E$4+'Commercial Energy Coefficients'!$E$11+'Commercial Energy Coefficients'!$E$14+'Commercial Energy Coefficients'!$E$18*LN((B_OFF_Emp_Acre)*(B_Lot_Size/43560))+'Commercial Energy Coefficients'!$E$19*LN(40)+'Commercial Energy Coefficients'!$E$21+'Commercial Energy Coefficients'!$E$22*LN(Commercial_Energy_Cost)+'Commercial Energy Coefficients'!$E$23*IFERROR(LOOKUP(Metro_Select,Energy_Metro_Lookup,HDD),0)),0)+IFERROR(EXP('Commercial Energy Coefficients'!$H$3+LN(B_PUB_Gross_Sq_Ft)*'Commercial Energy Coefficients'!$H$4+'Commercial Energy Coefficients'!$H$11+'Commercial Energy Coefficients'!$H$14+'Commercial Energy Coefficients'!$H$18*LN((B_Pub_Emp_Acre)*(B_Lot_Size/43560))+'Commercial Energy Coefficients'!$H$19*LN(40)+'Commercial Energy Coefficients'!$H$21+'Commercial Energy Coefficients'!$H$22*LN(Commercial_Energy_Cost)+'Commercial Energy Coefficients'!$H$23*IFERROR(LOOKUP(Metro_Select,Energy_Metro_Lookup,HDD),0)),0))/1000 -> 0 | CO10: =(IFERROR(EXP('Commercial Energy Coefficients'!$C$3+LN((B_RET_Gross_Sq_Ft))*'Commercial Energy Coefficients'!$C$4+'Commercial Energy Coefficients'!$C$11+'Commercial Energy Coefficients'!$C$14+'Commercial Energy Coefficients'!$C$18*LN((B_Ret_Emp_Acre)*(B_Lot_Size/43560))+'Commercial Energy Coefficients'!$C$19*LN(40)+'Commercial Energy Coefficients'!$C$21+'Commercial Energy Coefficients'!$C$22*LN(Commercial_Energy_Cost)+'Commercial Energy Coefficients'!$C$24*IFERROR(LOOKUP(Metro_Select,Energy_Metro_Lookup,CDD),0)),0)+IFERROR(EXP('Commercial Energy Coefficients'!$F$3+LN((B_OFF_Gross_Sq_Ft))*'Commercial Energy Coefficients'!$F$4+'Commercial Energy Coefficients'!$F$11+'Commercial Energy Coefficients'!$F$14+'Commercial Energy Coefficients'!$F$18*LN((B_OFF_Emp_Acre)*(B_Lot_Size/43560))+'Commercial Energy Coefficients'!$F$19*LN(40)+'Commercial Energy Coefficients'!$F$21+'Commercial Energy Coefficients'!$F$22*LN(Commercial_Energy_Cost)+'Commercial Energy Coefficients'!$F$24*IFERROR(LOOKUP(Metro_Select,Energy_Metro_Lookup,CDD),0)),0)+IFERROR(EXP('Commercial Energy Coefficients'!$I$3+LN((B_PUB_Gross_Sq_Ft))*'Commercial Energy Coefficients'!$I$4+'Commercial Energy Coefficients'!$I$11+'Commercial Energy Coefficients'!$I$14+'Commercial Energy Coefficients'!$I$18*LN((B_Pub_Emp_Acre)*(B_Lot_Size/43560))+'Commercial Energy Coefficients'!$I$19*LN(40)+'Commercial Energy Coefficients'!$I$21+'Commercial Energy Coefficients'!$I$22*LN(Commercial_Energy_Cost)+'Commercial Energy Coefficients'!$I$24*IFERROR(LOOKUP(Metro_Select,Energy_Metro_Lookup,CDD),0)),0))/1000 -> 0 | CP10: =(IFERROR(EXP('Commercial Energy Coefficients'!$D$3+LN((B_RET_Gross_Sq_Ft))*'Commercial Energy Coefficients'!$D$4+'Commercial Energy Coefficients'!$D$14+'Commercial Energy Coefficients'!$D$18*LN((B_Ret_Emp_Acre)*(B_Lot_Size/43560))+'Commercial Energy Coefficients'!$D$19*LN(40)+'Commercial Energy Coefficients'!$D$21+'Commercial Energy Coefficients'!$D$22*LN(Commercial_Energy_Cost)),0)+IFERROR(EXP('Commercial Energy Coefficients'!$G$3+LN((B_OFF_Gross_Sq_Ft))*'Commercial Energy Coefficients'!$G$4+'Commercial Energy Coefficients'!$G$14+'Commercial Energy Coefficients'!$G$18*LN((B_OFF_Emp_Acre)*(B_Lot_Size/43560))+'Commercial Energy Coefficients'!$G$19*LN(40)+'Commercial Energy Coefficients'!$G$21+'Commercial Energy Coefficients'!$G$22*LN(Commercial_Energy_Cost)),0)+IFERROR(EXP('Commercial Energy Coefficients'!$J$3+LN((B_PUB_Gross_Sq_Ft))*'Commercial Energy Coefficients'!$J$4+'Commercial Energy Coefficients'!$J$14+'Commercial Energy Coefficients'!$J$18*LN((B_Pub_Emp_Acre)*(B_Lot_Size/43560))+'Commercial Energy Coefficients'!$J$19*LN(40)+'Commercial Energy Coefficients'!$J$21+'Commercial Energy Coefficients'!$J$22*LN(Commercial_Energy_Cost)),0))/1000 -> 0 | CQ10: 0 | CR10: 0 | CS10: 0 | CT10: 282.5307557 | CU10: 141.2653779 | CV10: 13.17721878 | CW10: 0 | CX10: 26.35443755 | CY10: 118.1 | CZ10: 236.2 | DA10: 80 | DB10: 200 | DC10: 0 | DD10: 160 | DE10: 50 | DF10: 125 | DG10: 0 | DH10: 100 | DI10: =IF(B_Housing_Type="",0,IF(B_Housing_Type="MF",'Project Info'!$B$160,IF(B_Housing_Type="TH",'Project Info'!$B$161,IF(AND(B_Housing_Type="SF",B_Net_Sq_Ft_per_Unit>0,B_Net_Sq_Ft_per_Unit<3000),'Project Info'!$B$162,IF(AND(B_Housing_Type="SF",B_Net_Sq_Ft_per_Unit>=3000),'Project Info'!$B$163))))) -> 2 | DJ10: 5 | DK10: 0 | DL10: 4 | DM10: =[7]!LandCost -> 63.33596817 | DN10: 475019.7613 | DO10: 2758914.774 | DQ10: 475019.7613 | DR10: 2758914.774 | DS10: =[7]!ProjectValue -> 1027503.694 | DT10: 5967741.453 | DU10: =[7]!YInt -> 0.8013 | DV10: =[7]!Slope -> 0.2514298 | DW10: =[7]!ProdType -> Residential Owner | DX10: =[7]!Subsidy -> 0 | DY10: 0 | DZ10: 0 | EA10: =[7]!ImpactFees -> 0 | EB10: 0 | EC10: =[7]!ROI_Rental -> 0 | ED10: =[7]!ROI_Owner -> 0.2000190438 | EE10: =[7]!PropTax -> 29363.49194 | EF10: 170543.1612 | EG10: 0 | EH10: 0 | EI10: 0.03174832283 | EJ10: =[7]!GreenRoof -> 0 | EK10: =[7]!GreenRoofEff -> 0 | EL10: =[7]!GreenRoofVolume -> 0 | EM10: =[7]!Biofiltration -> 1484.770442 | EN10: =[7]!BiofiltrationEff -> 0 | EO10: =[7]!BiofiltrationVolume -> 4997.737308 | EP10: =[7]!GreenRoofHarvesting -> 0 | EQ10: =[7]!GreenRoofHarvestingEff -> 0 | ER10: =[7]!WaterHarvesting -> 0 | ES10: =[7]!WaterHarvestingEff -> 0 | ET10: =[7]!WaterHarvestingVolume -> 0 | EU10: 0 | EV10: 255.6422938 | EX10: 0 | EY10: 0 | EZ10: 0 | FA10: 860.4919608 | FB10: 0 | FC10: 0 | FE10: =Annual_Cooling_degree_days*24*(1/R_conventional_SF_F_hrs_BTU-1/R_green_roof_SF_F_hrs_Btu)/3412*'Building Inputs'!$EU10 -> 0 | FF10: 0 | FG10: =Annual_Heating_degree_days*24*(1/R_conventional_SF_F_hrs_BTU-1/R_green_roof_SF_F_hrs_Btu)*'Building Inputs'!$EU10 -> 0 | FH10: 0 | FI10: =Avg_Annual_NO2_uptake*'Building Inputs'!$EU10 -> 0 | FJ10: =Avg_Annual_O3_uptake*'Building Inputs'!$EU10 -> 0 | FK10: =Avg_Annual_SO2_uptake*'Building Inputs'!$EU10 -> 0 | FL10: =Avg_Annual_PM_10_uptake*'Building Inputs'!$EU10 -> 0 | FM10: 0 | FN10: 0 | FO10: 0 | FP10: 0 | FQ10: 0 | FR10: 0 | FS10: 0 | FT10: 0 | FU10: 0 | FV10: =Avg_amount_of_carbon_sequestered_lbs_SF*'Building Inputs'!$EU10*3.67 -> 0 | FW10: 0 | FX10: 0 | FY10: 0 | FZ10: =Average_annual_rainfall_in*($C10*(1-$E10)+$EM10-$EJ10-$ER10)*$C10/43560*'Building Inputs'!$EN10*144*0.00433 -> 0 | GB10: =Avg_Annual_NO2_uptake*'Building Inputs'!$EV10 -> 0.07669268813 | GC10: =Avg_Annual_O3_uptake*'Building Inputs'!$EV10 -> 0.1503176687 | GD10: =Avg_Annual_SO2_uptake*'Building Inputs'!$EV10 -> 0.05854208527 | GE10: =Avg_Annual_PM_10_uptake*'Building Inputs'!$EV10 -> 0.02914322149 | GF10: 0.2561535783 | GG10: 0.5020610135 | GH10: 0.1205966957 | GI10: 0.08276674903 | GJ10: 0.9615780366 | GK10: =Avg_amount_of_carbon_sequestered_lbs_SF*'Building Inputs'!$EV10*3.67 -> 31.14847964 | GL10: 0.2354825061 | GM10: =Average_annual_rainfall_in*('Building Inputs'!$EX10*'Building Inputs'!$EQ10+'Building Inputs'!$EY10*'Building Inputs'!$ES10)*144*0.00433 -> 0 | GO10: 0 | GQ10: 0 | GR10: 0.07669268813 | GS10: 0.5020610135 | GT10: 0.05854208527 | GU10: 0.02914322149 | GV10: 0.6664390084 | GW10: 0.2561535783 | GX10: 1.676883785 | GY10: 0.1205966957 | GZ10: 0.08276674903 | HA10: 2.136400808 | HB10: 31.14847964 | HC10: 0.2354825061 | HD10: =[7]!RequiredWQV -> 1159.58085 | HE10: =[7]!ConventionalWQV -> 0 | HF10: 199.6523502 | HG10: 0 | HH10: 860.4919608 | HI10: =[7]!TSSload -> 31.41741879 | HJ10: =[7]!TNload -> 0.5712257962 | HK10: =[7]!TLload -> 0.005712257962 | HL10: =[7]!fColiLoad -> 3095.44664 | HM10: =[7]!TSSreduction -> 25.85946796 | HN10: =[7]!TNreduction -> 0.27117231 | HO10: =[7]!TLreduction -> 0.004452971653 | HP10: =[7]!fColiReduction -> 2299.964339 | HQ10: 5.409335191 | HR10: 0.09835154893 | HS10: 0.0009835154893 | HT10: 532.9625757 | HU10: 4.452387733 | HV10: 0.04668944731 | HW10: 0.0007666962213 | HX10: 395.9993697 | HY10: =[7]!EPA_MXD_ResTrips -> 13.0182896 | HZ10: =[7]!EPA_MXD_RetTrips -> 0 | IA10: =[7]!EPA_MXD_OffTrips -> 0 | IB10: =[7]!EPA_MXD_EduTrips -> 0 | IC10: =[7]!EPA_MXD_OtherTrips -> 0 | ID10: =[7]!EPA_MXD_ResVMT -> 36.95095101 | IE10: =[7]!EPA_MXD_RetVMT -> 0 | IF10: =[7]!EPA_MXD_OffVMT -> 0 | IG10: =[7]!EPA_MXD_EduVMT -> 0 | IH10: =[7]!EPA_MXD_OtherVMT -> 0
A11: 8 | B11: =[8]!name -> T4NISDuplexStacked | C11: =[8]!lot_size -> 7500 | D11: =[8]!Building_Lot_Coverage -> 0.2250666667 | E11: =[8]!Landscaping_Coverage -> 0.6682666667 | F11: =[8]!Parking_Coverage -> 0.1066666667 | G11: =[8]!Height -> 2 | H11: =[8]!FAR -> 0.4501333333 | I11: 3376 | J11: =[8]!ResPct -> 1 | K11: 0 | L11: 1 | M11: 0 | N11: 0 | O11: 0 | P11: 0 | Q11: 0 | R11: 0 | S11: =[8]!RetPct -> 0 | T11: =[8]!OffPct -> 0 | U11: =[8]!IndPct -> 0 | V11: =[8]!PubPct -> 0 | W11: =[8]!EduPct -> 0 | X11: =[8]!HotelPct -> 0 | Y11: =[8]!ComParkingPct -> 0 | Z11: =[8]!ParkingPct -> 0 | AA11: 3376 | AB11: =[8]!NetUnitSize -> 1688 | AC11: =[8]!UnitSize -> 1688 | AD11: 2 | AE11: 11.616 | AF11: =[8]!HousingType -> TH | AG11: =[8]!RentalPct -> 0 | AH11: 1 | AI11: =[8]!AffordablePct -> 0 | AJ11: =[8]!Rent -> 0 | AK11: 0 | AL11: =[8]!Sales_Price -> 312 | AM11: 526656 | AN11: 3157.568814 | AO11: 0.06 | AP11: 10.91904 | AQ11: 2.5 | AR11: 1.274098036 | AS11: 0.2582 | AT11: 145733.9452 | AU11: 0 | AV11: 0 | AW11: 0 | AX11: 0 | AY11: 0 | AZ11: =[8]!RetRent -> 31.38 | BA11: =[8]!RetSpace -> 945 | BB11: 0 | BC11: 0 | BD11: =[8]!OffRent -> 36.78 | BE11: =[8]!OffSpace -> 387 | BF11: 0 | BG11: 0 | BH11: =[8]!IndRent -> 12 | BI11: =[8]!IndSpace -> 1730 | BJ11: 0 | BK11: 0 | BL11: =[8]!PubRent -> 14 | BM11: =[8]!PubSpace -> 746 | BN11: 0 | BO11: 0 | BP11: =[8]!EduRent -> 14 | BQ11: =[8]!EduSpace -> 767 | BR11: 0 | BS11: 0 | BT11: =[8]!HotelRent -> 150 | BU11: =[8]!HotelSpaceEmp -> 1317 | BV11: 0 | BW11: =[8]!HotelRoomNet -> 0 | BX11: =[8]!HotelRoomGross -> 0 | BY11: 0 | BZ11: 0 | CA11: 0 | CB11: =[8]!ParkingRent -> 4 | CC11: =[8]!ParkingSpace -> 20000 | CD11: 0 | CE11: =[8]!ParkingSpaces -> 2 | CF11: =[8]!ParkingArea -> 800 | CG11: =[8]!IntStructParkingArea -> 0 | CH11: =[8]!ParkingCost -> 10000 | CI11: 0.01139631839 | CJ11: =IFERROR(IF(B_Housing_Type="SF",EXP('Residential Energy Coefficients'!$B$3+'Residential Energy Coefficients'!$B$4*LN(B_Net_Sq_Ft_per_Unit)+'Residential Energy Coefficients'!$B$9+'Residential Energy Coefficients'!$B$10*LN(B_HH_Income)+'Residential Energy Coefficients'!$B$16*LN(Residential_Energy_Cost)+'Residential Energy Coefficients'!$B$20+'Residential Energy Coefficients'!$B$24*IFERROR(LOOKUP(Metro_Select,Energy_Metro_Lookup,HDD),0)),IF(B_Housing_Type="TH",EXP('Residential Energy Coefficients'!$E$3+'Residential Energy Coefficients'!$E$4*LN(B_Net_Sq_Ft_per_Unit)+'Residential Energy Coefficients'!$E$9+'Residential Energy Coefficients'!$E$16*LN(Residential_Energy_Cost)+'Residential Energy Coefficients'!$E$19+'Residential Energy Coefficients'!$E$20+'Residential Energy Coefficients'!$E$24*IFERROR(LOOKUP(Metro_Select,Energy_Metro_Lookup,HDD),0)),IF(B_Housing_Type="MF",EXP('Residential Energy Coefficients'!$H$3+'Residential Energy Coefficients'!$H$4*LN(B_Net_Sq_Ft_per_Unit)+'Residential Energy Coefficients'!$H$9+IF(B_Pct_Owner=1,'Residential Energy Coefficients'!$H$12,0)+'Residential Energy Coefficients'!$H$16*LN(Residential_Energy_Cost)+'Residential Energy Coefficients'!$H$20+'Residential Energy Coefficients'!$H$24*IFERROR(LOOKUP(Metro_Select,Energy_Metro_Lookup,HDD),0)),IF(B_Hotel_Room_Acre>0,EXP('Residential Energy Coefficients'!$H$3+'Residential Energy Coefficients'!$H$4*LN(B_Hotel_Room_Net)+'Residential Energy Coefficients'!$H$9+'Residential Energy Coefficients'!$H$16*LN(Residential_Energy_Cost)+'Residential Energy Coefficients'!$H$20+'Residential Energy Coefficients'!$H$24*IFERROR(LOOKUP(Metro_Select,Energy_Metro_Lookup,HDD),0)),IF(B_Housing_Type="MH",EXP('Residential Energy Coefficients'!$K$3+'Residential Energy Coefficients'!$K$16*LN(Residential_Energy_Cost)+'Residential Energy Coefficients'!$K$24*IFERROR(LOOKUP(Metro_Select,Energy_Metro_Lookup,HDD),0)),0)))))/1000,0) -> 14.10576649 | CK11: =IFERROR(IF(B_Housing_Type="SF",EXP('Residential Energy Coefficients'!$C$3+'Residential Energy Coefficients'!$C$4*LN(B_Net_Sq_Ft_per_Unit)+'Residential Energy Coefficients'!$C$10*LN(B_HH_Income)+'Residential Energy Coefficients'!$C$11*B_HH_Size+'Residential Energy Coefficients'!$C$16*LN(Residential_Energy_Cost)+'Residential Energy Coefficients'!$C$19+'Residential Energy Coefficients'!$C$22+'Residential Energy Coefficients'!$C$25*IFERROR(LOOKUP(Metro_Select,Energy_Metro_Lookup,CDD),0)),IF(B_Housing_Type="TH",EXP('Residential Energy Coefficients'!$F$3+'Residential Energy Coefficients'!$F$4*LN(B_Net_Sq_Ft_per_Unit)+'Residential Energy Coefficients'!$F$10*LN(B_HH_Income)+'Residential Energy Coefficients'!$F$11*B_HH_Size+IF(B_Pct_Owner=1,'Residential Energy Coefficients'!$F$12,0)+'Residential Energy Coefficients'!$F$16*LN(Residential_Energy_Cost)+'Residential Energy Coefficients'!$F$22+'Residential Energy Coefficients'!$F$25*IFERROR(LOOKUP(Metro_Select,Energy_Metro_Lookup,CDD),0)),IF(B_Housing_Type="MF",EXP('Residential Energy Coefficients'!$I$3+'Residential Energy Coefficients'!$I$4*LN(B_Net_Sq_Ft_per_Unit)+'Residential Energy Coefficients'!$I$9+'Residential Energy Coefficients'!$I$11*B_HH_Size+'Residential Energy Coefficients'!$I$16*LN(Residential_Energy_Cost)+'Residential Energy Coefficients'!$I$22+'Residential Energy Coefficients'!$I$25*IFERROR(LOOKUP(Metro_Select,Energy_Metro_Lookup,CDD),0)),IF(B_Hotel_Room_Acre>0,EXP('Residential Energy Coefficients'!$I$3+'Residential Energy Coefficients'!$I$4*LN(B_Hotel_Room_Net)+'Residential Energy Coefficients'!$I$9+'Residential Energy Coefficients'!$I$11*1.25+'Residential Energy Coefficients'!$I$16*LN(Residential_Energy_Cost)+'Residential Energy Coefficients'!$I$22+'Residential Energy Coefficients'!$I$25*IFERROR(LOOKUP(Metro_Select,Energy_Metro_Lookup,CDD),0)),IF(B_Housing_Type="MH",EXP('Residential Energy Coefficients'!$L$3+'Residential Energy Coefficients'!$L$11*B_HH_Size+'Residential Energy Coefficients'!$L$16*LN(Residential_Energy_Cost)+'Residential Energy Coefficients'!$L$22+'Residential Energy Coefficients'!$L$25*IFERROR(LOOKUP(Metro_Select,Energy_Metro_Lookup,CDD),0)),0)))))/1000,0) -> 68.65467049 | CL11: =IFERROR(IF(B_Housing_Type="SF",EXP('Residential Energy Coefficients'!$D$3+'Residential Energy Coefficients'!$D$4*LN(B_Net_Sq_Ft_per_Unit)+'Residential Energy Coefficients'!$D$9+'Residential Energy Coefficients'!$D$10*LN(B_HH_Income)+'Residential Energy Coefficients'!$D$11*B_HH_Size+IF(B_Pct_Owner=1,'Residential Energy Coefficients'!$D$12,0)+'Residential Energy Coefficients'!$D$16*LN(Residential_Energy_Cost)),IF(B_Housing_Type="TH",EXP('Residential Energy Coefficients'!$G$3+'Residential Energy Coefficients'!$G$4*LN(B_Net_Sq_Ft_per_Unit)+'Residential Energy Coefficients'!$G$10*LN(B_HH_Income)+'Residential Energy Coefficients'!$G$11*B_HH_Size+'Residential Energy Coefficients'!$G$16*LN(Residential_Energy_Cost)),IF(B_Housing_Type="MF",EXP('Residential Energy Coefficients'!$J$3+'Residential Energy Coefficients'!$J$4*LN(B_Net_Sq_Ft_per_Unit)+'Residential Energy Coefficients'!$J$10*LN(B_HH_Income)+'Residential Energy Coefficients'!$J$11*B_HH_Size+IF(B_Pct_Owner=1,'Residential Energy Coefficients'!$J$12,0)+'Residential Energy Coefficients'!$J$16*LN(Residential_Energy_Cost)+'Residential Energy Coefficients'!$J$19),IF(B_Hotel_Room_Acre>0,EXP('Residential Energy Coefficients'!$J$3+'Residential Energy Coefficients'!$J$4*LN(B_Hotel_Room_Net)+'Residential Energy Coefficients'!$J$16*LN(Residential_Energy_Cost)+'Residential Energy Coefficients'!$J$19),IF(B_Housing_Type="MH",EXP('Residential Energy Coefficients'!$M$3+'Residential Energy Coefficients'!$M$4*LN(B_Net_Sq_Ft_per_Unit)+'Residential Energy Coefficients'!$M$11*B_HH_Size+'Residential Energy Coefficients'!$M$16*LN(Residential_Energy_Cost)+'Residential Energy Coefficients'!$M$19),0)))))/1000,0) -> 51.72075712 | CM11: 134.4811941 | CN11: =(IFERROR(EXP('Commercial Energy Coefficients'!$B$3+LN(B_RET_Gross_Sq_Ft)*'Commercial Energy Coefficients'!$B$4+'Commercial Energy Coefficients'!$B$11+'Commercial Energy Coefficients'!$B$14+'Commercial Energy Coefficients'!$B$18*LN((B_Ret_Emp_Acre)*(B_Lot_Size/43560))+'Commercial Energy Coefficients'!$B$19*LN(40)+'Commercial Energy Coefficients'!$B$21+'Commercial Energy Coefficients'!$B$22*LN(Commercial_Energy_Cost)+'Commercial Energy Coefficients'!$B$23*IFERROR(LOOKUP(Metro_Select,Energy_Metro_Lookup,HDD),0)),0)+IFERROR(EXP('Commercial Energy Coefficients'!$E$3+LN(B_OFF_Gross_Sq_Ft)*'Commercial Energy Coefficients'!$E$4+'Commercial Energy Coefficients'!$E$11+'Commercial Energy Coefficients'!$E$14+'Commercial Energy Coefficients'!$E$18*LN((B_OFF_Emp_Acre)*(B_Lot_Size/43560))+'Commercial Energy Coefficients'!$E$19*LN(40)+'Commercial Energy Coefficients'!$E$21+'Commercial Energy Coefficients'!$E$22*LN(Commercial_Energy_Cost)+'Commercial Energy Coefficients'!$E$23*IFERROR(LOOKUP(Metro_Select,Energy_Metro_Lookup,HDD),0)),0)+IFERROR(EXP('Commercial Energy Coefficients'!$H$3+LN(B_PUB_Gross_Sq_Ft)*'Commercial Energy Coefficients'!$H$4+'Commercial Energy Coefficients'!$H$11+'Commercial Energy Coefficients'!$H$14+'Commercial Energy Coefficients'!$H$18*LN((B_Pub_Emp_Acre)*(B_Lot_Size/43560))+'Commercial Energy Coefficients'!$H$19*LN(40)+'Commercial Energy Coefficients'!$H$21+'Commercial Energy Coefficients'!$H$22*LN(Commercial_Energy_Cost)+'Commercial Energy Coefficients'!$H$23*IFERROR(LOOKUP(Metro_Select,Energy_Metro_Lookup,HDD),0)),0))/1000 -> 0 | CO11: =(IFERROR(EXP('Commercial Energy Coefficients'!$C$3+LN((B_RET_Gross_Sq_Ft))*'Commercial Energy Coefficients'!$C$4+'Commercial Energy Coefficients'!$C$11+'Commercial Energy Coefficients'!$C$14+'Commercial Energy Coefficients'!$C$18*LN((B_Ret_Emp_Acre)*(B_Lot_Size/43560))+'Commercial Energy Coefficients'!$C$19*LN(40)+'Commercial Energy Coefficients'!$C$21+'Commercial Energy Coefficients'!$C$22*LN(Commercial_Energy_Cost)+'Commercial Energy Coefficients'!$C$24*IFERROR(LOOKUP(Metro_Select,Energy_Metro_Lookup,CDD),0)),0)+IFERROR(EXP('Commercial Energy Coefficients'!$F$3+LN((B_OFF_Gross_Sq_Ft))*'Commercial Energy Coefficients'!$F$4+'Commercial Energy Coefficients'!$F$11+'Commercial Energy Coefficients'!$F$14+'Commercial Energy Coefficients'!$F$18*LN((B_OFF_Emp_Acre)*(B_Lot_Size/43560))+'Commercial Energy Coefficients'!$F$19*LN(40)+'Commercial Energy Coefficients'!$F$21+'Commercial Energy Coefficients'!$F$22*LN(Commercial_Energy_Cost)+'Commercial Energy Coefficients'!$F$24*IFERROR(LOOKUP(Metro_Select,Energy_Metro_Lookup,CDD),0)),0)+IFERROR(EXP('Commercial Energy Coefficients'!$I$3+LN((B_PUB_Gross_Sq_Ft))*'Commercial Energy Coefficients'!$I$4+'Commercial Energy Coefficients'!$I$11+'Commercial Energy Coefficients'!$I$14+'Commercial Energy Coefficients'!$I$18*LN((B_Pub_Emp_Acre)*(B_Lot_Size/43560))+'Commercial Energy Coefficients'!$I$19*LN(40)+'Commercial Energy Coefficients'!$I$21+'Commercial Energy Coefficients'!$I$22*LN(Commercial_Energy_Cost)+'Commercial Energy Coefficients'!$I$24*IFERROR(LOOKUP(Metro_Select,Energy_Metro_Lookup,CDD),0)),0))/1000 -> 0 | CP11: =(IFERROR(EXP('Commercial Energy Coefficients'!$D$3+LN((B_RET_Gross_Sq_Ft))*'Commercial Energy Coefficients'!$D$4+'Commercial Energy Coefficients'!$D$14+'Commercial Energy Coefficients'!$D$18*LN((B_Ret_Emp_Acre)*(B_Lot_Size/43560))+'Commercial Energy Coefficients'!$D$19*LN(40)+'Commercial Energy Coefficients'!$D$21+'Commercial Energy Coefficients'!$D$22*LN(Commercial_Energy_Cost)),0)+IFERROR(EXP('Commercial Energy Coefficients'!$G$3+LN((B_OFF_Gross_Sq_Ft))*'Commercial Energy Coefficients'!$G$4+'Commercial Energy Coefficients'!$G$14+'Commercial Energy Coefficients'!$G$18*LN((B_OFF_Emp_Acre)*(B_Lot_Size/43560))+'Commercial Energy Coefficients'!$G$19*LN(40)+'Commercial Energy Coefficients'!$G$21+'Commercial Energy Coefficients'!$G$22*LN(Commercial_Energy_Cost)),0)+IFERROR(EXP('Commercial Energy Coefficients'!$J$3+LN((B_PUB_Gross_Sq_Ft))*'Commercial Energy Coefficients'!$J$4+'Commercial Energy Coefficients'!$J$14+'Commercial Energy Coefficients'!$J$18*LN((B_Pub_Emp_Acre)*(B_Lot_Size/43560))+'Commercial Energy Coefficients'!$J$19*LN(40)+'Commercial Energy Coefficients'!$J$21+'Commercial Energy Coefficients'!$J$22*LN(Commercial_Energy_Cost)),0))/1000 -> 0 | CQ11: 0 | CR11: 0 | CS11: 0 | CT11: 268.9623882 | CU11: 134.4811941 | CV11: 12.54439087 | CW11: 0 | CX11: 25.08878173 | CY11: 125.3 | CZ11: 250.6 | DA11: 80 | DB11: 200 | DC11: 0 | DD11: 160 | DE11: 50 | DF11: 125 | DG11: 0 | DH11: 100 | DI11: =IF(B_Housing_Type="",0,IF(B_Housing_Type="MF",'Project Info'!$B$160,IF(B_Housing_Type="TH",'Project Info'!$B$161,IF(AND(B_Housing_Type="SF",B_Net_Sq_Ft_per_Unit>0,B_Net_Sq_Ft_per_Unit<3000),'Project Info'!$B$162,IF(AND(B_Housing_Type="SF",B_Net_Sq_Ft_per_Unit>=3000),'Project Info'!$B$163))))) -> 2 | DJ11: 5 | DK11: 0 | DL11: 4 | DM11: =[8]!LandCost -> 52.96791221 | DN11: 397259.3416 | DO11: 2307282.256 | DQ11: 397259.3416 | DR11: 2307282.256 | DS11: =[8]!ProjectValue -> 877476.3619 | DT11: 5096382.71 | DU11: =[8]!YInt -> 0.8013 | DV11: =[8]!Slope -> 0.2514298 | DW11: =[8]!ProdType -> Residential Owner | DX11: =[8]!Subsidy -> 0 | DY11: 0 | DZ11: 0 | EA11: =[8]!ImpactFees -> 0 | EB11: 0 | EC11: =[8]!ROI_Rental -> 0 | ED11: =[8]!ROI_Owner -> 0.2003878915 | EE11: =[8]!PropTax -> 25098.1446 | EF11: 145770.0238 | EG11: 0 | EH11: 0 | EI11: 0.02712103691 | EJ11: =[8]!GreenRoof -> 0 | EK11: =[8]!GreenRoofEff -> 0 | EL11: =[8]!GreenRoofVolume -> 0 | EM11: =[8]!Biofiltration -> 1575.289893 | EN11: =[8]!BiofiltrationEff -> 0 | EO11: =[8]!BiofiltrationVolume -> 5302.425781 | EP11: =[8]!GreenRoofHarvesting -> 0 | EQ11: =[8]!GreenRoofHarvestingEff -> 0 | ER11: =[8]!WaterHarvesting -> 0 | ES11: =[8]!WaterHarvestingEff -> 0 | ET11: =[8]!WaterHarvestingVolume -> 0 | EU11: 0 | EV11: 271.2275987 | EX11: 0 | EY11: 0 | EZ11: 0 | FA11: 912.9520972 | FB11: 0 | FC11: 0 | FE11: =Annual_Cooling_degree_days*24*(1/R_conventional_SF_F_hrs_BTU-1/R_green_roof_SF_F_hrs_Btu)/3412*'Building Inputs'!$EU11 -> 0 | FF11: 0 | FG11: =Annual_Heating_degree_days*24*(1/R_conventional_SF_F_hrs_BTU-1/R_green_roof_SF_F_hrs_Btu)*'Building Inputs'!$EU11 -> 0 | FH11: 0 | FI11: =Avg_Annual_NO2_uptake*'Building Inputs'!$EU11 -> 0 | FJ11: =Avg_Annual_O3_uptake*'Building Inputs'!$EU11 -> 0 | FK11: =Avg_Annual_SO2_uptake*'Building Inputs'!$EU11 -> 0 | FL11: =Avg_Annual_PM_10_uptake*'Building Inputs'!$EU11 -> 0 | FM11: 0 | FN11: 0 | FO11: 0 | FP11: 0 | FQ11: 0 | FR11: 0 | FS11: 0 | FT11: 0 | FU11: 0 | FV11: =Avg_amount_of_carbon_sequestered_lbs_SF*'Building Inputs'!$EU11*3.67 -> 0 | FW11: 0 | FX11: 0 | FY11: 0 | FZ11: =Average_annual_rainfall_in*($C11*(1-$E11)+$EM11-$EJ11-$ER11)*$C11/43560*'Building Inputs'!$EN11*144*0.00433 -> 0 | GB11: =Avg_Annual_NO2_uptake*'Building Inputs'!$EV11 -> 0.08136827961 | GC11: =Avg_Annual_O3_uptake*'Building Inputs'!$EV11 -> 0.159481828 | GD11: =Avg_Annual_SO2_uptake*'Building Inputs'!$EV11 -> 0.0621111201 | GE11: =Avg_Annual_PM_10_uptake*'Building Inputs'!$EV11 -> 0.03091994625 | GF11: 0.2717700539 | GG11: 0.5326693057 | GH11: 0.1279489074 | GI11: 0.08781264736 | GJ11: 1.020200914 | GK11: =Avg_amount_of_carbon_sequestered_lbs_SF*'Building Inputs'!$EV11*3.67 -> 33.04745554 | GL11: 0.2498387639 | GM11: =Average_annual_rainfall_in*('Building Inputs'!$EX11*'Building Inputs'!$EQ11+'Building Inputs'!$EY11*'Building Inputs'!$ES11)*144*0.00433 -> 0 | GO11: 0 | GQ11: 0 | GR11: 0.08136827961 | GS11: 0.5326693057 | GT11: 0.0621111201 | GU11: 0.03091994625 | GV11: 0.7070686516 | GW11: 0.2717700539 | GX11: 1.779115481 | GY11: 0.1279489074 | GZ11: 0.08781264736 | HA11: 2.26664709 | HB11: 33.04745554 | HC11: 0.2498387639 | HD11: =[8]!RequiredWQV -> 979.7257458 | HE11: =[8]!ConventionalWQV -> 0 | HF11: 168.6855623 | HG11: 0 | HH11: 912.9520972 | HI11: =[8]!TSSload -> 27.61709036 | HJ11: =[8]!TNload -> 0.5021289157 | HK11: =[8]!TLload -> 0.005021289157 | HL11: =[8]!fColiLoad -> 2712.226083 | HM11: =[8]!TSSreduction -> 22.73144296 | HN11: =[8]!TNreduction -> 0.2383706388 | HO11: =[8]!TLreduction -> 0.003914329225 | HP11: =[8]!fColiReduction -> 2015.287235 | HQ11: 4.755008671 | HR11: 0.08645470311 | HS11: 0.0008645470311 | HT11: 466.9810749 | HU11: 3.913815937 | HV11: 0.04104177666 | HW11: 0.0006739547563 | HX11: 346.9847168 | HY11: =[8]!EPA_MXD_ResTrips -> 13.0182896 | HZ11: =[8]!EPA_MXD_RetTrips -> 0 | IA11: =[8]!EPA_MXD_OffTrips -> 0 | IB11: =[8]!EPA_MXD_EduTrips -> 0 | IC11: =[8]!EPA_MXD_OtherTrips -> 0 | ID11: =[8]!EPA_MXD_ResVMT -> 36.95095101 | IE11: =[8]!EPA_MXD_RetVMT -> 0 | IF11: =[8]!EPA_MXD_OffVMT -> 0 | IG11: =[8]!EPA_MXD_EduVMT -> 0 | IH11: =[8]!EPA_MXD_OtherVMT -> 0
A12: 9 | B12: =[9]!name -> T4NISMultiplexMedium | C12: =[9]!lot_size -> 10000 | D12: =[9]!Building_Lot_Coverage -> 0.25 | E12: =[9]!Landscaping_Coverage -> 0.624 | F12: =[9]!Parking_Coverage -> 0.126 | G12: =[9]!Height -> 2 | H12: =[9]!FAR -> 0.5 | I12: 5000 | J12: =[9]!ResPct -> 1 | K12: 1 | L12: 0 | M12: 0 | N12: 0 | O12: 0 | P12: 0 | Q12: 0 | R12: 0 | S12: =[9]!RetPct -> 0 | T12: =[9]!OffPct -> 0 | U12: =[9]!IndPct -> 0 | V12: =[9]!PubPct -> 0 | W12: =[9]!EduPct -> 0 | X12: =[9]!HotelPct -> 0 | Y12: =[9]!ComParkingPct -> 0 | Z12: =[9]!ParkingPct -> 0 | AA12: 5000 | AB12: =[9]!NetUnitSize -> 1000 | AC12: =[9]!UnitSize -> 1250 | AD12: 4 | AE12: 17.424 | AF12: =[9]!HousingType -> MF | AG12: =[9]!RentalPct -> 1 | AH12: 0 | AI12: =[9]!AffordablePct -> 0 | AJ12: =[9]!Rent -> 2.46 | AK12: 2460 | AL12: =[9]!Sales_Price -> 0 | AM12: 0 | AN12: 0 | AO12: 0.06 | AP12: 16.37856 | AQ12: 2.004008016 | AR12: 1.021321071 | AS12: 0.1951 | AT12: 98400 | AU12: 0 | AV12: 0 | AW12: 0 | AX12: 0 | AY12: 0 | AZ12: =[9]!RetRent -> 31.38 | BA12: =[9]!RetSpace -> 945 | BB12: 0 | BC12: 0 | BD12: =[9]!OffRent -> 36.78 | BE12: =[9]!OffSpace -> 387 | BF12: 0 | BG12: 0 | BH12: =[9]!IndRent -> 12 | BI12: =[9]!IndSpace -> 1730 | BJ12: 0 | BK12: 0 | BL12: =[9]!PubRent -> 14 | BM12: =[9]!PubSpace -> 746 | BN12: 0 | BO12: 0 | BP12: =[9]!EduRent -> 14 | BQ12: =[9]!EduSpace -> 767 | BR12: 0 | BS12: 0 | BT12: =[9]!HotelRent -> 150 | BU12: =[9]!HotelSpaceEmp -> 1317 | BV12: 0 | BW12: =[9]!HotelRoomNet -> 0 | BX12: =[9]!HotelRoomGross -> 0 | BY12: 0 | BZ12: 0 | CA12: 0 | CB12: =[9]!ParkingRent -> 4 | CC12: =[9]!ParkingSpace -> 20000 | CD12: 0 | CE12: =[9]!ParkingSpaces -> 4 | CF12: =[9]!ParkingArea -> 1260 | CG12: =[9]!IntStructParkingArea -> 0 | CH12: =[9]!ParkingCost -> 20000 | CI12: 0.01799045192 | CJ12: =IFERROR(IF(B_Housing_Type="SF",EXP('Residential Energy Coefficients'!$B$3+'Residential Energy Coefficients'!$B$4*LN(B_Net_Sq_Ft_per_Unit)+'Residential Energy Coefficients'!$B$9+'Residential Energy Coefficients'!$B$10*LN(B_HH_Income)+'Residential Energy Coefficients'!$B$16*LN(Residential_Energy_Cost)+'Residential Energy Coefficients'!$B$20+'Residential Energy Coefficients'!$B$24*IFERROR(LOOKUP(Metro_Select,Energy_Metro_Lookup,HDD),0)),IF(B_Housing_Type="TH",EXP('Residential Energy Coefficients'!$E$3+'Residential Energy Coefficients'!$E$4*LN(B_Net_Sq_Ft_per_Unit)+'Residential Energy Coefficients'!$E$9+'Residential Energy Coefficients'!$E$16*LN(Residential_Energy_Cost)+'Residential Energy Coefficients'!$E$19+'Residential Energy Coefficients'!$E$20+'Residential Energy Coefficients'!$E$24*IFERROR(LOOKUP(Metro_Select,Energy_Metro_Lookup,HDD),0)),IF(B_Housing_Type="MF",EXP('Residential Energy Coefficients'!$H$3+'Residential Energy Coefficients'!$H$4*LN(B_Net_Sq_Ft_per_Unit)+'Residential Energy Coefficients'!$H$9+IF(B_Pct_Owner=1,'Residential Energy Coefficients'!$H$12,0)+'Residential Energy Coefficients'!$H$16*LN(Residential_Energy_Cost)+'Residential Energy Coefficients'!$H$20+'Residential Energy Coefficients'!$H$24*IFERROR(LOOKUP(Metro_Select,Energy_Metro_Lookup,HDD),0)),IF(B_Hotel_Room_Acre>0,EXP('Residential Energy Coefficients'!$H$3+'Residential Energy Coefficients'!$H$4*LN(B_Hotel_Room_Net)+'Residential Energy Coefficients'!$H$9+'Residential Energy Coefficients'!$H$16*LN(Residential_Energy_Cost)+'Residential Energy Coefficients'!$H$20+'Residential Energy Coefficients'!$H$24*IFERROR(LOOKUP(Metro_Select,Energy_Metro_Lookup,HDD),0)),IF(B_Housing_Type="MH",EXP('Residential Energy Coefficients'!$K$3+'Residential Energy Coefficients'!$K$16*LN(Residential_Energy_Cost)+'Residential Energy Coefficients'!$K$24*IFERROR(LOOKUP(Metro_Select,Energy_Metro_Lookup,HDD),0)),0)))))/1000,0) -> 9.580043328 | CK12: =IFERROR(IF(B_Housing_Type="SF",EXP('Residential Energy Coefficients'!$C$3+'Residential Energy Coefficients'!$C$4*LN(B_Net_Sq_Ft_per_Unit)+'Residential Energy Coefficients'!$C$10*LN(B_HH_Income)+'Residential Energy Coefficients'!$C$11*B_HH_Size+'Residential Energy Coefficients'!$C$16*LN(Residential_Energy_Cost)+'Residential Energy Coefficients'!$C$19+'Residential Energy Coefficients'!$C$22+'Residential Energy Coefficients'!$C$25*IFERROR(LOOKUP(Metro_Select,Energy_Metro_Lookup,CDD),0)),IF(B_Housing_Type="TH",EXP('Residential Energy Coefficients'!$F$3+'Residential Energy Coefficients'!$F$4*LN(B_Net_Sq_Ft_per_Unit)+'Residential Energy Coefficients'!$F$10*LN(B_HH_Income)+'Residential Energy Coefficients'!$F$11*B_HH_Size+IF(B_Pct_Owner=1,'Residential Energy Coefficients'!$F$12,0)+'Residential Energy Coefficients'!$F$16*LN(Residential_Energy_Cost)+'Residential Energy Coefficients'!$F$22+'Residential Energy Coefficients'!$F$25*IFERROR(LOOKUP(Metro_Select,Energy_Metro_Lookup,CDD),0)),IF(B_Housing_Type="MF",EXP('Residential Energy Coefficients'!$I$3+'Residential Energy Coefficients'!$I$4*LN(B_Net_Sq_Ft_per_Unit)+'Residential Energy Coefficients'!$I$9+'Residential Energy Coefficients'!$I$11*B_HH_Size+'Residential Energy Coefficients'!$I$16*LN(Residential_Energy_Cost)+'Residential Energy Coefficients'!$I$22+'Residential Energy Coefficients'!$I$25*IFERROR(LOOKUP(Metro_Select,Energy_Metro_Lookup,CDD),0)),IF(B_Hotel_Room_Acre>0,EXP('Residential Energy Coefficients'!$I$3+'Residential Energy Coefficients'!$I$4*LN(B_Hotel_Room_Net)+'Residential Energy Coefficients'!$I$9+'Residential Energy Coefficients'!$I$11*1.25+'Residential Energy Coefficients'!$I$16*LN(Residential_Energy_Cost)+'Residential Energy Coefficients'!$I$22+'Residential Energy Coefficients'!$I$25*IFERROR(LOOKUP(Metro_Select,Energy_Metro_Lookup,CDD),0)),IF(B_Housing_Type="MH",EXP('Residential Energy Coefficients'!$L$3+'Residential Energy Coefficients'!$L$11*B_HH_Size+'Residential Energy Coefficients'!$L$16*LN(Residential_Energy_Cost)+'Residential Energy Coefficients'!$L$22+'Residential Energy Coefficients'!$L$25*IFERROR(LOOKUP(Metro_Select,Energy_Metro_Lookup,CDD),0)),0)))))/1000,0) -> 82.05744226 | CL12: =IFERROR(IF(B_Housing_Type="SF",EXP('Residential Energy Coefficients'!$D$3+'Residential Energy Coefficients'!$D$4*LN(B_Net_Sq_Ft_per_Unit)+'Residential Energy Coefficients'!$D$9+'Residential Energy Coefficients'!$D$10*LN(B_HH_Income)+'Residential Energy Coefficients'!$D$11*B_HH_Size+IF(B_Pct_Owner=1,'Residential Energy Coefficients'!$D$12,0)+'Residential Energy Coefficients'!$D$16*LN(Residential_Energy_Cost)),IF(B_Housing_Type="TH",EXP('Residential Energy Coefficients'!$G$3+'Residential Energy Coefficients'!$G$4*LN(B_Net_Sq_Ft_per_Unit)+'Residential Energy Coefficients'!$G$10*LN(B_HH_Income)+'Residential Energy Coefficients'!$G$11*B_HH_Size+'Residential Energy Coefficients'!$G$16*LN(Residential_Energy_Cost)),IF(B_Housing_Type="MF",EXP('Residential Energy Coefficients'!$J$3+'Residential Energy Coefficients'!$J$4*LN(B_Net_Sq_Ft_per_Unit)+'Residential Energy Coefficients'!$J$10*LN(B_HH_Income)+'Residential Energy Coefficients'!$J$11*B_HH_Size+IF(B_Pct_Owner=1,'Residential Energy Coefficients'!$J$12,0)+'Residential Energy Coefficients'!$J$16*LN(Residential_Energy_Cost)+'Residential Energy Coefficients'!$J$19),IF(B_Hotel_Room_Acre>0,EXP('Residential Energy Coefficients'!$J$3+'Residential Energy Coefficients'!$J$4*LN(B_Hotel_Room_Net)+'Residential Energy Coefficients'!$J$16*LN(Residential_Energy_Cost)+'Residential Energy Coefficients'!$J$19),IF(B_Housing_Type="MH",EXP('Residential Energy Coefficients'!$M$3+'Residential Energy Coefficients'!$M$4*LN(B_Net_Sq_Ft_per_Unit)+'Residential Energy Coefficients'!$M$11*B_HH_Size+'Residential Energy Coefficients'!$M$16*LN(Residential_Energy_Cost)+'Residential Energy Coefficients'!$M$19),0)))))/1000,0) -> 29.90869455 | CM12: 121.5461801 | CN12: =(IFERROR(EXP('Commercial Energy Coefficients'!$B$3+LN(B_RET_Gross_Sq_Ft)*'Commercial Energy Coefficients'!$B$4+'Commercial Energy Coefficients'!$B$11+'Commercial Energy Coefficients'!$B$14+'Commercial Energy Coefficients'!$B$18*LN((B_Ret_Emp_Acre)*(B_Lot_Size/43560))+'Commercial Energy Coefficients'!$B$19*LN(40)+'Commercial Energy Coefficients'!$B$21+'Commercial Energy Coefficients'!$B$22*LN(Commercial_Energy_Cost)+'Commercial Energy Coefficients'!$B$23*IFERROR(LOOKUP(Metro_Select,Energy_Metro_Lookup,HDD),0)),0)+IFERROR(EXP('Commercial Energy Coefficients'!$E$3+LN(B_OFF_Gross_Sq_Ft)*'Commercial Energy Coefficients'!$E$4+'Commercial Energy Coefficients'!$E$11+'Commercial Energy Coefficients'!$E$14+'Commercial Energy Coefficients'!$E$18*LN((B_OFF_Emp_Acre)*(B_Lot_Size/43560))+'Commercial Energy Coefficients'!$E$19*LN(40)+'Commercial Energy Coefficients'!$E$21+'Commercial Energy Coefficients'!$E$22*LN(Commercial_Energy_Cost)+'Commercial Energy Coefficients'!$E$23*IFERROR(LOOKUP(Metro_Select,Energy_Metro_Lookup,HDD),0)),0)+IFERROR(EXP('Commercial Energy Coefficients'!$H$3+LN(B_PUB_Gross_Sq_Ft)*'Commercial Energy Coefficients'!$H$4+'Commercial Energy Coefficients'!$H$11+'Commercial Energy Coefficients'!$H$14+'Commercial Energy Coefficients'!$H$18*LN((B_Pub_Emp_Acre)*(B_Lot_Size/43560))+'Commercial Energy Coefficients'!$H$19*LN(40)+'Commercial Energy Coefficients'!$H$21+'Commercial Energy Coefficients'!$H$22*LN(Commercial_Energy_Cost)+'Commercial Energy Coefficients'!$H$23*IFERROR(LOOKUP(Metro_Select,Energy_Metro_Lookup,HDD),0)),0))/1000 -> 0 | CO12: =(IFERROR(EXP('Commercial Energy Coefficients'!$C$3+LN((B_RET_Gross_Sq_Ft))*'Commercial Energy Coefficients'!$C$4+'Commercial Energy Coefficients'!$C$11+'Commercial Energy Coefficients'!$C$14+'Commercial Energy Coefficients'!$C$18*LN((B_Ret_Emp_Acre)*(B_Lot_Size/43560))+'Commercial Energy Coefficients'!$C$19*LN(40)+'Commercial Energy Coefficients'!$C$21+'Commercial Energy Coefficients'!$C$22*LN(Commercial_Energy_Cost)+'Commercial Energy Coefficients'!$C$24*IFERROR(LOOKUP(Metro_Select,Energy_Metro_Lookup,CDD),0)),0)+IFERROR(EXP('Commercial Energy Coefficients'!$F$3+LN((B_OFF_Gross_Sq_Ft))*'Commercial Energy Coefficients'!$F$4+'Commercial Energy Coefficients'!$F$11+'Commercial Energy Coefficients'!$F$14+'Commercial Energy Coefficients'!$F$18*LN((B_OFF_Emp_Acre)*(B_Lot_Size/43560))+'Commercial Energy Coefficients'!$F$19*LN(40)+'Commercial Energy Coefficients'!$F$21+'Commercial Energy Coefficients'!$F$22*LN(Commercial_Energy_Cost)+'Commercial Energy Coefficients'!$F$24*IFERROR(LOOKUP(Metro_Select,Energy_Metro_Lookup,CDD),0)),0)+IFERROR(EXP('Commercial Energy Coefficients'!$I$3+LN((B_PUB_Gross_Sq_Ft))*'Commercial Energy Coefficients'!$I$4+'Commercial Energy Coefficients'!$I$11+'Commercial Energy Coefficients'!$I$14+'Commercial Energy Coefficients'!$I$18*LN((B_Pub_Emp_Acre)*(B_Lot_Size/43560))+'Commercial Energy Coefficients'!$I$19*LN(40)+'Commercial Energy Coefficients'!$I$21+'Commercial Energy Coefficients'!$I$22*LN(Commercial_Energy_Cost)+'Commercial Energy Coefficients'!$I$24*IFERROR(LOOKUP(Metro_Select,Energy_Metro_Lookup,CDD),0)),0))/1000 -> 0 | CP12: =(IFERROR(EXP('Commercial Energy Coefficients'!$D$3+LN((B_RET_Gross_Sq_Ft))*'Commercial Energy Coefficients'!$D$4+'Commercial Energy Coefficients'!$D$14+'Commercial Energy Coefficients'!$D$18*LN((B_Ret_Emp_Acre)*(B_Lot_Size/43560))+'Commercial Energy Coefficients'!$D$19*LN(40)+'Commercial Energy Coefficients'!$D$21+'Commercial Energy Coefficients'!$D$22*LN(Commercial_Energy_Cost)),0)+IFERROR(EXP('Commercial Energy Coefficients'!$G$3+LN((B_OFF_Gross_Sq_Ft))*'Commercial Energy Coefficients'!$G$4+'Commercial Energy Coefficients'!$G$14+'Commercial Energy Coefficients'!$G$18*LN((B_OFF_Emp_Acre)*(B_Lot_Size/43560))+'Commercial Energy Coefficients'!$G$19*LN(40)+'Commercial Energy Coefficients'!$G$21+'Commercial Energy Coefficients'!$G$22*LN(Commercial_Energy_Cost)),0)+IFERROR(EXP('Commercial Energy Coefficients'!$J$3+LN((B_PUB_Gross_Sq_Ft))*'Commercial Energy Coefficients'!$J$4+'Commercial Energy Coefficients'!$J$14+'Commercial Energy Coefficients'!$J$18*LN((B_Pub_Emp_Acre)*(B_Lot_Size/43560))+'Commercial Energy Coefficients'!$J$19*LN(40)+'Commercial Energy Coefficients'!$J$21+'Commercial Energy Coefficients'!$J$22*LN(Commercial_Energy_Cost)),0))/1000 -> 0 | CQ12: 0 | CR12: 0 | CS12: 0 | CT12: 486.1847206 | CU12: 121.5461801 | CV12: 11.3378142 | CW12: 0 | CX12: 45.3512568 | CY12: 78 | CZ12: 312 | DA12: 60 | DB12: 120.240481 | DC12: 0 | DD12: 240 | DE12: 35 | DF12: 70.14028056 | DG12: 0 | DH12: 140 | DI12: =IF(B_Housing_Type="",0,IF(B_Housing_Type="MF",'Project Info'!$B$160,IF(B_Housing_Type="TH",'Project Info'!$B$161,IF(AND(B_Housing_Type="SF",B_Net_Sq_Ft_per_Unit>0,B_Net_Sq_Ft_per_Unit<3000),'Project Info'!$B$162,IF(AND(B_Housing_Type="SF",B_Net_Sq_Ft_per_Unit>=3000),'Project Info'!$B$163))))) -> 1.5 | DJ12: 3.006012024 | DK12: 0 | DL12: 6 | DM12: =[9]!LandCost -> 13.44735178 | DN12: 134473.5178 | DO12: 585766.6437 | DQ12: 134473.5178 | DR12: 585766.6437 | DS12: =[9]!ProjectValue -> 1111700.812 | DT12: 4842568.736 | DU12: =[9]!YInt -> 0.8013 | DV12: =[9]!Slope -> 0.2514298 | DW12: =[9]!ProdType -> Residential Owner | DX12: =[9]!Subsidy -> 0 | DY12: 0 | DZ12: 0 | EA12: =[9]!ImpactFees -> 0 | EB12: 0 | EC12: =[9]!ROI_Rental -> 0.1004320123 | ED12: =[9]!ROI_Owner -> 0 | EE12: =[9]!PropTax -> 27071.5727 | EF12: 117923.7707 | EG12: 0 | EH12: 0 | EI12: 0.03012555937 | EJ12: =[9]!GreenRoof -> 0 | EK12: =[9]!GreenRoofEff -> 0 | EL12: =[9]!GreenRoofVolume -> 0 | EM12: =[9]!Biofiltration -> 1961.254775 | EN12: =[9]!BiofiltrationEff -> 0 | EO12: =[9]!BiofiltrationVolume -> 6601.583574 | EP12: =[9]!GreenRoofHarvesting -> 0 | EQ12: =[9]!GreenRoofHarvestingEff -> 0 | ER12: =[9]!WaterHarvesting -> 0 | ES12: =[9]!WaterHarvestingEff -> 0 | ET12: =[9]!WaterHarvestingVolume -> 0 | EU12: 0 | EV12: 450.2421431 | EX12: 0 | EY12: 0 | EZ12: 0 | FA12: 1515.515054 | FB12: 0 | FC12: 0 | FE12: =Annual_Cooling_degree_days*24*(1/R_conventional_SF_F_hrs_BTU-1/R_green_roof_SF_F_hrs_Btu)/3412*'Building Inputs'!$EU12 -> 0 | FF12: 0 | FG12: =Annual_Heating_degree_days*24*(1/R_conventional_SF_F_hrs_BTU-1/R_green_roof_SF_F_hrs_Btu)*'Building Inputs'!$EU12 -> 0 | FH12: 0 | FI12: =Avg_Annual_NO2_uptake*'Building Inputs'!$EU12 -> 0 | FJ12: =Avg_Annual_O3_uptake*'Building Inputs'!$EU12 -> 0 | FK12: =Avg_Annual_SO2_uptake*'Building Inputs'!$EU12 -> 0 | FL12: =Avg_Annual_PM_10_uptake*'Building Inputs'!$EU12 -> 0 | FM12: 0 | FN12: 0 | FO12: 0 | FP12: 0 | FQ12: 0 | FR12: 0 | FS12: 0 | FT12: 0 | FU12: 0 | FV12: =Avg_amount_of_carbon_sequestered_lbs_SF*'Building Inputs'!$EU12*3.67 -> 0 | FW12: 0 | FX12: 0 | FY12: 0 | FZ12: =Average_annual_rainfall_in*($C12*(1-$E12)+$EM12-$EJ12-$ER12)*$C12/43560*'Building Inputs'!$EN12*144*0.00433 -> 0 | GB12: =Avg_Annual_NO2_uptake*'Building Inputs'!$EV12 -> 0.1350726429 | GC12: =Avg_Annual_O3_uptake*'Building Inputs'!$EV12 -> 0.2647423801 | GD12: =Avg_Annual_SO2_uptake*'Building Inputs'!$EV12 -> 0.1031054508 | GE12: =Avg_Annual_PM_10_uptake*'Building Inputs'!$EV12 -> 0.05132760431 | GF12: 0.4511426274 | GG12: 0.8842395497 | GH12: 0.2123972286 | GI12: 0.1457703963 | GJ12: 1.693549802 | GK12: =Avg_amount_of_carbon_sequestered_lbs_SF*'Building Inputs'!$EV12*3.67 -> 54.85930368 | GL12: 0.4147363359 | GM12: =Average_annual_rainfall_in*('Building Inputs'!$EX12*'Building Inputs'!$EQ12+'Building Inputs'!$EY12*'Building Inputs'!$ES12)*144*0.00433 -> 0 | GO12: 0 | GQ12: 0 | GR12: 0.1350726429 | GS12: 0.8842395497 | GT12: 0.1031054508 | GU12: 0.05132760431 | GV12: 1.173745248 | GW12: 0.4511426274 | GX12: 2.953360096 | GY12: 0.2123972286 | GZ12: 0.1457703963 | HA12: 3.762670348 | HB12: 54.85930368 | HC12: 0.4147363359 | HD12: =[9]!RequiredWQV -> 1584.363733 | HE12: =[9]!ConventionalWQV -> 0 | HF12: 363.7198653 | HG12: 0 | HH12: 1515.515054 | HI12: =[9]!TSSload -> 42.69034725 | HJ12: =[9]!TNload -> 0.5433316923 | HK12: =[9]!TLload -> 0.007761881318 | HL12: =[9]!fColiLoad -> 10463.51985 | HM12: =[9]!TSSreduction -> 35.10017427 | HN12: =[9]!TNreduction -> 0.2593800299 | HO12: =[9]!TLreduction -> 0.006047297259 | HP12: =[9]!fColiReduction -> 7704.841209 | HQ12: 9.8003552 | HR12: 0.1247317935 | HS12: 0.001781882764 | HT12: 2402.09363 | HU12: 8.057891247 | HV12: 0.05954546141 | HW12: 0.001388268425 | HX12: 1768.788156 | HY12: =[9]!EPA_MXD_ResTrips -> 26.03101268 | HZ12: =[9]!EPA_MXD_RetTrips -> 0 | IA12: =[9]!EPA_MXD_OffTrips -> 0 | IB12: =[9]!EPA_MXD_EduTrips -> 0 | IC12: =[9]!EPA_MXD_OtherTrips -> 0 | ID12: =[9]!EPA_MXD_ResVMT -> 73.88917674 | IE12: =[9]!EPA_MXD_RetVMT -> 0 | IF12: =[9]!EPA_MXD_OffVMT -> 0 | IG12: =[9]!EPA_MXD_EduVMT -> 0 | IH12: =[9]!EPA_MXD_OtherVMT -> 0
A13: 10 | B13: =[10]!name -> T4NISSmallHouse | C13: =[10]!lot_size -> 5000 | D13: =[10]!Building_Lot_Coverage -> 0.3376 | E13: =[10]!Landscaping_Coverage -> 0.5824 | F13: =[10]!Parking_Coverage -> 0.08 | G13: =[10]!Height -> 2 | H13: =[10]!FAR -> 0.6752 | I13: 3376 | J13: =[10]!ResPct -> 1 | K13: 0 | L13: 0 | M13: 1 | N13: 1 | O13: 0 | P13: 0 | Q13: 0 | R13: 0 | S13: =[10]!RetPct -> 0 | T13: =[10]!OffPct -> 0 | U13: =[10]!IndPct -> 0 | V13: =[10]!PubPct -> 0 | W13: =[10]!EduPct -> 0 | X13: =[10]!HotelPct -> 0 | Y13: =[10]!ComParkingPct -> 0 | Z13: =[10]!ParkingPct -> 0 | AA13: 3376 | AB13: =[10]!NetUnitSize -> 3376 | AC13: =[10]!UnitSize -> 3376 | AD13: 1 | AE13: 8.712 | AF13: =[10]!HousingType -> SF | AG13: =[10]!RentalPct -> 0 | AH13: 1 | AI13: =[10]!AffordablePct -> 0 | AJ13: =[10]!Rent -> 0 | AK13: 0 | AL13: =[10]!Sales_Price -> 379 | AM13: 1279504 | AN13: 7671.272951 | AO13: 0.08 | AP13: 8.01504 | AQ13: 3 | AR13: 1.528917643 | AS13: 0.2582 | AT13: 354058.7516 | AU13: 0 | AV13: 0 | AW13: 0 | AX13: 0 | AY13: 0 | AZ13: =[10]!RetRent -> 31.38 | BA13: =[10]!RetSpace -> 945 | BB13: 0 | BC13: 0 | BD13: =[10]!OffRent -> 36.78 | BE13: =[10]!OffSpace -> 387 | BF13: 0 | BG13: 0 | BH13: =[10]!IndRent -> 12 | BI13: =[10]!IndSpace -> 1730 | BJ13: 0 | BK13: 0 | BL13: =[10]!PubRent -> 14 | BM13: =[10]!PubSpace -> 746 | BN13: 0 | BO13: 0 | BP13: =[10]!EduRent -> 14 | BQ13: =[10]!EduSpace -> 767 | BR13: 0 | BS13: 0 | BT13: =[10]!HotelRent -> 150 | BU13: =[10]!HotelSpaceEmp -> 1317 | BV13: 0 | BW13: =[10]!HotelRoomNet -> 0 | BX13: =[10]!HotelRoomGross -> 0 | BY13: 0 | BZ13: 0 | CA13: 0 | CB13: =[10]!ParkingRent -> 4 | CC13: =[10]!ParkingSpace -> 20000 | CD13: 0 | CE13: =[10]!ParkingSpaces -> 1 | CF13: =[10]!ParkingArea -> 400 | CG13: =[10]!IntStructParkingArea -> 0 | CH13: =[10]!ParkingCost -> 5000 | CI13: 0.004690279948 | CJ13: =IFERROR(IF(B_Housing_Type="SF",EXP('Residential Energy Coefficients'!$B$3+'Residential Energy Coefficients'!$B$4*LN(B_Net_Sq_Ft_per_Unit)+'Residential Energy Coefficients'!$B$9+'Residential Energy Coefficients'!$B$10*LN(B_HH_Income)+'Residential Energy Coefficients'!$B$16*LN(Residential_Energy_Cost)+'Residential Energy Coefficients'!$B$20+'Residential Energy Coefficients'!$B$24*IFERROR(LOOKUP(Metro_Select,Energy_Metro_Lookup,HDD),0)),IF(B_Housing_Type="TH",EXP('Residential Energy Coefficients'!$E$3+'Residential Energy Coefficients'!$E$4*LN(B_Net_Sq_Ft_per_Unit)+'Residential Energy Coefficients'!$E$9+'Residential Energy Coefficients'!$E$16*LN(Residential_Energy_Cost)+'Residential Energy Coefficients'!$E$19+'Residential Energy Coefficients'!$E$20+'Residential Energy Coefficients'!$E$24*IFERROR(LOOKUP(Metro_Select,Energy_Metro_Lookup,HDD),0)),IF(B_Housing_Type="MF",EXP('Residential Energy Coefficients'!$H$3+'Residential Energy Coefficients'!$H$4*LN(B_Net_Sq_Ft_per_Unit)+'Residential Energy Coefficients'!$H$9+IF(B_Pct_Owner=1,'Residential Energy Coefficients'!$H$12,0)+'Residential Energy Coefficients'!$H$16*LN(Residential_Energy_Cost)+'Residential Energy Coefficients'!$H$20+'Residential Energy Coefficients'!$H$24*IFERROR(LOOKUP(Metro_Select,Energy_Metro_Lookup,HDD),0)),IF(B_Hotel_Room_Acre>0,EXP('Residential Energy Coefficients'!$H$3+'Residential Energy Coefficients'!$H$4*LN(B_Hotel_Room_Net)+'Residential Energy Coefficients'!$H$9+'Residential Energy Coefficients'!$H$16*LN(Residential_Energy_Cost)+'Residential Energy Coefficients'!$H$20+'Residential Energy Coefficients'!$H$24*IFERROR(LOOKUP(Metro_Select,Energy_Metro_Lookup,HDD),0)),IF(B_Housing_Type="MH",EXP('Residential Energy Coefficients'!$K$3+'Residential Energy Coefficients'!$K$16*LN(Residential_Energy_Cost)+'Residential Energy Coefficients'!$K$24*IFERROR(LOOKUP(Metro_Select,Energy_Metro_Lookup,HDD),0)),0)))))/1000,0) -> 24.8178512 | CK13: =IFERROR(IF(B_Housing_Type="SF",EXP('Residential Energy Coefficients'!$C$3+'Residential Energy Coefficients'!$C$4*LN(B_Net_Sq_Ft_per_Unit)+'Residential Energy Coefficients'!$C$10*LN(B_HH_Income)+'Residential Energy Coefficients'!$C$11*B_HH_Size+'Residential Energy Coefficients'!$C$16*LN(Residential_Energy_Cost)+'Residential Energy Coefficients'!$C$19+'Residential Energy Coefficients'!$C$22+'Residential Energy Coefficients'!$C$25*IFERROR(LOOKUP(Metro_Select,Energy_Metro_Lookup,CDD),0)),IF(B_Housing_Type="TH",EXP('Residential Energy Coefficients'!$F$3+'Residential Energy Coefficients'!$F$4*LN(B_Net_Sq_Ft_per_Unit)+'Residential Energy Coefficients'!$F$10*LN(B_HH_Income)+'Residential Energy Coefficients'!$F$11*B_HH_Size+IF(B_Pct_Owner=1,'Residential Energy Coefficients'!$F$12,0)+'Residential Energy Coefficients'!$F$16*LN(Residential_Energy_Cost)+'Residential Energy Coefficients'!$F$22+'Residential Energy Coefficients'!$F$25*IFERROR(LOOKUP(Metro_Select,Energy_Metro_Lookup,CDD),0)),IF(B_Housing_Type="MF",EXP('Residential Energy Coefficients'!$I$3+'Residential Energy Coefficients'!$I$4*LN(B_Net_Sq_Ft_per_Unit)+'Residential Energy Coefficients'!$I$9+'Residential Energy Coefficients'!$I$11*B_HH_Size+'Residential Energy Coefficients'!$I$16*LN(Residential_Energy_Cost)+'Residential Energy Coefficients'!$I$22+'Residential Energy Coefficients'!$I$25*IFERROR(LOOKUP(Metro_Select,Energy_Metro_Lookup,CDD),0)),IF(B_Hotel_Room_Acre>0,EXP('Residential Energy Coefficients'!$I$3+'Residential Energy Coefficients'!$I$4*LN(B_Hotel_Room_Net)+'Residential Energy Coefficients'!$I$9+'Residential Energy Coefficients'!$I$11*1.25+'Residential Energy Coefficients'!$I$16*LN(Residential_Energy_Cost)+'Residential Energy Coefficients'!$I$22+'Residential Energy Coefficients'!$I$25*IFERROR(LOOKUP(Metro_Select,Energy_Metro_Lookup,CDD),0)),IF(B_Housing_Type="MH",EXP('Residential Energy Coefficients'!$L$3+'Residential Energy Coefficients'!$L$11*B_HH_Size+'Residential Energy Coefficients'!$L$16*LN(Residential_Energy_Cost)+'Residential Energy Coefficients'!$L$22+'Residential Energy Coefficients'!$L$25*IFERROR(LOOKUP(Metro_Select,Energy_Metro_Lookup,CDD),0)),0)))))/1000,0) -> 170.358035 | CL13: =IFERROR(IF(B_Housing_Type="SF",EXP('Residential Energy Coefficients'!$D$3+'Residential Energy Coefficients'!$D$4*LN(B_Net_Sq_Ft_per_Unit)+'Residential Energy Coefficients'!$D$9+'Residential Energy Coefficients'!$D$10*LN(B_HH_Income)+'Residential Energy Coefficients'!$D$11*B_HH_Size+IF(B_Pct_Owner=1,'Residential Energy Coefficients'!$D$12,0)+'Residential Energy Coefficients'!$D$16*LN(Residential_Energy_Cost)),IF(B_Housing_Type="TH",EXP('Residential Energy Coefficients'!$G$3+'Residential Energy Coefficients'!$G$4*LN(B_Net_Sq_Ft_per_Unit)+'Residential Energy Coefficients'!$G$10*LN(B_HH_Income)+'Residential Energy Coefficients'!$G$11*B_HH_Size+'Residential Energy Coefficients'!$G$16*LN(Residential_Energy_Cost)),IF(B_Housing_Type="MF",EXP('Residential Energy Coefficients'!$J$3+'Residential Energy Coefficients'!$J$4*LN(B_Net_Sq_Ft_per_Unit)+'Residential Energy Coefficients'!$J$10*LN(B_HH_Income)+'Residential Energy Coefficients'!$J$11*B_HH_Size+IF(B_Pct_Owner=1,'Residential Energy Coefficients'!$J$12,0)+'Residential Energy Coefficients'!$J$16*LN(Residential_Energy_Cost)+'Residential Energy Coefficients'!$J$19),IF(B_Hotel_Room_Acre>0,EXP('Residential Energy Coefficients'!$J$3+'Residential Energy Coefficients'!$J$4*LN(B_Hotel_Room_Net)+'Residential Energy Coefficients'!$J$16*LN(Residential_Energy_Cost)+'Residential Energy Coefficients'!$J$19),IF(B_Housing_Type="MH",EXP('Residential Energy Coefficients'!$M$3+'Residential Energy Coefficients'!$M$4*LN(B_Net_Sq_Ft_per_Unit)+'Residential Energy Coefficients'!$M$11*B_HH_Size+'Residential Energy Coefficients'!$M$16*LN(Residential_Energy_Cost)+'Residential Energy Coefficients'!$M$19),0)))))/1000,0) -> 84.65409621 | CM13: 279.8299824 | CN13: =(IFERROR(EXP('Commercial Energy Coefficients'!$B$3+LN(B_RET_Gross_Sq_Ft)*'Commercial Energy Coefficients'!$B$4+'Commercial Energy Coefficients'!$B$11+'Commercial Energy Coefficients'!$B$14+'Commercial Energy Coefficients'!$B$18*LN((B_Ret_Emp_Acre)*(B_Lot_Size/43560))+'Commercial Energy Coefficients'!$B$19*LN(40)+'Commercial Energy Coefficients'!$B$21+'Commercial Energy Coefficients'!$B$22*LN(Commercial_Energy_Cost)+'Commercial Energy Coefficients'!$B$23*IFERROR(LOOKUP(Metro_Select,Energy_Metro_Lookup,HDD),0)),0)+IFERROR(EXP('Commercial Energy Coefficients'!$E$3+LN(B_OFF_Gross_Sq_Ft)*'Commercial Energy Coefficients'!$E$4+'Commercial Energy Coefficients'!$E$11+'Commercial Energy Coefficients'!$E$14+'Commercial Energy Coefficients'!$E$18*LN((B_OFF_Emp_Acre)*(B_Lot_Size/43560))+'Commercial Energy Coefficients'!$E$19*LN(40)+'Commercial Energy Coefficients'!$E$21+'Commercial Energy Coefficients'!$E$22*LN(Commercial_Energy_Cost)+'Commercial Energy Coefficients'!$E$23*IFERROR(LOOKUP(Metro_Select,Energy_Metro_Lookup,HDD),0)),0)+IFERROR(EXP('Commercial Energy Coefficients'!$H$3+LN(B_PUB_Gross_Sq_Ft)*'Commercial Energy Coefficients'!$H$4+'Commercial Energy Coefficients'!$H$11+'Commercial Energy Coefficients'!$H$14+'Commercial Energy Coefficients'!$H$18*LN((B_Pub_Emp_Acre)*(B_Lot_Size/43560))+'Commercial Energy Coefficients'!$H$19*LN(40)+'Commercial Energy Coefficients'!$H$21+'Commercial Energy Coefficients'!$H$22*LN(Commercial_Energy_Cost)+'Commercial Energy Coefficients'!$H$23*IFERROR(LOOKUP(Metro_Select,Energy_Metro_Lookup,HDD),0)),0))/1000 -> 0 | CO13: =(IFERROR(EXP('Commercial Energy Coefficients'!$C$3+LN((B_RET_Gross_Sq_Ft))*'Commercial Energy Coefficients'!$C$4+'Commercial Energy Coefficients'!$C$11+'Commercial Energy Coefficients'!$C$14+'Commercial Energy Coefficients'!$C$18*LN((B_Ret_Emp_Acre)*(B_Lot_Size/43560))+'Commercial Energy Coefficients'!$C$19*LN(40)+'Commercial Energy Coefficients'!$C$21+'Commercial Energy Coefficients'!$C$22*LN(Commercial_Energy_Cost)+'Commercial Energy Coefficients'!$C$24*IFERROR(LOOKUP(Metro_Select,Energy_Metro_Lookup,CDD),0)),0)+IFERROR(EXP('Commercial Energy Coefficients'!$F$3+LN((B_OFF_Gross_Sq_Ft))*'Commercial Energy Coefficients'!$F$4+'Commercial Energy Coefficients'!$F$11+'Commercial Energy Coefficients'!$F$14+'Commercial Energy Coefficients'!$F$18*LN((B_OFF_Emp_Acre)*(B_Lot_Size/43560))+'Commercial Energy Coefficients'!$F$19*LN(40)+'Commercial Energy Coefficients'!$F$21+'Commercial Energy Coefficients'!$F$22*LN(Commercial_Energy_Cost)+'Commercial Energy Coefficients'!$F$24*IFERROR(LOOKUP(Metro_Select,Energy_Metro_Lookup,CDD),0)),0)+IFERROR(EXP('Commercial Energy Coefficients'!$I$3+LN((B_PUB_Gross_Sq_Ft))*'Commercial Energy Coefficients'!$I$4+'Commercial Energy Coefficients'!$I$11+'Commercial Energy Coefficients'!$I$14+'Commercial Energy Coefficients'!$I$18*LN((B_Pub_Emp_Acre)*(B_Lot_Size/43560))+'Commercial Energy Coefficients'!$I$19*LN(40)+'Commercial Energy Coefficients'!$I$21+'Commercial Energy Coefficients'!$I$22*LN(Commercial_Energy_Cost)+'Commercial Energy Coefficients'!$I$24*IFERROR(LOOKUP(Metro_Select,Energy_Metro_Lookup,CDD),0)),0))/1000 -> 0 | CP13: =(IFERROR(EXP('Commercial Energy Coefficients'!$D$3+LN((B_RET_Gross_Sq_Ft))*'Commercial Energy Coefficients'!$D$4+'Commercial Energy Coefficients'!$D$14+'Commercial Energy Coefficients'!$D$18*LN((B_Ret_Emp_Acre)*(B_Lot_Size/43560))+'Commercial Energy Coefficients'!$D$19*LN(40)+'Commercial Energy Coefficients'!$D$21+'Commercial Energy Coefficients'!$D$22*LN(Commercial_Energy_Cost)),0)+IFERROR(EXP('Commercial Energy Coefficients'!$G$3+LN((B_OFF_Gross_Sq_Ft))*'Commercial Energy Coefficients'!$G$4+'Commercial Energy Coefficients'!$G$14+'Commercial Energy Coefficients'!$G$18*LN((B_OFF_Emp_Acre)*(B_Lot_Size/43560))+'Commercial Energy Coefficients'!$G$19*LN(40)+'Commercial Energy Coefficients'!$G$21+'Commercial Energy Coefficients'!$G$22*LN(Commercial_Energy_Cost)),0)+IFERROR(EXP('Commercial Energy Coefficients'!$J$3+LN((B_PUB_Gross_Sq_Ft))*'Commercial Energy Coefficients'!$J$4+'Commercial Energy Coefficients'!$J$14+'Commercial Energy Coefficients'!$J$18*LN((B_Pub_Emp_Acre)*(B_Lot_Size/43560))+'Commercial Energy Coefficients'!$J$19*LN(40)+'Commercial Energy Coefficients'!$J$21+'Commercial Energy Coefficients'!$J$22*LN(Commercial_Energy_Cost)),0))/1000 -> 0 | CQ13: 0 | CR13: 0 | CS13: 0 | CT13: 279.8299824 | CU13: 279.8299824 | CV13: 26.10250972 | CW13: 0 | CX13: 26.10250972 | CY13: 145.6 | CZ13: 145.6 | DA13: 120 | DB13: 360 | DC13: 0 | DD13: 120 | DE13: 90 | DF13: 270 | DG13: 0 | DH13: 90 | DI13: =IF(B_Housing_Type="",0,IF(B_Housing_Type="MF",'Project Info'!$B$160,IF(B_Housing_Type="TH",'Project Info'!$B$161,IF(AND(B_Housing_Type="SF",B_Net_Sq_Ft_per_Unit>0,B_Net_Sq_Ft_per_Unit<3000),'Project Info'!$B$162,IF(AND(B_Housing_Type="SF",B_Net_Sq_Ft_per_Unit>=3000),'Project Info'!$B$163))))) -> 4 | DJ13: 12 | DK13: 0 | DL13: 4 | DM13: =[10]!LandCost -> 122.826217 | DN13: 614131.0852 | DO13: 5350310.014 | DQ13: 614131.0852 | DR13: 5350310.014 | DS13: =[10]!ProjectValue -> 1066034.449 | DT13: 9287292.119 | DU13: =[10]!YInt -> 0.8013 | DV13: =[10]!Slope -> 0.2514298 | DW13: =[10]!ProdType -> Residential Owner | DX13: =[10]!Subsidy -> 0 | DY13: 0 | DZ13: 0 | EA13: =[10]!ImpactFees -> 0 | EB13: 0 | EC13: =[10]!ROI_Rental -> 0 | ED13: =[10]!ROI_Owner -> 0.200246391 | EE13: =[10]!PropTax -> 30406.16937 | EF13: 264898.5476 | EG13: 0 | EH13: 0 | EI13: 0.04068155537 | EJ13: =[10]!GreenRoof -> 0 | EK13: =[10]!GreenRoofEff -> 0 | EL13: =[10]!GreenRoofVolume -> 0 | EM13: =[10]!Biofiltration -> 915.2522285 | EN13: =[10]!BiofiltrationEff -> 0 | EO13: =[10]!BiofiltrationVolume -> 3080.739001 | EP13: =[10]!GreenRoofHarvesting -> 0 | EQ13: =[10]!GreenRoofHarvestingEff -> 0 | ER13: =[10]!WaterHarvesting -> 0 | ES13: =[10]!WaterHarvestingEff -> 0 | ET13: =[10]!WaterHarvestingVolume -> 0 | EU13: 0 | EV13: 105.0565001 | EX13: 0 | EY13: 0 | EZ13: 0 | FA13: 353.6201792 | FB13: 0 | FC13: 0 | FE13: =Annual_Cooling_degree_days*24*(1/R_conventional_SF_F_hrs_BTU-1/R_green_roof_SF_F_hrs_Btu)/3412*'Building Inputs'!$EU13 -> 0 | FF13: 0 | FG13: =Annual_Heating_degree_days*24*(1/R_conventional_SF_F_hrs_BTU-1/R_green_roof_SF_F_hrs_Btu)*'Building Inputs'!$EU13 -> 0 | FH13: 0 | FI13: =Avg_Annual_NO2_uptake*'Building Inputs'!$EU13 -> 0 | FJ13: =Avg_Annual_O3_uptake*'Building Inputs'!$EU13 -> 0 | FK13: =Avg_Annual_SO2_uptake*'Building Inputs'!$EU13 -> 0 | FL13: =Avg_Annual_PM_10_uptake*'Building Inputs'!$EU13 -> 0 | FM13: 0 | FN13: 0 | FO13: 0 | FP13: 0 | FQ13: 0 | FR13: 0 | FS13: 0 | FT13: 0 | FU13: 0 | FV13: =Avg_amount_of_carbon_sequestered_lbs_SF*'Building Inputs'!$EU13*3.67 -> 0 | FW13: 0 | FX13: 0 | FY13: 0 | FZ13: =Average_annual_rainfall_in*($C13*(1-$E13)+$EM13-$EJ13-$ER13)*$C13/43560*'Building Inputs'!$EN13*144*0.00433 -> 0 | GB13: =Avg_Annual_NO2_uptake*'Building Inputs'!$EV13 -> 0.03151695002 | GC13: =Avg_Annual_O3_uptake*'Building Inputs'!$EV13 -> 0.06177322203 | GD13: =Avg_Annual_SO2_uptake*'Building Inputs'!$EV13 -> 0.02405793851 | GE13: =Avg_Annual_PM_10_uptake*'Building Inputs'!$EV13 -> 0.01197644101 | GF13: 0.1052666131 | GG13: 0.2063225616 | GH13: 0.04955935334 | GI13: 0.03401309246 | GJ13: 0.3951616204 | GK13: =Avg_amount_of_carbon_sequestered_lbs_SF*'Building Inputs'!$EV13*3.67 -> 12.80050419 | GL13: 0.0967718117 | GM13: =Average_annual_rainfall_in*('Building Inputs'!$EX13*'Building Inputs'!$EQ13+'Building Inputs'!$EY13*'Building Inputs'!$ES13)*144*0.00433 -> 0 | GO13: 0 | GQ13: 0 | GR13: 0.03151695002 | GS13: 0.2063225616 | GT13: 0.02405793851 | GU13: 0.01197644101 | GV13: 0.2738738911 | GW13: 0.1052666131 | GX13: 0.6891173557 | GY13: 0.04955935334 | GZ13: 0.03401309246 | HA13: 0.8779564146 | HB13: 12.80050419 | HC13: 0.0967718117 | HD13: =[10]!RequiredWQV -> 933.970752 | HE13: =[10]!ConventionalWQV -> 0 | HF13: 107.2050909 | HG13: 0 | HH13: 353.6201792 | HI13: =[10]!TSSload -> 24.28319376 | HJ13: =[10]!TNload -> 0.4415126138 | HK13: =[10]!TLload -> 0.004415126138 | HL13: =[10]!fColiLoad -> 2426.234499 | HM13: =[10]!TSSreduction -> 20.01712228 | HN13: =[10]!TNreduction -> 0.2079701016 | HO13: =[10]!TLreduction -> 0.003444504808 | HP13: =[10]!fColiReduction -> 1798.296936 | HQ13: 2.787327107 | HR13: 0.05067867468 | HS13: 0.0005067867468 | HT13: 278.4933997 | HU13: 2.297649481 | HV13: 0.02387168292 | HW13: 0.0003953747484 | HX13: 206.4160854 | HY13: =[10]!EPA_MXD_ResTrips -> 9.373524369 | HZ13: =[10]!EPA_MXD_RetTrips -> 0 | IA13: =[10]!EPA_MXD_OffTrips -> 0 | IB13: =[10]!EPA_MXD_EduTrips -> 0 | IC13: =[10]!EPA_MXD_OtherTrips -> 0 | ID13: =[10]!EPA_MXD_ResVMT -> 26.60288764 | IE13: =[10]!EPA_MXD_RetVMT -> 0 | IF13: =[10]!EPA_MXD_OffVMT -> 0 | IG13: =[10]!EPA_MXD_EduVMT -> 0 | IH13: =[10]!EPA_MXD_OtherVMT -> 0
A14: 11 | B14: =[11]!name -> T4NSSCottageCourt | C14: =[11]!lot_size -> 15625 | D14: =[11]!Building_Lot_Coverage -> 0.3887201029 | E14: =[11]!Landscaping_Coverage -> 0.45 | F14: =[11]!Parking_Coverage -> 0.1612798971 | G14: =[11]!Height -> 2 | H14: =[11]!FAR -> 0.7774402057 | I14: 12147.50321 | J14: =[11]!ResPct -> 1 | K14: 0 | L14: 0 | M14: 1 | N14: 1 | O14: 0 | P14: 0 | Q14: 0 | R14: 0 | S14: =[11]!RetPct -> 0 | T14: =[11]!OffPct -> 0 | U14: =[11]!IndPct -> 0 | V14: =[11]!PubPct -> 0 | W14: =[11]!EduPct -> 0 | X14: =[11]!HotelPct -> 0 | Y14: =[11]!ComParkingPct -> 0 | Z14: =[11]!ParkingPct -> 0 | AA14: 12147.50321 | AB14: =[11]!NetUnitSize -> 1518.43887 | AC14: =[11]!UnitSize -> 1518.43887 | AD14: 7.999994898 | AE14: 22.30270578 | AF14: =[11]!HousingType -> SF | AG14: =[11]!RentalPct -> 0 | AH14: 1 | AI14: =[11]!AffordablePct -> 0 | AJ14: =[11]!Rent -> 0 | AK14: 0 | AL14: =[11]!Sales_Price -> 379 | AM14: 575488.3318 | AN14: 3450.343316 | AO14: 0.08 | AP14: 20.51848931 | AQ14: 2.172301674 | AR14: 1.107090119 | AS14: 0.1951 | AT14: 159246.6146 | AU14: 0 | AV14: 0 | AW14: 0 | AX14: 0 | AY14: 0 | AZ14: =[11]!RetRent -> 31.38 | BA14: =[11]!RetSpace -> 945 | BB14: 0 | BC14: 0 | BD14: =[11]!OffRent -> 36.78 | BE14: =[11]!OffSpace -> 387 | BF14: 0 | BG14: 0 | BH14: =[11]!IndRent -> 12 | BI14: =[11]!IndSpace -> 1730 | BJ14: 0 | BK14: 0 | BL14: =[11]!PubRent -> 14 | BM14: =[11]!PubSpace -> 746 | BN14: 0 | BO14: 0 | BP14: =[11]!EduRent -> 14 | BQ14: =[11]!EduSpace -> 767 | BR14: 0 | BS14: 0 | BT14: =[11]!HotelRent -> 150 | BU14: =[11]!HotelSpaceEmp -> 1317 | BV14: 0 | BW14: =[11]!HotelRoomNet -> 0 | BX14: =[11]!HotelRoomGross -> 0 | BY14: 0 | BZ14: 0 | CA14: 0 | CB14: =[11]!ParkingRent -> 4 | CC14: =[11]!ParkingSpace -> 20000 | CD14: 0 | CE14: =[11]!ParkingSpaces -> 7.999994898 | CF14: =[11]!ParkingArea -> 2519.998393 | CG14: =[11]!IntStructParkingArea -> 0 | CH14: =[11]!ParkingCost -> 39999.97449 | CI14: 0.01043249728 | CJ14: =IFERROR(IF(B_Housing_Type="SF",EXP('Residential Energy Coefficients'!$B$3+'Residential Energy Coefficients'!$B$4*LN(B_Net_Sq_Ft_per_Unit)+'Residential Energy Coefficients'!$B$9+'Residential Energy Coefficients'!$B$10*LN(B_HH_Income)+'Residential Energy Coefficients'!$B$16*LN(Residential_Energy_Cost)+'Residential Energy Coefficients'!$B$20+'Residential Energy Coefficients'!$B$24*IFERROR(LOOKUP(Metro_Select,Energy_Metro_Lookup,HDD),0)),IF(B_Housing_Type="TH",EXP('Residential Energy Coefficients'!$E$3+'Residential Energy Coefficients'!$E$4*LN(B_Net_Sq_Ft_per_Unit)+'Residential Energy Coefficients'!$E$9+'Residential Energy Coefficients'!$E$16*LN(Residential_Energy_Cost)+'Residential Energy Coefficients'!$E$19+'Residential Energy Coefficients'!$E$20+'Residential Energy Coefficients'!$E$24*IFERROR(LOOKUP(Metro_Select,Energy_Metro_Lookup,HDD),0)),IF(B_Housing_Type="MF",EXP('Residential Energy Coefficients'!$H$3+'Residential Energy Coefficients'!$H$4*LN(B_Net_Sq_Ft_per_Unit)+'Residential Energy Coefficients'!$H$9+IF(B_Pct_Owner=1,'Residential Energy Coefficients'!$H$12,0)+'Residential Energy Coefficients'!$H$16*LN(Residential_Energy_Cost)+'Residential Energy Coefficients'!$H$20+'Residential Energy Coefficients'!$H$24*IFERROR(LOOKUP(Metro_Select,Energy_Metro_Lookup,HDD),0)),IF(B_Hotel_Room_Acre>0,EXP('Residential Energy Coefficients'!$H$3+'Residential Energy Coefficients'!$H$4*LN(B_Hotel_Room_Net)+'Residential Energy Coefficients'!$H$9+'Residential Energy Coefficients'!$H$16*LN(Residential_Energy_Cost)+'Residential Energy Coefficients'!$H$20+'Residential Energy Coefficients'!$H$24*IFERROR(LOOKUP(Metro_Select,Energy_Metro_Lookup,HDD),0)),IF(B_Housing_Type="MH",EXP('Residential Energy Coefficients'!$K$3+'Residential Energy Coefficients'!$K$16*LN(Residential_Energy_Cost)+'Residential Energy Coefficients'!$K$24*IFERROR(LOOKUP(Metro_Select,Energy_Metro_Lookup,HDD),0)),0)))))/1000,0) -> 18.65878441 | CK14: =IFERROR(IF(B_Housing_Type="SF",EXP('Residential Energy Coefficients'!$C$3+'Residential Energy Coefficients'!$C$4*LN(B_Net_Sq_Ft_per_Unit)+'Residential Energy Coefficients'!$C$10*LN(B_HH_Income)+'Residential Energy Coefficients'!$C$11*B_HH_Size+'Residential Energy Coefficients'!$C$16*LN(Residential_Energy_Cost)+'Residential Energy Coefficients'!$C$19+'Residential Energy Coefficients'!$C$22+'Residential Energy Coefficients'!$C$25*IFERROR(LOOKUP(Metro_Select,Energy_Metro_Lookup,CDD),0)),IF(B_Housing_Type="TH",EXP('Residential Energy Coefficients'!$F$3+'Residential Energy Coefficients'!$F$4*LN(B_Net_Sq_Ft_per_Unit)+'Residential Energy Coefficients'!$F$10*LN(B_HH_Income)+'Residential Energy Coefficients'!$F$11*B_HH_Size+IF(B_Pct_Owner=1,'Residential Energy Coefficients'!$F$12,0)+'Residential Energy Coefficients'!$F$16*LN(Residential_Energy_Cost)+'Residential Energy Coefficients'!$F$22+'Residential Energy Coefficients'!$F$25*IFERROR(LOOKUP(Metro_Select,Energy_Metro_Lookup,CDD),0)),IF(B_Housing_Type="MF",EXP('Residential Energy Coefficients'!$I$3+'Residential Energy Coefficients'!$I$4*LN(B_Net_Sq_Ft_per_Unit)+'Residential Energy Coefficients'!$I$9+'Residential Energy Coefficients'!$I$11*B_HH_Size+'Residential Energy Coefficients'!$I$16*LN(Residential_Energy_Cost)+'Residential Energy Coefficients'!$I$22+'Residential Energy Coefficients'!$I$25*IFERROR(LOOKUP(Metro_Select,Energy_Metro_Lookup,CDD),0)),IF(B_Hotel_Room_Acre>0,EXP('Residential Energy Coefficients'!$I$3+'Residential Energy Coefficients'!$I$4*LN(B_Hotel_Room_Net)+'Residential Energy Coefficients'!$I$9+'Residential Energy Coefficients'!$I$11*1.25+'Residential Energy Coefficients'!$I$16*LN(Residential_Energy_Cost)+'Residential Energy Coefficients'!$I$22+'Residential Energy Coefficients'!$I$25*IFERROR(LOOKUP(Metro_Select,Energy_Metro_Lookup,CDD),0)),IF(B_Housing_Type="MH",EXP('Residential Energy Coefficients'!$L$3+'Residential Energy Coefficients'!$L$11*B_HH_Size+'Residential Energy Coefficients'!$L$16*LN(Residential_Energy_Cost)+'Residential Energy Coefficients'!$L$22+'Residential Energy Coefficients'!$L$25*IFERROR(LOOKUP(Metro_Select,Energy_Metro_Lookup,CDD),0)),0)))))/1000,0) -> 126.5598747 | CL14: =IFERROR(IF(B_Housing_Type="SF",EXP('Residential Energy Coefficients'!$D$3+'Residential Energy Coefficients'!$D$4*LN(B_Net_Sq_Ft_per_Unit)+'Residential Energy Coefficients'!$D$9+'Residential Energy Coefficients'!$D$10*LN(B_HH_Income)+'Residential Energy Coefficients'!$D$11*B_HH_Size+IF(B_Pct_Owner=1,'Residential Energy Coefficients'!$D$12,0)+'Residential Energy Coefficients'!$D$16*LN(Residential_Energy_Cost)),IF(B_Housing_Type="TH",EXP('Residential Energy Coefficients'!$G$3+'Residential Energy Coefficients'!$G$4*LN(B_Net_Sq_Ft_per_Unit)+'Residential Energy Coefficients'!$G$10*LN(B_HH_Income)+'Residential Energy Coefficients'!$G$11*B_HH_Size+'Residential Energy Coefficients'!$G$16*LN(Residential_Energy_Cost)),IF(B_Housing_Type="MF",EXP('Residential Energy Coefficients'!$J$3+'Residential Energy Coefficients'!$J$4*LN(B_Net_Sq_Ft_per_Unit)+'Residential Energy Coefficients'!$J$10*LN(B_HH_Income)+'Residential Energy Coefficients'!$J$11*B_HH_Size+IF(B_Pct_Owner=1,'Residential Energy Coefficients'!$J$12,0)+'Residential Energy Coefficients'!$J$16*LN(Residential_Energy_Cost)+'Residential Energy Coefficients'!$J$19),IF(B_Hotel_Room_Acre>0,EXP('Residential Energy Coefficients'!$J$3+'Residential Energy Coefficients'!$J$4*LN(B_Hotel_Room_Net)+'Residential Energy Coefficients'!$J$16*LN(Residential_Energy_Cost)+'Residential Energy Coefficients'!$J$19),IF(B_Housing_Type="MH",EXP('Residential Energy Coefficients'!$M$3+'Residential Energy Coefficients'!$M$4*LN(B_Net_Sq_Ft_per_Unit)+'Residential Energy Coefficients'!$M$11*B_HH_Size+'Residential Energy Coefficients'!$M$16*LN(Residential_Energy_Cost)+'Residential Energy Coefficients'!$M$19),0)))))/1000,0) -> 57.88139172 | CM14: =SUM(CJ14:CL14) -> 203.1000508 | CN14: =(IFERROR(EXP('Commercial Energy Coefficients'!$B$3+LN(B_RET_Gross_Sq_Ft)*'Commercial Energy Coefficients'!$B$4+'Commercial Energy Coefficients'!$B$11+'Commercial Energy Coefficients'!$B$14+'Commercial Energy Coefficients'!$B$18*LN((B_Ret_Emp_Acre)*(B_Lot_Size/43560))+'Commercial Energy Coefficients'!$B$19*LN(40)+'Commercial Energy Coefficients'!$B$21+'Commercial Energy Coefficients'!$B$22*LN(Commercial_Energy_Cost)+'Commercial Energy Coefficients'!$B$23*IFERROR(LOOKUP(Metro_Select,Energy_Metro_Lookup,HDD),0)),0)+IFERROR(EXP('Commercial Energy Coefficients'!$E$3+LN(B_OFF_Gross_Sq_Ft)*'Commercial Energy Coefficients'!$E$4+'Commercial Energy Coefficients'!$E$11+'Commercial Energy Coefficients'!$E$14+'Commercial Energy Coefficients'!$E$18*LN((B_OFF_Emp_Acre)*(B_Lot_Size/43560))+'Commercial Energy Coefficients'!$E$19*LN(40)+'Commercial Energy Coefficients'!$E$21+'Commercial Energy Coefficients'!$E$22*LN(Commercial_Energy_Cost)+'Commercial Energy Coefficients'!$E$23*IFERROR(LOOKUP(Metro_Select,Energy_Metro_Lookup,HDD),0)),0)+IFERROR(EXP('Commercial Energy Coefficients'!$H$3+LN(B_PUB_Gross_Sq_Ft)*'Commercial Energy Coefficients'!$H$4+'Commercial Energy Coefficients'!$H$11+'Commercial Energy Coefficients'!$H$14+'Commercial Energy Coefficients'!$H$18*LN((B_Pub_Emp_Acre)*(B_Lot_Size/43560))+'Commercial Energy Coefficients'!$H$19*LN(40)+'Commercial Energy Coefficients'!$H$21+'Commercial Energy Coefficients'!$H$22*LN(Commercial_Energy_Cost)+'Commercial Energy Coefficients'!$H$23*IFERROR(LOOKUP(Metro_Select,Energy_Metro_Lookup,HDD),0)),0))/1000 -> 0 | CO14: =(IFERROR(EXP('Commercial Energy Coefficients'!$C$3+LN((B_RET_Gross_Sq_Ft))*'Commercial Energy Coefficients'!$C$4+'Commercial Energy Coefficients'!$C$11+'Commercial Energy Coefficients'!$C$14+'Commercial Energy Coefficients'!$C$18*LN((B_Ret_Emp_Acre)*(B_Lot_Size/43560))+'Commercial Energy Coefficients'!$C$19*LN(40)+'Commercial Energy Coefficients'!$C$21+'Commercial Energy Coefficients'!$C$22*LN(Commercial_Energy_Cost)+'Commercial Energy Coefficients'!$C$24*IFERROR(LOOKUP(Metro_Select,Energy_Metro_Lookup,CDD),0)),0)+IFERROR(EXP('Commercial Energy Coefficients'!$F$3+LN((B_OFF_Gross_Sq_Ft))*'Commercial Energy Coefficients'!$F$4+'Commercial Energy Coefficients'!$F$11+'Commercial Energy Coefficients'!$F$14+'Commercial Energy Coefficients'!$F$18*LN((B_OFF_Emp_Acre)*(B_Lot_Size/43560))+'Commercial Energy Coefficients'!$F$19*LN(40)+'Commercial Energy Coefficients'!$F$21+'Commercial Energy Coefficients'!$F$22*LN(Commercial_Energy_Cost)+'Commercial Energy Coefficients'!$F$24*IFERROR(LOOKUP(Metro_Select,Energy_Metro_Lookup,CDD),0)),0)+IFERROR(EXP('Commercial Energy Coefficients'!$I$3+LN((B_PUB_Gross_Sq_Ft))*'Commercial Energy Coefficients'!$I$4+'Commercial Energy Coefficients'!$I$11+'Commercial Energy Coefficients'!$I$14+'Commercial Energy Coefficients'!$I$18*LN((B_Pub_Emp_Acre)*(B_Lot_Size/43560))+'Commercial Energy Coefficients'!$I$19*LN(40)+'Commercial Energy Coefficients'!$I$21+'Commercial Energy Coefficients'!$I$22*LN(Commercial_Energy_Cost)+'Commercial Energy Coefficients'!$I$24*IFERROR(LOOKUP(Metro_Select,Energy_Metro_Lookup,CDD),0)),0))/1000 -> 0 | CP14: =(IFERROR(EXP('Commercial Energy Coefficients'!$D$3+LN((B_RET_Gross_Sq_Ft))*'Commercial Energy Coefficients'!$D$4+'Commercial Energy Coefficients'!$D$14+'Commercial Energy Coefficients'!$D$18*LN((B_Ret_Emp_Acre)*(B_Lot_Size/43560))+'Commercial Energy Coefficients'!$D$19*LN(40)+'Commercial Energy Coefficients'!$D$21+'Commercial Energy Coefficients'!$D$22*LN(Commercial_Energy_Cost)),0)+IFERROR(EXP('Commercial Energy Coefficients'!$G$3+LN((B_OFF_Gross_Sq_Ft))*'Commercial Energy Coefficients'!$G$4+'Commercial Energy Coefficients'!$G$14+'Commercial Energy Coefficients'!$G$18*LN((B_OFF_Emp_Acre)*(B_Lot_Size/43560))+'Commercial Energy Coefficients'!$G$19*LN(40)+'Commercial Energy Coefficients'!$G$21+'Commercial Energy Coefficients'!$G$22*LN(Commercial_Energy_Cost)),0)+IFERROR(EXP('Commercial Energy Coefficients'!$J$3+LN((B_PUB_Gross_Sq_Ft))*'Commercial Energy Coefficients'!$J$4+'Commercial Energy Coefficients'!$J$14+'Commercial Energy Coefficients'!$J$18*LN((B_Pub_Emp_Acre)*(B_Lot_Size/43560))+'Commercial Energy Coefficients'!$J$19*LN(40)+'Commercial Energy Coefficients'!$J$21+'Commercial Energy Coefficients'!$J$22*LN(Commercial_Energy_Cost)),0))/1000 -> 0 | CQ14: =SUM(CN14:CP14) -> 0 | CR14: 0 | CS14: 0 | CT14: 1624.79937 | CU14: 203.1000508 | CV14: 18.94515021 | CW14: 0 | CX14: 151.561105 | CY14: 43.94534053 | CZ14: 351.5625 | DA14: 100 | DB14: 217.2301674 | DC14: 0 | DD14: 799.9994898 | DE14: 70 | DF14: 152.0611172 | DG14: 0 | DH14: 559.9996429 | DI14: =IF(B_Housing_Type="",0,IF(B_Housing_Type="MF",'Project Info'!$B$160,IF(B_Housing_Type="TH",'Project Info'!$B$161,IF(AND(B_Housing_Type="SF",B_Net_Sq_Ft_per_Unit>0,B_Net_Sq_Ft_per_Unit<3000),'Project Info'!$B$162,IF(AND(B_Housing_Type="SF",B_Net_Sq_Ft_per_Unit>=3000),'Project Info'!$B$163))))) -> 3 | DJ14: 6.516905022 | DK14: 0 | DL14: 23.99998469 | DM14: =[11]!LandCost -> 138.0745743 | DN14: 2157415.224 | DO14: 6014528.458 | DQ14: 2157415.224 | DR14: 6014528.458 | DS14: =[11]!ProjectValue -> 3834170.614 | DT14: 10689054.2 | DU14: =[11]!YInt -> 0.8013 | DV14: =[11]!Slope -> 0.2514298 | DW14: =[11]!ProdType -> Residential Owner | DX14: =[11]!Subsidy -> 0 | DY14: 0 | DZ14: 0 | EA14: =[11]!ImpactFees -> 0 | EB14: 0 | EC14: =[11]!ROI_Rental -> 0 | ED14: =[11]!ROI_Owner -> 0.2007560909 | EE14: =[11]!PropTax -> 109573.4648 | EF14: 305473.288 | EG14: 0 | EH14: 0 | EI14: 0.04684164214 | EJ14: =[11]!GreenRoof -> 0 | EK14: =[11]!GreenRoofEff -> 0 | EL14: =[11]!GreenRoofVolume -> 0 | EM14: =[11]!Biofiltration -> 2209.947538 | EN14: =[11]!BiofiltrationEff -> 0 | EO14: =[11]!BiofiltrationVolume -> 7438.683414 | EP14: =[11]!GreenRoofHarvesting -> 0 | EQ14: =[11]!GreenRoofHarvestingEff -> 0 | ER14: =[11]!WaterHarvesting -> 0 | ES14: =[11]!WaterHarvestingEff -> 0 | ET14: =[11]!WaterHarvestingVolume -> 0 | EU14: 0 | EV14: 792.7096025 | EX14: 0 | EY14: 0 | EZ14: 0 | FA14: 2668.260522 | FB14: 0 | FC14: 0 | FE14: =Annual_Cooling_degree_days*24*(1/R_conventional_SF_F_hrs_BTU-1/R_green_roof_SF_F_hrs_Btu)/3412*'Building Inputs'!$EU14 -> 0 | FF14: 0 | FG14: =Annual_Heating_degree_days*24*(1/R_conventional_SF_F_hrs_BTU-1/R_green_roof_SF_F_hrs_Btu)*'Building Inputs'!$EU14 -> 0 | FH14: 0 | FI14: =Avg_Annual_NO2_uptake*'Building Inputs'!$EU14 -> 0 | FJ14: =Avg_Annual_O3_uptake*'Building Inputs'!$EU14 -> 0 | FK14: =Avg_Annual_SO2_uptake*'Building Inputs'!$EU14 -> 0 | FL14: =Avg_Annual_PM_10_uptake*'Building Inputs'!$EU14 -> 0 | FM14: 0 | FN14: 0 | FO14: 0 | FP14: 0 | FQ14: 0 | FR14: 0 | FS14: 0 | FT14: 0 | FU14: 0 | FV14: =Avg_amount_of_carbon_sequestered_lbs_SF*'Building Inputs'!$EU14*3.67 -> 0 | FW14: 0 | FX14: 0 | FY14: 0 | FZ14: =Average_annual_rainfall_in*($C14*(1-$E14)+$EM14-$EJ14-$ER14)*$C14/43560*'Building Inputs'!$EN14*144*0.00433 -> 0 | GB14: =Avg_Annual_NO2_uptake*'Building Inputs'!$EV14 -> 0.2378128808 | GC14: =Avg_Annual_O3_uptake*'Building Inputs'!$EV14 -> 0.4661132463 | GD14: =Avg_Annual_SO2_uptake*'Building Inputs'!$EV14 -> 0.181530499 | GE14: =Avg_Annual_PM_10_uptake*'Building Inputs'!$EV14 -> 0.09036889469 | GF14: 0.7942950217 | GG14: 1.556818243 | GH14: 0.3739528279 | GI14: 0.2566476609 | GJ14: 2.981713753 | GK14: =Avg_amount_of_carbon_sequestered_lbs_SF*'Building Inputs'!$EV14*3.67 -> 96.58690881 | GL14: 0.7301970306 | GM14: =Average_annual_rainfall_in*('Building Inputs'!$EX14*'Building Inputs'!$EQ14+'Building Inputs'!$EY14*'Building Inputs'!$ES14)*144*0.00433 -> 0 | GO14: 0 | GQ14: 0 | GR14: 0.2378128808 | GS14: 1.556818243 | GT14: 0.181530499 | GU14: 0.09036889469 | GV14: 2.066530517 | GW14: 0.7942950217 | GX14: 5.19977293 | GY14: 0.3739528279 | GZ14: 0.2566476609 | HA14: 6.624668441 | HB14: 96.58690881 | HC14: 0.7301970306 | HD14: =[11]!RequiredWQV -> 4553.255208 | HE14: =[11]!ConventionalWQV -> 0 | HF14: 1633.25557 | HG14: 0 | HH14: 2668.260522 | HI14: =[11]!TSSload -> 108.7536886 | HJ14: =[11]!TNload -> 1.977339793 | HK14: =[11]!TLload -> 0.01977339793 | HL14: =[11]!fColiLoad -> 10655.73337 | HM14: =[11]!TSSreduction -> 89.24122411 | HN14: =[11]!TNreduction -> 0.9535852165 | HO14: =[11]!TLreduction -> 0.01538944899 | HP14: =[11]!fColiReduction -> 7956.276996 | HQ14: 39.010018 | HR14: 0.7092730546 | HS14: 0.007092730546 | HT14: 3822.21841 | HU14: 32.01088445 | HV14: 0.3420516301 | HW14: 0.005520205246 | HX14: 2853.921673 | HY14: =[11]!EPA_MXD_ResTrips -> 74.93010993 | HZ14: =[11]!EPA_MXD_RetTrips -> 0 | IA14: =[11]!EPA_MXD_OffTrips -> 0 | IB14: =[11]!EPA_MXD_EduTrips -> 0 | IC14: =[11]!EPA_MXD_OtherTrips -> 0 | ID14: =[11]!EPA_MXD_ResVMT -> 212.690402 | IE14: =[11]!EPA_MXD_RetVMT -> 0 | IF14: =[11]!EPA_MXD_OffVMT -> 0 | IG14: =[11]!EPA_MXD_EduVMT -> 0 | IH14: =[11]!EPA_MXD_OtherVMT -> 0
A15: 12 | B15: =[12]!name -> T4NSSDuplexStacked | C15: =[12]!lot_size -> 5000 | D15: =[12]!Building_Lot_Coverage -> 0.2944 | E15: =[12]!Landscaping_Coverage -> 0.5796 | F15: =[12]!Parking_Coverage -> 0.126 | G15: =[12]!Height -> 2 | H15: =[12]!FAR -> 0.5888 | I15: 2944 | J15: =[12]!ResPct -> 1 | K15: 0 | L15: 1 | M15: 0 | N15: 0 | O15: 0 | P15: 0 | Q15: 0 | R15: 0 | S15: =[12]!RetPct -> 0 | T15: =[12]!OffPct -> 0 | U15: =[12]!IndPct -> 0 | V15: =[12]!PubPct -> 0 | W15: =[12]!EduPct -> 0 | X15: =[12]!HotelPct -> 0 | Y15: =[12]!ComParkingPct -> 0 | Z15: =[12]!ParkingPct -> 0 | AA15: 2944 | AB15: =[12]!NetUnitSize -> 1472 | AC15: =[12]!UnitSize -> 1472 | AD15: 2 | AE15: 17.424 | AF15: =[12]!HousingType -> TH | AG15: =[12]!RentalPct -> 1 | AH15: 0 | AI15: =[12]!AffordablePct -> 0 | AJ15: =[12]!Rent -> 2.46 | AK15: 3621.12 | AL15: =[12]!Sales_Price -> 0 | AM15: 0 | AN15: 0 | AO15: 0.06 | AP15: 16.37856 | AQ15: 2.457429048 | AR15: 1.25240221 | AS15: 0.1951 | AT15: 144844.8 | AU15: 0 | AV15: 0 | AW15: 0 | AX15: 0 | AY15: 0 | AZ15: =[12]!RetRent -> 31.38 | BA15: =[12]!RetSpace -> 945 | BB15: 0 | BC15: 0 | BD15: =[12]!OffRent -> 36.78 | BE15: =[12]!OffSpace -> 387 | BF15: 0 | BG15: 0 | BH15: =[12]!IndRent -> 12 | BI15: =[12]!IndSpace -> 1730 | BJ15: 0 | BK15: 0 | BL15: =[12]!PubRent -> 14 | BM15: =[12]!PubSpace -> 746 | BN15: 0 | BO15: 0 | BP15: =[12]!EduRent -> 14 | BQ15: =[12]!EduSpace -> 767 | BR15: 0 | BS15: 0 | BT15: =[12]!HotelRent -> 150 | BU15: =[12]!HotelSpaceEmp -> 1317 | BV15: 0 | BW15: =[12]!HotelRoomNet -> 0 | BX15: =[12]!HotelRoomGross -> 0 | BY15: 0 | BZ15: 0 | CA15: 0 | CB15: =[12]!ParkingRent -> 4 | CC15: =[12]!ParkingSpace -> 20000 | CD15: 0 | CE15: =[12]!ParkingSpaces -> 2 | CF15: =[12]!ParkingArea -> 630 | CG15: =[12]!IntStructParkingArea -> 0 | CH15: =[12]!ParkingCost -> 10000 | CI15: 0.01194779068 | CJ15: =IFERROR(IF(B_Housing_Type="SF",EXP('Residential Energy Coefficients'!$B$3+'Residential Energy Coefficients'!$B$4*LN(B_Net_Sq_Ft_per_Unit)+'Residential Energy Coefficients'!$B$9+'Residential Energy Coefficients'!$B$10*LN(B_HH_Income)+'Residential Energy Coefficients'!$B$16*LN(Residential_Energy_Cost)+'Residential Energy Coefficients'!$B$20+'Residential Energy Coefficients'!$B$24*IFERROR(LOOKUP(Metro_Select,Energy_Metro_Lookup,HDD),0)),IF(B_Housing_Type="TH",EXP('Residential Energy Coefficients'!$E$3+'Residential Energy Coefficients'!$E$4*LN(B_Net_Sq_Ft_per_Unit)+'Residential Energy Coefficients'!$E$9+'Residential Energy Coefficients'!$E$16*LN(Residential_Energy_Cost)+'Residential Energy Coefficients'!$E$19+'Residential Energy Coefficients'!$E$20+'Residential Energy Coefficients'!$E$24*IFERROR(LOOKUP(Metro_Select,Energy_Metro_Lookup,HDD),0)),IF(B_Housing_Type="MF",EXP('Residential Energy Coefficients'!$H$3+'Residential Energy Coefficients'!$H$4*LN(B_Net_Sq_Ft_per_Unit)+'Residential Energy Coefficients'!$H$9+IF(B_Pct_Owner=1,'Residential Energy Coefficients'!$H$12,0)+'Residential Energy Coefficients'!$H$16*LN(Residential_Energy_Cost)+'Residential Energy Coefficients'!$H$20+'Residential Energy Coefficients'!$H$24*IFERROR(LOOKUP(Metro_Select,Energy_Metro_Lookup,HDD),0)),IF(B_Hotel_Room_Acre>0,EXP('Residential Energy Coefficients'!$H$3+'Residential Energy Coefficients'!$H$4*LN(B_Hotel_Room_Net)+'Residential Energy Coefficients'!$H$9+'Residential Energy Coefficients'!$H$16*LN(Residential_Energy_Cost)+'Residential Energy Coefficients'!$H$20+'Residential Energy Coefficients'!$H$24*IFERROR(LOOKUP(Metro_Select,Energy_Metro_Lookup,HDD),0)),IF(B_Housing_Type="MH",EXP('Residential Energy Coefficients'!$K$3+'Residential Energy Coefficients'!$K$16*LN(Residential_Energy_Cost)+'Residential Energy Coefficients'!$K$24*IFERROR(LOOKUP(Metro_Select,Energy_Metro_Lookup,HDD),0)),0)))))/1000,0) -> 13.61430106 | CK15: =IFERROR(IF(B_Housing_Type="SF",EXP('Residential Energy Coefficients'!$C$3+'Residential Energy Coefficients'!$C$4*LN(B_Net_Sq_Ft_per_Unit)+'Residential Energy Coefficients'!$C$10*LN(B_HH_Income)+'Residential Energy Coefficients'!$C$11*B_HH_Size+'Residential Energy Coefficients'!$C$16*LN(Residential_Energy_Cost)+'Residential Energy Coefficients'!$C$19+'Residential Energy Coefficients'!$C$22+'Residential Energy Coefficients'!$C$25*IFERROR(LOOKUP(Metro_Select,Energy_Metro_Lookup,CDD),0)),IF(B_Housing_Type="TH",EXP('Residential Energy Coefficients'!$F$3+'Residential Energy Coefficients'!$F$4*LN(B_Net_Sq_Ft_per_Unit)+'Residential Energy Coefficients'!$F$10*LN(B_HH_Income)+'Residential Energy Coefficients'!$F$11*B_HH_Size+IF(B_Pct_Owner=1,'Residential Energy Coefficients'!$F$12,0)+'Residential Energy Coefficients'!$F$16*LN(Residential_Energy_Cost)+'Residential Energy Coefficients'!$F$22+'Residential Energy Coefficients'!$F$25*IFERROR(LOOKUP(Metro_Select,Energy_Metro_Lookup,CDD),0)),IF(B_Housing_Type="MF",EXP('Residential Energy Coefficients'!$I$3+'Residential Energy Coefficients'!$I$4*LN(B_Net_Sq_Ft_per_Unit)+'Residential Energy Coefficients'!$I$9+'Residential Energy Coefficients'!$I$11*B_HH_Size+'Residential Energy Coefficients'!$I$16*LN(Residential_Energy_Cost)+'Residential Energy Coefficients'!$I$22+'Residential Energy Coefficients'!$I$25*IFERROR(LOOKUP(Metro_Select,Energy_Metro_Lookup,CDD),0)),IF(B_Hotel_Room_Acre>0,EXP('Residential Energy Coefficients'!$I$3+'Residential Energy Coefficients'!$I$4*LN(B_Hotel_Room_Net)+'Residential Energy Coefficients'!$I$9+'Residential Energy Coefficients'!$I$11*1.25+'Residential Energy Coefficients'!$I$16*LN(Residential_Energy_Cost)+'Residential Energy Coefficients'!$I$22+'Residential Energy Coefficients'!$I$25*IFERROR(LOOKUP(Metro_Select,Energy_Metro_Lookup,CDD),0)),IF(B_Housing_Type="MH",EXP('Residential Energy Coefficients'!$L$3+'Residential Energy Coefficients'!$L$11*B_HH_Size+'Residential Energy Coefficients'!$L$16*LN(Residential_Energy_Cost)+'Residential Energy Coefficients'!$L$22+'Residential Energy Coefficients'!$L$25*IFERROR(LOOKUP(Metro_Select,Energy_Metro_Lookup,CDD),0)),0)))))/1000,0) -> 88.2799845 | CL15: =IFERROR(IF(B_Housing_Type="SF",EXP('Residential Energy Coefficients'!$D$3+'Residential Energy Coefficients'!$D$4*LN(B_Net_Sq_Ft_per_Unit)+'Residential Energy Coefficients'!$D$9+'Residential Energy Coefficients'!$D$10*LN(B_HH_Income)+'Residential Energy Coefficients'!$D$11*B_HH_Size+IF(B_Pct_Owner=1,'Residential Energy Coefficients'!$D$12,0)+'Residential Energy Coefficients'!$D$16*LN(Residential_Energy_Cost)),IF(B_Housing_Type="TH",EXP('Residential Energy Coefficients'!$G$3+'Residential Energy Coefficients'!$G$4*LN(B_Net_Sq_Ft_per_Unit)+'Residential Energy Coefficients'!$G$10*LN(B_HH_Income)+'Residential Energy Coefficients'!$G$11*B_HH_Size+'Residential Energy Coefficients'!$G$16*LN(Residential_Energy_Cost)),IF(B_Housing_Type="MF",EXP('Residential Energy Coefficients'!$J$3+'Residential Energy Coefficients'!$J$4*LN(B_Net_Sq_Ft_per_Unit)+'Residential Energy Coefficients'!$J$10*LN(B_HH_Income)+'Residential Energy Coefficients'!$J$11*B_HH_Size+IF(B_Pct_Owner=1,'Residential Energy Coefficients'!$J$12,0)+'Residential Energy Coefficients'!$J$16*LN(Residential_Energy_Cost)+'Residential Energy Coefficients'!$J$19),IF(B_Hotel_Room_Acre>0,EXP('Residential Energy Coefficients'!$J$3+'Residential Energy Coefficients'!$J$4*LN(B_Hotel_Room_Net)+'Residential Energy Coefficients'!$J$16*LN(Residential_Energy_Cost)+'Residential Energy Coefficients'!$J$19),IF(B_Housing_Type="MH",EXP('Residential Energy Coefficients'!$M$3+'Residential Energy Coefficients'!$M$4*LN(B_Net_Sq_Ft_per_Unit)+'Residential Energy Coefficients'!$M$11*B_HH_Size+'Residential Energy Coefficients'!$M$16*LN(Residential_Energy_Cost)+'Residential Energy Coefficients'!$M$19),0)))))/1000,0) -> 50.03135854 | CM15: 151.9256441 | CN15: =(IFERROR(EXP('Commercial Energy Coefficients'!$B$3+LN(B_RET_Gross_Sq_Ft)*'Commercial Energy Coefficients'!$B$4+'Commercial Energy Coefficients'!$B$11+'Commercial Energy Coefficients'!$B$14+'Commercial Energy Coefficients'!$B$18*LN((B_Ret_Emp_Acre)*(B_Lot_Size/43560))+'Commercial Energy Coefficients'!$B$19*LN(40)+'Commercial Energy Coefficients'!$B$21+'Commercial Energy Coefficients'!$B$22*LN(Commercial_Energy_Cost)+'Commercial Energy Coefficients'!$B$23*IFERROR(LOOKUP(Metro_Select,Energy_Metro_Lookup,HDD),0)),0)+IFERROR(EXP('Commercial Energy Coefficients'!$E$3+LN(B_OFF_Gross_Sq_Ft)*'Commercial Energy Coefficients'!$E$4+'Commercial Energy Coefficients'!$E$11+'Commercial Energy Coefficients'!$E$14+'Commercial Energy Coefficients'!$E$18*LN((B_OFF_Emp_Acre)*(B_Lot_Size/43560))+'Commercial Energy Coefficients'!$E$19*LN(40)+'Commercial Energy Coefficients'!$E$21+'Commercial Energy Coefficients'!$E$22*LN(Commercial_Energy_Cost)+'Commercial Energy Coefficients'!$E$23*IFERROR(LOOKUP(Metro_Select,Energy_Metro_Lookup,HDD),0)),0)+IFERROR(EXP('Commercial Energy Coefficients'!$H$3+LN(B_PUB_Gross_Sq_Ft)*'Commercial Energy Coefficients'!$H$4+'Commercial Energy Coefficients'!$H$11+'Commercial Energy Coefficients'!$H$14+'Commercial Energy Coefficients'!$H$18*LN((B_Pub_Emp_Acre)*(B_Lot_Size/43560))+'Commercial Energy Coefficients'!$H$19*LN(40)+'Commercial Energy Coefficients'!$H$21+'Commercial Energy Coefficients'!$H$22*LN(Commercial_Energy_Cost)+'Commercial Energy Coefficients'!$H$23*IFERROR(LOOKUP(Metro_Select,Energy_Metro_Lookup,HDD),0)),0))/1000 -> 0 | CO15: =(IFERROR(EXP('Commercial Energy Coefficients'!$C$3+LN((B_RET_Gross_Sq_Ft))*'Commercial Energy Coefficients'!$C$4+'Commercial Energy Coefficients'!$C$11+'Commercial Energy Coefficients'!$C$14+'Commercial Energy Coefficients'!$C$18*LN((B_Ret_Emp_Acre)*(B_Lot_Size/43560))+'Commercial Energy Coefficients'!$C$19*LN(40)+'Commercial Energy Coefficients'!$C$21+'Commercial Energy Coefficients'!$C$22*LN(Commercial_Energy_Cost)+'Commercial Energy Coefficients'!$C$24*IFERROR(LOOKUP(Metro_Select,Energy_Metro_Lookup,CDD),0)),0)+IFERROR(EXP('Commercial Energy Coefficients'!$F$3+LN((B_OFF_Gross_Sq_Ft))*'Commercial Energy Coefficients'!$F$4+'Commercial Energy Coefficients'!$F$11+'Commercial Energy Coefficients'!$F$14+'Commercial Energy Coefficients'!$F$18*LN((B_OFF_Emp_Acre)*(B_Lot_Size/43560))+'Commercial Energy Coefficients'!$F$19*LN(40)+'Commercial Energy Coefficients'!$F$21+'Commercial Energy Coefficients'!$F$22*LN(Commercial_Energy_Cost)+'Commercial Energy Coefficients'!$F$24*IFERROR(LOOKUP(Metro_Select,Energy_Metro_Lookup,CDD),0)),0)+IFERROR(EXP('Commercial Energy Coefficients'!$I$3+LN((B_PUB_Gross_Sq_Ft))*'Commercial Energy Coefficients'!$I$4+'Commercial Energy Coefficients'!$I$11+'Commercial Energy Coefficients'!$I$14+'Commercial Energy Coefficients'!$I$18*LN((B_Pub_Emp_Acre)*(B_Lot_Size/43560))+'Commercial Energy Coefficients'!$I$19*LN(40)+'Commercial Energy Coefficients'!$I$21+'Commercial Energy Coefficients'!$I$22*LN(Commercial_Energy_Cost)+'Commercial Energy Coefficients'!$I$24*IFERROR(LOOKUP(Metro_Select,Energy_Metro_Lookup,CDD),0)),0))/1000 -> 0 | CP15: =(IFERROR(EXP('Commercial Energy Coefficients'!$D$3+LN((B_RET_Gross_Sq_Ft))*'Commercial Energy Coefficients'!$D$4+'Commercial Energy Coefficients'!$D$14+'Commercial Energy Coefficients'!$D$18*LN((B_Ret_Emp_Acre)*(B_Lot_Size/43560))+'Commercial Energy Coefficients'!$D$19*LN(40)+'Commercial Energy Coefficients'!$D$21+'Commercial Energy Coefficients'!$D$22*LN(Commercial_Energy_Cost)),0)+IFERROR(EXP('Commercial Energy Coefficients'!$G$3+LN((B_OFF_Gross_Sq_Ft))*'Commercial Energy Coefficients'!$G$4+'Commercial Energy Coefficients'!$G$14+'Commercial Energy Coefficients'!$G$18*LN((B_OFF_Emp_Acre)*(B_Lot_Size/43560))+'Commercial Energy Coefficients'!$G$19*LN(40)+'Commercial Energy Coefficients'!$G$21+'Commercial Energy Coefficients'!$G$22*LN(Commercial_Energy_Cost)),0)+IFERROR(EXP('Commercial Energy Coefficients'!$J$3+LN((B_PUB_Gross_Sq_Ft))*'Commercial Energy Coefficients'!$J$4+'Commercial Energy Coefficients'!$J$14+'Commercial Energy Coefficients'!$J$18*LN((B_Pub_Emp_Acre)*(B_Lot_Size/43560))+'Commercial Energy Coefficients'!$J$19*LN(40)+'Commercial Energy Coefficients'!$J$21+'Commercial Energy Coefficients'!$J$22*LN(Commercial_Energy_Cost)),0))/1000 -> 0 | CQ15: 0 | CR15: 0 | CS15: 0 | CT15: 303.8512882 | CU15: 151.9256441 | CV15: 14.17160723 | CW15: 0 | CX15: 28.34321446 | CY15: 72.45 | CZ15: 144.9 | DA15: 80 | DB15: 196.5943239 | DC15: 0 | DD15: 160 | DE15: 50 | DF15: 122.8714524 | DG15: 0 | DH15: 100 | DI15: =IF(B_Housing_Type="",0,IF(B_Housing_Type="MF",'Project Info'!$B$160,IF(B_Housing_Type="TH",'Project Info'!$B$161,IF(AND(B_Housing_Type="SF",B_Net_Sq_Ft_per_Unit>0,B_Net_Sq_Ft_per_Unit<3000),'Project Info'!$B$162,IF(AND(B_Housing_Type="SF",B_Net_Sq_Ft_per_Unit>=3000),'Project Info'!$B$163))))) -> 2 | DJ15: 4.914858097 | DK15: 0 | DL15: 4 | DM15: =[12]!LandCost -> 76.20486318 | DN15: 381024.3159 | DO15: 3319483.84 | DQ15: 381024.3159 | DR15: 3319483.84 | DS15: =[12]!ProjectValue -> 836974.8242 | DT15: 7291724.668 | DU15: =[12]!YInt -> 0.8013 | DV15: =[12]!Slope -> 0.2514298 | DW15: =[12]!ProdType -> Residential Owner | DX15: =[12]!Subsidy -> 0 | DY15: 0 | DZ15: 0 | EA15: =[12]!ImpactFees -> 0 | EB15: 0 | EC15: =[12]!ROI_Rental -> 0.1002381726 | ED15: =[12]!ROI_Owner -> 0 | EE15: =[12]!PropTax -> 19966.32383 | EF15: 173946.6132 | EG15: 0 | EH15: 0 | EI15: 0.03547585871 | EJ15: =[12]!GreenRoof -> 0 | EK15: =[12]!GreenRoofEff -> 0 | EL15: =[12]!GreenRoofVolume -> 0 | EM15: =[12]!Biofiltration -> 910.8519774 | EN15: =[12]!BiofiltrationEff -> 0 | EO15: =[12]!BiofiltrationVolume -> 3065.927756 | EP15: =[12]!GreenRoofHarvesting -> 0 | EQ15: =[12]!GreenRoofHarvestingEff -> 0 | ER15: =[12]!WaterHarvesting -> 0 | ES15: =[12]!WaterHarvestingEff -> 0 | ET15: =[12]!WaterHarvestingVolume -> 0 | EU15: 0 | EV15: 104.5514207 | EX15: 0 | EY15: 0 | EZ15: 0 | FA15: 351.9200822 | FB15: 0 | FC15: 0 | FE15: =Annual_Cooling_degree_days*24*(1/R_conventional_SF_F_hrs_BTU-1/R_green_roof_SF_F_hrs_Btu)/3412*'Building Inputs'!$EU15 -> 0 | FF15: 0 | FG15: =Annual_Heating_degree_days*24*(1/R_conventional_SF_F_hrs_BTU-1/R_green_roof_SF_F_hrs_Btu)*'Building Inputs'!$EU15 -> 0 | FH15: 0 | FI15: =Avg_Annual_NO2_uptake*'Building Inputs'!$EU15 -> 0 | FJ15: =Avg_Annual_O3_uptake*'Building Inputs'!$EU15 -> 0 | FK15: =Avg_Annual_SO2_uptake*'Building Inputs'!$EU15 -> 0 | FL15: =Avg_Annual_PM_10_uptake*'Building Inputs'!$EU15 -> 0 | FM15: 0 | FN15: 0 | FO15: 0 | FP15: 0 | FQ15: 0 | FR15: 0 | FS15: 0 | FT15: 0 | FU15: 0 | FV15: =Avg_amount_of_carbon_sequestered_lbs_SF*'Building Inputs'!$EU15*3.67 -> 0 | FW15: 0 | FX15: 0 | FY15: 0 | FZ15: =Average_annual_rainfall_in*($C15*(1-$E15)+$EM15-$EJ15-$ER15)*$C15/43560*'Building Inputs'!$EN15*144*0.00433 -> 0 | GB15: =Avg_Annual_NO2_uptake*'Building Inputs'!$EV15 -> 0.03136542622 | GC15: =Avg_Annual_O3_uptake*'Building Inputs'!$EV15 -> 0.06147623539 | GD15: =Avg_Annual_SO2_uptake*'Building Inputs'!$EV15 -> 0.02394227535 | GE15: =Avg_Annual_PM_10_uptake*'Building Inputs'!$EV15 -> 0.01191886196 | GF15: 0.1047605236 | GG15: 0.2053306262 | GH15: 0.04932108722 | GI15: 0.03384956798 | GJ15: 0.393261805 | GK15: =Avg_amount_of_carbon_sequestered_lbs_SF*'Building Inputs'!$EV15*3.67 -> 12.73896331 | GL15: 0.0963065626 | GM15: =Average_annual_rainfall_in*('Building Inputs'!$EX15*'Building Inputs'!$EQ15+'Building Inputs'!$EY15*'Building Inputs'!$ES15)*144*0.00433 -> 0 | GO15: 0 | GQ15: 0 | GR15: 0.03136542622 | GS15: 0.2053306262 | GT15: 0.02394227535 | GU15: 0.01191886196 | GV15: 0.2725571897 | GW15: 0.1047605236 | GX15: 0.6858042915 | GY15: 0.04932108722 | GZ15: 0.03384956798 | HA15: 0.8737354703 | HB15: 12.73896331 | HC15: 0.0963065626 | HD15: =[12]!RequiredWQV -> 943.9016987 | HE15: =[12]!ConventionalWQV -> 0 | HF15: 108.3450067 | HG15: 0 | HH15: 351.9200822 | HI15: =[12]!TSSload -> 24.48724364 | HJ15: =[12]!TNload -> 0.4452226116 | HK15: =[12]!TLload -> 0.004452226116 | HL15: =[12]!fColiLoad -> 2405.187502 | HM15: =[12]!TSSreduction -> 20.13350967 | HN15: =[12]!TNreduction -> 0.2125439321 | HO15: =[12]!TLreduction -> 0.003468738271 | HP15: =[12]!fColiReduction -> 1790.211247 | HQ15: 2.810748811 | HR15: 0.05110452383 | HS15: 0.0005110452383 | HT15: 276.077537 | HU15: 2.311008915 | HV15: 0.02439668642 | HW15: 0.0003981563672 | HX15: 205.487976 | HY15: =[12]!EPA_MXD_ResTrips -> 13.02174238 | HZ15: =[12]!EPA_MXD_RetTrips -> 0 | IA15: =[12]!EPA_MXD_OffTrips -> 0 | IB15: =[12]!EPA_MXD_EduTrips -> 0 | IC15: =[12]!EPA_MXD_OtherTrips -> 0 | ID15: =[12]!EPA_MXD_ResVMT -> 36.95882506 | IE15: =[12]!EPA_MXD_RetVMT -> 0 | IF15: =[12]!EPA_MXD_OffVMT -> 0 | IG15: =[12]!EPA_MXD_EduVMT -> 0 | IH15: =[12]!EPA_MXD_OtherVMT -> 0
A16: 13 | B16: =[13]!name -> T4NSSMultiplexMedium | C16: =[13]!lot_size -> 10000 | D16: =[13]!Building_Lot_Coverage -> 0.2112 | E16: =[13]!Landscaping_Coverage -> 0.5998 | F16: =[13]!Parking_Coverage -> 0.189 | G16: =[13]!Height -> 2 | H16: =[13]!FAR -> 0.4224 | I16: 4224 | J16: =[13]!ResPct -> 1 | K16: 1 | L16: 0 | M16: 0 | N16: 0 | O16: 0 | P16: 0 | Q16: 0 | R16: 0 | S16: =[13]!RetPct -> 0 | T16: =[13]!OffPct -> 0 | U16: =[13]!IndPct -> 0 | V16: =[13]!PubPct -> 0 | W16: =[13]!EduPct -> 0 | X16: =[13]!HotelPct -> 0 | Y16: =[13]!ComParkingPct -> 0 | Z16: =[13]!ParkingPct -> 0 | AA16: 4224 | AB16: =[13]!NetUnitSize -> 563.2 | AC16: =[13]!UnitSize -> 704 | AD16: 6 | AE16: 26.136 | AF16: =[13]!HousingType -> MF | AG16: =[13]!RentalPct -> 1 | AH16: 0 | AI16: =[13]!AffordablePct -> 0 | AJ16: =[13]!Rent -> 2.46 | AK16: 1385.472 | AL16: =[13]!Sales_Price -> 0 | AM16: 0 | AN16: 0 | AO16: 0.06 | AP16: 24.56784 | AQ16: 1.128657315 | AR16: 0.5752080272 | AS16: 0.1951 | AT16: 55418.88 | AU16: 0 | AV16: 0 | AW16: 0 | AX16: 0 | AY16: 0 | AZ16: =[13]!RetRent -> 31.38 | BA16: =[13]!RetSpace -> 945 | BB16: 0 | BC16: 0 | BD16: =[13]!OffRent -> 36.78 | BE16: =[13]!OffSpace -> 387 | BF16: 0 | BG16: 0 | BH16: =[13]!IndRent -> 12 | BI16: =[13]!IndSpace -> 1730 | BJ16: 0 | BK16: 0 | BL16: =[13]!PubRent -> 14 | BM16: =[13]!PubSpace -> 746 | BN16: 0 | BO16: 0 | BP16: =[13]!EduRent -> 14 | BQ16: =[13]!EduSpace -> 767 | BR16: 0 | BS16: 0 | BT16: =[13]!HotelRent -> 150 | BU16: =[13]!HotelSpaceEmp -> 1317 | BV16: 0 | BW16: =[13]!HotelRoomNet -> 0 | BX16: =[13]!HotelRoomGross -> 0 | BY16: 0 | BZ16: 0 | CA16: 0 | CB16: =[13]!ParkingRent -> 4 | CC16: =[13]!ParkingSpace -> 20000 | CD16: 0 | CE16: =[13]!ParkingSpaces -> 6 | CF16: =[13]!ParkingArea -> 1890 | CG16: =[13]!IntStructParkingArea -> 0 | CH16: =[13]!ParkingCost -> 30000 | CI16: 0.03209764424 | CJ16: =IFERROR(IF(B_Housing_Type="SF",EXP('Residential Energy Coefficients'!$B$3+'Residential Energy Coefficients'!$B$4*LN(B_Net_Sq_Ft_per_Unit)+'Residential Energy Coefficients'!$B$9+'Residential Energy Coefficients'!$B$10*LN(B_HH_Income)+'Residential Energy Coefficients'!$B$16*LN(Residential_Energy_Cost)+'Residential Energy Coefficients'!$B$20+'Residential Energy Coefficients'!$B$24*IFERROR(LOOKUP(Metro_Select,Energy_Metro_Lookup,HDD),0)),IF(B_Housing_Type="TH",EXP('Residential Energy Coefficients'!$E$3+'Residential Energy Coefficients'!$E$4*LN(B_Net_Sq_Ft_per_Unit)+'Residential Energy Coefficients'!$E$9+'Residential Energy Coefficients'!$E$16*LN(Residential_Energy_Cost)+'Residential Energy Coefficients'!$E$19+'Residential Energy Coefficients'!$E$20+'Residential Energy Coefficients'!$E$24*IFERROR(LOOKUP(Metro_Select,Energy_Metro_Lookup,HDD),0)),IF(B_Housing_Type="MF",EXP('Residential Energy Coefficients'!$H$3+'Residential Energy Coefficients'!$H$4*LN(B_Net_Sq_Ft_per_Unit)+'Residential Energy Coefficients'!$H$9+IF(B_Pct_Owner=1,'Residential Energy Coefficients'!$H$12,0)+'Residential Energy Coefficients'!$H$16*LN(Residential_Energy_Cost)+'Residential Energy Coefficients'!$H$20+'Residential Energy Coefficients'!$H$24*IFERROR(LOOKUP(Metro_Select,Energy_Metro_Lookup,HDD),0)),IF(B_Hotel_Room_Acre>0,EXP('Residential Energy Coefficients'!$H$3+'Residential Energy Coefficients'!$H$4*LN(B_Hotel_Room_Net)+'Residential Energy Coefficients'!$H$9+'Residential Energy Coefficients'!$H$16*LN(Residential_Energy_Cost)+'Residential Energy Coefficients'!$H$20+'Residential Energy Coefficients'!$H$24*IFERROR(LOOKUP(Metro_Select,Energy_Metro_Lookup,HDD),0)),IF(B_Housing_Type="MH",EXP('Residential Energy Coefficients'!$K$3+'Residential Energy Coefficients'!$K$16*LN(Residential_Energy_Cost)+'Residential Energy Coefficients'!$K$24*IFERROR(LOOKUP(Metro_Select,Energy_Metro_Lookup,HDD),0)),0)))))/1000,0) -> 8.560464921 | CK16: =IFERROR(IF(B_Housing_Type="SF",EXP('Residential Energy Coefficients'!$C$3+'Residential Energy Coefficients'!$C$4*LN(B_Net_Sq_Ft_per_Unit)+'Residential Energy Coefficients'!$C$10*LN(B_HH_Income)+'Residential Energy Coefficients'!$C$11*B_HH_Size+'Residential Energy Coefficients'!$C$16*LN(Residential_Energy_Cost)+'Residential Energy Coefficients'!$C$19+'Residential Energy Coefficients'!$C$22+'Residential Energy Coefficients'!$C$25*IFERROR(LOOKUP(Metro_Select,Energy_Metro_Lookup,CDD),0)),IF(B_Housing_Type="TH",EXP('Residential Energy Coefficients'!$F$3+'Residential Energy Coefficients'!$F$4*LN(B_Net_Sq_Ft_per_Unit)+'Residential Energy Coefficients'!$F$10*LN(B_HH_Income)+'Residential Energy Coefficients'!$F$11*B_HH_Size+IF(B_Pct_Owner=1,'Residential Energy Coefficients'!$F$12,0)+'Residential Energy Coefficients'!$F$16*LN(Residential_Energy_Cost)+'Residential Energy Coefficients'!$F$22+'Residential Energy Coefficients'!$F$25*IFERROR(LOOKUP(Metro_Select,Energy_Metro_Lookup,CDD),0)),IF(B_Housing_Type="MF",EXP('Residential Energy Coefficients'!$I$3+'Residential Energy Coefficients'!$I$4*LN(B_Net_Sq_Ft_per_Unit)+'Residential Energy Coefficients'!$I$9+'Residential Energy Coefficients'!$I$11*B_HH_Size+'Residential Energy Coefficients'!$I$16*LN(Residential_Energy_Cost)+'Residential Energy Coefficients'!$I$22+'Residential Energy Coefficients'!$I$25*IFERROR(LOOKUP(Metro_Select,Energy_Metro_Lookup,CDD),0)),IF(B_Hotel_Room_Acre>0,EXP('Residential Energy Coefficients'!$I$3+'Residential Energy Coefficients'!$I$4*LN(B_Hotel_Room_Net)+'Residential Energy Coefficients'!$I$9+'Residential Energy Coefficients'!$I$11*1.25+'Residential Energy Coefficients'!$I$16*LN(Residential_Energy_Cost)+'Residential Energy Coefficients'!$I$22+'Residential Energy Coefficients'!$I$25*IFERROR(LOOKUP(Metro_Select,Energy_Metro_Lookup,CDD),0)),IF(B_Housing_Type="MH",EXP('Residential Energy Coefficients'!$L$3+'Residential Energy Coefficients'!$L$11*B_HH_Size+'Residential Energy Coefficients'!$L$16*LN(Residential_Energy_Cost)+'Residential Energy Coefficients'!$L$22+'Residential Energy Coefficients'!$L$25*IFERROR(LOOKUP(Metro_Select,Energy_Metro_Lookup,CDD),0)),0)))))/1000,0) -> 66.40097273 | CL16: =IFERROR(IF(B_Housing_Type="SF",EXP('Residential Energy Coefficients'!$D$3+'Residential Energy Coefficients'!$D$4*LN(B_Net_Sq_Ft_per_Unit)+'Residential Energy Coefficients'!$D$9+'Residential Energy Coefficients'!$D$10*LN(B_HH_Income)+'Residential Energy Coefficients'!$D$11*B_HH_Size+IF(B_Pct_Owner=1,'Residential Energy Coefficients'!$D$12,0)+'Residential Energy Coefficients'!$D$16*LN(Residential_Energy_Cost)),IF(B_Housing_Type="TH",EXP('Residential Energy Coefficients'!$G$3+'Residential Energy Coefficients'!$G$4*LN(B_Net_Sq_Ft_per_Unit)+'Residential Energy Coefficients'!$G$10*LN(B_HH_Income)+'Residential Energy Coefficients'!$G$11*B_HH_Size+'Residential Energy Coefficients'!$G$16*LN(Residential_Energy_Cost)),IF(B_Housing_Type="MF",EXP('Residential Energy Coefficients'!$J$3+'Residential Energy Coefficients'!$J$4*LN(B_Net_Sq_Ft_per_Unit)+'Residential Energy Coefficients'!$J$10*LN(B_HH_Income)+'Residential Energy Coefficients'!$J$11*B_HH_Size+IF(B_Pct_Owner=1,'Residential Energy Coefficients'!$J$12,0)+'Residential Energy Coefficients'!$J$16*LN(Residential_Energy_Cost)+'Residential Energy Coefficients'!$J$19),IF(B_Hotel_Room_Acre>0,EXP('Residential Energy Coefficients'!$J$3+'Residential Energy Coefficients'!$J$4*LN(B_Hotel_Room_Net)+'Residential Energy Coefficients'!$J$16*LN(Residential_Energy_Cost)+'Residential Energy Coefficients'!$J$19),IF(B_Housing_Type="MH",EXP('Residential Energy Coefficients'!$M$3+'Residential Energy Coefficients'!$M$4*LN(B_Net_Sq_Ft_per_Unit)+'Residential Energy Coefficients'!$M$11*B_HH_Size+'Residential Energy Coefficients'!$M$16*LN(Residential_Energy_Cost)+'Residential Energy Coefficients'!$M$19),0)))))/1000,0) -> 20.47336181 | CM16: 95.43479946 | CN16: =(IFERROR(EXP('Commercial Energy Coefficients'!$B$3+LN(B_RET_Gross_Sq_Ft)*'Commercial Energy Coefficients'!$B$4+'Commercial Energy Coefficients'!$B$11+'Commercial Energy Coefficients'!$B$14+'Commercial Energy Coefficients'!$B$18*LN((B_Ret_Emp_Acre)*(B_Lot_Size/43560))+'Commercial Energy Coefficients'!$B$19*LN(40)+'Commercial Energy Coefficients'!$B$21+'Commercial Energy Coefficients'!$B$22*LN(Commercial_Energy_Cost)+'Commercial Energy Coefficients'!$B$23*IFERROR(LOOKUP(Metro_Select,Energy_Metro_Lookup,HDD),0)),0)+IFERROR(EXP('Commercial Energy Coefficients'!$E$3+LN(B_OFF_Gross_Sq_Ft)*'Commercial Energy Coefficients'!$E$4+'Commercial Energy Coefficients'!$E$11+'Commercial Energy Coefficients'!$E$14+'Commercial Energy Coefficients'!$E$18*LN((B_OFF_Emp_Acre)*(B_Lot_Size/43560))+'Commercial Energy Coefficients'!$E$19*LN(40)+'Commercial Energy Coefficients'!$E$21+'Commercial Energy Coefficients'!$E$22*LN(Commercial_Energy_Cost)+'Commercial Energy Coefficients'!$E$23*IFERROR(LOOKUP(Metro_Select,Energy_Metro_Lookup,HDD),0)),0)+IFERROR(EXP('Commercial Energy Coefficients'!$H$3+LN(B_PUB_Gross_Sq_Ft)*'Commercial Energy Coefficients'!$H$4+'Commercial Energy Coefficients'!$H$11+'Commercial Energy Coefficients'!$H$14+'Commercial Energy Coefficients'!$H$18*LN((B_Pub_Emp_Acre)*(B_Lot_Size/43560))+'Commercial Energy Coefficients'!$H$19*LN(40)+'Commercial Energy Coefficients'!$H$21+'Commercial Energy Coefficients'!$H$22*LN(Commercial_Energy_Cost)+'Commercial Energy Coefficients'!$H$23*IFERROR(LOOKUP(Metro_Select,Energy_Metro_Lookup,HDD),0)),0))/1000 -> 0 | CO16: =(IFERROR(EXP('Commercial Energy Coefficients'!$C$3+LN((B_RET_Gross_Sq_Ft))*'Commercial Energy Coefficients'!$C$4+'Commercial Energy Coefficients'!$C$11+'Commercial Energy Coefficients'!$C$14+'Commercial Energy Coefficients'!$C$18*LN((B_Ret_Emp_Acre)*(B_Lot_Size/43560))+'Commercial Energy Coefficients'!$C$19*LN(40)+'Commercial Energy Coefficients'!$C$21+'Commercial Energy Coefficients'!$C$22*LN(Commercial_Energy_Cost)+'Commercial Energy Coefficients'!$C$24*IFERROR(LOOKUP(Metro_Select,Energy_Metro_Lookup,CDD),0)),0)+IFERROR(EXP('Commercial Energy Coefficients'!$F$3+LN((B_OFF_Gross_Sq_Ft))*'Commercial Energy Coefficients'!$F$4+'Commercial Energy Coefficients'!$F$11+'Commercial Energy Coefficients'!$F$14+'Commercial Energy Coefficients'!$F$18*LN((B_OFF_Emp_Acre)*(B_Lot_Size/43560))+'Commercial Energy Coefficients'!$F$19*LN(40)+'Commercial Energy Coefficients'!$F$21+'Commercial Energy Coefficients'!$F$22*LN(Commercial_Energy_Cost)+'Commercial Energy Coefficients'!$F$24*IFERROR(LOOKUP(Metro_Select,Energy_Metro_Lookup,CDD),0)),0)+IFERROR(EXP('Commercial Energy Coefficients'!$I$3+LN((B_PUB_Gross_Sq_Ft))*'Commercial Energy Coefficients'!$I$4+'Commercial Energy Coefficients'!$I$11+'Commercial Energy Coefficients'!$I$14+'Commercial Energy Coefficients'!$I$18*LN((B_Pub_Emp_Acre)*(B_Lot_Size/43560))+'Commercial Energy Coefficients'!$I$19*LN(40)+'Commercial Energy Coefficients'!$I$21+'Commercial Energy Coefficients'!$I$22*LN(Commercial_Energy_Cost)+'Commercial Energy Coefficients'!$I$24*IFERROR(LOOKUP(Metro_Select,Energy_Metro_Lookup,CDD),0)),0))/1000 -> 0 | CP16: =(IFERROR(EXP('Commercial Energy Coefficients'!$D$3+LN((B_RET_Gross_Sq_Ft))*'Commercial Energy Coefficients'!$D$4+'Commercial Energy Coefficients'!$D$14+'Commercial Energy Coefficients'!$D$18*LN((B_Ret_Emp_Acre)*(B_Lot_Size/43560))+'Commercial Energy Coefficients'!$D$19*LN(40)+'Commercial Energy Coefficients'!$D$21+'Commercial Energy Coefficients'!$D$22*LN(Commercial_Energy_Cost)),0)+IFERROR(EXP('Commercial Energy Coefficients'!$G$3+LN((B_OFF_Gross_Sq_Ft))*'Commercial Energy Coefficients'!$G$4+'Commercial Energy Coefficients'!$G$14+'Commercial Energy Coefficients'!$G$18*LN((B_OFF_Emp_Acre)*(B_Lot_Size/43560))+'Commercial Energy Coefficients'!$G$19*LN(40)+'Commercial Energy Coefficients'!$G$21+'Commercial Energy Coefficients'!$G$22*LN(Commercial_Energy_Cost)),0)+IFERROR(EXP('Commercial Energy Coefficients'!$J$3+LN((B_PUB_Gross_Sq_Ft))*'Commercial Energy Coefficients'!$J$4+'Commercial Energy Coefficients'!$J$14+'Commercial Energy Coefficients'!$J$18*LN((B_Pub_Emp_Acre)*(B_Lot_Size/43560))+'Commercial Energy Coefficients'!$J$19*LN(40)+'Commercial Energy Coefficients'!$J$21+'Commercial Energy Coefficients'!$J$22*LN(Commercial_Energy_Cost)),0))/1000 -> 0 | CQ16: 0 | CR16: 0 | CS16: 0 | CT16: 572.6087967 | CU16: 95.43479946 | CV16: 8.902147507 | CW16: 0 | CX16: 53.41288504 | CY16: 49.98333333 | CZ16: 299.9 | DA16: 60 | DB16: 67.71943888 | DC16: 0 | DD16: 360 | DE16: 35 | DF16: 39.50300601 | DG16: 0 | DH16: 210 | DI16: =IF(B_Housing_Type="",0,IF(B_Housing_Type="MF",'Project Info'!$B$160,IF(B_Housing_Type="TH",'Project Info'!$B$161,IF(AND(B_Housing_Type="SF",B_Net_Sq_Ft_per_Unit>0,B_Net_Sq_Ft_per_Unit<3000),'Project Info'!$B$162,IF(AND(B_Housing_Type="SF",B_Net_Sq_Ft_per_Unit>=3000),'Project Info'!$B$163))))) -> 1.5 | DJ16: 1.692985972 | DK16: 0 | DL16: 9 | DM16: =[13]!LandCost -> 7.579749194 | DN16: 75797.49194 | DO16: 330173.8749 | DQ16: 75797.49194 | DR16: 330173.8749 | DS16: =[13]!ProjectValue -> 934648.0314 | DT16: 4071326.825 | DU16: =[13]!YInt -> 0.8013 | DV16: =[13]!Slope -> 0.2514298 | DW16: =[13]!ProdType -> Residential Owner | DX16: =[13]!Subsidy -> 0 | DY16: 0 | DZ16: 0 | EA16: =[13]!ImpactFees -> 0 | EB16: 0 | EC16: =[13]!ROI_Rental -> 0.09982681976 | ED16: =[13]!ROI_Owner -> 0 | EE16: =[13]!PropTax -> 22963.15922 | EF16: 100027.5215 | EG16: 0 | EH16: 0 | EI16: 0.02545007255 | EJ16: =[13]!GreenRoof -> 0 | EK16: =[13]!GreenRoofEff -> 0 | EL16: =[13]!GreenRoofVolume -> 0 | EM16: =[13]!Biofiltration -> 1885.193292 | EN16: =[13]!BiofiltrationEff -> 0 | EO16: =[13]!BiofiltrationVolume -> 6345.560621 | EP16: =[13]!GreenRoofHarvesting -> 0 | EQ16: =[13]!GreenRoofHarvestingEff -> 0 | ER16: =[13]!WaterHarvesting -> 0 | ES16: =[13]!WaterHarvestingEff -> 0 | ET16: =[13]!WaterHarvestingVolume -> 0 | EU16: 0 | EV16: 432.7808292 | EX16: 0 | EY16: 0 | EZ16: 0 | FA16: 1456.740271 | FB16: 0 | FC16: 0 | FE16: =Annual_Cooling_degree_days*24*(1/R_conventional_SF_F_hrs_BTU-1/R_green_roof_SF_F_hrs_Btu)/3412*'Building Inputs'!$EU16 -> 0 | FF16: 0 | FG16: =Annual_Heating_degree_days*24*(1/R_conventional_SF_F_hrs_BTU-1/R_green_roof_SF_F_hrs_Btu)*'Building Inputs'!$EU16 -> 0 | FH16: 0 | FI16: =Avg_Annual_NO2_uptake*'Building Inputs'!$EU16 -> 0 | FJ16: =Avg_Annual_O3_uptake*'Building Inputs'!$EU16 -> 0 | FK16: =Avg_Annual_SO2_uptake*'Building Inputs'!$EU16 -> 0 | FL16: =Avg_Annual_PM_10_uptake*'Building Inputs'!$EU16 -> 0 | FM16: 0 | FN16: 0 | FO16: 0 | FP16: 0 | FQ16: 0 | FR16: 0 | FS16: 0 | FT16: 0 | FU16: 0 | FV16: =Avg_amount_of_carbon_sequestered_lbs_SF*'Building Inputs'!$EU16*3.67 -> 0 | FW16: 0 | FX16: 0 | FY16: 0 | FZ16: =Average_annual_rainfall_in*($C16*(1-$E16)+$EM16-$EJ16-$ER16)*$C16/43560*'Building Inputs'!$EN16*144*0.00433 -> 0 | GB16: =Avg_Annual_NO2_uptake*'Building Inputs'!$EV16 -> 0.1298342488 | GC16: =Avg_Annual_O3_uptake*'Building Inputs'!$EV16 -> 0.2544751276 | GD16: =Avg_Annual_SO2_uptake*'Building Inputs'!$EV16 -> 0.09910680989 | GE16: =Avg_Annual_PM_10_uptake*'Building Inputs'!$EV16 -> 0.04933701453 | GF16: 0.4336463909 | GG16: 0.8499469261 | GH16: 0.2041600284 | GI16: 0.1401171213 | GJ16: 1.627870467 | GK16: =Avg_amount_of_carbon_sequestered_lbs_SF*'Building Inputs'!$EV16*3.67 -> 52.73174736 | GL16: 0.39865201 | GM16: =Average_annual_rainfall_in*('Building Inputs'!$EX16*'Building Inputs'!$EQ16+'Building Inputs'!$EY16*'Building Inputs'!$ES16)*144*0.00433 -> 0 | GO16: 0 | GQ16: 0 | GR16: 0.1298342488 | GS16: 0.8499469261 | GT16: 0.09910680989 | GU16: 0.04933701453 | GV16: 1.128224999 | GW16: 0.4336463909 | GX16: 2.838822733 | GY16: 0.2041600284 | GZ16: 0.1401171213 | HA16: 3.616746274 | HB16: 52.73174736 | HC16: 0.39865201 | HD16: =[13]!RequiredWQV -> 1746.704916 | HE16: =[13]!ConventionalWQV -> 0 | HF16: 400.9882727 | HG16: 0 | HH16: 1456.740271 | HI16: =[13]!TSSload -> 46.06595364 | HJ16: =[13]!TNload -> 0.5862939555 | HK16: =[13]!TLload -> 0.008375627935 | HL16: =[13]!fColiLoad -> 10870.21821 | HM16: =[13]!TSSreduction -> 37.74211222 | HN16: =[13]!TNreduction -> 0.2849869385 | HO16: =[13]!TLreduction -> 0.006513332191 | HP16: =[13]!fColiReduction -> 8006.454236 | HQ16: 10.5752878 | HR16: 0.134594572 | HS16: 0.001922779599 | HT16: 2495.458727 | HU16: 8.664396744 | HV16: 0.06542399873 | HW16: 0.001495255324 | HX16: 1838.02898 | HY16: =[13]!EPA_MXD_ResTrips -> 39.04619617 | HZ16: =[13]!EPA_MXD_RetTrips -> 0 | IA16: =[13]!EPA_MXD_OffTrips -> 0 | IB16: =[13]!EPA_MXD_EduTrips -> 0 | IC16: =[13]!EPA_MXD_OtherTrips -> 0 | ID16: =[13]!EPA_MXD_ResVMT -> 110.833019 | IE16: =[13]!EPA_MXD_RetVMT -> 0 | IF16: =[13]!EPA_MXD_OffVMT -> 0 | IG16: =[13]!EPA_MXD_EduVMT -> 0 | IH16: =[13]!EPA_MXD_OtherVMT -> 0
A17: 14 | B17: =[14]!name -> T4MSLiveWork | C17: =[14]!lot_size -> 2500 | D17: =[14]!Building_Lot_Coverage -> 0.4384 | E17: =[14]!Landscaping_Coverage -> 0.4671 | F17: =[14]!Parking_Coverage -> 0.0945 | G17: =[14]!Height -> 3 | H17: =[14]!FAR -> 1.3152 | I17: 3288 | J17: =[14]!ResPct -> 0.9329644605 | K17: 0 | L17: 0 | M17: 0.9329644605 | N17: 0.9329644605 | O17: 0 | P17: 0 | Q17: 0 | R17: 0 | S17: =[14]!RetPct -> 0 | T17: =[14]!OffPct -> 0 | U17: =[14]!IndPct -> 0 | V17: =[14]!PubPct -> 0 | W17: =[14]!EduPct -> 0 | X17: =[14]!HotelPct -> 0 | Y17: =[14]!ComParkingPct -> 0 | Z17: =[14]!ParkingPct -> 0.06703553948 | AA17: 3067.587146 | AB17: =[14]!NetUnitSize -> 3288 | AC17: =[14]!UnitSize -> 3288 | AD17: 0.9329644605 | AE17: 16.25597276 | AF17: =[14]!HousingType -> SF | AG17: =[14]!RentalPct -> 0 | AH17: 1 | AI17: =[14]!AffordablePct -> 0 | AJ17: =[14]!Rent -> 0 | AK17: 0 | AL17: =[14]!Sales_Price -> 379 | AM17: 1246152 | AN17: 7471.31086 | AO17: 0.08 | AP17: 14.95549494 | AQ17: 3 | AR17: 1.528917643 | AS17: 0.1951 | AT17: 344829.732 | AU17: 0 | AV17: 0 | AW17: 0 | AX17: 0 | AY17: 0 | AZ17: =[14]!RetRent -> 31.38 | BA17: =[14]!RetSpace -> 945 | BB17: 0 | BC17: 0 | BD17: =[14]!OffRent -> 36.78 | BE17: =[14]!OffSpace -> 387 | BF17: 0 | BG17: 0 | BH17: =[14]!IndRent -> 12 | BI17: =[14]!IndSpace -> 1730 | BJ17: 0 | BK17: 0 | BL17: =[14]!PubRent -> 14 | BM17: =[14]!PubSpace -> 746 | BN17: 0 | BO17: 0 | BP17: =[14]!EduRent -> 14 | BQ17: =[14]!EduSpace -> 767 | BR17: 0 | BS17: 0 | BT17: =[14]!HotelRent -> 150 | BU17: =[14]!HotelSpaceEmp -> 1317 | BV17: 0 | BW17: =[14]!HotelRoomNet -> 0 | BX17: =[14]!HotelRoomGross -> 0 | BY17: 0 | BZ17: 0 | CA17: 0 | CB17: =[14]!ParkingRent -> 4 | CC17: =[14]!ParkingSpace -> 20000 | CD17: 0 | CE17: =[14]!ParkingSpaces -> 0.75 | CF17: =[14]!ParkingArea -> 236.25 | CG17: =[14]!IntStructParkingArea -> 236.25 | CH17: =[14]!ParkingCost -> 18750 | CI17: 0.01805670831 | CJ17: =IFERROR(IF(B_Housing_Type="SF",EXP('Residential Energy Coefficients'!$B$3+'Residential Energy Coefficients'!$B$4*LN(B_Net_Sq_Ft_per_Unit)+'Residential Energy Coefficients'!$B$9+'Residential Energy Coefficients'!$B$10*LN(B_HH_Income)+'Residential Energy Coefficients'!$B$16*LN(Residential_Energy_Cost)+'Residential Energy Coefficients'!$B$20+'Residential Energy Coefficients'!$B$24*IFERROR(LOOKUP(Metro_Select,Energy_Metro_Lookup,HDD),0)),IF(B_Housing_Type="TH",EXP('Residential Energy Coefficients'!$E$3+'Residential Energy Coefficients'!$E$4*LN(B_Net_Sq_Ft_per_Unit)+'Residential Energy Coefficients'!$E$9+'Residential Energy Coefficients'!$E$16*LN(Residential_Energy_Cost)+'Residential Energy Coefficients'!$E$19+'Residential Energy Coefficients'!$E$20+'Residential Energy Coefficients'!$E$24*IFERROR(LOOKUP(Metro_Select,Energy_Metro_Lookup,HDD),0)),IF(B_Housing_Type="MF",EXP('Residential Energy Coefficients'!$H$3+'Residential Energy Coefficients'!$H$4*LN(B_Net_Sq_Ft_per_Unit)+'Residential Energy Coefficients'!$H$9+IF(B_Pct_Owner=1,'Residential Energy Coefficients'!$H$12,0)+'Residential Energy Coefficients'!$H$16*LN(Residential_Energy_Cost)+'Residential Energy Coefficients'!$H$20+'Residential Energy Coefficients'!$H$24*IFERROR(LOOKUP(Metro_Select,Energy_Metro_Lookup,HDD),0)),IF(B_Hotel_Room_Acre>0,EXP('Residential Energy Coefficients'!$H$3+'Residential Energy Coefficients'!$H$4*LN(B_Hotel_Room_Net)+'Residential Energy Coefficients'!$H$9+'Residential Energy Coefficients'!$H$16*LN(Residential_Energy_Cost)+'Residential Energy Coefficients'!$H$20+'Residential Energy Coefficients'!$H$24*IFERROR(LOOKUP(Metro_Select,Energy_Metro_Lookup,HDD),0)),IF(B_Housing_Type="MH",EXP('Residential Energy Coefficients'!$K$3+'Residential Energy Coefficients'!$K$16*LN(Residential_Energy_Cost)+'Residential Energy Coefficients'!$K$24*IFERROR(LOOKUP(Metro_Select,Energy_Metro_Lookup,HDD),0)),0)))))/1000,0) -> 24.58494052 | CK17: =IFERROR(IF(B_Housing_Type="SF",EXP('Residential Energy Coefficients'!$C$3+'Residential Energy Coefficients'!$C$4*LN(B_Net_Sq_Ft_per_Unit)+'Residential Energy Coefficients'!$C$10*LN(B_HH_Income)+'Residential Energy Coefficients'!$C$11*B_HH_Size+'Residential Energy Coefficients'!$C$16*LN(Residential_Energy_Cost)+'Residential Energy Coefficients'!$C$19+'Residential Energy Coefficients'!$C$22+'Residential Energy Coefficients'!$C$25*IFERROR(LOOKUP(Metro_Select,Energy_Metro_Lookup,CDD),0)),IF(B_Housing_Type="TH",EXP('Residential Energy Coefficients'!$F$3+'Residential Energy Coefficients'!$F$4*LN(B_Net_Sq_Ft_per_Unit)+'Residential Energy Coefficients'!$F$10*LN(B_HH_Income)+'Residential Energy Coefficients'!$F$11*B_HH_Size+IF(B_Pct_Owner=1,'Residential Energy Coefficients'!$F$12,0)+'Residential Energy Coefficients'!$F$16*LN(Residential_Energy_Cost)+'Residential Energy Coefficients'!$F$22+'Residential Energy Coefficients'!$F$25*IFERROR(LOOKUP(Metro_Select,Energy_Metro_Lookup,CDD),0)),IF(B_Housing_Type="MF",EXP('Residential Energy Coefficients'!$I$3+'Residential Energy Coefficients'!$I$4*LN(B_Net_Sq_Ft_per_Unit)+'Residential Energy Coefficients'!$I$9+'Residential Energy Coefficients'!$I$11*B_HH_Size+'Residential Energy Coefficients'!$I$16*LN(Residential_Energy_Cost)+'Residential Energy Coefficients'!$I$22+'Residential Energy Coefficients'!$I$25*IFERROR(LOOKUP(Metro_Select,Energy_Metro_Lookup,CDD),0)),IF(B_Hotel_Room_Acre>0,EXP('Residential Energy Coefficients'!$I$3+'Residential Energy Coefficients'!$I$4*LN(B_Hotel_Room_Net)+'Residential Energy Coefficients'!$I$9+'Residential Energy Coefficients'!$I$11*1.25+'Residential Energy Coefficients'!$I$16*LN(Residential_Energy_Cost)+'Residential Energy Coefficients'!$I$22+'Residential Energy Coefficients'!$I$25*IFERROR(LOOKUP(Metro_Select,Energy_Metro_Lookup,CDD),0)),IF(B_Housing_Type="MH",EXP('Residential Energy Coefficients'!$L$3+'Residential Energy Coefficients'!$L$11*B_HH_Size+'Residential Energy Coefficients'!$L$16*LN(Residential_Energy_Cost)+'Residential Energy Coefficients'!$L$22+'Residential Energy Coefficients'!$L$25*IFERROR(LOOKUP(Metro_Select,Energy_Metro_Lookup,CDD),0)),0)))))/1000,0) -> 169.0715567 | CL17: =IFERROR(IF(B_Housing_Type="SF",EXP('Residential Energy Coefficients'!$D$3+'Residential Energy Coefficients'!$D$4*LN(B_Net_Sq_Ft_per_Unit)+'Residential Energy Coefficients'!$D$9+'Residential Energy Coefficients'!$D$10*LN(B_HH_Income)+'Residential Energy Coefficients'!$D$11*B_HH_Size+IF(B_Pct_Owner=1,'Residential Energy Coefficients'!$D$12,0)+'Residential Energy Coefficients'!$D$16*LN(Residential_Energy_Cost)),IF(B_Housing_Type="TH",EXP('Residential Energy Coefficients'!$G$3+'Residential Energy Coefficients'!$G$4*LN(B_Net_Sq_Ft_per_Unit)+'Residential Energy Coefficients'!$G$10*LN(B_HH_Income)+'Residential Energy Coefficients'!$G$11*B_HH_Size+'Residential Energy Coefficients'!$G$16*LN(Residential_Energy_Cost)),IF(B_Housing_Type="MF",EXP('Residential Energy Coefficients'!$J$3+'Residential Energy Coefficients'!$J$4*LN(B_Net_Sq_Ft_per_Unit)+'Residential Energy Coefficients'!$J$10*LN(B_HH_Income)+'Residential Energy Coefficients'!$J$11*B_HH_Size+IF(B_Pct_Owner=1,'Residential Energy Coefficients'!$J$12,0)+'Residential Energy Coefficients'!$J$16*LN(Residential_Energy_Cost)+'Residential Energy Coefficients'!$J$19),IF(B_Hotel_Room_Acre>0,EXP('Residential Energy Coefficients'!$J$3+'Residential Energy Coefficients'!$J$4*LN(B_Hotel_Room_Net)+'Residential Energy Coefficients'!$J$16*LN(Residential_Energy_Cost)+'Residential Energy Coefficients'!$J$19),IF(B_Housing_Type="MH",EXP('Residential Energy Coefficients'!$M$3+'Residential Energy Coefficients'!$M$4*LN(B_Net_Sq_Ft_per_Unit)+'Residential Energy Coefficients'!$M$11*B_HH_Size+'Residential Energy Coefficients'!$M$16*LN(Residential_Energy_Cost)+'Residential Energy Coefficients'!$M$19),0)))))/1000,0) -> 83.90394393 | CM17: 277.5604412 | CN17: =(IFERROR(EXP('Commercial Energy Coefficients'!$B$3+LN(B_RET_Gross_Sq_Ft)*'Commercial Energy Coefficients'!$B$4+'Commercial Energy Coefficients'!$B$11+'Commercial Energy Coefficients'!$B$14+'Commercial Energy Coefficients'!$B$18*LN((B_Ret_Emp_Acre)*(B_Lot_Size/43560))+'Commercial Energy Coefficients'!$B$19*LN(40)+'Commercial Energy Coefficients'!$B$21+'Commercial Energy Coefficients'!$B$22*LN(Commercial_Energy_Cost)+'Commercial Energy Coefficients'!$B$23*IFERROR(LOOKUP(Metro_Select,Energy_Metro_Lookup,HDD),0)),0)+IFERROR(EXP('Commercial Energy Coefficients'!$E$3+LN(B_OFF_Gross_Sq_Ft)*'Commercial Energy Coefficients'!$E$4+'Commercial Energy Coefficients'!$E$11+'Commercial Energy Coefficients'!$E$14+'Commercial Energy Coefficients'!$E$18*LN((B_OFF_Emp_Acre)*(B_Lot_Size/43560))+'Commercial Energy Coefficients'!$E$19*LN(40)+'Commercial Energy Coefficients'!$E$21+'Commercial Energy Coefficients'!$E$22*LN(Commercial_Energy_Cost)+'Commercial Energy Coefficients'!$E$23*IFERROR(LOOKUP(Metro_Select,Energy_Metro_Lookup,HDD),0)),0)+IFERROR(EXP('Commercial Energy Coefficients'!$H$3+LN(B_PUB_Gross_Sq_Ft)*'Commercial Energy Coefficients'!$H$4+'Commercial Energy Coefficients'!$H$11+'Commercial Energy Coefficients'!$H$14+'Commercial Energy Coefficients'!$H$18*LN((B_Pub_Emp_Acre)*(B_Lot_Size/43560))+'Commercial Energy Coefficients'!$H$19*LN(40)+'Commercial Energy Coefficients'!$H$21+'Commercial Energy Coefficients'!$H$22*LN(Commercial_Energy_Cost)+'Commercial Energy Coefficients'!$H$23*IFERROR(LOOKUP(Metro_Select,Energy_Metro_Lookup,HDD),0)),0))/1000 -> 0 | CO17: =(IFERROR(EXP('Commercial Energy Coefficients'!$C$3+LN((B_RET_Gross_Sq_Ft))*'Commercial Energy Coefficients'!$C$4+'Commercial Energy Coefficients'!$C$11+'Commercial Energy Coefficients'!$C$14+'Commercial Energy Coefficients'!$C$18*LN((B_Ret_Emp_Acre)*(B_Lot_Size/43560))+'Commercial Energy Coefficients'!$C$19*LN(40)+'Commercial Energy Coefficients'!$C$21+'Commercial Energy Coefficients'!$C$22*LN(Commercial_Energy_Cost)+'Commercial Energy Coefficients'!$C$24*IFERROR(LOOKUP(Metro_Select,Energy_Metro_Lookup,CDD),0)),0)+IFERROR(EXP('Commercial Energy Coefficients'!$F$3+LN((B_OFF_Gross_Sq_Ft))*'Commercial Energy Coefficients'!$F$4+'Commercial Energy Coefficients'!$F$11+'Commercial Energy Coefficients'!$F$14+'Commercial Energy Coefficients'!$F$18*LN((B_OFF_Emp_Acre)*(B_Lot_Size/43560))+'Commercial Energy Coefficients'!$F$19*LN(40)+'Commercial Energy Coefficients'!$F$21+'Commercial Energy Coefficients'!$F$22*LN(Commercial_Energy_Cost)+'Commercial Energy Coefficients'!$F$24*IFERROR(LOOKUP(Metro_Select,Energy_Metro_Lookup,CDD),0)),0)+IFERROR(EXP('Commercial Energy Coefficients'!$I$3+LN((B_PUB_Gross_Sq_Ft))*'Commercial Energy Coefficients'!$I$4+'Commercial Energy Coefficients'!$I$11+'Commercial Energy Coefficients'!$I$14+'Commercial Energy Coefficients'!$I$18*LN((B_Pub_Emp_Acre)*(B_Lot_Size/43560))+'Commercial Energy Coefficients'!$I$19*LN(40)+'Commercial Energy Coefficients'!$I$21+'Commercial Energy Coefficients'!$I$22*LN(Commercial_Energy_Cost)+'Commercial Energy Coefficients'!$I$24*IFERROR(LOOKUP(Metro_Select,Energy_Metro_Lookup,CDD),0)),0))/1000 -> 0 | CP17: =(IFERROR(EXP('Commercial Energy Coefficients'!$D$3+LN((B_RET_Gross_Sq_Ft))*'Commercial Energy Coefficients'!$D$4+'Commercial Energy Coefficients'!$D$14+'Commercial Energy Coefficients'!$D$18*LN((B_Ret_Emp_Acre)*(B_Lot_Size/43560))+'Commercial Energy Coefficients'!$D$19*LN(40)+'Commercial Energy Coefficients'!$D$21+'Commercial Energy Coefficients'!$D$22*LN(Commercial_Energy_Cost)),0)+IFERROR(EXP('Commercial Energy Coefficients'!$G$3+LN((B_OFF_Gross_Sq_Ft))*'Commercial Energy Coefficients'!$G$4+'Commercial Energy Coefficients'!$G$14+'Commercial Energy Coefficients'!$G$18*LN((B_OFF_Emp_Acre)*(B_Lot_Size/43560))+'Commercial Energy Coefficients'!$G$19*LN(40)+'Commercial Energy Coefficients'!$G$21+'Commercial Energy Coefficients'!$G$22*LN(Commercial_Energy_Cost)),0)+IFERROR(EXP('Commercial Energy Coefficients'!$J$3+LN((B_PUB_Gross_Sq_Ft))*'Commercial Energy Coefficients'!$J$4+'Commercial Energy Coefficients'!$J$14+'Commercial Energy Coefficients'!$J$18*LN((B_Pub_Emp_Acre)*(B_Lot_Size/43560))+'Commercial Energy Coefficients'!$J$19*LN(40)+'Commercial Energy Coefficients'!$J$21+'Commercial Energy Coefficients'!$J$22*LN(Commercial_Energy_Cost)),0))/1000 -> 0 | CQ17: 0 | CR17: 0 | CS17: 0 | CT17: 258.9540273 | CU17: 277.5604412 | CV17: 25.89080716 | CW17: 0 | CX17: 24.15520294 | CY17: 62.58276973 | CZ17: 58.3875 | DA17: 120 | DB17: 360 | DC17: 0 | DD17: 111.9557353 | DE17: 90 | DF17: 270 | DG17: 0 | DH17: 83.96680145 | DI17: =IF(B_Housing_Type="",0,IF(B_Housing_Type="MF",'Project Info'!$B$160,IF(B_Housing_Type="TH",'Project Info'!$B$161,IF(AND(B_Housing_Type="SF",B_Net_Sq_Ft_per_Unit>0,B_Net_Sq_Ft_per_Unit<3000),'Project Info'!$B$162,IF(AND(B_Housing_Type="SF",B_Net_Sq_Ft_per_Unit>=3000),'Project Info'!$B$163))))) -> 4 | DJ17: 12 | DK17: 0 | DL17: 3.731857842 | DM17: =[14]!LandCost -> 237.4329362 | DN17: 593582.3406 | DO17: 10342578.7 | DQ17: 593582.3406 | DR17: 10342578.7 | DS17: =[14]!ProjectValue -> 1038395.242 | DT17: 18092998.7 | DU17: =[14]!YInt -> 0.8013 | DV17: =[14]!Slope -> 0.2514298 | DW17: =[14]!ProdType -> Residential Owner | DX17: =[14]!Subsidy -> 0 | DY17: 0 | DZ17: 0 | EA17: =[14]!ImpactFees -> 0 | EB17: 0 | EC17: =[14]!ROI_Rental -> 0 | ED17: =[14]!ROI_Owner -> 0.2000748362 | EE17: =[14]!PropTax -> 29617.31576 | EF17: 516052.1097 | EG17: 0 | EH17: 0 | EI17: 0.07924227136 | EJ17: =[14]!GreenRoof -> 0 | EK17: =[14]!GreenRoofEff -> 0 | EL17: =[14]!GreenRoofVolume -> 0 | EM17: =[14]!Biofiltration -> 367.0280872 | EN17: =[14]!BiofiltrationEff -> 0 | EO17: =[14]!BiofiltrationVolume -> 1235.416541 | EP17: =[14]!GreenRoofHarvesting -> 0 | EQ17: =[14]!GreenRoofHarvestingEff -> 0 | ER17: =[14]!WaterHarvesting -> 0 | ES17: =[14]!WaterHarvestingEff -> 0 | ET17: =[14]!WaterHarvestingVolume -> 0 | EU17: 0 | EV17: 21.06451373 | EX17: 0 | EY17: 0 | EZ17: 0 | FA17: 70.9031532 | FB17: 0 | FC17: 0 | FE17: =Annual_Cooling_degree_days*24*(1/R_conventional_SF_F_hrs_BTU-1/R_green_roof_SF_F_hrs_Btu)/3412*'Building Inputs'!$EU17 -> 0 | FF17: 0 | FG17: =Annual_Heating_degree_days*24*(1/R_conventional_SF_F_hrs_BTU-1/R_green_roof_SF_F_hrs_Btu)*'Building Inputs'!$EU17 -> 0 | FH17: 0 | FI17: =Avg_Annual_NO2_uptake*'Building Inputs'!$EU17 -> 0 | FJ17: =Avg_Annual_O3_uptake*'Building Inputs'!$EU17 -> 0 | FK17: =Avg_Annual_SO2_uptake*'Building Inputs'!$EU17 -> 0 | FL17: =Avg_Annual_PM_10_uptake*'Building Inputs'!$EU17 -> 0 | FM17: 0 | FN17: 0 | FO17: 0 | FP17: 0 | FQ17: 0 | FR17: 0 | FS17: 0 | FT17: 0 | FU17: 0 | FV17: =Avg_amount_of_carbon_sequestered_lbs_SF*'Building Inputs'!$EU17*3.67 -> 0 | FW17: 0 | FX17: 0 | FY17: 0 | FZ17: =Average_annual_rainfall_in*($C17*(1-$E17)+$EM17-$EJ17-$ER17)*$C17/43560*'Building Inputs'!$EN17*144*0.00433 -> 0 | GB17: =Avg_Annual_NO2_uptake*'Building Inputs'!$EV17 -> 0.006319354118 | GC17: =Avg_Annual_O3_uptake*'Building Inputs'!$EV17 -> 0.01238593407 | GD17: =Avg_Annual_SO2_uptake*'Building Inputs'!$EV17 -> 0.004823773643 | GE17: =Avg_Annual_PM_10_uptake*'Building Inputs'!$EV17 -> 0.002401354565 | GF17: 0.02110664275 | GG17: 0.0413690198 | GH17: 0.009936973705 | GI17: 0.006819846964 | GJ17: 0.07923248322 | GK17: =Avg_amount_of_carbon_sequestered_lbs_SF*'Building Inputs'!$EV17*3.67 -> 2.56658461 | GL17: 0.01940337966 | GM17: =Average_annual_rainfall_in*('Building Inputs'!$EX17*'Building Inputs'!$EQ17+'Building Inputs'!$EY17*'Building Inputs'!$ES17)*144*0.00433 -> 0 | GO17: 0 | GQ17: 0 | GR17: 0.006319354118 | GS17: 0.0413690198 | GT17: 0.004823773643 | GU17: 0.002401354565 | GV17: 0.05491350212 | GW17: 0.02110664275 | GX17: 0.1381725261 | GY17: 0.009936973705 | GZ17: 0.006819846964 | HA17: 0.1760359895 | HB17: 2.56658461 | HC17: 0.01940337966 | HD17: =[14]!RequiredWQV -> 691.6700056 | HE17: =[14]!ConventionalWQV -> 0 | HF17: 39.6963961 | HG17: 0 | HH17: 70.9031532 | HI17: =[14]!TSSload -> 16.6714246 | HJ17: =[14]!TNload -> 0.3031168109 | HK17: =[14]!TLload -> 0.003031168109 | HL17: =[14]!fColiLoad -> 1672.62532 | HM17: =[14]!TSSreduction -> 13.73146889 | HN17: =[14]!TNreduction -> 0.1433866794 | HO17: =[14]!TLreduction -> 0.002363785218 | HP17: =[14]!fColiReduction -> 1241.261099 | HQ17: 0.9568081153 | HR17: 0.01739651119 | HS17: 0.0001739651119 | HT17: 95.9954844 | HU17: 0.7880778746 | HV17: 0.008229263049 | HW17: 0.0001356626043 | HX17: 71.23858462 | HY17: =[14]!EPA_MXD_ResTrips -> 9.376955677 | HZ17: =[14]!EPA_MXD_RetTrips -> 0 | IA17: =[14]!EPA_MXD_OffTrips -> 0 | IB17: =[14]!EPA_MXD_EduTrips -> 0 | IC17: =[14]!EPA_MXD_OtherTrips -> 0 | ID17: =[14]!EPA_MXD_ResVMT -> 26.61066964 | IE17: =[14]!EPA_MXD_RetVMT -> 0 | IF17: =[14]!EPA_MXD_OffVMT -> 0 | IG17: =[14]!EPA_MXD_EduVMT -> 0 | IH17: =[14]!EPA_MXD_OtherVMT -> 0
A18: 15 | B18: =[15]!name -> T4MSMainStreet | C18: =[15]!lot_size -> 10000 | D18: =[15]!Building_Lot_Coverage -> 0.6232956759 | E18: =[15]!Landscaping_Coverage -> 0.2 | F18: =[15]!Parking_Coverage -> 0.1767043241 | G18: =[15]!Height -> 3 | H18: =[15]!FAR -> 1.869887028 | I18: 18698.87028 | J18: =[15]!ResPct -> 0.5 | K18: 0.5 | L18: 0 | M18: 0 | N18: 0 | O18: 0 | P18: 0 | Q18: 0 | R18: 0.5 | S18: =[15]!RetPct -> 0.5 | T18: =[15]!OffPct -> 0 | U18: =[15]!IndPct -> 0 | V18: =[15]!PubPct -> 0 | W18: =[15]!EduPct -> 0 | X18: =[15]!HotelPct -> 0 | Y18: =[15]!ComParkingPct -> 0 | Z18: =[15]!ParkingPct -> 0 | AA18: 9349.435138 | AB18: =[15]!NetUnitSize -> 1000 | AC18: =[15]!UnitSize -> 1250 | AD18: 7.479548111 | AE18: 32.58091157 | AF18: =[15]!HousingType -> MF | AG18: =[15]!RentalPct -> 1 | AH18: 0 | AI18: =[15]!AffordablePct -> 0 | AJ18: =[15]!Rent -> 2.46 | AK18: 2460 | AL18: =[15]!Sales_Price -> 0 | AM18: 0 | AN18: 0 | AO18: 0.06 | AP18: 30.62605688 | AQ18: 2.004008016 | AR18: 1.021321071 | AS18: 0.1951 | AT18: 98400 | AU18: 0 | AV18: 9349.435138 | AW18: 9.893582157 | AX18: 43.09644388 | AY18: 9349.435138 | AZ18: =[15]!RetRent -> 31.38 | BA18: =[15]!RetSpace -> 945 | BB18: 43.09644388 | BC18: 0 | BD18: =[15]!OffRent -> 36.78 | BE18: =[15]!OffSpace -> 387 | BF18: 0 | BG18: 0 | BH18: =[15]!IndRent -> 12 | BI18: =[15]!IndSpace -> 1730 | BJ18: 0 | BK18: 0 | BL18: =[15]!PubRent -> 14 | BM18: =[15]!PubSpace -> 746 | BN18: 0 | BO18: 0 | BP18: =[15]!EduRent -> 14 | BQ18: =[15]!EduSpace -> 767 | BR18: 0 | BS18: 0 | BT18: =[15]!HotelRent -> 150 | BU18: =[15]!HotelSpaceEmp -> 1317 | BV18: 0 | BW18: =[15]!HotelRoomNet -> 0 | BX18: =[15]!HotelRoomGross -> 0 | BY18: 0 | BZ18: 0 | CA18: 0 | CB18: =[15]!ParkingRent -> 4 | CC18: =[15]!ParkingSpace -> 20000 | CD18: 0 | CE18: =[15]!ParkingSpaces -> 5.609661083 | CF18: =[15]!ParkingArea -> 1767.043241 | CG18: =[15]!IntStructParkingArea -> 0 | CH18: =[15]!ParkingCost -> 28048.30541 | CI18: 0.005982595237 | CJ18: =IFERROR(IF(B_Housing_Type="SF",EXP('Residential Energy Coefficients'!$B$3+'Residential Energy Coefficients'!$B$4*LN(B_Net_Sq_Ft_per_Unit)+'Residential Energy Coefficients'!$B$9+'Residential Energy Coefficients'!$B$10*LN(B_HH_Income)+'Residential Energy Coefficients'!$B$16*LN(Residential_Energy_Cost)+'Residential Energy Coefficients'!$B$20+'Residential Energy Coefficients'!$B$24*IFERROR(LOOKUP(Metro_Select,Energy_Metro_Lookup,HDD),0)),IF(B_Housing_Type="TH",EXP('Residential Energy Coefficients'!$E$3+'Residential Energy Coefficients'!$E$4*LN(B_Net_Sq_Ft_per_Unit)+'Residential Energy Coefficients'!$E$9+'Residential Energy Coefficients'!$E$16*LN(Residential_Energy_Cost)+'Residential Energy Coefficients'!$E$19+'Residential Energy Coefficients'!$E$20+'Residential Energy Coefficients'!$E$24*IFERROR(LOOKUP(Metro_Select,Energy_Metro_Lookup,HDD),0)),IF(B_Housing_Type="MF",EXP('Residential Energy Coefficients'!$H$3+'Residential Energy Coefficients'!$H$4*LN(B_Net_Sq_Ft_per_Unit)+'Residential Energy Coefficients'!$H$9+IF(B_Pct_Owner=1,'Residential Energy Coefficients'!$H$12,0)+'Residential Energy Coefficients'!$H$16*LN(Residential_Energy_Cost)+'Residential Energy Coefficients'!$H$20+'Residential Energy Coefficients'!$H$24*IFERROR(LOOKUP(Metro_Select,Energy_Metro_Lookup,HDD),0)),IF(B_Hotel_Room_Acre>0,EXP('Residential Energy Coefficients'!$H$3+'Residential Energy Coefficients'!$H$4*LN(B_Hotel_Room_Net)+'Residential Energy Coefficients'!$H$9+'Residential Energy Coefficients'!$H$16*LN(Residential_Energy_Cost)+'Residential Energy Coefficients'!$H$20+'Residential Energy Coefficients'!$H$24*IFERROR(LOOKUP(Metro_Select,Energy_Metro_Lookup,HDD),0)),IF(B_Housing_Type="MH",EXP('Residential Energy Coefficients'!$K$3+'Residential Energy Coefficients'!$K$16*LN(Residential_Energy_Cost)+'Residential Energy Coefficients'!$K$24*IFERROR(LOOKUP(Metro_Select,Energy_Metro_Lookup,HDD),0)),0)))))/1000,0) -> 9.580043328 | CK18: =IFERROR(IF(B_Housing_Type="SF",EXP('Residential Energy Coefficients'!$C$3+'Residential Energy Coefficients'!$C$4*LN(B_Net_Sq_Ft_per_Unit)+'Residential Energy Coefficients'!$C$10*LN(B_HH_Income)+'Residential Energy Coefficients'!$C$11*B_HH_Size+'Residential Energy Coefficients'!$C$16*LN(Residential_Energy_Cost)+'Residential Energy Coefficients'!$C$19+'Residential Energy Coefficients'!$C$22+'Residential Energy Coefficients'!$C$25*IFERROR(LOOKUP(Metro_Select,Energy_Metro_Lookup,CDD),0)),IF(B_Housing_Type="TH",EXP('Residential Energy Coefficients'!$F$3+'Residential Energy Coefficients'!$F$4*LN(B_Net_Sq_Ft_per_Unit)+'Residential Energy Coefficients'!$F$10*LN(B_HH_Income)+'Residential Energy Coefficients'!$F$11*B_HH_Size+IF(B_Pct_Owner=1,'Residential Energy Coefficients'!$F$12,0)+'Residential Energy Coefficients'!$F$16*LN(Residential_Energy_Cost)+'Residential Energy Coefficients'!$F$22+'Residential Energy Coefficients'!$F$25*IFERROR(LOOKUP(Metro_Select,Energy_Metro_Lookup,CDD),0)),IF(B_Housing_Type="MF",EXP('Residential Energy Coefficients'!$I$3+'Residential Energy Coefficients'!$I$4*LN(B_Net_Sq_Ft_per_Unit)+'Residential Energy Coefficients'!$I$9+'Residential Energy Coefficients'!$I$11*B_HH_Size+'Residential Energy Coefficients'!$I$16*LN(Residential_Energy_Cost)+'Residential Energy Coefficients'!$I$22+'Residential Energy Coefficients'!$I$25*IFERROR(LOOKUP(Metro_Select,Energy_Metro_Lookup,CDD),0)),IF(B_Hotel_Room_Acre>0,EXP('Residential Energy Coefficients'!$I$3+'Residential Energy Coefficients'!$I$4*LN(B_Hotel_Room_Net)+'Residential Energy Coefficients'!$I$9+'Residential Energy Coefficients'!$I$11*1.25+'Residential Energy Coefficients'!$I$16*LN(Residential_Energy_Cost)+'Residential Energy Coefficients'!$I$22+'Residential Energy Coefficients'!$I$25*IFERROR(LOOKUP(Metro_Select,Energy_Metro_Lookup,CDD),0)),IF(B_Housing_Type="MH",EXP('Residential Energy Coefficients'!$L$3+'Residential Energy Coefficients'!$L$11*B_HH_Size+'Residential Energy Coefficients'!$L$16*LN(Residential_Energy_Cost)+'Residential Energy Coefficients'!$L$22+'Residential Energy Coefficients'!$L$25*IFERROR(LOOKUP(Metro_Select,Energy_Metro_Lookup,CDD),0)),0)))))/1000,0) -> 82.05744226 | CL18: =IFERROR(IF(B_Housing_Type="SF",EXP('Residential Energy Coefficients'!$D$3+'Residential Energy Coefficients'!$D$4*LN(B_Net_Sq_Ft_per_Unit)+'Residential Energy Coefficients'!$D$9+'Residential Energy Coefficients'!$D$10*LN(B_HH_Income)+'Residential Energy Coefficients'!$D$11*B_HH_Size+IF(B_Pct_Owner=1,'Residential Energy Coefficients'!$D$12,0)+'Residential Energy Coefficients'!$D$16*LN(Residential_Energy_Cost)),IF(B_Housing_Type="TH",EXP('Residential Energy Coefficients'!$G$3+'Residential Energy Coefficients'!$G$4*LN(B_Net_Sq_Ft_per_Unit)+'Residential Energy Coefficients'!$G$10*LN(B_HH_Income)+'Residential Energy Coefficients'!$G$11*B_HH_Size+'Residential Energy Coefficients'!$G$16*LN(Residential_Energy_Cost)),IF(B_Housing_Type="MF",EXP('Residential Energy Coefficients'!$J$3+'Residential Energy Coefficients'!$J$4*LN(B_Net_Sq_Ft_per_Unit)+'Residential Energy Coefficients'!$J$10*LN(B_HH_Income)+'Residential Energy Coefficients'!$J$11*B_HH_Size+IF(B_Pct_Owner=1,'Residential Energy Coefficients'!$J$12,0)+'Residential Energy Coefficients'!$J$16*LN(Residential_Energy_Cost)+'Residential Energy Coefficients'!$J$19),IF(B_Hotel_Room_Acre>0,EXP('Residential Energy Coefficients'!$J$3+'Residential Energy Coefficients'!$J$4*LN(B_Hotel_Room_Net)+'Residential Energy Coefficients'!$J$16*LN(Residential_Energy_Cost)+'Residential Energy Coefficients'!$J$19),IF(B_Housing_Type="MH",EXP('Residential Energy Coefficients'!$M$3+'Residential Energy Coefficients'!$M$4*LN(B_Net_Sq_Ft_per_Unit)+'Residential Energy Coefficients'!$M$11*B_HH_Size+'Residential Energy Coefficients'!$M$16*LN(Residential_Energy_Cost)+'Residential Energy Coefficients'!$M$19),0)))))/1000,0) -> 29.90869455 | CM18: 121.5461801 | CN18: =(IFERROR(EXP('Commercial Energy Coefficients'!$B$3+LN(B_RET_Gross_Sq_Ft)*'Commercial Energy Coefficients'!$B$4+'Commercial Energy Coefficients'!$B$11+'Commercial Energy Coefficients'!$B$14+'Commercial Energy Coefficients'!$B$18*LN((B_Ret_Emp_Acre)*(B_Lot_Size/43560))+'Commercial Energy Coefficients'!$B$19*LN(40)+'Commercial Energy Coefficients'!$B$21+'Commercial Energy Coefficients'!$B$22*LN(Commercial_Energy_Cost)+'Commercial Energy Coefficients'!$B$23*IFERROR(LOOKUP(Metro_Select,Energy_Metro_Lookup,HDD),0)),0)+IFERROR(EXP('Commercial Energy Coefficients'!$E$3+LN(B_OFF_Gross_Sq_Ft)*'Commercial Energy Coefficients'!$E$4+'Commercial Energy Coefficients'!$E$11+'Commercial Energy Coefficients'!$E$14+'Commercial Energy Coefficients'!$E$18*LN((B_OFF_Emp_Acre)*(B_Lot_Size/43560))+'Commercial Energy Coefficients'!$E$19*LN(40)+'Commercial Energy Coefficients'!$E$21+'Commercial Energy Coefficients'!$E$22*LN(Commercial_Energy_Cost)+'Commercial Energy Coefficients'!$E$23*IFERROR(LOOKUP(Metro_Select,Energy_Metro_Lookup,HDD),0)),0)+IFERROR(EXP('Commercial Energy Coefficients'!$H$3+LN(B_PUB_Gross_Sq_Ft)*'Commercial Energy Coefficients'!$H$4+'Commercial Energy Coefficients'!$H$11+'Commercial Energy Coefficients'!$H$14+'Commercial Energy Coefficients'!$H$18*LN((B_Pub_Emp_Acre)*(B_Lot_Size/43560))+'Commercial Energy Coefficients'!$H$19*LN(40)+'Commercial Energy Coefficients'!$H$21+'Commercial Energy Coefficients'!$H$22*LN(Commercial_Energy_Cost)+'Commercial Energy Coefficients'!$H$23*IFERROR(LOOKUP(Metro_Select,Energy_Metro_Lookup,HDD),0)),0))/1000 -> 2.347903159 | CO18: =(IFERROR(EXP('Commercial Energy Coefficients'!$C$3+LN((B_RET_Gross_Sq_Ft))*'Commercial Energy Coefficients'!$C$4+'Commercial Energy Coefficients'!$C$11+'Commercial Energy Coefficients'!$C$14+'Commercial Energy Coefficients'!$C$18*LN((B_Ret_Emp_Acre)*(B_Lot_Size/43560))+'Commercial Energy Coefficients'!$C$19*LN(40)+'Commercial Energy Coefficients'!$C$21+'Commercial Energy Coefficients'!$C$22*LN(Commercial_Energy_Cost)+'Commercial Energy Coefficients'!$C$24*IFERROR(LOOKUP(Metro_Select,Energy_Metro_Lookup,CDD),0)),0)+IFERROR(EXP('Commercial Energy Coefficients'!$F$3+LN((B_OFF_Gross_Sq_Ft))*'Commercial Energy Coefficients'!$F$4+'Commercial Energy Coefficients'!$F$11+'Commercial Energy Coefficients'!$F$14+'Commercial Energy Coefficients'!$F$18*LN((B_OFF_Emp_Acre)*(B_Lot_Size/43560))+'Commercial Energy Coefficients'!$F$19*LN(40)+'Commercial Energy Coefficients'!$F$21+'Commercial Energy Coefficients'!$F$22*LN(Commercial_Energy_Cost)+'Commercial Energy Coefficients'!$F$24*IFERROR(LOOKUP(Metro_Select,Energy_Metro_Lookup,CDD),0)),0)+IFERROR(EXP('Commercial Energy Coefficients'!$I$3+LN((B_PUB_Gross_Sq_Ft))*'Commercial Energy Coefficients'!$I$4+'Commercial Energy Coefficients'!$I$11+'Commercial Energy Coefficients'!$I$14+'Commercial Energy Coefficients'!$I$18*LN((B_Pub_Emp_Acre)*(B_Lot_Size/43560))+'Commercial Energy Coefficients'!$I$19*LN(40)+'Commercial Energy Coefficients'!$I$21+'Commercial Energy Coefficients'!$I$22*LN(Commercial_Energy_Cost)+'Commercial Energy Coefficients'!$I$24*IFERROR(LOOKUP(Metro_Select,Energy_Metro_Lookup,CDD),0)),0))/1000 -> 861.1264975 | CP18: =(IFERROR(EXP('Commercial Energy Coefficients'!$D$3+LN((B_RET_Gross_Sq_Ft))*'Commercial Energy Coefficients'!$D$4+'Commercial Energy Coefficients'!$D$14+'Commercial Energy Coefficients'!$D$18*LN((B_Ret_Emp_Acre)*(B_Lot_Size/43560))+'Commercial Energy Coefficients'!$D$19*LN(40)+'Commercial Energy Coefficients'!$D$21+'Commercial Energy Coefficients'!$D$22*LN(Commercial_Energy_Cost)),0)+IFERROR(EXP('Commercial Energy Coefficients'!$G$3+LN((B_OFF_Gross_Sq_Ft))*'Commercial Energy Coefficients'!$G$4+'Commercial Energy Coefficients'!$G$14+'Commercial Energy Coefficients'!$G$18*LN((B_OFF_Emp_Acre)*(B_Lot_Size/43560))+'Commercial Energy Coefficients'!$G$19*LN(40)+'Commercial Energy Coefficients'!$G$21+'Commercial Energy Coefficients'!$G$22*LN(Commercial_Energy_Cost)),0)+IFERROR(EXP('Commercial Energy Coefficients'!$J$3+LN((B_PUB_Gross_Sq_Ft))*'Commercial Energy Coefficients'!$J$4+'Commercial Energy Coefficients'!$J$14+'Commercial Energy Coefficients'!$J$18*LN((B_Pub_Emp_Acre)*(B_Lot_Size/43560))+'Commercial Energy Coefficients'!$J$19*LN(40)+'Commercial Energy Coefficients'!$J$21+'Commercial Energy Coefficients'!$J$22*LN(Commercial_Energy_Cost)),0))/1000 -> 349.4042303 | CQ18: 1212.878631 | CR18: 122.5924657 | CS18: 0.1297274769 | CT18: 2121.989133 | CU18: 121.5461801 | CV18: 11.3378142 | CW18: 11.4354116 | CX18: 197.9389109 | CY18: 13.36979167 | CZ18: 100 | DA18: 60 | DB18: 120.240481 | DC18: 68 | DD18: 1121.536473 | DE18: 35 | DF18: 70.14028056 | DG18: 38 | DH18: 637.7403058 | DI18: =IF(B_Housing_Type="",0,IF(B_Housing_Type="MF",'Project Info'!$B$160,IF(B_Housing_Type="TH",'Project Info'!$B$161,IF(AND(B_Housing_Type="SF",B_Net_Sq_Ft_per_Unit>0,B_Net_Sq_Ft_per_Unit<3000),'Project Info'!$B$162,IF(AND(B_Housing_Type="SF",B_Net_Sq_Ft_per_Unit>=3000),'Project Info'!$B$163))))) -> 1.5 | DJ18: 3.006012024 | DK18: 5 | DL18: 60.68723295 | DM18: =[15]!LandCost -> 141.951248 | DN18: 1419512.48 | DO18: 6183396.362 | DQ18: 1419512.48 | DR18: 6183396.362 | DS18: =[15]!ProjectValue -> 4688317.411 | DT18: 20422310.64 | DU18: =[15]!YInt -> 0.8013 | DV18: =[15]!Slope -> 0.2514298 | DW18: =[15]!ProdType -> Residential Owner | DX18: =[15]!Subsidy -> 0 | DY18: 0 | DZ18: 0 | EA18: =[15]!ImpactFees -> 0 | EB18: 0 | EC18: =[15]!ROI_Rental -> 0.1001337442 | ED18: =[15]!ROI_Owner -> 0 | EE18: =[15]!PropTax -> 112163.3288 | EF18: 488583.4603 | EG18: 193252.8243 | EH18: 841809.3027 | EI18: 0.1126627853 | EJ18: =[15]!GreenRoof -> 0 | EK18: =[15]!GreenRoofEff -> 0 | EL18: =[15]!GreenRoofVolume -> 0 | EM18: =[15]!Biofiltration -> 628.6072998 | EN18: =[15]!BiofiltrationEff -> 0 | EO18: =[15]!BiofiltrationVolume -> 2115.892171 | EP18: =[15]!GreenRoofHarvesting -> 0 | EQ18: =[15]!GreenRoofHarvestingEff -> 0 | ER18: =[15]!WaterHarvesting -> 0 | ES18: =[15]!WaterHarvestingEff -> 0 | ET18: =[15]!WaterHarvestingVolume -> 0 | EU18: 0 | EV18: 144.3083792 | EX18: 0 | EY18: 0 | EZ18: 0 | FA18: 485.7420044 | FB18: 0 | FC18: 0 | FE18: =Annual_Cooling_degree_days*24*(1/R_conventional_SF_F_hrs_BTU-1/R_green_roof_SF_F_hrs_Btu)/3412*'Building Inputs'!$EU18 -> 0 | FF18: 0 | FG18: =Annual_Heating_degree_days*24*(1/R_conventional_SF_F_hrs_BTU-1/R_green_roof_SF_F_hrs_Btu)*'Building Inputs'!$EU18 -> 0 | FH18: 0 | FI18: =Avg_Annual_NO2_uptake*'Building Inputs'!$EU18 -> 0 | FJ18: =Avg_Annual_O3_uptake*'Building Inputs'!$EU18 -> 0 | FK18: =Avg_Annual_SO2_uptake*'Building Inputs'!$EU18 -> 0 | FL18: =Avg_Annual_PM_10_uptake*'Building Inputs'!$EU18 -> 0 | FM18: 0 | FN18: 0 | FO18: 0 | FP18: 0 | FQ18: 0 | FR18: 0 | FS18: 0 | FT18: 0 | FU18: 0 | FV18: =Avg_amount_of_carbon_sequestered_lbs_SF*'Building Inputs'!$EU18*3.67 -> 0 | FW18: 0 | FX18: 0 | FY18: 0 | FZ18: =Average_annual_rainfall_in*($C18*(1-$E18)+$EM18-$EJ18-$ER18)*$C18/43560*'Building Inputs'!$EN18*144*0.00433 -> 0 | GB18: =Avg_Annual_NO2_uptake*'Building Inputs'!$EV18 -> 0.04329251376 | GC18: =Avg_Annual_O3_uptake*'Building Inputs'!$EV18 -> 0.08485332697 | GD18: =Avg_Annual_SO2_uptake*'Building Inputs'!$EV18 -> 0.03304661884 | GE18: =Avg_Annual_PM_10_uptake*'Building Inputs'!$EV18 -> 0.01645115523 | GF18: 0.144596996 | GG18: 0.2834101121 | GH18: 0.0680760348 | GI18: 0.04672128085 | GJ18: 0.5428044237 | GK18: =Avg_amount_of_carbon_sequestered_lbs_SF*'Building Inputs'!$EV18*3.67 -> 17.58311016 | GL18: 0.1329283128 | GM18: =Average_annual_rainfall_in*('Building Inputs'!$EX18*'Building Inputs'!$EQ18+'Building Inputs'!$EY18*'Building Inputs'!$ES18)*144*0.00433 -> 0 | GO18: 0 | GQ18: 0 | GR18: 0.04329251376 | GS18: 0.2834101121 | GT18: 0.03304661884 | GU18: 0.01645115523 | GV18: 0.3762003999 | GW18: 0.144596996 | GX18: 0.9465897743 | GY18: 0.0680760348 | GZ18: 0.04672128085 | HA18: 1.205984086 | HB18: 17.58311016 | HC18: 0.1329283128 | HD18: =[15]!RequiredWQV -> 5485.333333 | HE18: =[15]!ConventionalWQV -> 2763.967847 | HF18: 1259.259259 | HG18: 634.5197077 | HH18: 485.7420044 | HI18: =[15]!TSSload -> 119.0097737 | HJ18: =[15]!TNload -> 1.514669848 | HK18: =[15]!TLload -> 0.02163814068 | HL18: =[15]!fColiLoad -> 9764.835145 | HM18: =[15]!TSSreduction -> 100.7447847 | HN18: =[15]!TNreduction -> 0.6267500137 | HO18: =[15]!TLreduction -> 0.01714677583 | HP18: =[15]!fColiReduction -> 5573.575563 | HQ18: 27.3208847 | HR18: 0.3477203507 | HS18: 0.004967433581 | HT18: 2241.697692 | HU18: 23.12782017 | HV18: 0.143882005 | HW18: 0.003936358088 | HX18: 1279.516888 | HY18: =[15]!EPA_MXD_ResTrips -> 46.69823721 | HZ18: =[15]!EPA_MXD_RetTrips -> 376.921486 | IA18: =[15]!EPA_MXD_OffTrips -> 0 | IB18: =[15]!EPA_MXD_EduTrips -> 0 | IC18: =[15]!EPA_MXD_OtherTrips -> 0 | ID18: =[15]!EPA_MXD_ResVMT -> 132.7201412 | IE18: =[15]!EPA_MXD_RetVMT -> 982.2621807 | IF18: =[15]!EPA_MXD_OffVMT -> 0 | IG18: =[15]!EPA_MXD_EduVMT -> 0 | IH18: =[15]!EPA_MXD_OtherVMT -> 0
A19: 16 | B19: =[16]!name -> T4MSRowHouseMedium | C19: =[16]!lot_size -> 20000 | D19: =[16]!Building_Lot_Coverage -> 0.2193 | E19: =[16]!Landscaping_Coverage -> 0.6295 | F19: =[16]!Parking_Coverage -> 0.1512 | G19: =[16]!Height -> 4 | H19: =[16]!FAR -> 0.8772 | I19: 17544 | J19: =[16]!ResPct -> 1 | K19: 1 | L19: 0 | M19: 0 | N19: 0 | O19: 0 | P19: 0 | Q19: 0 | R19: 0 | S19: =[16]!RetPct -> 0 | T19: =[16]!OffPct -> 0 | U19: =[16]!IndPct -> 0 | V19: =[16]!PubPct -> 0 | W19: =[16]!EduPct -> 0 | X19: =[16]!HotelPct -> 0 | Y19: =[16]!ComParkingPct -> 0 | Z19: =[16]!ParkingPct -> 0 | AA19: 17544 | AB19: =[16]!NetUnitSize -> 1462 | AC19: =[16]!UnitSize -> 1827.5 | AD19: 9.6 | AE19: 20.9088 | AF19: =[16]!HousingType -> MF | AG19: =[16]!RentalPct -> 1 | AH19: 0 | AI19: =[16]!AffordablePct -> 0 | AJ19: =[16]!Rent -> 2.46 | AK19: 3596.52 | AL19: =[16]!Sales_Price -> 0 | AM19: 0 | AN19: 0 | AO19: 0.06 | AP19: 19.654272 | AQ19: 2.25 | AR19: 1.146688233 | AS19: 0.1951 | AT19: 143860.8 | AU19: 0 | AV19: 0 | AW19: 0 | AX19: 0 | AY19: 0 | AZ19: =[16]!RetRent -> 31.38 | BA19: =[16]!RetSpace -> 945 | BB19: 0 | BC19: 0 | BD19: =[16]!OffRent -> 36.78 | BE19: =[16]!OffSpace -> 387 | BF19: 0 | BG19: 0 | BH19: =[16]!IndRent -> 12 | BI19: =[16]!IndSpace -> 1730 | BJ19: 0 | BK19: 0 | BL19: =[16]!PubRent -> 14 | BM19: =[16]!PubSpace -> 746 | BN19: 0 | BO19: 0 | BP19: =[16]!EduRent -> 14 | BQ19: =[16]!EduSpace -> 767 | BR19: 0 | BS19: 0 | BT19: =[16]!HotelRent -> 150 | BU19: =[16]!HotelSpaceEmp -> 1317 | BV19: 0 | BW19: =[16]!HotelRoomNet -> 0 | BX19: =[16]!HotelRoomGross -> 0 | BY19: 0 | BZ19: 0 | CA19: 0 | CB19: =[16]!ParkingRent -> 4 | CC19: =[16]!ParkingSpace -> 20000 | CD19: 0 | CE19: =[16]!ParkingSpaces -> 9.6 | CF19: =[16]!ParkingArea -> 3024 | CG19: =[16]!IntStructParkingArea -> 0 | CH19: =[16]!ParkingCost -> 48000 | CI19: 0.01205234265 | CJ19: =IFERROR(IF(B_Housing_Type="SF",EXP('Residential Energy Coefficients'!$B$3+'Residential Energy Coefficients'!$B$4*LN(B_Net_Sq_Ft_per_Unit)+'Residential Energy Coefficients'!$B$9+'Residential Energy Coefficients'!$B$10*LN(B_HH_Income)+'Residential Energy Coefficients'!$B$16*LN(Residential_Energy_Cost)+'Residential Energy Coefficients'!$B$20+'Residential Energy Coefficients'!$B$24*IFERROR(LOOKUP(Metro_Select,Energy_Metro_Lookup,HDD),0)),IF(B_Housing_Type="TH",EXP('Residential Energy Coefficients'!$E$3+'Residential Energy Coefficients'!$E$4*LN(B_Net_Sq_Ft_per_Unit)+'Residential Energy Coefficients'!$E$9+'Residential Energy Coefficients'!$E$16*LN(Residential_Energy_Cost)+'Residential Energy Coefficients'!$E$19+'Residential Energy Coefficients'!$E$20+'Residential Energy Coefficients'!$E$24*IFERROR(LOOKUP(Metro_Select,Energy_Metro_Lookup,HDD),0)),IF(B_Housing_Type="MF",EXP('Residential Energy Coefficients'!$H$3+'Residential Energy Coefficients'!$H$4*LN(B_Net_Sq_Ft_per_Unit)+'Residential Energy Coefficients'!$H$9+IF(B_Pct_Owner=1,'Residential Energy Coefficients'!$H$12,0)+'Residential Energy Coefficients'!$H$16*LN(Residential_Energy_Cost)+'Residential Energy Coefficients'!$H$20+'Residential Energy Coefficients'!$H$24*IFERROR(LOOKUP(Metro_Select,Energy_Metro_Lookup,HDD),0)),IF(B_Hotel_Room_Acre>0,EXP('Residential Energy Coefficients'!$H$3+'Residential Energy Coefficients'!$H$4*LN(B_Hotel_Room_Net)+'Residential Energy Coefficients'!$H$9+'Residential Energy Coefficients'!$H$16*LN(Residential_Energy_Cost)+'Residential Energy Coefficients'!$H$20+'Residential Energy Coefficients'!$H$24*IFERROR(LOOKUP(Metro_Select,Energy_Metro_Lookup,HDD),0)),IF(B_Housing_Type="MH",EXP('Residential Energy Coefficients'!$K$3+'Residential Energy Coefficients'!$K$16*LN(Residential_Energy_Cost)+'Residential Energy Coefficients'!$K$24*IFERROR(LOOKUP(Metro_Select,Energy_Metro_Lookup,HDD),0)),0)))))/1000,0) -> 10.32041493 | CK19: =IFERROR(IF(B_Housing_Type="SF",EXP('Residential Energy Coefficients'!$C$3+'Residential Energy Coefficients'!$C$4*LN(B_Net_Sq_Ft_per_Unit)+'Residential Energy Coefficients'!$C$10*LN(B_HH_Income)+'Residential Energy Coefficients'!$C$11*B_HH_Size+'Residential Energy Coefficients'!$C$16*LN(Residential_Energy_Cost)+'Residential Energy Coefficients'!$C$19+'Residential Energy Coefficients'!$C$22+'Residential Energy Coefficients'!$C$25*IFERROR(LOOKUP(Metro_Select,Energy_Metro_Lookup,CDD),0)),IF(B_Housing_Type="TH",EXP('Residential Energy Coefficients'!$F$3+'Residential Energy Coefficients'!$F$4*LN(B_Net_Sq_Ft_per_Unit)+'Residential Energy Coefficients'!$F$10*LN(B_HH_Income)+'Residential Energy Coefficients'!$F$11*B_HH_Size+IF(B_Pct_Owner=1,'Residential Energy Coefficients'!$F$12,0)+'Residential Energy Coefficients'!$F$16*LN(Residential_Energy_Cost)+'Residential Energy Coefficients'!$F$22+'Residential Energy Coefficients'!$F$25*IFERROR(LOOKUP(Metro_Select,Energy_Metro_Lookup,CDD),0)),IF(B_Housing_Type="MF",EXP('Residential Energy Coefficients'!$I$3+'Residential Energy Coefficients'!$I$4*LN(B_Net_Sq_Ft_per_Unit)+'Residential Energy Coefficients'!$I$9+'Residential Energy Coefficients'!$I$11*B_HH_Size+'Residential Energy Coefficients'!$I$16*LN(Residential_Energy_Cost)+'Residential Energy Coefficients'!$I$22+'Residential Energy Coefficients'!$I$25*IFERROR(LOOKUP(Metro_Select,Energy_Metro_Lookup,CDD),0)),IF(B_Hotel_Room_Acre>0,EXP('Residential Energy Coefficients'!$I$3+'Residential Energy Coefficients'!$I$4*LN(B_Hotel_Room_Net)+'Residential Energy Coefficients'!$I$9+'Residential Energy Coefficients'!$I$11*1.25+'Residential Energy Coefficients'!$I$16*LN(Residential_Energy_Cost)+'Residential Energy Coefficients'!$I$22+'Residential Energy Coefficients'!$I$25*IFERROR(LOOKUP(Metro_Select,Energy_Metro_Lookup,CDD),0)),IF(B_Housing_Type="MH",EXP('Residential Energy Coefficients'!$L$3+'Residential Energy Coefficients'!$L$11*B_HH_Size+'Residential Energy Coefficients'!$L$16*LN(Residential_Energy_Cost)+'Residential Energy Coefficients'!$L$22+'Residential Energy Coefficients'!$L$25*IFERROR(LOOKUP(Metro_Select,Energy_Metro_Lookup,CDD),0)),0)))))/1000,0) -> 89.73345217 | CL19: =IFERROR(IF(B_Housing_Type="SF",EXP('Residential Energy Coefficients'!$D$3+'Residential Energy Coefficients'!$D$4*LN(B_Net_Sq_Ft_per_Unit)+'Residential Energy Coefficients'!$D$9+'Residential Energy Coefficients'!$D$10*LN(B_HH_Income)+'Residential Energy Coefficients'!$D$11*B_HH_Size+IF(B_Pct_Owner=1,'Residential Energy Coefficients'!$D$12,0)+'Residential Energy Coefficients'!$D$16*LN(Residential_Energy_Cost)),IF(B_Housing_Type="TH",EXP('Residential Energy Coefficients'!$G$3+'Residential Energy Coefficients'!$G$4*LN(B_Net_Sq_Ft_per_Unit)+'Residential Energy Coefficients'!$G$10*LN(B_HH_Income)+'Residential Energy Coefficients'!$G$11*B_HH_Size+'Residential Energy Coefficients'!$G$16*LN(Residential_Energy_Cost)),IF(B_Housing_Type="MF",EXP('Residential Energy Coefficients'!$J$3+'Residential Energy Coefficients'!$J$4*LN(B_Net_Sq_Ft_per_Unit)+'Residential Energy Coefficients'!$J$10*LN(B_HH_Income)+'Residential Energy Coefficients'!$J$11*B_HH_Size+IF(B_Pct_Owner=1,'Residential Energy Coefficients'!$J$12,0)+'Residential Energy Coefficients'!$J$16*LN(Residential_Energy_Cost)+'Residential Energy Coefficients'!$J$19),IF(B_Hotel_Room_Acre>0,EXP('Residential Energy Coefficients'!$J$3+'Residential Energy Coefficients'!$J$4*LN(B_Hotel_Room_Net)+'Residential Energy Coefficients'!$J$16*LN(Residential_Energy_Cost)+'Residential Energy Coefficients'!$J$19),IF(B_Housing_Type="MH",EXP('Residential Energy Coefficients'!$M$3+'Residential Energy Coefficients'!$M$4*LN(B_Net_Sq_Ft_per_Unit)+'Residential Energy Coefficients'!$M$11*B_HH_Size+'Residential Energy Coefficients'!$M$16*LN(Residential_Energy_Cost)+'Residential Energy Coefficients'!$M$19),0)))))/1000,0) -> 35.83558397 | CM19: 135.8894511 | CN19: =(IFERROR(EXP('Commercial Energy Coefficients'!$B$3+LN(B_RET_Gross_Sq_Ft)*'Commercial Energy Coefficients'!$B$4+'Commercial Energy Coefficients'!$B$11+'Commercial Energy Coefficients'!$B$14+'Commercial Energy Coefficients'!$B$18*LN((B_Ret_Emp_Acre)*(B_Lot_Size/43560))+'Commercial Energy Coefficients'!$B$19*LN(40)+'Commercial Energy Coefficients'!$B$21+'Commercial Energy Coefficients'!$B$22*LN(Commercial_Energy_Cost)+'Commercial Energy Coefficients'!$B$23*IFERROR(LOOKUP(Metro_Select,Energy_Metro_Lookup,HDD),0)),0)+IFERROR(EXP('Commercial Energy Coefficients'!$E$3+LN(B_OFF_Gross_Sq_Ft)*'Commercial Energy Coefficients'!$E$4+'Commercial Energy Coefficients'!$E$11+'Commercial Energy Coefficients'!$E$14+'Commercial Energy Coefficients'!$E$18*LN((B_OFF_Emp_Acre)*(B_Lot_Size/43560))+'Commercial Energy Coefficients'!$E$19*LN(40)+'Commercial Energy Coefficients'!$E$21+'Commercial Energy Coefficients'!$E$22*LN(Commercial_Energy_Cost)+'Commercial Energy Coefficients'!$E$23*IFERROR(LOOKUP(Metro_Select,Energy_Metro_Lookup,HDD),0)),0)+IFERROR(EXP('Commercial Energy Coefficients'!$H$3+LN(B_PUB_Gross_Sq_Ft)*'Commercial Energy Coefficients'!$H$4+'Commercial Energy Coefficients'!$H$11+'Commercial Energy Coefficients'!$H$14+'Commercial Energy Coefficients'!$H$18*LN((B_Pub_Emp_Acre)*(B_Lot_Size/43560))+'Commercial Energy Coefficients'!$H$19*LN(40)+'Commercial Energy Coefficients'!$H$21+'Commercial Energy Coefficients'!$H$22*LN(Commercial_Energy_Cost)+'Commercial Energy Coefficients'!$H$23*IFERROR(LOOKUP(Metro_Select,Energy_Metro_Lookup,HDD),0)),0))/1000 -> 0 | CO19: =(IFERROR(EXP('Commercial Energy Coefficients'!$C$3+LN((B_RET_Gross_Sq_Ft))*'Commercial Energy Coefficients'!$C$4+'Commercial Energy Coefficients'!$C$11+'Commercial Energy Coefficients'!$C$14+'Commercial Energy Coefficients'!$C$18*LN((B_Ret_Emp_Acre)*(B_Lot_Size/43560))+'Commercial Energy Coefficients'!$C$19*LN(40)+'Commercial Energy Coefficients'!$C$21+'Commercial Energy Coefficients'!$C$22*LN(Commercial_Energy_Cost)+'Commercial Energy Coefficients'!$C$24*IFERROR(LOOKUP(Metro_Select,Energy_Metro_Lookup,CDD),0)),0)+IFERROR(EXP('Commercial Energy Coefficients'!$F$3+LN((B_OFF_Gross_Sq_Ft))*'Commercial Energy Coefficients'!$F$4+'Commercial Energy Coefficients'!$F$11+'Commercial Energy Coefficients'!$F$14+'Commercial Energy Coefficients'!$F$18*LN((B_OFF_Emp_Acre)*(B_Lot_Size/43560))+'Commercial Energy Coefficients'!$F$19*LN(40)+'Commercial Energy Coefficients'!$F$21+'Commercial Energy Coefficients'!$F$22*LN(Commercial_Energy_Cost)+'Commercial Energy Coefficients'!$F$24*IFERROR(LOOKUP(Metro_Select,Energy_Metro_Lookup,CDD),0)),0)+IFERROR(EXP('Commercial Energy Coefficients'!$I$3+LN((B_PUB_Gross_Sq_Ft))*'Commercial Energy Coefficients'!$I$4+'Commercial Energy Coefficients'!$I$11+'Commercial Energy Coefficients'!$I$14+'Commercial Energy Coefficients'!$I$18*LN((B_Pub_Emp_Acre)*(B_Lot_Size/43560))+'Commercial Energy Coefficients'!$I$19*LN(40)+'Commercial Energy Coefficients'!$I$21+'Commercial Energy Coefficients'!$I$22*LN(Commercial_Energy_Cost)+'Commercial Energy Coefficients'!$I$24*IFERROR(LOOKUP(Metro_Select,Energy_Metro_Lookup,CDD),0)),0))/1000 -> 0 | CP19: =(IFERROR(EXP('Commercial Energy Coefficients'!$D$3+LN((B_RET_Gross_Sq_Ft))*'Commercial Energy Coefficients'!$D$4+'Commercial Energy Coefficients'!$D$14+'Commercial Energy Coefficients'!$D$18*LN((B_Ret_Emp_Acre)*(B_Lot_Size/43560))+'Commercial Energy Coefficients'!$D$19*LN(40)+'Commercial Energy Coefficients'!$D$21+'Commercial Energy Coefficients'!$D$22*LN(Commercial_Energy_Cost)),0)+IFERROR(EXP('Commercial Energy Coefficients'!$G$3+LN((B_OFF_Gross_Sq_Ft))*'Commercial Energy Coefficients'!$G$4+'Commercial Energy Coefficients'!$G$14+'Commercial Energy Coefficients'!$G$18*LN((B_OFF_Emp_Acre)*(B_Lot_Size/43560))+'Commercial Energy Coefficients'!$G$19*LN(40)+'Commercial Energy Coefficients'!$G$21+'Commercial Energy Coefficients'!$G$22*LN(Commercial_Energy_Cost)),0)+IFERROR(EXP('Commercial Energy Coefficients'!$J$3+LN((B_PUB_Gross_Sq_Ft))*'Commercial Energy Coefficients'!$J$4+'Commercial Energy Coefficients'!$J$14+'Commercial Energy Coefficients'!$J$18*LN((B_Pub_Emp_Acre)*(B_Lot_Size/43560))+'Commercial Energy Coefficients'!$J$19*LN(40)+'Commercial Energy Coefficients'!$J$21+'Commercial Energy Coefficients'!$J$22*LN(Commercial_Energy_Cost)),0))/1000 -> 0 | CQ19: 0 | CR19: 0 | CS19: 0 | CT19: 1304.53873 | CU19: 135.8894511 | CV19: 12.67575292 | CW19: 0 | CX19: 121.687228 | CY19: 56.71875 | CZ19: 544.5 | DA19: 60 | DB19: 135 | DC19: 0 | DD19: 576 | DE19: 35 | DF19: 78.75 | DG19: 0 | DH19: 336 | DI19: =IF(B_Housing_Type="",0,IF(B_Housing_Type="MF",'Project Info'!$B$160,IF(B_Housing_Type="TH",'Project Info'!$B$161,IF(AND(B_Housing_Type="SF",B_Net_Sq_Ft_per_Unit>0,B_Net_Sq_Ft_per_Unit<3000),'Project Info'!$B$162,IF(AND(B_Housing_Type="SF",B_Net_Sq_Ft_per_Unit>=3000),'Project Info'!$B$163))))) -> 1.5 | DJ19: 3.375 | DK19: 0 | DL19: 14.4 | DM19: =[16]!LandCost -> 3.102041265 | DN19: 62040.82529 | DO19: 135124.9175 | DQ19: 62040.82529 | DR19: 135124.9175 | DS19: =[16]!ProjectValue -> 3982628.224 | DT19: 8674164.272 | DU19: =[16]!YInt -> 0.8013 | DV19: =[16]!Slope -> 0.2514298 | DW19: =[16]!ProdType -> Residential Owner | DX19: =[16]!Subsidy -> 0 | DY19: 0 | DZ19: 0 | EA19: =[16]!ImpactFees -> 0 | EB19: 0 | EC19: =[16]!ROI_Rental -> 0.09994858452 | ED19: =[16]!ROI_Owner -> 0 | EE19: =[16]!PropTax -> 95369.94708 | EF19: 207715.7447 | EG19: 0 | EH19: 0 | EI19: 0.05285228135 | EJ19: =[16]!GreenRoof -> 0 | EK19: =[16]!GreenRoofEff -> 0 | EL19: =[16]!GreenRoofVolume -> 0 | EM19: =[16]!Biofiltration -> 3957.082952 | EN19: =[16]!BiofiltrationEff -> 0 | EO19: =[16]!BiofiltrationVolume -> 13319.54122 | EP19: =[16]!GreenRoofHarvesting -> 0 | EQ19: =[16]!GreenRoofHarvestingEff -> 0 | ER19: =[16]!WaterHarvesting -> 0 | ES19: =[16]!WaterHarvestingEff -> 0 | ET19: =[16]!WaterHarvestingVolume -> 0 | EU19: 0 | EV19: 1816.842494 | EX19: 0 | EY19: 0 | EZ19: 0 | FA19: 6115.491835 | FB19: 0 | FC19: 0 | FE19: =Annual_Cooling_degree_days*24*(1/R_conventional_SF_F_hrs_BTU-1/R_green_roof_SF_F_hrs_Btu)/3412*'Building Inputs'!$EU19 -> 0 | FF19: 0 | FG19: =Annual_Heating_degree_days*24*(1/R_conventional_SF_F_hrs_BTU-1/R_green_roof_SF_F_hrs_Btu)*'Building Inputs'!$EU19 -> 0 | FH19: 0 | FI19: =Avg_Annual_NO2_uptake*'Building Inputs'!$EU19 -> 0 | FJ19: =Avg_Annual_O3_uptake*'Building Inputs'!$EU19 -> 0 | FK19: =Avg_Annual_SO2_uptake*'Building Inputs'!$EU19 -> 0 | FL19: =Avg_Annual_PM_10_uptake*'Building Inputs'!$EU19 -> 0 | FM19: 0 | FN19: 0 | FO19: 0 | FP19: 0 | FQ19: 0 | FR19: 0 | FS19: 0 | FT19: 0 | FU19: 0 | FV19: =Avg_amount_of_carbon_sequestered_lbs_SF*'Building Inputs'!$EU19*3.67 -> 0 | FW19: 0 | FX19: 0 | FY19: 0 | FZ19: =Average_annual_rainfall_in*($C19*(1-$E19)+$EM19-$EJ19-$ER19)*$C19/43560*'Building Inputs'!$EN19*144*0.00433 -> 0 | GB19: =Avg_Annual_NO2_uptake*'Building Inputs'!$EV19 -> 0.5450527482 | GC19: =Avg_Annual_O3_uptake*'Building Inputs'!$EV19 -> 1.068303387 | GD19: =Avg_Annual_SO2_uptake*'Building Inputs'!$EV19 -> 0.4160569312 | GE19: =Avg_Annual_PM_10_uptake*'Building Inputs'!$EV19 -> 0.2071200443 | GF19: 1.820476179 | GG19: 3.568133311 | GH19: 0.8570772782 | GI19: 0.5882209259 | GJ19: 6.833907694 | GK19: =Avg_amount_of_carbon_sequestered_lbs_SF*'Building Inputs'!$EV19*3.67 -> 221.3713569 | GL19: 1.673567458 | GM19: =Average_annual_rainfall_in*('Building Inputs'!$EX19*'Building Inputs'!$EQ19+'Building Inputs'!$EY19*'Building Inputs'!$ES19)*144*0.00433 -> 0 | GO19: 0 | GQ19: 0 | GR19: 0.5450527482 | GS19: 3.568133311 | GT19: 0.4160569312 | GU19: 0.2071200443 | GV19: 4.736363035 | GW19: 1.820476179 | GX19: 11.91756526 | GY19: 0.8570772782 | GZ19: 0.5882209259 | HA19: 15.18333964 | HB19: 221.3713569 | HC19: 1.673567458 | HD19: =[16]!RequiredWQV -> 3096.97245 | HE19: =[16]!ConventionalWQV -> 0 | HF19: 1421.934091 | HG19: 0 | HH19: 6115.491835 | HI19: =[16]!TSSload -> 83.87943169 | HJ19: =[16]!TNload -> 1.067556403 | HK19: =[16]!TLload -> 0.01525080576 | HL19: =[16]!fColiLoad -> 20742.7767 | HM19: =[16]!TSSreduction -> 68.86877122 | HN19: =[16]!TNreduction -> 0.5133511504 | HO19: =[16]!TLreduction -> 0.0118730939 | HP19: =[16]!fColiReduction -> 15275.38534 | HQ19: 38.51213576 | HR19: 0.4901544552 | HS19: 0.007002206502 | HT19: 9523.772589 | HU19: 31.6201888 | HV19: 0.2356984162 | HW19: 0.005451374611 | HX19: 7013.491892 | HY19: =[16]!EPA_MXD_ResTrips -> 62.44078344 | HZ19: =[16]!EPA_MXD_RetTrips -> 0 | IA19: =[16]!EPA_MXD_OffTrips -> 0 | IB19: =[16]!EPA_MXD_EduTrips -> 0 | IC19: =[16]!EPA_MXD_OtherTrips -> 0 | ID19: =[16]!EPA_MXD_ResVMT -> 177.257 | IE19: =[16]!EPA_MXD_RetVMT -> 0 | IF19: =[16]!EPA_MXD_OffVMT -> 0 | IG19: =[16]!EPA_MXD_EduVMT -> 0 | IH19: =[16]!EPA_MXD_OtherVMT -> 0
